{"text_format":"1","workbook":"xlsx","n_sheets":21,"sheets":["Designer_Sink_Quote_1","Arc Worksheet","Designer_Sink_Quote_BOM","Bill Of Material","Manufacturing BOM","Costs","Images","Engineering BOM","Mounting Cheat Sheet","Generic Codes","Dimensions","Calculator","Calculator_2","Drop Tables","Images (2)","To DOs","Color List 2","Sink Price Table","Sku List","Soap Price Table","Faucet Price Table"],"not_rendered":{"charts":0,"images":15,"macros":1,"external_links":1,"defined_names":92,"comments":0,"pivot_tables":0},"unopened":[],"bounds":{"document_bytes":16777216,"sheet_cells":100000,"rows_first":2000,"rows_last":500,"rows_between":2000,"halvings":0,"cell_chars":16384,"cell_head_chars":4096},"cells_cut":0,"cells_raw":0,"read":"whole","date_system":"1900"}

{"sheet":"Designer_Sink_Quote_1","index":0,"n_rows":62,"n_cols":19,"rows_kept":62,"cut":false,"hidden":true,"merged":[[6,3,8,21],[53,3,53,6],[56,3,56,6],[39,3,39,6],[39,8,39,11],[39,13,39,16],[15,3,16,21],[9,18,9,21],[11,18,11,21],[49,3,50,21],[52,8,52,11],[30,13,30,16],[33,18,33,21],[33,13,33,16],[33,3,33,6],[36,3,36,6],[1,8,5,16],[21,13,21,16],[22,13,22,16],[9,3,9,6],[11,3,11,6],[9,8,9,11],[11,8,11,11],[9,13,9,16],[11,13,11,16],[18,3,18,6],[18,8,18,11],[18,13,18,16],[19,8,19,11],[10,3,10,6],[10,8,10,11],[12,8,12,11],[10,18,10,21],[12,18,12,21],[34,13,34,16],[53,10,53,11],[54,10,54,11],[33,8,33,11],[30,8,30,11],[19,18,25,21],[53,13,59,21],[56,10,56,11],[57,10,57,11],[58,10,58,11],[59,10,59,11],[44,8,45,11],[44,18,45,21],[44,13,45,16],[34,18,34,21],[31,18,31,21],[28,13,28,16],[61,3,62,11],[61,13,62,21],[55,10,55,11],[59,3,59,6],[58,3,58,6],[55,3,55,6],[52,3,52,6],[58,8,58,9],[56,8,56,9],[57,8,57,9],[40,13,41,16],[31,3,31,6],[31,13,31,16],[30,18,30,21],[24,3,24,6],[24,8,24,11],[28,18,28,21],[27,3,27,6],[27,8,27,11],[30,3,30,6],[27,18,27,21],[28,3,28,6],[12,3,12,6],[53,8,53,9],[31,8,31,11],[10,13,10,16],[12,13,12,16],[40,8,41,11],[25,8,25,11],[22,8,22,11],[19,13,19,16],[37,8,37,11],[36,8,36,11],[25,13,25,16],[34,8,34,11],[24,13,24,16],[27,13,27,16],[54,8,54,9],[55,8,55,9],[19,3,19,6],[40,3,41,6],[37,3,37,6],[34,3,34,6],[28,8,28,11],[21,3,21,6],[21,8,21,11],[44,3,45,6],[22,3,22,6],[25,3,25,6]]}
[]
[null,null,null,null,null,null,null,null,"Sink Configuration Model"]
[null,null,"Logo"]
[]
[]
[]
[null,null,null,"Project Information"]
[]
[]
[null,null,null,"Architect/Designer",null,null,null,null,"Project Name",null,null,null,null,"Email",null,null,null,null,"Phone"]
[]
[null,null,null,"Country/State",null,null,null,null,"Location Details",null,null,null,null,"Sloan Representative",null,null,null,null,"Cloud for Sales ID #"]
[]
[]
[]
[null,null,null,"Sink Information"]
[]
[]
[null,null,null,"Sink Quantity",null,null,null,null,"Sink Model",null,null,null,null,"Station Quantity",null,null,null,null,"Notes:"]
[]
[]
[null,null,null,"Material",null,null,null,null,"Material Color",null,null,null,null,"Colors Marked with *** will need Special Pricing"]
[null,null,null,null,null,null,null,null,null,null,null,null,null,"If alternate color option, please list in Notes"]
[]
[null,null,null,"Trough Style",null,null,null,null,"Edge Type",null,null,null,null,"Enclosure"]
[]
[]
[null,null,null,"LED",null,null,null,null,"Purse Hooks",null,null,null,null,"Purse Hook Quantity",null,null,null,null,"Purse Hook Color"]
[]
[]
[null,null,null,"Faucet Quantity (per sink)",null,null,null,null,"Sloan Faucet Model",null,null,null,null,"Sloan Faucet Code",null,null,null,null,"Faucet Hole Size (If Non Sloan)"]
[]
[]
[null,null,null,"Soap Dispenser Quantity (per sink)",null,null,null,null,"Sloan Soap Dispenser Model",null,null,null,null,"Sloan Soap Dispenser Code",null,null,null,null,"Soap Dispenser Hole Size (If Non Sloan)"]
[]
[]
[null,null,null,"Drawing Requested?",null,null,null,null,"Discount (May Require Approval)"]
[]
[]
[null,null,null,"Approval Signature",null,null,null,null,"Approvers Title",null,null,null,null,"Date (mm/dd/yyyy)"]
[]
[]
[]
[]
[null,null,null,"Sink Model Number",null,null,null,null,{"$f":"IF(Calculator!G2=0,\"\",(IF(Calculator!AE2=\"Oops! Something Went Wrong\nPlease Contact Sloan\",\"Oops! Something Went Wrong\nPlease Contact Sloan\",Calculator!AG2)))","v":""},null,null,null,null,"Sloan Product Code",null,null,null,null,{"$f":"IF(I45=\"\",\"\",(IF(Calculator!AE2=\"\",\"\",Calculator!AH2)))","v":""}]
[]
[]
[]
[]
[null,null,null,"Internal Use Only"]
[]
[]
[null,null,null,"Internal Sloan Representative",null,null,null,null,"List Price (Good for 60 Days)",null,null,null,null,"Additional Notes:"]
[null,null,null,null,null,null,null,null,"Base Sink Price (EA):",null,{"$f":"IF(Calculator!AE2=\"Oops! Something Went Wrong\nPlease Contact Sloan\",0,Quote3[Base Sink $$])","v":0}]
[null,null,null,null,null,null,null,null,"Faucet & Soap Total:",null,{"$f":"Quote3[Faucet & Soap Total]","v":0}]
[null,null,null,"Shipping Lead Time*",null,null,null,null,"Add-On Total:",null,{"$f":"Quote3[Add-On Total]","v":0}]
[null,null,null,null,null,null,null,null,"Mounting Total:",null,{"$f":"Quote3[Mounting Total]","v":0}]
[null,null,null,null,null,null,null,null,"Sink Total:",null,{"$f":"Quote3[Sink Total]","v":0}]
[null,null,null,"Quote Number",null,null,null,null,"Discount:",null,{"$f":"Quote3[[Discount ]]","v":0}]
[null,null,null,null,null,null,null,null,"Extended Price:",null,{"$f":"Quote3[Extended Price]","v":0}]
[]
[null,null,null,"*Lead Time Starts upon Sloan's receipt of order - Note: Changes to Drawings after sign-off may extend lead time",null,null,null,null,null,null,null,null,null,"**Any Corian sinks longer than 120 inches will need to be seamed on site, any Quartz sinks over 119 inches will need to be seamed on site. Quartz meterials that are seamed will have a visible seam"]

{"sheet":"Arc Worksheet","index":1,"n_rows":108,"n_cols":22,"rows_kept":108,"cut":false,"hidden":false,"merged":[[103,3,103,15],[104,3,104,15],[105,3,105,15],[106,3,106,15],[98,3,98,21],[99,3,99,21],[100,3,100,15],[101,3,101,15],[102,3,102,15],[92,3,93,20],[94,3,94,15],[95,3,95,21],[96,3,96,15],[97,3,97,21],[82,3,82,15],[83,3,85,19],[86,3,86,15],[87,3,90,20],[91,3,91,15],[25,13,25,16],[19,18,29,21],[77,3,77,15],[78,3,78,20],[79,3,79,15],[80,3,80,4],[81,3,81,18],[69,3,69,15],[72,3,72,21],[73,3,73,15],[74,3,75,21],[76,3,76,15],[34,3,34,6],[34,8,34,11],[38,18,38,21],[34,13,34,16],[35,3,35,6],[35,8,35,11],[35,13,35,16],[34,18,34,21],[35,18,35,21],[37,18,37,21],[53,3,54,21],[56,3,56,6],[57,8,57,11],[47,13,47,16],[48,3,49,6],[44,3,44,6],[45,3,45,6],[37,3,37,6],[38,3,38,6],[37,8,37,11],[38,8,38,11],[37,13,37,16],[38,13,38,16],[40,3,40,6],[28,3,28,6],[19,13,19,16],[22,8,22,11],[24,3,24,6],[25,3,25,6],[62,3,64,11],[107,3,108,21],[62,13,64,21],[70,3,70,15],[71,3,71,15],[68,3,68,21],[27,3,27,6],[22,13,22,16],[25,8,25,11],[57,3,57,6],[41,3,41,6],[59,8,59,11],[60,8,60,11],[57,13,60,21],[47,3,47,6],[59,3,59,6],[60,3,60,6],[47,8,47,11],[56,8,56,11],[12,13,12,16],[18,13,18,16],[18,3,18,6],[18,8,18,11],[21,13,21,16],[24,8,24,11],[19,3,19,6],[19,8,19,11],[21,3,21,6],[21,8,21,11],[24,13,24,16],[18,18,18,21],[15,9,16,16],[48,8,49,11],[48,13,49,16],[1,8,5,16],[6,3,8,21],[9,3,9,6],[9,8,9,11],[9,13,9,16],[9,18,9,21],[10,18,10,21],[11,8,11,11],[11,13,11,16],[11,18,11,21],[10,3,10,6],[10,8,10,11],[10,13,10,16],[11,5,11,6],[11,3,11,4],[12,8,12,11],[12,3,12,4],[22,3,22,6],[12,5,12,6],[12,18,12,21]]}
[]
[null,null,null,null,null,null,null,null,"Shower"]
[]
[]
[]
[]
[null,null,null,"Project Information"]
[]
[]
[null,null,null,"Architect/Designer",null,null,null,null,"Project Name",null,null,null,null,"Email",null,null,null,null,"Phone"]
[]
[null,null,null,"Country",null,"State/Province",null,null,"Project Type",null,null,null,null,"Stone and Steel Representative",null,null,null,null,"Cloud for Sales ID #"]
[]
[]
[]
[null,null,null,null,null,null,null,null,null,"Shower Information"]
[]
[]
[null,null,null,"Shower Quantity",null,null,null,null,"Shower Pan",null,null,null,null,"Pan Configuration",null,null,null,null,"Notes:"]
[]
[]
[null,null,null,"Pan Material",null,null,null,null,"Pan Material Color",null,null,null,null,"Pan Finish"]
[]
[]
[null,null,null,"Pan Size",null,null,null,null,"Pan Threshold Style",null,null,null,null,"Drains"]
[]
[]
[null,null,null,"Rough In"]
[]
[]
[]
[]
[]
[]
[null,null,null,"Shower Walls (Y/N)",null,null,null,null,"Wall Configuration",null,null,null,null,"Wall Material",null,null,null,null,"Wall Material Color"]
[]
[]
[null,null,null,"Wall Finish",null,null,null,null,"Wall Height",null,null,null,null,"Wall Thickness",null,null,null,null,"Wall Hardware Finish"]
[]
[]
[null,null,null,"Glass Door Type (If App)"]
[]
[]
[]
[null,null,null,"Drawing Requested"]
[null,null,null,"Yes"]
[]
[null,null,null,"Approval Name",null,null,null,null,"Approvers Title",null,null,null,null,"Date (mm/dd/yyyy)"]
[]
[]
[]
[]
[null,null,null,null,null,null,null,null,null,null,null,null,null,null,null,null,null,null,null,null,null,"V02.22.19-1"]
[null,null,null,"Internal Use Only"]
[]
[]
[null,null,null,"Internal Stone and Steel Representative",null,null,null,null,"Compliance Notes (If App)",null,null,null,null,"Additional Notes:"]
[]
[]
[null,null,null,"List Price Per Surface",null,null,null,null,"Quote Number"]
[]
[]
[null,null,null,"*Lead Time Starts upon Stone and Steel's receipt of order - Note: Changes to Drawings after sign-off may extend lead time",null,null,null,null,null,null,null,null,null,"**Any Corian products longer than 120 inches will need to be seamed on site, any Quartz products over 119 inches will need to be seamed on site. Quartz materials that are seamed will have a visible seam"]
[]
[]
[]
[]
[null,null,null,"Notes:"]
[null,null,null,"- This quote is applicable to the request that accompanied it. Any changes may result in price and lead time changes and requires a new quote. After order has been placed any changes may result in extension of the lead time and/or fees up to the full price of the product. "]
[null,null,null,"- Lead Time Starts upon receipt of order"]
[null,null,null,"- Pricing does not include freight or unloading to final destination unless otherwise noted."]
[null,null,null,"- Quote is valid for 90 days from issue date"]
[null,null,null,"- Any Corian sinks longer than 120 inches will need to be seamed on site, any Quartz sinks over 119 inches will need to be seamed on site. Quartz materials that are seamed will have a visible seam"]
[null,null,null,"- Customer is responsible for paying all applicable Sales Tax to appropriate entities"]
[null,null,null,"-Unless otherwise specified, exclusions to this quote include but are not limed to:  Fixtures, plumbing components and materials, electronics, AV equipment, interior partitions, casework/millwork, wall/floor coverings, mounting hardware and furniture."]
[]
[null,null,null,"Cancellation Policy:"]
[null,null,null,"In the event of an order cancellation the following items may apply:"]
[null,null,null,"-If the  order is cancelled more than 5 working days from order placement it will result in a minimum of a 25% fee, up to the full price of that product. "]
[null,null,null,"-If the order is 5 working days or less from scheduled shipment any cancelations result in the full price of the product. "]
[null,null,null,"Return Policy:"]
[null,null,null,"All products except for some accessories are custom built and not eligible for return.  Some accessories may be returned for partial credit."]
[null,null,null,"Installation/Field Measurements:"]
[null,null,null,"Stone and Steel requires all products to be installed by knowledgeable installers. Installation and/or field measurement is not included in this estimate, and is by others. Installation must be performed by qualified personnel and in accordance with installation instructions and generally accepted industry practices.  Incorrect or improper installation will void any product warranty. For sinks: Any Corian sinks longer than 120 inches will need to be seamed on site, any Quartz sinks over 119 inches will need to be seamed on site. Quartz materials that are seamed will have a visible seam. For custom sinks refer to signed drawings packet to see if seaming will be required.  We do not provide material/epoxy."]
[]
[]
[null,null,null,"Materials:"]
[null,null,null,"All products provided by Stone and Steel will have some inherent variation.  While Stone and Steel takes the utmost caution to match and orient these products in such a way that these imperfections add to the aesthetic value of the product, Stone and Steel will not be held responsible for this variation.\n\nNatural products such as wood veneers, marble, granite and similar materials have variation in coloration, grain, veins, and surface finish both between lots/slabs and even within the same lot/slab.  natural products similarly may have imperfections within a sheet/slab such as small cracks, pitting or other surface imperfections, and/or discoloration.  While Stone and Steel takes the utmost caution to match and orient these products in suck a way that these imperfections add to the aesthetic value of the product, Stone and Steel will not be held responsible for this variation"]
[]
[]
[]
[null,null,null,"Signed Document Submittal:"]
[null,null,null,"Stone and Steel requires a signed architectural worksheet or signed drawing (if applicable) to be able to place an order. If an order is placed without these documents submitted to Stone and Steel it will result in an order hold that will extend any previously agreed upon lead time commitments. Once the documents are received the order will be reinstated and an updated ship date will be provided."]
[]
[null,null,null,"Claim Process: "]
[null,null,null,"For all Stone and Steel items if you receive a damaged item or suspect damage (crate broken, etc.) please reference our procedure below. THE BOL MUST BE MARKED AS \"DAMAGED\" UPON RECEIPT IN ORDER TO BE ELIGIBLE FOR CREDIT/REPLACEMENT of product.  Send the below information to DesignTeam@stoneandsteel.com"]
[null,null,null,"Information to be provided:"]
[null,null,null,"1.    Recipient must keep all original packaging, including cartons and contents, until the claim resolution process is completed. It may be necessary to make the packaging / contents available for inspection by the carrier’s representative. Keep merchandise and all packaging materials. "]
[null,null,null,"NOTE: It is imperative that the receiver keep the merchandise segregated and available for inspection until the claim is settled. If the claim is for full replacement value, and the claim is successfully paid, the carrier has the right to the cargo and may elect to collect it for sale or salvage to recoup a portion of their costs. "]
[null,null,null,"2.    Explanation of what we are filing a claim for (i.e. damage, lost, shortage), against whom we should file, and the value of the claim being filed. For a  damage claim, provide as much detail as possible specifically describing the damage to the product."]
[null,null,null,"3.    Account Number"]
[null,null,null,"4.    Customer Name, Customer Contact Name, Customer Address, Customer Phone Number"]
[null,null,null,"5.    Signed copy of carrier bill of lading, or delivery receipt from recipient (copy should be signed by receiver noting that the cargo was short or damaged when delivered) and photos. "]
[null,null,null,"6.    Stone and Steel Delivery Number and/or Sales Order Number"]
[null,null,null,"7.    Copied of all documentation related to proof of claim value. This can be a copy of original invoice from vendor or supplier, copy of retail invoice or receipt, final confirmation screen if online order with proof of payment, itemized repair invoice or statement of non-repair, appraisals, expense statement, or any other applicable documentation."]
[null,null,null,"8.    Copy of any inspection form that may have been completed noting damage and cost of repair."]
[null,null,null,"9.    Copies of any photos showing damage. "]
[null,null,null,"If you have a shortage (missing soap dispenser, etc.) please contact Stone and Steel’s customer service. Please have ready your order number and the item name and quantity that you are missing. "]

{"sheet":"Designer_Sink_Quote_BOM","index":2,"n_rows":66,"n_cols":31,"rows_kept":66,"cut":false,"hidden":true,"merged":[[34,26,34,28],[35,26,35,28],[30,29,30,30],[31,29,31,30],[34,29,34,30],[35,29,35,30],[25,26,25,30],[29,26,29,30],[33,26,33,30],[26,29,26,30],[27,29,27,30],[26,26,26,28],[27,26,27,28],[30,26,30,28],[31,26,31,28],[18,26,18,30],[19,26,19,30],[65,8,65,9],[64,3,64,6],[65,3,65,6],[56,13,56,14],[57,13,57,14],[58,13,58,14],[59,13,59,14],[60,13,60,14],[61,13,61,14],[62,13,62,14],[63,13,63,14],[64,13,64,14],[65,13,65,14],[30,3,30,6],[30,8,30,11],[30,13,30,16],[30,18,30,21],[31,3,31,6],[31,8,31,11],[31,13,31,16],[31,18,31,21],[18,3,18,6],[1,8,5,16],[6,3,8,21],[9,3,9,6],[9,8,9,11],[9,13,9,16],[9,18,9,21],[10,18,10,21],[11,3,11,6],[11,8,11,11],[11,13,11,16],[11,18,11,21],[18,8,18,11],[18,13,18,16],[10,3,10,6],[10,8,10,11],[10,13,10,16],[12,3,12,6],[12,8,12,11],[12,13,12,16],[12,18,12,21],[15,3,16,21],[19,3,19,6],[19,8,19,11],[19,13,19,16],[19,18,25,21],[21,3,21,6],[21,8,21,11],[21,13,21,16],[22,3,22,6],[22,8,22,11],[22,13,22,16],[24,3,24,6],[24,8,24,11],[24,13,24,16],[25,3,25,6],[25,8,25,11],[25,13,25,16],[27,3,27,6],[27,8,27,11],[27,13,27,16],[27,18,27,21],[28,3,28,6],[28,8,28,11],[28,13,28,16],[28,18,28,21],[33,3,33,6],[33,8,33,11],[33,13,33,16],[33,18,33,21],[36,18,36,21],[34,18,34,21],[37,18,37,21],[42,3,42,6],[42,8,42,11],[42,13,42,16],[43,3,44,6],[43,8,44,11],[43,13,44,16],[34,3,34,6],[34,8,34,11],[34,13,34,16],[36,3,36,6],[36,8,36,11],[36,13,36,16],[37,3,37,6],[37,8,37,11],[37,13,37,16],[47,3,48,6],[47,8,48,11],[47,13,48,16],[47,18,48,21],[52,3,53,21],[55,3,55,6],[55,8,55,11],[56,3,56,6],[56,10,56,11],[57,10,57,11],[56,8,56,9],[57,8,57,9],[58,8,58,9],[59,8,59,9],[60,8,60,9],[58,3,58,6],[58,10,58,11],[59,3,59,6],[59,10,59,11],[66,3,66,11],[66,13,66,21],[60,10,60,11],[61,3,61,6],[61,10,61,11],[62,3,62,6],[62,10,62,11],[63,10,63,11],[64,10,64,11],[65,10,65,11],[61,8,61,9],[62,8,62,9],[63,8,63,9],[64,8,64,9]]}
[]
[null,null,null,null,null,null,null,null,"Sink Configuration Model"]
[null,null,"Logo"]
[]
[]
[]
[null,null,null,"Project Information"]
[]
[]
[null,null,null,"Architect/Designer",null,null,null,null,"Project Name",null,null,null,null,"Email",null,null,null,null,"Phone"]
[null,null,null,{"$f":"IF(ISBLANK('Arc Worksheet'!D11),\"\",'Arc Worksheet'!D11)","v":""},null,null,null,null,{"$f":"'Arc Worksheet'!I11","v":0},null,null,null,null,{"$f":"'Arc Worksheet'!N11","v":0},null,null,null,null,{"$f":"'Arc Worksheet'!S11","v":0}]
[null,null,null,"Country/State",null,null,null,null,"Location Details",null,null,null,null,"Sloan Representative",null,null,null,null,"Cloud for Sales ID #"]
[null,null,null,{"$f":"'Arc Worksheet'!D13","v":0},null,null,null,null,{"$f":"'Arc Worksheet'!I13","v":0},null,null,null,null,{"$f":"'Arc Worksheet'!N13","v":0},null,null,null,null,{"$f":"'Arc Worksheet'!S13","v":0}]
[]
[]
[null,null,null,"Sink Information"]
[]
[]
[null,null,null,"Sink Quantity",null,null,null,null,"Sink Model",null,null,null,null,"Station Quantity",null,null,null,null,"Notes:",null,null,null,null,null,null,null,"Sink Location Alcove"]
[null,null,null,{"$f":"'Arc Worksheet'!D20","v":0},null,null,null,null,{"$f":"'Arc Worksheet'!#REF!","v":{"$error":"#REF!"}},null,null,null,null,{"$f":"'Arc Worksheet'!#REF!","v":{"$error":"#REF!"}},null,null,null,null,{"$f":"'Arc Worksheet'!S20","v":0}]
[]
[null,null,null,"Material",null,null,null,null,"Material Color",null,null,null,null,"Colors Marked with *** will need Special Pricing",null,null,null,null,null,null,null,null,null,null,null,null,"Dimensions","A+","B+","C=","D"]
[null,null,null,{"$f":"VLOOKUP('Arc Worksheet'!D23,'Drop Tables'!H:I,2,0)","v":{"$error":"#N/A"}},null,null,null,null,{"$f":"VLOOKUP('Arc Worksheet'!I23,'Drop Tables'!Z:AA,2,0)","v":{"$error":"#N/A"}},null,null,null,null,"If alternate color option, please list in Notes",null,null,null,null,null,null,null,null,null,null,null,null,"Standard","4.5\"","21\"","4.5\"","30\""]
[null,null,null,null,null,null,null,null,null,null,null,null,null,null,null,null,null,null,null,null,null,null,null,null,null,null,"Custom",null,null,null,{"$f":"SUM(AB24:AD24)","v":0}]
[null,null,null,"Trough Style",null,null,null,null,"Edge Type",null,null,null,null,"Enclosure"]
[null,null,null,{"$f":"'Arc Worksheet'!N23","v":0},null,null,null,null,{"$f":"'Arc Worksheet'!I26","v":0},null,null,null,null,{"$f":"'Arc Worksheet'!#REF!","v":{"$error":"#REF!"}},null,null,null,null,null,null,null,null,null,null,null,null,"Soap Hole"]
[null,null,null,null,null,null,null,null,null,null,null,null,null,null,null,null,null,null,null,null,null,null,null,null,null,null,"Standard",null,null,"1\""]
[null,null,null,"LED",null,null,null,null,"Purse Hooks",null,null,null,null,"Purse Hook Quantity",null,null,null,null,"Purse Hook Color",null,null,null,null,null,null,null,"Custom"]
[null,null,null,{"$f":"'Arc Worksheet'!I20","v":0},null,null,null,null,{"$f":"'Arc Worksheet'!#REF!","v":{"$error":"#REF!"}},null,null,null,null,{"$f":"'Arc Worksheet'!#REF!","v":{"$error":"#REF!"}},null,null,null,null,{"$f":"'Arc Worksheet'!#REF!","v":{"$error":"#REF!"}}]
[null,null,null,null,null,null,null,null,null,null,null,null,null,null,null,null,null,null,null,null,null,null,null,null,null,null,"Faucet Hole"]
[null,null,null,"Hand Dryer",null,null,null,null,"Trash Hole",null,null,null,null,"Paper Towel holder",null,null,null,null,"Baby Changing Station",null,null,null,null,null,null,null,"Standard",null,null,"1.25\""]
[null,null,null,null,null,null,null,null,null,null,null,null,null,null,null,null,null,null,null,null,null,null,null,null,null,null,"Custom"]
[]
[null,null,null,"Faucet Quantity (per sink)",null,null,null,null,"Sloan Faucet Model",null,null,null,null,"Sloan Faucet Code",null,null,null,null,"Laminate Code",null,null,null,null,null,null,null,"Apron"]
[null,null,null,{"$f":"'Arc Worksheet'!#REF!","v":{"$error":"#REF!"}},null,null,null,null,{"$f":"'Arc Worksheet'!#REF!","v":{"$error":"#REF!"}},null,null,null,null,{"$f":"VLOOKUP(I35,'Faucet Price Table'!#REF!,3,0)","v":{"$error":"#REF!"}},null,null,null,null,{"$f":"VLOOKUP('Arc Worksheet'!#REF!,'Drop Tables'!AD:AD,2,0)","v":{"$error":"#REF!"}},null,null,null,null,null,null,null,"Standard",null,null,"5\""]
[null,null,null,null,null,null,null,null,null,null,null,null,null,null,null,null,null,null,null,null,null,null,null,null,null,null,"Custom"]
[null,null,null,"Soap Dispenser Quantity (per sink)",null,null,null,null,"Sloan Soap Dispenser Model",null,null,null,null,"Sloan Soap Dispenser Code",null,null,null,null,"Basin Grate Code"]
[null,null,null,{"$f":"'Arc Worksheet'!#REF!","v":{"$error":"#REF!"}},null,null,null,null,{"$f":"'Arc Worksheet'!#REF!","v":{"$error":"#REF!"}},null,null,null,null,{"$f":"VLOOKUP(I38,'Soap Price Table'!#REF!,3,0)","v":{"$error":"#REF!"}}]
[]
[]
[]
[]
[null,null,null,"Approval Signature",null,null,null,null,"Approvers Title",null,null,null,null,"Date (mm/dd/yyyy)"]
[]
[]
[]
[]
[null,null,null,"Sink Model Number",null,null,null,null,{"$f":"IF(Calculator_2!G2=0,\"\",(IF(Calculator_2!AE2=\"Oops! Something Went Wrong\nPlease Contact Sloan\",\"Oops! Something Went Wrong\nPlease Contact Sloan\",Calculator_2!AG2)))","v":""},null,null,null,null,"Sloan Product Code",null,null,null,null,{"$f":"IF(I48=\"\",\"\",(IF(Calculator_2!AE2=\"\",\"\",Calculator_2!AH2)))","v":""}]
[]
[]
[]
[]
[null,null,null,"Internal Use Only"]
[]
[]
[null,null,null,"Internal Sloan Representative",null,null,null,null,"List Price (Good for 60 Days)",null,null,null,null,"Extended Price (good for 60 Days)",null,null,null,null,"Additional Notes:"]
[null,null,null,{"$f":"'Arc Worksheet'!D58","v":0},null,null,null,null,"Base Sink Price (EA)",null,{"$f":"IF(Calculator!AE2=\"Oops! Something Went Wrong\nPlease Contact Sloan\",0,Quote3[Base Sink $$])","v":0},null,null,"Base Sink Price",null,{"$f":"K57*D20","v":0}]
[null,null,null,null,null,null,null,null,"Mounting Price (EA)",null,{"$f":"Quote3[Faucet & Soap Total]","v":0},null,null,"Mounting Price",null,{"$f":"N58*D20","v":{"$error":"#VALUE!"}}]
[null,null,null,"Shipping Lead Time*",null,null,null,null,"LED Price (EA)",null,{"$f":"Quote3[Add-On Total]","v":0},null,null,"LED Price",null,{"$f":"(K59*N20)*D20","v":{"$error":"#REF!"}}]
[null,null,null,{"$f":"'Arc Worksheet'!D61","v":0},null,null,null,null,"Purse Hook Price (EA)",null,{"$f":"Quote3[Mounting Total]","v":0},null,null,"Purse Hook Price",null,{"$f":"K60*N29","v":{"$error":"#REF!"}}]
[null,null,null,null,null,null,null,null,"Hand Dryer Price (EA)",null,{"$f":"Quote3[Sink Total]","v":0},null,null,"Hand Dryer Price",null,{"$f":"(K61*N20)*D20","v":{"$error":"#REF!"}}]
[null,null,null,"Quote Number",null,null,null,null,"Trash Hole (EA)",null,{"$f":"Quote3[[Discount ]]","v":0},null,null,"Trash Hole"]
[null,null,null,{"$f":"'Arc Worksheet'!I61","v":0},null,null,null,null,"Paper Towel Holder (EA)",null,{"$f":"Quote3[Extended Price]","v":0},null,null,"Paper Towel Holder"]
[null,null,null,null,null,null,null,null,"Baby Changing Station (EA)",null,0,null,null,"Baby Changing Station"]
[null,null,null,"Compliance Notes",null,null,null,null,"Faucet Price (EA)",null,0,null,null,"Faucet Price"]
[null,null,null,{"$f":"'Arc Worksheet'!I58","v":0},null,null,null,null,"Soap Dispencer Price (EA)",null,0,null,null,"Soap Dispencer Price",null,{"$f":"(K66*N20)*D20","v":{"$error":"#REF!"}}]

{"sheet":"Bill Of Material","index":3,"n_rows":17,"n_cols":7,"rows_kept":17,"cut":false,"hidden":true,"merged":[]}
[]
[null,null,null,null,"Enter Quantity Below"]
[]
[null,null,null,null,null,"Price to SVC",{"$f":"G5/0.85","v":{"$error":"#VALUE!"}}]
[null,"Generic Code:",{"$f":"IFERROR(INDEX('Generic Codes'!G2:P345,MATCH(#REF!,'Generic Codes'!A2:A345,0),MATCH(#REF!,'Generic Codes'!G1:P1,0)),\"\")","v":""},"Sink Quantity:",{"$f":"IF(ISBLANK('Arc Worksheet'!D20),\"\",'Arc Worksheet'!D20)","v":""},"Total Cost per Sink",{"$f":"IFERROR(SUM(G8:G17),\"Information Missing\")","v":"Information Missing"}]
[null,"Component","Description","Material Code","Quantity Per Sink","Quantity Per Order","Cost Per Sink"]
[null,"Color",{"$f":"IF(ISBLANK('Arc Worksheet'!J23),\"\",'Arc Worksheet'!J23)","v":""},{"$f":"IF(ISBLANK(C7),\"\",IFERROR(VLOOKUP(C7,'Drop Tables'!Z:AB,3,0),\"\"))","v":""},{"$f":"IF(ISBLANK(C7),\"\",'Arc Worksheet'!I23)","v":0}]
[null,"Model",{"$f":"IF(ISBLANK('Arc Worksheet'!#REF!),\"\",'Arc Worksheet'!#REF!)","v":{"$error":"#REF!"}},{"$f":"IFERROR(INDEX('Sku List'!G2:$P$245,MATCH(#REF!,'Sku List'!A2:$A$245,0),MATCH(#REF!,'Sku List'!$G$1:$P$1,0)),\"\")","v":""},{"$f":"IF(ISBLANK('Arc Worksheet'!#REF!),\"\",\"1\")","v":"1"},{"$f":"IF(ISBLANK($E$5),\"\",IFERROR($E$5*E8,\"\"))","v":""},{"$f":"IFERROR(INDEX('Sink Price Table'!G2:$K$241,MATCH(#REF!,'Sink Price Table'!A2:$A$241,0),MATCH(#REF!,'Sink Price Table'!G1:$K$1,0))*E8,\"\")","v":""}]
[null,"Mounting",{"$f":"IF(ISBLANK('Arc Worksheet'!#REF!),\"\",'Arc Worksheet'!#REF!)","v":{"$error":"#REF!"}},{"$f":"IF(ISBLANK('Arc Worksheet'!#REF!),\"\",IFERROR(VLOOKUP(#REF!,#REF!,2,0),VLOOKUP(#REF!,'Mounting Cheat Sheet'!A:B,2,0)))","v":{"$error":"#REF!"}},{"$f":"IF(ISBLANK('Arc Worksheet'!#REF!),\"\",IFERROR(VLOOKUP(D9,'Mounting Cheat Sheet'!B:C,2,0),VLOOKUP(D9,#REF!,2,0)))","v":{"$error":"#REF!"}},"",{"$f":"IFERROR(IF(D9=\"\",\"\",IFERROR(VLOOKUP(#REF!,#REF!,4,0),VLOOKUP(D9,'Mounting Cheat Sheet'!B:F,5,0)))*E9,\"\")","v":""}]
[null,"Angle Bracket ext.",{"$f":"IF(C9=\"Angle Bracket\",\"Angle Bracket\",\"Not Needed\")","v":{"$error":"#REF!"}},{"$f":"IFERROR(IF(C10=\"\",\"\",VLOOKUP(#REF!,'Mounting Cheat Sheet'!A:D,4,0)),\"\")","v":""},{"$f":"IFERROR(IF(C10=\"\",\"\",VLOOKUP(D10,'Mounting Cheat Sheet'!D:E,2,0)),\"\")","v":""},{"$f":"IF(ISBLANK($E$5),\"\",IFERROR($E$5*E10,\"\"))","v":""},{"$f":"IFERROR(IFERROR(VLOOKUP(D10,'Mounting Cheat Sheet'!D:G,4,0),0)*E10,\"\")","v":""}]
[null,"LED",{"$f":"IF(ISBLANK('Arc Worksheet'!I20),\"\",'Arc Worksheet'!I20)","v":""},{"$f":"IF(ISBLANK('Arc Worksheet'!I20),\"\",IF('Arc Worksheet'!I20=\"No\",\"\",VLOOKUP(#REF!,#REF!,2,0)))","v":""},{"$f":"IF(ISBLANK('Arc Worksheet'!I20),\"\",IF('Arc Worksheet'!I20=\"No\",\"\",VLOOKUP(#REF!,#REF!,3,0)))","v":""},{"$f":"IF(ISBLANK($E$5),\"\",IFERROR($E$5*E11,\"\"))","v":""},{"$f":"IF(D11=\"\",\"\",IFERROR(VLOOKUP(#REF!,#REF!,4,0)*E11,\"\"))","v":""}]
[null,"Bag Hooks",{"$f":"IF(ISBLANK('Arc Worksheet'!#REF!),\"\",'Arc Worksheet'!#REF!)","v":{"$error":"#REF!"}},{"$f":"IF(ISBLANK('Arc Worksheet'!#REF!),\"\",IF('Arc Worksheet'!#REF!=\"No\",\"\",VLOOKUP(#REF!,#REF!,2,0)))","v":{"$error":"#REF!"}},{"$f":"IF(D12=\"\",\"\", 'Arc Worksheet'!#REF!)","v":{"$error":"#REF!"}},"",{"$f":"IF(D12=\"\",\"\",IFERROR(VLOOKUP(#REF!,#REF!,4,0)*E12,\"\"))","v":{"$error":"#REF!"}}]
[null,"Hand Dryer",{"$f":"IF(ISBLANK('Arc Worksheet'!#REF!),\"\",'Arc Worksheet'!#REF!)","v":{"$error":"#REF!"}},{"$f":"IF(ISBLANK('Arc Worksheet'!#REF!),\"\",VLOOKUP(#REF!,#REF!,2,0))","v":{"$error":"#REF!"}},{"$f":"IF(D13=\"\",\"\",'Arc Worksheet'!#REF!)","v":{"$error":"#REF!"}},"",{"$f":"IF(C13=\"\",\"\",IFERROR(VLOOKUP(#REF!,#REF!,4,0)*E13,\"\"))","v":{"$error":"#REF!"}}]
[null,"Paper Towel Holder",{"$f":"IF(ISBLANK('Arc Worksheet'!#REF!),\"\",'Arc Worksheet'!#REF!)","v":{"$error":"#REF!"}},{"$f":"IF('Arc Worksheet'!#REF!=\"Yes\",VLOOKUP(#REF!,#REF!,2,0),\"\")","v":{"$error":"#REF!"}},{"$f":"IF(ISBLANK('Arc Worksheet'!#REF!),\"\",IF('Arc Worksheet'!#REF!=\"No\",\"\",VLOOKUP(D14,#REF!,2,0)))","v":{"$error":"#REF!"}},"",{"$f":"IF(D14=\"\",\"\",IFERROR(VLOOKUP(#REF!,#REF!,4,0)*E14,\"\"))","v":{"$error":"#REF!"}}]
[null,"Basin Grates",{"$f":"IF(ISBLANK('Arc Worksheet'!#REF!),\"\",'Arc Worksheet'!#REF!)","v":{"$error":"#REF!"}},{"$f":"IF(ISBLANK('Arc Worksheet'!#REF!),\"\",IF('Arc Worksheet'!#REF!=\"No\",\"\",VLOOKUP(#REF!,#REF!,2,0)))","v":{"$error":"#REF!"}},{"$f":"IF(ISBLANK('Arc Worksheet'!#REF!),\"\",IF('Arc Worksheet'!#REF!=\"No\",\"\",1))","v":{"$error":"#REF!"}},"",{"$f":"IF(D15=\"\",\"\",IFERROR(VLOOKUP(#REF!,#REF!,4,0)*E15,\"\"))","v":{"$error":"#REF!"}}]
[null,"Faucet",{"$f":"IF(ISBLANK('Arc Worksheet'!#REF!),IFERROR(VLOOKUP('Arc Worksheet'!#REF!,'Faucet Price Table'!A:B,2,0),\"\"),'Arc Worksheet'!#REF!)","v":{"$error":"#REF!"}},{"$f":"IF(ISBLANK('Arc Worksheet'!#REF!),'Arc Worksheet'!#REF!,VLOOKUP('Arc Worksheet'!#REF!,'Faucet Price Table'!B:D,3,0))","v":{"$error":"#REF!"}},{"$f":"IF(ISBLANK('Arc Worksheet'!#REF!),\"\",'Arc Worksheet'!#REF!)","v":{"$error":"#REF!"}},"",{"$f":"IFERROR(IF(ISBLANK('Arc Worksheet'!#REF!),VLOOKUP('Arc Worksheet'!#REF!,'Faucet Price Table'!A:C,3,0)*E16,VLOOKUP(D16,'Faucet Price Table'!A:C,3,0)*E16),\"\")","v":""}]
[null,"Soap Dispenser",{"$f":"IF(ISBLANK('Arc Worksheet'!#REF!),IFERROR(VLOOKUP('Arc Worksheet'!#REF!,'Soap Price Table'!A:B,2,0),\"\"),'Arc Worksheet'!#REF!)","v":{"$error":"#REF!"}},{"$f":"IF(ISBLANK('Arc Worksheet'!#REF!),'Arc Worksheet'!#REF!,VLOOKUP('Arc Worksheet'!#REF!,'Soap Price Table'!B:D,3,0))","v":{"$error":"#REF!"}},{"$f":"IF(ISBLANK('Arc Worksheet'!#REF!),\"\",'Arc Worksheet'!#REF!)","v":{"$error":"#REF!"}},"",{"$f":"IFERROR(IF(ISBLANK('Arc Worksheet'!#REF!),(VLOOKUP('Arc Worksheet'!#REF!,'Soap Price Table'!A:C,3,0)*E17),(VLOOKUP('Arc Worksheet'!#REF!,'Soap Price Table'!B:C,2,0)*E17)),\"\")","v":""}]

{"sheet":"Manufacturing BOM","index":4,"n_rows":84,"n_cols":6,"rows_kept":84,"cut":false,"hidden":true,"merged":[[2,0,2,6],[28,0,32,2],[28,3,32,6],[4,5,4,6],[71,0,71,6],[72,1,72,2],[72,3,72,4],[3,3,3,4],[37,0,37,6],[38,1,38,2],[38,3,38,4],[3,1,3,2]]}
[]
["Project Name:",{"$f":"IF(ISBLANK('Arc Worksheet'!I11),\"\",'Arc Worksheet'!I11)","v":""},null,"Quote Number:",{"$f":"IF(ISBLANK('Arc Worksheet'!I61),\"\",'Arc Worksheet'!I61)","v":""}]
["WaterJet"]
["Generic Code:",{"$f":"'Bill Of Material'!C5","v":""},null,"Sink Quantity:",null,{"$f":"'Bill Of Material'!E5","v":""}]
["Component","Description","Material Code","Quantity Per Sink","Quantity Per Order","Color Tier"]
["Color",{"$f":"IF(ISBLANK('Arc Worksheet'!$J$23),\"\",'Arc Worksheet'!$J$23)","v":""},{"$f":"IF(ISBLANK(B6),\"\",VLOOKUP(B6,'Drop Tables'!Z:AB,3,0))","v":{"$error":"#N/A"}},{"$f":"'Bill Of Material'!E7","v":0},null,{"$f":"'Bill Of Material'!G7","v":0}]
["Model",{"$f":"IF(ISBLANK('Bill Of Material'!C8),\"\",'Bill Of Material'!C8)","v":{"$error":"#REF!"}},{"$f":"'Bill Of Material'!D8","v":""},{"$f":"'Bill Of Material'!E8","v":"1"},{"$f":"$F$4*D7","v":{"$error":"#VALUE!"}}]
["Trough Style",{"$f":"IF(ISBLANK('Arc Worksheet'!N23),\"\",'Arc Worksheet'!N23)","v":""}]
["Bowl Type",{"$f":"IF(ISBLANK('Arc Worksheet'!#REF!),\"\",'Arc Worksheet'!#REF!)","v":{"$error":"#REF!"}}]
["Edge Type",{"$f":"IF(ISBLANK('Arc Worksheet'!I26),\"\",'Arc Worksheet'!I26)","v":""}]
["Alcove",{"$f":"IF(ISBLANK('Arc Worksheet'!#REF!),\"\",'Arc Worksheet'!#REF!)","v":{"$error":"#REF!"}}]
["LED",{"$f":"IF(ISBLANK('Bill Of Material'!C11),\"\",'Bill Of Material'!C11)","v":""},{"$f":"'Bill Of Material'!D11","v":""},{"$f":"'Bill Of Material'!E11","v":""},{"$f":"$F$4*D12","v":{"$error":"#VALUE!"}}]
["Hand Dryer",{"$f":"IF(ISBLANK('Bill Of Material'!C13),\"\",'Bill Of Material'!C13)","v":{"$error":"#REF!"}},{"$f":"'Bill Of Material'!D13","v":{"$error":"#REF!"}},{"$f":"'Bill Of Material'!E13","v":{"$error":"#REF!"}},{"$error":"#VALUE!"}]
["Faucet",{"$f":"IF(ISBLANK('Bill Of Material'!C16),\"\",'Bill Of Material'!C16)","v":{"$error":"#REF!"}},{"$f":"'Bill Of Material'!D16","v":{"$error":"#REF!"}},{"$f":"'Bill Of Material'!E16","v":{"$error":"#REF!"}},{"$error":"#VALUE!"}]
["Soap Dispenser",{"$f":"IF(ISBLANK('Bill Of Material'!C17),\"\",'Bill Of Material'!C17)","v":{"$error":"#REF!"}},{"$f":"'Bill Of Material'!D17","v":{"$error":"#REF!"}},{"$f":"'Bill Of Material'!E17","v":{"$error":"#REF!"}},{"$error":"#VALUE!"}]
["Trash Hole",{"$f":"IF(ISBLANK('Arc Worksheet'!#REF!),\"\",'Arc Worksheet'!#REF!)","v":{"$error":"#REF!"}},null,{"$f":"IF(B16=\"Yes\",1,\"\")","v":{"$error":"#REF!"}},{"$error":"#VALUE!"}]
["Paper Towel Holder",{"$f":"IF(ISBLANK('Bill Of Material'!C14),\"\",'Bill Of Material'!C14)","v":{"$error":"#REF!"}},{"$f":"'Bill Of Material'!D14","v":{"$error":"#REF!"}},{"$f":"'Bill Of Material'!E14","v":{"$error":"#REF!"}},{"$error":"#VALUE!"}]
["Baby Changing Station",{"$f":"IF(ISBLANK('Arc Worksheet'!#REF!),\"\",'Arc Worksheet'!#REF!)","v":{"$error":"#REF!"}},{"$f":"IF(B18=\"Yes\",#REF!,\"\")","v":{"$error":"#REF!"}},{"$f":"IF(B18=\"Yes\",1,\"\")","v":{"$error":"#REF!"}},{"$error":"#VALUE!"}]
["Dimensions","A+","B+","C=","D"]
["Standard",{"$f":"IF(ISBLANK('Arc Worksheet'!#REF!),\"\",'Arc Worksheet'!#REF!)","v":{"$error":"#REF!"}},{"$f":"IF(ISBLANK('Arc Worksheet'!#REF!),\"\",'Arc Worksheet'!#REF!)","v":{"$error":"#REF!"}},{"$f":"IF(ISBLANK('Arc Worksheet'!#REF!),\"\",'Arc Worksheet'!#REF!)","v":{"$error":"#REF!"}},{"$f":"IF(ISBLANK('Arc Worksheet'!#REF!),\"\",'Arc Worksheet'!#REF!)","v":{"$error":"#REF!"}}]
["Custom",{"$f":"IF(ISBLANK('Arc Worksheet'!#REF!),\"\",'Arc Worksheet'!#REF!)","v":{"$error":"#REF!"}},{"$f":"IF(ISBLANK('Arc Worksheet'!#REF!),\"\",'Arc Worksheet'!#REF!)","v":{"$error":"#REF!"}},{"$f":"IF(ISBLANK('Arc Worksheet'!#REF!),\"\",'Arc Worksheet'!#REF!)","v":{"$error":"#REF!"}},{"$f":"IF(ISBLANK('Arc Worksheet'!#REF!),\"\",'Arc Worksheet'!#REF!)","v":{"$error":"#REF!"}}]
["Soap Hole","Inches","Faucet Hole","Inches"]
["Standard","1\"","Standard","1.25\""]
["Custom",{"$f":"IF(ISBLANK('Arc Worksheet'!#REF!),\"\",'Arc Worksheet'!#REF!)","v":{"$error":"#REF!"}},"Custom",{"$f":"IF(ISBLANK('Arc Worksheet'!#REF!),\"\",'Arc Worksheet'!#REF!)","v":{"$error":"#REF!"}}]
["Back Splash","Inches","Apron","Inches"]
["Standard",{"$f":"'Arc Worksheet'!#REF!","v":{"$error":"#REF!"}},"Standard","5\""]
["Custom",{"$f":"IF(ISBLANK('Arc Worksheet'!#REF!),\"\",'Arc Worksheet'!#REF!)","v":{"$error":"#REF!"}},"Custom",{"$f":"IF(ISBLANK('Arc Worksheet'!#REF!),\"\",'Arc Worksheet'!#REF!)","v":{"$error":"#REF!"}}]
["Sales Notes:",null,null,"Internal Notes:"]
[{"$f":"IF(ISBLANK('Arc Worksheet'!S20),\"\",'Arc Worksheet'!S20)","v":""},null,null,{"$f":"IF(ISBLANK('Arc Worksheet'!N58),\"\",'Arc Worksheet'!N58)","v":""}]
[]
[]
[]
[]
[]
[]
[]
[]
["Corian Assembly"]
["Generic Code:",{"$f":"IF(ISBLANK('Bill Of Material'!C5),\"\",'Bill Of Material'!C5)","v":""},null,"Sink Quantity:",null,{"$f":"IF(ISBLANK(F4),\"\",F4)","v":""}]
["Component","Description","Material Code","Quantity Per Sink","Quantity Per Order"]
["Color Tier",{"$f":"IF(ISBLANK(B6),\"\",B6)","v":""},{"$f":"IF(ISBLANK(C6),\"\",C6)","v":{"$error":"#N/A"}},{"$f":"IF(ISBLANK(D6),\"\",D6)","v":0}]
["Model",{"$f":"IF(ISBLANK('Bill Of Material'!C8),\"\",'Bill Of Material'!C8)","v":{"$error":"#REF!"}},{"$f":"IF(ISBLANK(C7),\"\",C7)","v":""},{"$f":"IF(ISBLANK(D7),\"\",D7)","v":"1"},{"$f":"IF(ISBLANK(E7),\"\",E7)","v":{"$error":"#VALUE!"}}]
["Trough Style",{"$f":"IF(ISBLANK('Arc Worksheet'!N23),\"\",'Arc Worksheet'!N23)","v":""}]
["Bowl Type",{"$f":"IF(ISBLANK('Arc Worksheet'!#REF!),\"\",'Arc Worksheet'!#REF!)","v":{"$error":"#REF!"}}]
["Edge Type",{"$f":"IF(ISBLANK('Arc Worksheet'!I26),\"\",'Arc Worksheet'!I26)","v":""}]
["Alcove",{"$f":"IF(ISBLANK('Arc Worksheet'!#REF!),\"\",'Arc Worksheet'!#REF!)","v":{"$error":"#REF!"}}]
["LED",{"$f":"IF(ISBLANK('Bill Of Material'!C11),\"\",'Bill Of Material'!C11)","v":""},{"$f":"IF(ISBLANK(C12),\"\",C12)","v":""},{"$f":"IF(ISBLANK(D12),\"\",D12)","v":""},{"$f":"IF(ISBLANK(E12),\"\",E12)","v":{"$error":"#VALUE!"}}]
["Bag Hooks",{"$f":"IF(ISBLANK('Bill Of Material'!C12),\"\",'Bill Of Material'!C12)","v":{"$error":"#REF!"}},{"$f":"IF(ISBLANK('Bill Of Material'!D12),\"\",'Bill Of Material'!D12)","v":{"$error":"#REF!"}},{"$f":"IF(ISBLANK('Bill Of Material'!E12),\"\",'Bill Of Material'!E12)","v":{"$error":"#REF!"}},{"$f":"IF(ISBLANK('Bill Of Material'!F12),\"\",'Bill Of Material'!F12)","v":""}]
["Basin Grates",{"$f":"IF(ISBLANK('Bill Of Material'!C15),\"\",'Bill Of Material'!C15)","v":{"$error":"#REF!"}},{"$f":"IF(ISBLANK('Bill Of Material'!D15),\"\",'Bill Of Material'!D15)","v":{"$error":"#REF!"}},{"$f":"IF(ISBLANK('Bill Of Material'!E15),\"\",'Bill Of Material'!E15)","v":{"$error":"#REF!"}},{"$f":"IF(ISBLANK('Bill Of Material'!F15),\"\",'Bill Of Material'!F15)","v":""}]
["Hand Dryer",{"$f":"IF(ISBLANK(B13),\"\",B13)","v":{"$error":"#REF!"}},{"$error":"#REF!"},{"$error":"#REF!"},{"$error":"#VALUE!"}]
["Faucet",{"$error":"#REF!"},{"$error":"#REF!"},{"$error":"#REF!"},{"$error":"#VALUE!"}]
["Soap Dispenser",{"$error":"#REF!"},{"$error":"#REF!"},{"$error":"#REF!"},{"$error":"#VALUE!"}]
["Trash Hole",{"$f":"IF(ISBLANK(B16),\"\",B16)","v":{"$error":"#REF!"}},null,{"$f":"IF(ISBLANK(D16),\"\",D16)","v":{"$error":"#REF!"}},{"$error":"#VALUE!"}]
["Paper Towel Holder",{"$f":"IF(ISBLANK(B17),\"\",B17)","v":{"$error":"#REF!"}},{"$f":"IF(ISBLANK(C17),\"\",C17)","v":{"$error":"#REF!"}},{"$error":"#REF!"},{"$error":"#VALUE!"}]
["Baby Changing Station",{"$f":"IF(ISBLANK(B18),\"\",B18)","v":{"$error":"#REF!"}},{"$f":"IF(ISBLANK(C18),\"\",C18)","v":{"$error":"#REF!"}},{"$error":"#REF!"},{"$error":"#VALUE!"}]
["Dimensions","A+","B+","C=","D"]
["Standard",{"$f":"IF(ISBLANK(B20),\"\",B20)","v":{"$error":"#REF!"}},{"$f":"IF(ISBLANK(C20),\"\",C20)","v":{"$error":"#REF!"}},{"$error":"#REF!"},{"$error":"#REF!"}]
["Custom",{"$f":"IF(ISBLANK(B21),\"\",B21)","v":{"$error":"#REF!"}},{"$f":"IF(ISBLANK(C21),\"\",C21)","v":{"$error":"#REF!"}},{"$f":"IF(ISBLANK(D21),\"\",D21)","v":{"$error":"#REF!"}},{"$f":"IF(ISBLANK(E21),\"\",E21)","v":{"$error":"#REF!"}}]
["Soap Hole","Inches","Faucet Hole","Inches"]
["Standard","1\"","Standard","1.25\""]
["Custom",{"$f":"IF(ISBLANK(B24),\"\",B24)","v":{"$error":"#REF!"}},"Custom",{"$f":"IF(ISBLANK(D24),\"\",D24)","v":{"$error":"#REF!"}}]
["Back Splash","Inches","Apron","Inches"]
["Standard",{"$f":"B26","v":{"$error":"#REF!"}},"Standard","5\""]
["Custom",{"$f":"IF(ISBLANK(B27),\"\",B27)","v":{"$error":"#REF!"}},"Custom",{"$f":"IF(ISBLANK(D27),\"\",D27)","v":{"$error":"#REF!"}}]
[]
[]
[]
[]
[]
[]
[]
["Weldments"]
["Generic Code:",{"$f":"IF(ISBLANK(B4),\"\",B4)","v":""},null,"Sink Quantity:",null,{"$f":"IF(ISBLANK(F4),\"\",F4)","v":""}]
["Component","Description","Material Code","Quantity Per Sink","Quantity Per Order"]
["Model",{"$f":"IF(ISBLANK(B7),\"\",B7)","v":{"$error":"#REF!"}},{"$f":"IF(ISBLANK(C7),\"\",C7)","v":""},{"$f":"IF(ISBLANK(D7),\"\",D7)","v":"1"},{"$error":"#VALUE!"}]
["Trough Style",{"$f":"IF(ISBLANK(B8),\"\",B8)","v":""}]
["Bowl Type",{"$f":"IF(ISBLANK(B9),\"\",B9)","v":{"$error":"#REF!"}}]
["Mounting Type",{"$f":"IF(ISBLANK('Bill Of Material'!C9),\"\",'Bill Of Material'!C9)","v":{"$error":"#REF!"}},{"$f":"IF(ISBLANK('Bill Of Material'!D9),\"\",'Bill Of Material'!D9)","v":{"$error":"#REF!"}},{"$f":"IF(ISBLANK('Bill Of Material'!E9),\"\",'Bill Of Material'!E9)","v":{"$error":"#REF!"}},{"$f":"IF(ISBLANK('Bill Of Material'!F9),\"\",'Bill Of Material'!F9)","v":""}]
["Angle Bracket (If App)",{"$f":"IF(ISBLANK('Bill Of Material'!C10),\"\",'Bill Of Material'!C10)","v":{"$error":"#REF!"}},{"$f":"IF(ISBLANK('Bill Of Material'!D10),\"\",'Bill Of Material'!D10)","v":""},{"$f":"IF(ISBLANK('Bill Of Material'!E10),\"\",'Bill Of Material'!E10)","v":""},{"$f":"IF(ISBLANK('Bill Of Material'!F10),\"\",'Bill Of Material'!F10)","v":""}]
["Alcove",{"$f":"IF(ISBLANK(B11),\"\",B11)","v":{"$error":"#REF!"}},"","",{"$f":"IF(ISBLANK(#REF!),\"\",IFERROR(#REF!*D80,\"\"))","v":""}]
["Laminate Color",{"$f":"IF(ISBLANK('Arc Worksheet'!#REF!),\"\",'Arc Worksheet'!#REF!)","v":{"$error":"#REF!"}},{"$f":"IF(ISBLANK(B81),\"\",VLOOKUP(B81,'Drop Tables'!AD:AD,2,0))","v":{"$error":"#REF!"}}]
["Dimensions","A+","B+","C=","D"]
["Standard",{"$f":"IF(ISBLANK(B20),\"\",B20)","v":{"$error":"#REF!"}},{"$f":"IF(ISBLANK(C20),\"\",C20)","v":{"$error":"#REF!"}},{"$error":"#REF!"},{"$error":"#REF!"}]
["Custom",{"$f":"IF(ISBLANK(B21),\"\",B21)","v":{"$error":"#REF!"}},{"$f":"IF(ISBLANK(C21),\"\",C21)","v":{"$error":"#REF!"}},{"$error":"#REF!"},{"$error":"#REF!"}]

{"sheet":"Costs","index":5,"n_rows":206,"n_cols":7,"rows_kept":206,"cut":false,"hidden":true,"merged":[]}
["Type","Bounce Code","Color Code"]
["Enclosure",{"$f":"CONCATENATE('Arc Worksheet'!#REF!,'Arc Worksheet'!#REF!)","v":{"$error":"#REF!"}}]
["LED",{"$f":"CONCATENATE('Arc Worksheet'!#REF!,'Arc Worksheet'!#REF!)","v":{"$error":"#REF!"}}]
["Bag Hook",{"$f":"CONCATENATE('Arc Worksheet'!#REF!,'Arc Worksheet'!#REF!,'Arc Worksheet'!#REF!)","v":{"$error":"#REF!"}}]
["Basin Grates",{"$f":"CONCATENATE('Arc Worksheet'!#REF!,'Arc Worksheet'!#REF!)","v":{"$error":"#REF!"}}]
["Hand Dryer",{"$f":"CONCATENATE('Arc Worksheet'!#REF!,'Arc Worksheet'!#REF!,'Arc Worksheet'!#REF!)","v":{"$error":"#REF!"}}]
["Paper Towel Holder",{"$f":"'Arc Worksheet'!#REF!","v":{"$error":"#REF!"}}]
["Baby Changing Station",{"$f":"'Arc Worksheet'!#REF!","v":{"$error":"#REF!"}}]
[]
["Enclosure","Station Amount","LookUp","Material Number","Quantity Per Sink","Cost"]
["AD",1,{"$f":"Table1019[[#This Row],[Enclosure]]&Table1019[[#This Row],[Station Amount]]","v":"AD1"},"E0000001",1,900]
["AD",2,{"$f":"Table1019[[#This Row],[Enclosure]]&Table1019[[#This Row],[Station Amount]]","v":"AD2"},"E0000002",1,1200]
["AD",3,{"$f":"Table1019[[#This Row],[Enclosure]]&Table1019[[#This Row],[Station Amount]]","v":"AD3"},"E0000003",1,1400]
["AD",4,{"$f":"Table1019[[#This Row],[Enclosure]]&Table1019[[#This Row],[Station Amount]]","v":"AD4"},"E0000004",1,1600]
["AD",5,{"$f":"Table1019[[#This Row],[Enclosure]]&Table1019[[#This Row],[Station Amount]]","v":"AD5"},"E0000005",1,1800]
["AD","6+",{"$f":"Table1019[[#This Row],[Enclosure]]&Table1019[[#This Row],[Station Amount]]","v":"AD6+"},"E0000006",1,2000]
["DSG",1,{"$f":"Table1019[[#This Row],[Enclosure]]&Table1019[[#This Row],[Station Amount]]","v":"DSG1"},"E0000007",1,500]
["DSG",2,{"$f":"Table1019[[#This Row],[Enclosure]]&Table1019[[#This Row],[Station Amount]]","v":"DSG2"},"E0000008",1,700]
["DSG",3,{"$f":"Table1019[[#This Row],[Enclosure]]&Table1019[[#This Row],[Station Amount]]","v":"DSG3"},"E0000009",1,900]
["DSG",4,{"$f":"Table1019[[#This Row],[Enclosure]]&Table1019[[#This Row],[Station Amount]]","v":"DSG4"},"E0000010",1,1100]
["DSG",5,{"$f":"Table1019[[#This Row],[Enclosure]]&Table1019[[#This Row],[Station Amount]]","v":"DSG5"},"E0000011",1,1300]
["DSG","6+",{"$f":"Table1019[[#This Row],[Enclosure]]&Table1019[[#This Row],[Station Amount]]","v":"DSG6+"},"E0000012",1,1500]
["DSCT",1,{"$f":"Table1019[[#This Row],[Enclosure]]&Table1019[[#This Row],[Station Amount]]","v":"DSCT1"},"E0000007",1,500]
["DSCT",2,{"$f":"Table1019[[#This Row],[Enclosure]]&Table1019[[#This Row],[Station Amount]]","v":"DSCT2"},"E0000008",1,700]
["DSCT",3,{"$f":"Table1019[[#This Row],[Enclosure]]&Table1019[[#This Row],[Station Amount]]","v":"DSCT3"},"E0000009",1,900]
["DSCT",4,{"$f":"Table1019[[#This Row],[Enclosure]]&Table1019[[#This Row],[Station Amount]]","v":"DSCT4"},"E0000010",1,1100]
["DSCT",5,{"$f":"Table1019[[#This Row],[Enclosure]]&Table1019[[#This Row],[Station Amount]]","v":"DSCT5"},"E0000011",1,1300]
["DSCT","6+",{"$f":"Table1019[[#This Row],[Enclosure]]&Table1019[[#This Row],[Station Amount]]","v":"DSCT6+"},"E0000012",1,1500]
["DSOF",1,{"$f":"Table1019[[#This Row],[Enclosure]]&Table1019[[#This Row],[Station Amount]]","v":"DSOF1"},"E0000007",1,500]
["DSOF",2,{"$f":"Table1019[[#This Row],[Enclosure]]&Table1019[[#This Row],[Station Amount]]","v":"DSOF2"},"E0000008",1,700]
["DSOF",3,{"$f":"Table1019[[#This Row],[Enclosure]]&Table1019[[#This Row],[Station Amount]]","v":"DSOF3"},"E0000009",1,900]
["DSOF",4,{"$f":"Table1019[[#This Row],[Enclosure]]&Table1019[[#This Row],[Station Amount]]","v":"DSOF4"},"E0000010",1,1100]
["DSOF",5,{"$f":"Table1019[[#This Row],[Enclosure]]&Table1019[[#This Row],[Station Amount]]","v":"DSOF5"},"E0000011",1,1300]
["DSOF","6+",{"$f":"Table1019[[#This Row],[Enclosure]]&Table1019[[#This Row],[Station Amount]]","v":"DSOF6+"},"E0000012",1,1500]
["DSUP",1,{"$f":"Table1019[[#This Row],[Enclosure]]&Table1019[[#This Row],[Station Amount]]","v":"DSUP1"},"E0000007",1,500]
["DSUP",2,{"$f":"Table1019[[#This Row],[Enclosure]]&Table1019[[#This Row],[Station Amount]]","v":"DSUP2"},"E0000008",1,700]
["DSUP",3,{"$f":"Table1019[[#This Row],[Enclosure]]&Table1019[[#This Row],[Station Amount]]","v":"DSUP3"},"E0000009",1,900]
["DSUP",4,{"$f":"Table1019[[#This Row],[Enclosure]]&Table1019[[#This Row],[Station Amount]]","v":"DSUP4"},"E0000010",1,1100]
["DSUP",5,{"$f":"Table1019[[#This Row],[Enclosure]]&Table1019[[#This Row],[Station Amount]]","v":"DSUP5"},"E0000011",1,1300]
["DSUP","6+",{"$f":"Table1019[[#This Row],[Enclosure]]&Table1019[[#This Row],[Station Amount]]","v":"DSUP6+"},"E0000012",1,1500]
["DSVR",1,{"$f":"Table1019[[#This Row],[Enclosure]]&Table1019[[#This Row],[Station Amount]]","v":"DSVR1"},"E0000007",1,500]
["DSVR",2,{"$f":"Table1019[[#This Row],[Enclosure]]&Table1019[[#This Row],[Station Amount]]","v":"DSVR2"},"E0000008",1,700]
["DSVR",3,{"$f":"Table1019[[#This Row],[Enclosure]]&Table1019[[#This Row],[Station Amount]]","v":"DSVR3"},"E0000009",1,900]
["DSVR",4,{"$f":"Table1019[[#This Row],[Enclosure]]&Table1019[[#This Row],[Station Amount]]","v":"DSVR4"},"E0000010",1,1100]
["DSVR",5,{"$f":"Table1019[[#This Row],[Enclosure]]&Table1019[[#This Row],[Station Amount]]","v":"DSVR5"},"E0000011",1,1300]
["DSVR","6+",{"$f":"Table1019[[#This Row],[Enclosure]]&Table1019[[#This Row],[Station Amount]]","v":"DSVR6+"},"E0000012",1,1500]
["DSWD",1,{"$f":"Table1019[[#This Row],[Enclosure]]&Table1019[[#This Row],[Station Amount]]","v":"DSWD1"},"E0000007",1,500]
["DSWD",2,{"$f":"Table1019[[#This Row],[Enclosure]]&Table1019[[#This Row],[Station Amount]]","v":"DSWD2"},"E0000008",1,700]
["DSWD",3,{"$f":"Table1019[[#This Row],[Enclosure]]&Table1019[[#This Row],[Station Amount]]","v":"DSWD3"},"E0000009",1,900]
["DSWD",4,{"$f":"Table1019[[#This Row],[Enclosure]]&Table1019[[#This Row],[Station Amount]]","v":"DSWD4"},"E0000010",1,1100]
["DSWD",5,{"$f":"Table1019[[#This Row],[Enclosure]]&Table1019[[#This Row],[Station Amount]]","v":"DSWD5"},"E0000011",1,1300]
["DSWD","6+",{"$f":"Table1019[[#This Row],[Enclosure]]&Table1019[[#This Row],[Station Amount]]","v":"DSWD6+"},"E0000012",1,1500]
[]
["Basin Grates","Station Amount","LookUp","Material Number","Quantity Per Sink","Cost"]
["DSWD",1,{"$f":"A55&B55","v":"DSWD1"},"BG0000013",1,200]
["DSWD",2,"DSWD2","BG0000014",1,300]
["DSWD",3,"DSWD3","BG0000015",1,400]
["DSWD",4,"DSWD4","BG0000016",1,500]
["DSWD",5,"DSWD5","BG0000017",1,600]
["DSWD","6+","DSWD6+","BG0000018",1,700]
[]
[]
["LED","Station Amount","LookUp","Material Number","Quantity Per Sink","Cost"]
["AD",1,{"$f":"A64&B64","v":"AD1"},"L0000019",1,125]
["AD",2,{"$f":"A65&B65","v":"AD2"},"L0000020",1,250]
["AD",3,"AD3","L0000021",1,375]
["AD",4,"AD4","L0000022",1,500]
["AD",5,"AD5","L0000023",1,625]
["AD","6+","AD6+","L0000024",1,750]
["DSG",1,"DSG1","L0000019",2,150]
["DSG",2,"DSG2","L0000020",2,300]
["DSG",3,"DSG3","L0000021",2,450]
["DSG",4,"DSG4","L0000022",2,600]
["DSG",5,"DSG5","L0000023",2,750]
["DSG","6+","DSG6+","L0000024",2,900]
[]
[]
["Purse Hook","Station Amount","Color","Lookup","Material Number","Quantity Per Sink","Cost"]
["AD",1,"Light Grey",{"$f":"A79&B79&Table1322[[#This Row],[Color]]","v":"AD1Light Grey"},"P0000025",1,{"$f":"30*Table1322[[#This Row],[Quantity Per Sink]]","v":30}]
["AD",2,"Light Grey",{"$f":"A80&B80&Table1322[[#This Row],[Color]]","v":"AD2Light Grey"},"P0000026",2,{"$f":"30*Table1322[[#This Row],[Quantity Per Sink]]","v":60}]
["AD",3,"Light Grey",{"$f":"A81&B81&Table1322[[#This Row],[Color]]","v":"AD3Light Grey"},"P0000027",3,{"$f":"30*Table1322[[#This Row],[Quantity Per Sink]]","v":90}]
["AD",4,"Light Grey",{"$f":"A82&B82&Table1322[[#This Row],[Color]]","v":"AD4Light Grey"},"P0000028",4,{"$f":"30*Table1322[[#This Row],[Quantity Per Sink]]","v":120}]
["AD",5,"Light Grey",{"$f":"A83&B83&Table1322[[#This Row],[Color]]","v":"AD5Light Grey"},"P0000029",5,{"$f":"30*Table1322[[#This Row],[Quantity Per Sink]]","v":150}]
["AD","6+","Light Grey",{"$f":"A84&B84&Table1322[[#This Row],[Color]]","v":"AD6+Light Grey"},"P0000030",6,{"$f":"30*Table1322[[#This Row],[Quantity Per Sink]]","v":180}]
["DSG",1,"Light Grey",{"$f":"A85&B85&Table1322[[#This Row],[Color]]","v":"DSG1Light Grey"},"P0000025",1,{"$f":"30*Table1322[[#This Row],[Quantity Per Sink]]","v":30}]
["DSG",2,"Light Grey",{"$f":"A86&B86&Table1322[[#This Row],[Color]]","v":"DSG2Light Grey"},"P0000026",2,{"$f":"30*Table1322[[#This Row],[Quantity Per Sink]]","v":60}]
["DSG",3,"Light Grey",{"$f":"A87&B87&Table1322[[#This Row],[Color]]","v":"DSG3Light Grey"},"P0000027",3,{"$f":"30*Table1322[[#This Row],[Quantity Per Sink]]","v":90}]
["DSG",4,"Light Grey",{"$f":"A88&B88&Table1322[[#This Row],[Color]]","v":"DSG4Light Grey"},"P0000028",4,{"$f":"30*Table1322[[#This Row],[Quantity Per Sink]]","v":120}]
["DSG",5,"Light Grey",{"$f":"A89&B89&Table1322[[#This Row],[Color]]","v":"DSG5Light Grey"},"P0000029",5,{"$f":"30*Table1322[[#This Row],[Quantity Per Sink]]","v":150}]
["DSG","6+","Light Grey",{"$f":"A90&B90&Table1322[[#This Row],[Color]]","v":"DSG6+Light Grey"},"P0000030",6,{"$f":"30*Table1322[[#This Row],[Quantity Per Sink]]","v":180}]
["DSCT",1,"Light Grey",{"$f":"A91&B91&Table1322[[#This Row],[Color]]","v":"DSCT1Light Grey"},"P0000025",1,{"$f":"30*Table1322[[#This Row],[Quantity Per Sink]]","v":30}]
["DSCT",2,"Light Grey",{"$f":"A92&B92&Table1322[[#This Row],[Color]]","v":"DSCT2Light Grey"},"P0000026",2,{"$f":"30*Table1322[[#This Row],[Quantity Per Sink]]","v":60}]
["DSCT",3,"Light Grey",{"$f":"A93&B93&Table1322[[#This Row],[Color]]","v":"DSCT3Light Grey"},"P0000027",3,{"$f":"30*Table1322[[#This Row],[Quantity Per Sink]]","v":90}]
["DSCT",4,"Light Grey",{"$f":"A94&B94&Table1322[[#This Row],[Color]]","v":"DSCT4Light Grey"},"P0000028",4,{"$f":"30*Table1322[[#This Row],[Quantity Per Sink]]","v":120}]
["DSCT",5,"Light Grey",{"$f":"A95&B95&Table1322[[#This Row],[Color]]","v":"DSCT5Light Grey"},"P0000029",5,{"$f":"30*Table1322[[#This Row],[Quantity Per Sink]]","v":150}]
["DSCT","6+","Light Grey",{"$f":"A96&B96&Table1322[[#This Row],[Color]]","v":"DSCT6+Light Grey"},"P0000030",6,{"$f":"30*Table1322[[#This Row],[Quantity Per Sink]]","v":180}]
["DSOF",1,"Light Grey",{"$f":"A97&B97&Table1322[[#This Row],[Color]]","v":"DSOF1Light Grey"},"P0000025",1,{"$f":"30*Table1322[[#This Row],[Quantity Per Sink]]","v":30}]
["DSOF",2,"Light Grey",{"$f":"A98&B98&Table1322[[#This Row],[Color]]","v":"DSOF2Light Grey"},"P0000026",2,{"$f":"30*Table1322[[#This Row],[Quantity Per Sink]]","v":60}]
["DSOF",3,"Light Grey",{"$f":"A99&B99&Table1322[[#This Row],[Color]]","v":"DSOF3Light Grey"},"P0000027",3,{"$f":"30*Table1322[[#This Row],[Quantity Per Sink]]","v":90}]
["DSOF",4,"Light Grey",{"$f":"A100&B100&Table1322[[#This Row],[Color]]","v":"DSOF4Light Grey"},"P0000028",4,{"$f":"30*Table1322[[#This Row],[Quantity Per Sink]]","v":120}]
["DSOF",5,"Light Grey",{"$f":"A101&B101&Table1322[[#This Row],[Color]]","v":"DSOF5Light Grey"},"P0000029",5,{"$f":"30*Table1322[[#This Row],[Quantity Per Sink]]","v":150}]
["DSOF","6+","Light Grey",{"$f":"A102&B102&Table1322[[#This Row],[Color]]","v":"DSOF6+Light Grey"},"P0000030",6,{"$f":"30*Table1322[[#This Row],[Quantity Per Sink]]","v":180}]
["DSUP",1,"Light Grey",{"$f":"A103&B103&Table1322[[#This Row],[Color]]","v":"DSUP1Light Grey"},"P0000025",1,{"$f":"30*Table1322[[#This Row],[Quantity Per Sink]]","v":30}]
["DSUP",2,"Light Grey",{"$f":"A104&B104&Table1322[[#This Row],[Color]]","v":"DSUP2Light Grey"},"P0000026",2,{"$f":"30*Table1322[[#This Row],[Quantity Per Sink]]","v":60}]
["DSUP",3,"Light Grey",{"$f":"A105&B105&Table1322[[#This Row],[Color]]","v":"DSUP3Light Grey"},"P0000027",3,{"$f":"30*Table1322[[#This Row],[Quantity Per Sink]]","v":90}]
["DSUP",4,"Light Grey",{"$f":"A106&B106&Table1322[[#This Row],[Color]]","v":"DSUP4Light Grey"},"P0000028",4,{"$f":"30*Table1322[[#This Row],[Quantity Per Sink]]","v":120}]
["DSUP",5,"Light Grey",{"$f":"A107&B107&Table1322[[#This Row],[Color]]","v":"DSUP5Light Grey"},"P0000029",5,{"$f":"30*Table1322[[#This Row],[Quantity Per Sink]]","v":150}]
["DSUP","6+","Light Grey",{"$f":"A108&B108&Table1322[[#This Row],[Color]]","v":"DSUP6+Light Grey"},"P0000030",6,{"$f":"30*Table1322[[#This Row],[Quantity Per Sink]]","v":180}]
["DSVR",1,"Light Grey",{"$f":"A109&B109&Table1322[[#This Row],[Color]]","v":"DSVR1Light Grey"},"P0000025",1,{"$f":"30*Table1322[[#This Row],[Quantity Per Sink]]","v":30}]
["DSVR",2,"Light Grey",{"$f":"A110&B110&Table1322[[#This Row],[Color]]","v":"DSVR2Light Grey"},"P0000026",2,{"$f":"30*Table1322[[#This Row],[Quantity Per Sink]]","v":60}]
["DSVR",3,"Light Grey",{"$f":"A111&B111&Table1322[[#This Row],[Color]]","v":"DSVR3Light Grey"},"P0000027",3,{"$f":"30*Table1322[[#This Row],[Quantity Per Sink]]","v":90}]
["DSVR",4,"Light Grey",{"$f":"A112&B112&Table1322[[#This Row],[Color]]","v":"DSVR4Light Grey"},"P0000028",4,{"$f":"30*Table1322[[#This Row],[Quantity Per Sink]]","v":120}]
["DSVR",5,"Light Grey",{"$f":"A113&B113&Table1322[[#This Row],[Color]]","v":"DSVR5Light Grey"},"P0000029",5,{"$f":"30*Table1322[[#This Row],[Quantity Per Sink]]","v":150}]
["DSVR","6+","Light Grey",{"$f":"A114&B114&Table1322[[#This Row],[Color]]","v":"DSVR6+Light Grey"},"P0000030",6,{"$f":"30*Table1322[[#This Row],[Quantity Per Sink]]","v":180}]
["DSWD",1,"Light Grey",{"$f":"A115&B115&Table1322[[#This Row],[Color]]","v":"DSWD1Light Grey"},"P0000025",1,{"$f":"30*Table1322[[#This Row],[Quantity Per Sink]]","v":30}]
["DSWD",2,"Light Grey",{"$f":"A116&B116&Table1322[[#This Row],[Color]]","v":"DSWD2Light Grey"},"P0000026",2,{"$f":"30*Table1322[[#This Row],[Quantity Per Sink]]","v":60}]
["DSWD",3,"Light Grey",{"$f":"A117&B117&Table1322[[#This Row],[Color]]","v":"DSWD3Light Grey"},"P0000027",3,{"$f":"30*Table1322[[#This Row],[Quantity Per Sink]]","v":90}]
["DSWD",4,"Light Grey",{"$f":"A118&B118&Table1322[[#This Row],[Color]]","v":"DSWD4Light Grey"},"P0000028",4,{"$f":"30*Table1322[[#This Row],[Quantity Per Sink]]","v":120}]
["DSWD",5,"Light Grey",{"$f":"A119&B119&Table1322[[#This Row],[Color]]","v":"DSWD5Light Grey"},"P0000029",5,{"$f":"30*Table1322[[#This Row],[Quantity Per Sink]]","v":150}]
["DSWD","6+","Light Grey",{"$f":"A120&B120&Table1322[[#This Row],[Color]]","v":"DSWD6+Light Grey"},"P0000030",6,{"$f":"30*Table1322[[#This Row],[Quantity Per Sink]]","v":180}]
["AD",1,"Dark Grey",{"$f":"A121&B121&Table1322[[#This Row],[Color]]","v":"AD1Dark Grey"},"P0000031",1,{"$f":"30*Table1322[[#This Row],[Quantity Per Sink]]","v":30}]
["AD",2,"Dark Grey",{"$f":"A122&B122&Table1322[[#This Row],[Color]]","v":"AD2Dark Grey"},"P0000032",2,{"$f":"30*Table1322[[#This Row],[Quantity Per Sink]]","v":60}]
["AD",3,"Dark Grey",{"$f":"A123&B123&Table1322[[#This Row],[Color]]","v":"AD3Dark Grey"},"P0000033",3,{"$f":"30*Table1322[[#This Row],[Quantity Per Sink]]","v":90}]
["AD",4,"Dark Grey",{"$f":"A124&B124&Table1322[[#This Row],[Color]]","v":"AD4Dark Grey"},"P0000034",4,{"$f":"30*Table1322[[#This Row],[Quantity Per Sink]]","v":120}]
["AD",5,"Dark Grey",{"$f":"A125&B125&Table1322[[#This Row],[Color]]","v":"AD5Dark Grey"},"P0000035",5,{"$f":"30*Table1322[[#This Row],[Quantity Per Sink]]","v":150}]
["AD","6+","Dark Grey",{"$f":"A126&B126&Table1322[[#This Row],[Color]]","v":"AD6+Dark Grey"},"P0000036",6,{"$f":"30*Table1322[[#This Row],[Quantity Per Sink]]","v":180}]
["DSG",1,"Dark Grey",{"$f":"A127&B127&Table1322[[#This Row],[Color]]","v":"DSG1Dark Grey"},"P0000031",1,{"$f":"30*Table1322[[#This Row],[Quantity Per Sink]]","v":30}]
["DSG",2,"Dark Grey",{"$f":"A128&B128&Table1322[[#This Row],[Color]]","v":"DSG2Dark Grey"},"P0000032",2,{"$f":"30*Table1322[[#This Row],[Quantity Per Sink]]","v":60}]
["DSG",3,"Dark Grey",{"$f":"A129&B129&Table1322[[#This Row],[Color]]","v":"DSG3Dark Grey"},"P0000033",3,{"$f":"30*Table1322[[#This Row],[Quantity Per Sink]]","v":90}]
["DSG",4,"Dark Grey",{"$f":"A130&B130&Table1322[[#This Row],[Color]]","v":"DSG4Dark Grey"},"P0000034",4,{"$f":"30*Table1322[[#This Row],[Quantity Per Sink]]","v":120}]
["DSG",5,"Dark Grey",{"$f":"A131&B131&Table1322[[#This Row],[Color]]","v":"DSG5Dark Grey"},"P0000035",5,{"$f":"30*Table1322[[#This Row],[Quantity Per Sink]]","v":150}]
["DSG","6+","Dark Grey",{"$f":"A132&B132&Table1322[[#This Row],[Color]]","v":"DSG6+Dark Grey"},"P0000036",6,{"$f":"30*Table1322[[#This Row],[Quantity Per Sink]]","v":180}]
["DSCT",1,"Dark Grey",{"$f":"A133&B133&Table1322[[#This Row],[Color]]","v":"DSCT1Dark Grey"},"P0000031",1,{"$f":"30*Table1322[[#This Row],[Quantity Per Sink]]","v":30}]
["DSCT",2,"Dark Grey",{"$f":"A134&B134&Table1322[[#This Row],[Color]]","v":"DSCT2Dark Grey"},"P0000032",2,{"$f":"30*Table1322[[#This Row],[Quantity Per Sink]]","v":60}]
["DSCT",3,"Dark Grey",{"$f":"A135&B135&Table1322[[#This Row],[Color]]","v":"DSCT3Dark Grey"},"P0000033",3,{"$f":"30*Table1322[[#This Row],[Quantity Per Sink]]","v":90}]
["DSCT",4,"Dark Grey",{"$f":"A136&B136&Table1322[[#This Row],[Color]]","v":"DSCT4Dark Grey"},"P0000034",4,{"$f":"30*Table1322[[#This Row],[Quantity Per Sink]]","v":120}]
["DSCT",5,"Dark Grey",{"$f":"A137&B137&Table1322[[#This Row],[Color]]","v":"DSCT5Dark Grey"},"P0000035",5,{"$f":"30*Table1322[[#This Row],[Quantity Per Sink]]","v":150}]
["DSCT","6+","Dark Grey",{"$f":"A138&B138&Table1322[[#This Row],[Color]]","v":"DSCT6+Dark Grey"},"P0000036",6,{"$f":"30*Table1322[[#This Row],[Quantity Per Sink]]","v":180}]
["DSOF",1,"Dark Grey",{"$f":"A139&B139&Table1322[[#This Row],[Color]]","v":"DSOF1Dark Grey"},"P0000031",1,{"$f":"30*Table1322[[#This Row],[Quantity Per Sink]]","v":30}]
["DSOF",2,"Dark Grey",{"$f":"A140&B140&Table1322[[#This Row],[Color]]","v":"DSOF2Dark Grey"},"P0000032",2,{"$f":"30*Table1322[[#This Row],[Quantity Per Sink]]","v":60}]
["DSOF",3,"Dark Grey",{"$f":"A141&B141&Table1322[[#This Row],[Color]]","v":"DSOF3Dark Grey"},"P0000033",3,{"$f":"30*Table1322[[#This Row],[Quantity Per Sink]]","v":90}]
["DSOF",4,"Dark Grey",{"$f":"A142&B142&Table1322[[#This Row],[Color]]","v":"DSOF4Dark Grey"},"P0000034",4,{"$f":"30*Table1322[[#This Row],[Quantity Per Sink]]","v":120}]
["DSOF",5,"Dark Grey",{"$f":"A143&B143&Table1322[[#This Row],[Color]]","v":"DSOF5Dark Grey"},"P0000035",5,{"$f":"30*Table1322[[#This Row],[Quantity Per Sink]]","v":150}]
["DSOF","6+","Dark Grey",{"$f":"A144&B144&Table1322[[#This Row],[Color]]","v":"DSOF6+Dark Grey"},"P0000036",6,{"$f":"30*Table1322[[#This Row],[Quantity Per Sink]]","v":180}]
["DSUP",1,"Dark Grey",{"$f":"A145&B145&Table1322[[#This Row],[Color]]","v":"DSUP1Dark Grey"},"P0000031",1,{"$f":"30*Table1322[[#This Row],[Quantity Per Sink]]","v":30}]
["DSUP",2,"Dark Grey",{"$f":"A146&B146&Table1322[[#This Row],[Color]]","v":"DSUP2Dark Grey"},"P0000032",2,{"$f":"30*Table1322[[#This Row],[Quantity Per Sink]]","v":60}]
["DSUP",3,"Dark Grey",{"$f":"A147&B147&Table1322[[#This Row],[Color]]","v":"DSUP3Dark Grey"},"P0000033",3,{"$f":"30*Table1322[[#This Row],[Quantity Per Sink]]","v":90}]
["DSUP",4,"Dark Grey",{"$f":"A148&B148&Table1322[[#This Row],[Color]]","v":"DSUP4Dark Grey"},"P0000034",4,{"$f":"30*Table1322[[#This Row],[Quantity Per Sink]]","v":120}]
["DSUP",5,"Dark Grey",{"$f":"A149&B149&Table1322[[#This Row],[Color]]","v":"DSUP5Dark Grey"},"P0000035",5,{"$f":"30*Table1322[[#This Row],[Quantity Per Sink]]","v":150}]
["DSUP","6+","Dark Grey",{"$f":"A150&B150&Table1322[[#This Row],[Color]]","v":"DSUP6+Dark Grey"},"P0000036",6,{"$f":"30*Table1322[[#This Row],[Quantity Per Sink]]","v":180}]
["DSVR",1,"Dark Grey",{"$f":"A151&B151&Table1322[[#This Row],[Color]]","v":"DSVR1Dark Grey"},"P0000031",1,{"$f":"30*Table1322[[#This Row],[Quantity Per Sink]]","v":30}]
["DSVR",2,"Dark Grey",{"$f":"A152&B152&Table1322[[#This Row],[Color]]","v":"DSVR2Dark Grey"},"P0000032",2,{"$f":"30*Table1322[[#This Row],[Quantity Per Sink]]","v":60}]
["DSVR",3,"Dark Grey",{"$f":"A153&B153&Table1322[[#This Row],[Color]]","v":"DSVR3Dark Grey"},"P0000033",3,{"$f":"30*Table1322[[#This Row],[Quantity Per Sink]]","v":90}]
["DSVR",4,"Dark Grey",{"$f":"A154&B154&Table1322[[#This Row],[Color]]","v":"DSVR4Dark Grey"},"P0000034",4,{"$f":"30*Table1322[[#This Row],[Quantity Per Sink]]","v":120}]
["DSVR",5,"Dark Grey",{"$f":"A155&B155&Table1322[[#This Row],[Color]]","v":"DSVR5Dark Grey"},"P0000035",5,{"$f":"30*Table1322[[#This Row],[Quantity Per Sink]]","v":150}]
["DSVR","6+","Dark Grey",{"$f":"A156&B156&Table1322[[#This Row],[Color]]","v":"DSVR6+Dark Grey"},"P0000036",6,{"$f":"30*Table1322[[#This Row],[Quantity Per Sink]]","v":180}]
["DSWD",1,"Dark Grey",{"$f":"A157&B157&Table1322[[#This Row],[Color]]","v":"DSWD1Dark Grey"},"P0000031",1,{"$f":"30*Table1322[[#This Row],[Quantity Per Sink]]","v":30}]
["DSWD",2,"Dark Grey",{"$f":"A158&B158&Table1322[[#This Row],[Color]]","v":"DSWD2Dark Grey"},"P0000032",2,{"$f":"30*Table1322[[#This Row],[Quantity Per Sink]]","v":60}]
["DSWD",3,"Dark Grey",{"$f":"A159&B159&Table1322[[#This Row],[Color]]","v":"DSWD3Dark Grey"},"P0000033",3,{"$f":"30*Table1322[[#This Row],[Quantity Per Sink]]","v":90}]
["DSWD",4,"Dark Grey",{"$f":"A160&B160&Table1322[[#This Row],[Color]]","v":"DSWD4Dark Grey"},"P0000034",4,{"$f":"30*Table1322[[#This Row],[Quantity Per Sink]]","v":120}]
["DSWD",5,"Dark Grey",{"$f":"A161&B161&Table1322[[#This Row],[Color]]","v":"DSWD5Dark Grey"},"P0000035",5,{"$f":"30*Table1322[[#This Row],[Quantity Per Sink]]","v":150}]
["DSWD","6+","Dark Grey",{"$f":"A162&B162&Table1322[[#This Row],[Color]]","v":"DSWD6+Dark Grey"},"P0000036",6,{"$f":"30*Table1322[[#This Row],[Quantity Per Sink]]","v":180}]
[]
["Hand Dryer","Station Amount","Finish ","Lookup","Material Number","Quantity Per Sink","Cost"]
["AD",1,"Chrome Plated",{"$f":"A165&B165&C165","v":"AD1Chrome Plated"},3366085,1,{"$f":"700*Table1423[[#This Row],[Quantity Per Sink]]","v":700}]
["AD",2,"Chrome Plated",{"$f":"A166&B166&C166","v":"AD2Chrome Plated"},3366085,2,{"$f":"700*Table1423[[#This Row],[Quantity Per Sink]]","v":1400}]
["AD",3,"Chrome Plated","AD3Chrome Plated",3366085,3,{"$f":"700*Table1423[[#This Row],[Quantity Per Sink]]","v":2100}]
["AD",4,"Chrome Plated","AD4Chrome Plated",3366085,4,{"$f":"700*Table1423[[#This Row],[Quantity Per Sink]]","v":2800}]
["AD",5,"Chrome Plated","AD5Chrome Plated",3366085,5,{"$f":"700*Table1423[[#This Row],[Quantity Per Sink]]","v":3500}]
["AD","6+","Chrome Plated","AD6+Chrome Plated",3366085,6,{"$f":"700*Table1423[[#This Row],[Quantity Per Sink]]","v":4200}]
["AD",1,"Brushed Nickel","AD1Brushed Nickel",3366081,1,{"$f":"700*Table1423[[#This Row],[Quantity Per Sink]]","v":700}]
["AD",2,"Brushed Nickel","AD2Brushed Nickel",3366081,2,{"$f":"700*Table1423[[#This Row],[Quantity Per Sink]]","v":1400}]
["AD",3,"Brushed Nickel","AD3Brushed Nickel",3366081,3,{"$f":"700*Table1423[[#This Row],[Quantity Per Sink]]","v":2100}]
["AD",4,"Brushed Nickel","AD4Brushed Nickel",3366081,4,{"$f":"700*Table1423[[#This Row],[Quantity Per Sink]]","v":2800}]
["AD",5,"Brushed Nickel","AD5Brushed Nickel",3366081,5,{"$f":"700*Table1423[[#This Row],[Quantity Per Sink]]","v":3500}]
["AD","6+","Brushed Nickel","AD6+Brushed Nickel",3366081,6,{"$f":"700*Table1423[[#This Row],[Quantity Per Sink]]","v":4200}]
["AD",1,"Polished Brass","AD1Polished Brass",3366083,1,{"$f":"700*Table1423[[#This Row],[Quantity Per Sink]]","v":700}]
["AD",2,"Polished Brass","AD2Polished Brass",3366083,2,{"$f":"700*Table1423[[#This Row],[Quantity Per Sink]]","v":1400}]
["AD",3,"Polished Brass","AD3Polished Brass",3366083,3,{"$f":"700*Table1423[[#This Row],[Quantity Per Sink]]","v":2100}]
["AD",4,"Polished Brass","AD4Polished Brass",3366083,4,{"$f":"700*Table1423[[#This Row],[Quantity Per Sink]]","v":2800}]
["AD",5,"Polished Brass","AD5Polished Brass",3366083,5,{"$f":"700*Table1423[[#This Row],[Quantity Per Sink]]","v":3500}]
["AD","6+","Polished Brass","AD6+Polished Brass",3366083,6,{"$f":"700*Table1423[[#This Row],[Quantity Per Sink]]","v":4200}]
["AD",1,"Brushed Stainless","AD1Brushed Stainless",3366082,1,{"$f":"700*Table1423[[#This Row],[Quantity Per Sink]]","v":700}]
["AD",2,"Brushed Stainless","AD2Brushed Stainless",3366082,2,{"$f":"700*Table1423[[#This Row],[Quantity Per Sink]]","v":1400}]
["AD",3,"Brushed Stainless","AD3Brushed Stainless",3366082,3,{"$f":"700*Table1423[[#This Row],[Quantity Per Sink]]","v":2100}]
["AD",4,"Brushed Stainless","AD4Brushed Stainless",3366082,4,{"$f":"700*Table1423[[#This Row],[Quantity Per Sink]]","v":2800}]
["AD",5,"Brushed Stainless","AD5Brushed Stainless",3366082,5,{"$f":"700*Table1423[[#This Row],[Quantity Per Sink]]","v":3500}]
["AD","6+","Brushed Stainless","AD6+Brushed Stainless",3366082,6,{"$f":"700*Table1423[[#This Row],[Quantity Per Sink]]","v":4200}]
[]
[]
["Paper Towel holder","Station Amount","Look Up","Material Number","Quantity Per Sink","Cost"]
["All Types",1,1,"0000043",1,{"$f":"1000*Table1524[[#This Row],[Quantity Per Sink]]","v":1000}]
["All Types",2,2,"0000043",1,{"$f":"1000*Table1524[[#This Row],[Quantity Per Sink]]","v":1000}]
["All Types",3,3,"0000043",2,{"$f":"1000*Table1524[[#This Row],[Quantity Per Sink]]","v":2000}]
["All Types",4,4,"0000043",2,{"$f":"1000*Table1524[[#This Row],[Quantity Per Sink]]","v":2000}]
["All Types",5,5,"0000043",3,{"$f":"1000*Table1524[[#This Row],[Quantity Per Sink]]","v":3000}]
["All Types","6+","6+","0000043",3,{"$f":"1000*Table1524[[#This Row],[Quantity Per Sink]]","v":3000}]
[]
[]
["Baby Changing Station","Station Amount","Look Up","Material Number","Quantity Per Sink","Cost"]
["All Types",1,1,"0000044",1,{"$f":"1500*Table1625[[#This Row],[Quantity Per Sink]]","v":1500}]
["All Types",2,2,"0000044",1,{"$f":"1500*Table1625[[#This Row],[Quantity Per Sink]]","v":1500}]
["All Types",3,3,"0000044",1,{"$f":"1500*Table1625[[#This Row],[Quantity Per Sink]]","v":1500}]
["All Types",4,4,"0000044",1,{"$f":"1500*Table1625[[#This Row],[Quantity Per Sink]]","v":1500}]
["All Types",5,5,"0000044",1,{"$f":"1500*Table1625[[#This Row],[Quantity Per Sink]]","v":1500}]
["All Types","6+","6+","0000044",1,{"$f":"1500*Table1625[[#This Row],[Quantity Per Sink]]","v":1500}]

{"sheet":"Images","index":6,"n_rows":5,"n_cols":6,"rows_kept":5,"cut":false,"hidden":true,"merged":[]}
["Bounce","Code","Image"]
[{"$f":"IF(ISBLANK('Arc Worksheet'!N20),\"Blank\",'Arc Worksheet'!N20)","v":"Blank"},"Abstract",null,null,null,{"$f":"IF(ISBLANK(A2),#N/A,(INDEX($C$2:$C$70,MATCH($A$2,$B$2:$B$70,0))))","v":{"$error":"#N/A"}}]
[null,"Cultural"]
[null,"Geometric"]
[null,"Natural"]

{"sheet":"Engineering BOM","index":7,"n_rows":42,"n_cols":5,"rows_kept":42,"cut":false,"hidden":true,"merged":[]}
[{"$f":"IF(ISBLANK('Arc Worksheet'!D13),\"\",'Arc Worksheet'!D13)","v":""},{"$f":"IF(ISBLANK('Arc Worksheet'!F13),\"\",'Arc Worksheet'!F13)","v":""},{"$f":"IF(ISBLANK('Arc Worksheet'!I13),\"\",'Arc Worksheet'!I13)","v":""},{"$f":"IF(ISBLANK('Arc Worksheet'!N13),\"\",'Arc Worksheet'!N13)","v":""},{"$f":"IF(ISBLANK('Arc Worksheet'!S13),\"\",'Arc Worksheet'!S13)","v":""}]
["Shipping Lead Time*","Quote Number","Compliance Notes","Additional Notes"," "]
[{"$f":"IF(ISBLANK('Arc Worksheet'!D61),\"\",'Arc Worksheet'!D61)","v":""},{"$f":"IF(ISBLANK('Arc Worksheet'!I61),\"\",'Arc Worksheet'!I61)","v":""},{"$f":"IF(ISBLANK('Arc Worksheet'!I58),\"\",'Arc Worksheet'!I58)","v":""},{"$f":"IF(ISBLANK('Arc Worksheet'!N58),\"\",'Arc Worksheet'!N58)","v":""},{"$f":"IF(ISBLANK('Arc Worksheet'!D58),\"\",'Arc Worksheet'!D58)","v":""}]
["Generic Code","SAP Code","Sink Quantity"]
[{"$f":"'Bill Of Material'!C5","v":""},{"$f":"'Bill Of Material'!D8","v":""},{"$f":"IF(ISBLANK('Arc Worksheet'!D20),\"\",'Arc Worksheet'!D20)","v":""}]
["Sink Model","Station Quantity","Drawing Requested?"]
[{"$f":"IF(ISBLANK('Arc Worksheet'!#REF!),\"\",'Arc Worksheet'!#REF!)","v":{"$error":"#REF!"}},{"$f":"IF(ISBLANK('Arc Worksheet'!#REF!),\"\",'Arc Worksheet'!#REF!)","v":{"$error":"#REF!"}},{"$f":"IF(ISBLANK('Arc Worksheet'!D29),\"\",'Arc Worksheet'!D29)","v":""}]
["Material","Material Code","Material Color","Material Color Code"]
[{"$f":"IF(ISBLANK('Arc Worksheet'!D23),\"\",'Arc Worksheet'!D23)","v":""},{"$f":"IF(ISBLANK('Arc Worksheet'!D23),\"\",VLOOKUP('Arc Worksheet'!D23,'Drop Tables'!H:I,2,0))","v":""},{"$f":"IF(ISBLANK('Arc Worksheet'!I23),\"\",'Arc Worksheet'!I23)","v":""},{"$f":"IF(ISBLANK('Arc Worksheet'!I23),\"\",VLOOKUP('Arc Worksheet'!I23,'Drop Tables'!Z:AB,3,0))","v":""}]
["Enclosure","Material Code","Quantity Per Sink","Quantity Per Order"]
[{"$f":"IF(ISBLANK('Arc Worksheet'!#REF!),\"\",'Arc Worksheet'!#REF!)","v":{"$error":"#REF!"}},{"$f":"'Bill Of Material'!D9","v":{"$error":"#REF!"}},{"$f":"'Bill Of Material'!E9","v":{"$error":"#REF!"}},{"$f":"'Bill Of Material'!F8","v":""}]
["Trough Style","Edge Type","Bowl Type","Trash Hole"]
[{"$f":"IF(ISBLANK('Arc Worksheet'!N23),\"\",'Arc Worksheet'!N23)","v":""},{"$f":"IF(ISBLANK('Arc Worksheet'!I26),\"\",'Arc Worksheet'!I26)","v":""},{"$f":"IF(ISBLANK('Arc Worksheet'!#REF!),\"\",'Arc Worksheet'!#REF!)","v":{"$error":"#REF!"}},{"$f":"IF(ISBLANK('Arc Worksheet'!#REF!),\"\",'Arc Worksheet'!#REF!)","v":{"$error":"#REF!"}}]
["Laminate Color","Material Code"]
[{"$f":"IF(ISBLANK('Arc Worksheet'!#REF!),\"\",'Arc Worksheet'!#REF!)","v":{"$error":"#REF!"}},{"$f":"IF(ISBLANK('Arc Worksheet'!#REF!),\"\",VLOOKUP('Arc Worksheet'!#REF!,'Drop Tables'!AD:AD,2,0))","v":{"$error":"#REF!"}}]
["LED","Material Number","Quantity Per Sink","Quantity Per Order"]
[{"$f":"IF(ISBLANK('Arc Worksheet'!I20),\"\",'Arc Worksheet'!I20)","v":""},{"$f":"IF(ISBLANK('Arc Worksheet'!I20),\"\",IF('Arc Worksheet'!I20=\"No\",\"\",VLOOKUP(#REF!,#REF!,2,0)))","v":""},{"$f":"IF(ISBLANK('Arc Worksheet'!I20),\"\",IF('Arc Worksheet'!I20=\"No\",\"\",VLOOKUP(#REF!,#REF!,3,0)))","v":""},{"$f":"IF(ISBLANK('Arc Worksheet'!I20),\"\",IF('Arc Worksheet'!I20=\"No\",\"\",(VLOOKUP(#REF!,#REF!,3,0)*C5)))","v":""}]
["Bag Hooks","Material Number","Quantity Per Sink","Quantity Per Order"]
[{"$f":"IF(ISBLANK('Arc Worksheet'!#REF!),\"\",'Arc Worksheet'!#REF!)","v":{"$error":"#REF!"}},{"$f":"IF(ISBLANK('Arc Worksheet'!#REF!),\"\",IF('Arc Worksheet'!#REF!=\"No\",\"\",VLOOKUP(#REF!,#REF!,2,0)))","v":{"$error":"#REF!"}},{"$f":"IF(ISBLANK('Arc Worksheet'!#REF!),\"\",'Arc Worksheet'!#REF!)","v":{"$error":"#REF!"}},{"$f":"IF(ISBLANK('Arc Worksheet'!#REF!),\"\",IF('Arc Worksheet'!#REF!=\"No\",\"\",('Arc Worksheet'!#REF!*C5)))","v":{"$error":"#REF!"}}]
["Hand Dryer (AD)","Material Number","Quantity Per Sink","Quantity Per Order"]
[{"$f":"IF(ISBLANK('Arc Worksheet'!#REF!),\"\",'Arc Worksheet'!#REF!)","v":{"$error":"#REF!"}},{"$f":"IF(ISBLANK('Arc Worksheet'!#REF!),\"\",VLOOKUP(#REF!,#REF!,2,0))","v":{"$error":"#REF!"}},{"$f":"IF(ISBLANK('Arc Worksheet'!#REF!),\"\",VLOOKUP(#REF!,#REF!,3,0))","v":{"$error":"#REF!"}},{"$f":"IF(ISBLANK('Arc Worksheet'!#REF!),\"\",(C5*'Engineering BOM'!C21))","v":{"$error":"#VALUE!"}}]
["Paper Towel holder","Material Number","Quantity Per Sink","Quantity Per Order"]
[{"$f":"IF(ISBLANK('Arc Worksheet'!#REF!),\"\",'Arc Worksheet'!#REF!)","v":{"$error":"#REF!"}},{"$f":"IF('Arc Worksheet'!#REF!=\"Yes\",VLOOKUP(#REF!,#REF!,2,0),\"\")","v":{"$error":"#REF!"}},{"$f":"IF(ISBLANK('Arc Worksheet'!#REF!),\"\",IF('Arc Worksheet'!#REF!=\"No\",\"\",VLOOKUP(#REF!,#REF!,3,0)))","v":{"$error":"#REF!"}},{"$f":"IF(ISBLANK('Arc Worksheet'!#REF!),\"\",IF('Arc Worksheet'!#REF!=\"No\",\"\",(C5*'Engineering BOM'!C23)))","v":{"$error":"#REF!"}}]
["Baby Changing Station","Material Number","Quantity Per Sink","Quantity Per Order"]
[{"$f":"IF(ISBLANK('Arc Worksheet'!#REF!),\"\",'Arc Worksheet'!#REF!)","v":{"$error":"#REF!"}},{"$f":"IF(ISBLANK('Arc Worksheet'!#REF!),\"\",IF('Arc Worksheet'!#REF!=\"No\",\"\",VLOOKUP(#REF!,#REF!,2,0)))","v":{"$error":"#REF!"}},{"$f":"IF(ISBLANK('Arc Worksheet'!#REF!),\"\",IF('Arc Worksheet'!#REF!=\"No\",\"\",1))","v":{"$error":"#REF!"}},{"$f":"IF(C25=1,C5,\"\")","v":{"$error":"#REF!"}}]
["Basin Grates (DSWD)","Material Number","Quantity Per Sink","Quantity Per Order"]
[{"$f":"IF(ISBLANK('Arc Worksheet'!#REF!),\"\",'Arc Worksheet'!#REF!)","v":{"$error":"#REF!"}},{"$f":"IF(ISBLANK('Arc Worksheet'!#REF!),\"\",IF('Arc Worksheet'!#REF!=\"No\",\"\",VLOOKUP(#REF!,#REF!,2,0)))","v":{"$error":"#REF!"}},{"$f":"IF(ISBLANK('Arc Worksheet'!#REF!),\"\",IF('Arc Worksheet'!#REF!=\"No\",\"\",1))","v":{"$error":"#REF!"}},{"$f":"IF('Arc Worksheet'!#REF!=\"Yes\",C5,\"\")","v":{"$error":"#REF!"}}]
["Sloan Faucet Model","Sloan Faucet Code","Faucet Quantity (per sink)","Quantity Per Order"]
[{"$f":"IF(ISBLANK('Arc Worksheet'!#REF!),IFERROR(VLOOKUP('Arc Worksheet'!#REF!,'Faucet Price Table'!#REF!,2,0),\"\"),'Arc Worksheet'!#REF!)","v":{"$error":"#REF!"}},{"$f":"IF(ISBLANK('Arc Worksheet'!#REF!),'Arc Worksheet'!#REF!,VLOOKUP('Arc Worksheet'!#REF!,'Faucet Price Table'!#REF!,3,0))","v":{"$error":"#REF!"}},{"$f":"IF(ISBLANK('Arc Worksheet'!#REF!),\"\",'Arc Worksheet'!#REF!)","v":{"$error":"#REF!"}},{"$f":"IF(ISBLANK('Arc Worksheet'!#REF!),\"\",('Arc Worksheet'!#REF!*C5))","v":{"$error":"#REF!"}}]
["Sloan Soap Dispenser Model","Sloan Soap Dispenser Code","Soap Dispenser Quantity (per sink)","Quantity Per Order"]
[{"$f":"IF(ISBLANK('Arc Worksheet'!#REF!),IFERROR(VLOOKUP('Arc Worksheet'!#REF!,'Soap Price Table'!#REF!,3,0),\"\"),'Arc Worksheet'!#REF!)","v":{"$error":"#REF!"}},{"$f":"IF(ISBLANK('Arc Worksheet'!#REF!),'Arc Worksheet'!#REF!,VLOOKUP('Arc Worksheet'!#REF!,'Soap Price Table'!#REF!,3,0))","v":{"$error":"#REF!"}},{"$f":"IF(ISBLANK('Arc Worksheet'!#REF!),\"\",'Arc Worksheet'!#REF!)","v":{"$error":"#REF!"}},{"$f":"IF(ISBLANK('Arc Worksheet'!#REF!),\"\",('Arc Worksheet'!#REF!*C5))","v":{"$error":"#REF!"}}]
["Alcove","Material Number","Quantity Per Sink","Quantity Per Order"]
[{"$f":"IF(ISBLANK('Arc Worksheet'!#REF!),\"\",'Arc Worksheet'!#REF!)","v":{"$error":"#REF!"}},{"$f":"IF(ISBLANK(A33),\"\",IFERROR(VLOOKUP(A33,Dimensions!K:L,2,0),\"\"))","v":""},{"$f":"IF(ISBLANK('Arc Worksheet'!#REF!),\"\",IF('Arc Worksheet'!#REF!=\"No\",\"\",1))","v":{"$error":"#REF!"}},{"$f":"IF(ISBLANK('Arc Worksheet'!#REF!),\"\",IF('Arc Worksheet'!#REF!=\"No\",\"\",C5))","v":{"$error":"#REF!"}}]
["Dimensions","A+","B+","C=","D"]
["Standard",{"$f":"'Arc Worksheet'!#REF!","v":{"$error":"#REF!"}},{"$f":"'Arc Worksheet'!#REF!","v":{"$error":"#REF!"}},{"$f":"'Arc Worksheet'!#REF!","v":{"$error":"#REF!"}},{"$f":"'Arc Worksheet'!#REF!","v":{"$error":"#REF!"}}]
["Custom",{"$f":"IF(ISBLANK('Arc Worksheet'!#REF!),\"\",'Arc Worksheet'!#REF!)","v":{"$error":"#REF!"}},{"$f":"IF(ISBLANK('Arc Worksheet'!#REF!),\"\",'Arc Worksheet'!#REF!)","v":{"$error":"#REF!"}},{"$f":"IF(ISBLANK('Arc Worksheet'!#REF!),\"\",'Arc Worksheet'!#REF!)","v":{"$error":"#REF!"}},{"$f":"IF(ISBLANK('Arc Worksheet'!#REF!),\"\",'Arc Worksheet'!#REF!)","v":{"$error":"#REF!"}}]
["Soap Hole","Inches","Faucet Hole","Inches"]
["Standard",{"$f":"'Arc Worksheet'!#REF!","v":{"$error":"#REF!"}},"Standard",{"$f":"'Arc Worksheet'!#REF!","v":{"$error":"#REF!"}}]
["Custom",{"$f":"IF(ISBLANK('Arc Worksheet'!#REF!),\"\",'Arc Worksheet'!#REF!)","v":{"$error":"#REF!"}},"Custom",{"$f":"IF(ISBLANK('Arc Worksheet'!#REF!),\"\",'Arc Worksheet'!#REF!)","v":{"$error":"#REF!"}}]
["Back Splash","Inches","Apron","Inches"]
["Standard",{"$f":"'Arc Worksheet'!#REF!","v":{"$error":"#REF!"}},"Standard",{"$f":"'Arc Worksheet'!#REF!","v":{"$error":"#REF!"}}]
["Custom",{"$f":"IF(ISBLANK('Arc Worksheet'!#REF!),\"\",'Arc Worksheet'!#REF!)","v":{"$error":"#REF!"}},"Custom",{"$f":"IF(ISBLANK('Arc Worksheet'!#REF!),\"\",'Arc Worksheet'!#REF!)","v":{"$error":"#REF!"}}]

{"sheet":"Mounting Cheat Sheet","index":8,"n_rows":21,"n_cols":7,"rows_kept":21,"cut":false,"hidden":true,"merged":[]}
["Bounce","Code 1","Count","Code 2","Count","Code 1 Cost","Code 2 Cost"]
["ABDSG1",386063,2,"Xtra Code Not Needed","N/A",189.43,0]
["ABDSG2",386063,2,386064,2,189.43,194.99]
["ABDSG3",386063,2,386064,3,189.43,194.99]
["ABDSG4",386063,2,386064,4,189.43,194.99]
["ABDSWD1",386063,2,"Xtra Code Not Needed","N/A",189.43,0]
["ABDSWD2",386063,2,386064,2,189.43,194.99]
["ABDSWD3",386063,2,386064,3,189.43,194.99]
["ABDSWD4",386063,2,386064,4,189.43,194.99]
["ABDSCT1",386063,2,"Xtra Code Not Needed","N/A",189.43,0]
["ABDSCT2",386063,4,"Xtra Code Not Needed","N/A",189.43,0]
["ABDSCT3",386063,5,"Xtra Code Not Needed","N/A",189.43,0]
["ABDSCT4",386063,6,"Xtra Code Not Needed","N/A",189.42999999999998,0]
["ABDSOF1",386063,2,"Xtra Code Not Needed","N/A",189.43,0]
["ABDSOF2",386063,3,"Xtra Code Not Needed","N/A",189.42999999999998,0]
["ABDSOF3",386063,4,"Xtra Code Not Needed","N/A",189.43,0]
["ABDSOF4",386063,5,"Xtra Code Not Needed","N/A",189.43,0]
["ABDSVR1",386063,2,"Xtra Code Not Needed","N/A",189.43,0]
["ABDSVR2",386063,4,"Xtra Code Not Needed","N/A",189.43,0]
["ABDSVR3",386063,5,"Xtra Code Not Needed","N/A",189.43,0]
["ABDSVR4",386063,6,"Xtra Code Not Needed","N/A",189.42999999999998,0]

{"sheet":"Generic Codes","index":9,"n_rows":345,"n_cols":16,"rows_kept":345,"cut":false,"hidden":true,"merged":[]}
["LOOK UP","Material","Trough or Basin","Prefix","# Stations","Bowl Type","A","B","C","D","E","F","G","H","I","J"]
["CorianContinuous TroughAD1","Corian","Continuous Trough","AD",1,null,{"$f":"$D2&F2 & \"-8\" & $E2 & \"000-C\" &G$1","v":"AD-81000-CA"},{"$f":"$D2&F2 & \"-8\" & $E2 & \"000-C\" &H$1","v":"AD-81000-CB"},{"$f":"$D2&F2 & \"-8\" & $E2 & \"000-C\" &I$1","v":"AD-81000-CC"},{"$f":"$D2&F2 & \"-8\" & $E2 & \"000-C\" &J$1","v":"AD-81000-CD"},"N/A","N/A","N/A","N/A","N/A","N/A"]
["CorianContinuous TroughAD2","Corian","Continuous Trough","AD",2,null,{"$f":"$D3&F3 & \"-8\" & $E3 & \"000-C\" &G$1","v":"AD-82000-CA"},{"$f":"$D3&F3 & \"-8\" & $E3 & \"000-C\" &H$1","v":"AD-82000-CB"},{"$f":"$D3&F3 & \"-8\" & $E3 & \"000-C\" &I$1","v":"AD-82000-CC"},{"$f":"$D3&F3 & \"-8\" & $E3 & \"000-C\" &J$1","v":"AD-82000-CD"},"N/A","N/A","N/A","N/A","N/A","N/A"]
["CorianContinuous TroughAD3","Corian","Continuous Trough","AD",3,null,"AD-83000-CA","AD-83000-CB","AD-83000-CC","AD-83000-CD","N/A","N/A","N/A","N/A","N/A","N/A"]
["CorianContinuous TroughAD4","Corian","Continuous Trough","AD",4,null,"AD-84000-CA","AD-84000-CB","AD-84000-CC","AD-84000-CD","N/A","N/A","N/A","N/A","N/A","N/A"]
["CorianContinuous TroughAD5","Corian","Continuous Trough","AD",5,null,"AD-85000-CA","AD-85000-CB","AD-85000-CC","AD-85000-CD","N/A","N/A","N/A","N/A","N/A","N/A"]
["CorianContinuous TroughAD6+","Corian","Continuous Trough","AD","6+",null,"AD-86+000-CA","AD-86+000-CB","AD-86+000-CC","AD-86+000-CD","N/A","N/A","N/A","N/A","N/A","N/A"]
["CorianContinuous TroughDSG1","Corian","Continuous Trough","DSG",1,null,"DSG-81000-CA","DSG-81000-CB","DSG-81000-CC","DSG-81000-CD","N/A","N/A","N/A","N/A","N/A","N/A"]
["CorianContinuous TroughDSG2","Corian","Continuous Trough","DSG",2,null,"DSG-82000-CA","DSG-82000-CB","DSG-82000-CC","DSG-82000-CD","N/A","N/A","N/A","N/A","N/A","N/A"]
["CorianContinuous TroughDSG3","Corian","Continuous Trough","DSG",3,null,"DSG-83000-CA","DSG-83000-CB","DSG-83000-CC","DSG-83000-CD","N/A","N/A","N/A","N/A","N/A","N/A"]
["CorianContinuous TroughDSG4","Corian","Continuous Trough","DSG",4,null,"DSG-84000-CA","DSG-84000-CB","DSG-84000-CC","DSG-84000-CD","N/A","N/A","N/A","N/A","N/A","N/A"]
["CorianContinuous TroughDSG5","Corian","Continuous Trough","DSG",5,null,"DSG-85000-CA","DSG-85000-CB","DSG-85000-CC","DSG-85000-CD","N/A","N/A","N/A","N/A","N/A","N/A"]
["CorianContinuous TroughDSG6+","Corian","Continuous Trough","DSG","6+",null,"DSG-86+000-CA","DSG-86+000-CB","DSG-86+000-CC","DSG-86+000-CD","N/A","N/A","N/A","N/A","N/A","N/A"]
["CorianContinuous TroughDSWD1","Corian","Continuous Trough","DSWD",1,null,"DSWD-81000-CA","DSWD-81000-CB","DSWD-81000-CC","DSWD-81000-CD","N/A","N/A","N/A","N/A","N/A","N/A"]
["CorianContinuous TroughDSWD2","Corian","Continuous Trough","DSWD",2,null,"DSWD-82000-CA","DSWD-82000-CB","DSWD-82000-CC","DSWD-82000-CD","N/A","N/A","N/A","N/A","N/A","N/A"]
["CorianContinuous TroughDSWD3","Corian","Continuous Trough","DSWD",3,null,"DSWD-83000-CA","DSWD-83000-CB","DSWD-83000-CC","DSWD-83000-CD","N/A","N/A","N/A","N/A","N/A","N/A"]
["CorianContinuous TroughDSWD4","Corian","Continuous Trough","DSWD",4,null,"DSWD-84000-CA","DSWD-84000-CB","DSWD-84000-CC","DSWD-84000-CD","N/A","N/A","N/A","N/A","N/A","N/A"]
["CorianContinuous TroughDSWD5","Corian","Continuous Trough","DSWD",5,null,"DSWD-85000-CA","DSWD-85000-CB","DSWD-85000-CC","DSWD-85000-CD","N/A","N/A","N/A","N/A","N/A","N/A"]
["CorianContinuous TroughDSWD6+","Corian","Continuous Trough","DSWD","6+",null,"DSWD-86+000-CA","DSWD-86+000-CB","DSWD-86+000-CC","DSWD-86+000-CD","N/A","N/A","N/A","N/A","N/A","N/A"]
["CorianContinuous TroughDSOF1","Corian","Continuous Trough","DSOF",1,null,"DSOF-81000-CA","DSOF-81000-CB","DSOF-81000-CC","DSOF-81000-CD","N/A","N/A","N/A","N/A","N/A","N/A"]
["CorianContinuous TroughDSOF2","Corian","Continuous Trough","DSOF",2,null,"DSOF-82000-CA","DSOF-82000-CB","DSOF-82000-CC","DSOF-82000-CD","N/A","N/A","N/A","N/A","N/A","N/A"]
["CorianContinuous TroughDSOF3","Corian","Continuous Trough","DSOF",3,null,"DSOF-83000-CA","DSOF-83000-CB","DSOF-83000-CC","DSOF-83000-CD","N/A","N/A","N/A","N/A","N/A","N/A"]
["CorianContinuous TroughDSOF4","Corian","Continuous Trough","DSOF",4,null,"DSOF-84000-CA","DSOF-84000-CB","DSOF-84000-CC","DSOF-84000-CD","N/A","N/A","N/A","N/A","N/A","N/A"]
["CorianContinuous TroughDSOF5","Corian","Continuous Trough","DSOF",5,null,"DSOF-85000-CA","DSOF-85000-CB","DSOF-85000-CC","DSOF-85000-CD","N/A","N/A","N/A","N/A","N/A","N/A"]
["CorianContinuous TroughDSOF6+","Corian","Continuous Trough","DSOF","6+",null,"DSOF-86+000-CA","DSOF-86+000-CB","DSOF-86+000-CC","DSOF-86+000-CD","N/A","N/A","N/A","N/A","N/A","N/A"]
["CorianContinuous TroughDSUP1","Corian","Continuous Trough","DSUP",1,null,"DSUP-81000-CA","DSUP-81000-CB","DSUP-81000-CC","DSUP-81000-CD","N/A","N/A","N/A","N/A","N/A","N/A"]
["CorianContinuous TroughDSVR1","Corian","Continuous Trough","DSVR",1,null,"DSVR-81000-CA","DSVR-81000-CB","DSVR-81000-CC","DSVR-81000-CD","N/A","N/A","N/A","N/A","N/A","N/A"]
["CorianContinuous TroughDSVR2","Corian","Continuous Trough","DSVR",2,null,"DSVR-82000-CA","DSVR-82000-CB","DSVR-82000-CC","DSVR-82000-CD","N/A","N/A","N/A","N/A","N/A","N/A"]
["CorianContinuous TroughDSVR3","Corian","Continuous Trough","DSVR",3,null,"DSVR-83000-CA","DSVR-83000-CB","DSVR-83000-CC","DSVR-83000-CD","N/A","N/A","N/A","N/A","N/A","N/A"]
["CorianContinuous TroughDSVR4","Corian","Continuous Trough","DSVR",4,null,"DSVR-84000-CA","DSVR-84000-CB","DSVR-84000-CC","DSVR-84000-CD","N/A","N/A","N/A","N/A","N/A","N/A"]
["CorianContinuous TroughDSVR5","Corian","Continuous Trough","DSVR",5,null,"DSVR-85000-CA","DSVR-85000-CB","DSVR-85000-CC","DSVR-85000-CD","N/A","N/A","N/A","N/A","N/A","N/A"]
["CorianContinuous TroughDSVR6+","Corian","Continuous Trough","DSVR","6+",null,"DSVR-86+000-CA","DSVR-86+000-CB","DSVR-86+000-CC","DSVR-86+000-CD","N/A","N/A","N/A","N/A","N/A","N/A"]
["CorianContinuous TroughDSCT1SS","Corian","Continuous Trough","DSCT",1,"SS","DSCTSS-81000-CA","DSCTSS-81000-CB","DSCTSS-81000-CC","DSCTSS-81000-CD","N/A","N/A","N/A","N/A","N/A","N/A"]
["CorianContinuous TroughDSCT2SS","Corian","Continuous Trough","DSCT",2,"SS","DSCTSS-82000-CA","DSCTSS-82000-CB","DSCTSS-82000-CC","DSCTSS-82000-CD","N/A","N/A","N/A","N/A","N/A","N/A"]
["CorianContinuous TroughDSCT3SS","Corian","Continuous Trough","DSCT",3,"SS","DSCTSS-83000-CA","DSCTSS-83000-CB","DSCTSS-83000-CC","DSCTSS-83000-CD","N/A","N/A","N/A","N/A","N/A","N/A"]
["CorianContinuous TroughDSCT4SS","Corian","Continuous Trough","DSCT",4,"SS","DSCTSS-84000-CA","DSCTSS-84000-CB","DSCTSS-84000-CC","DSCTSS-84000-CD","N/A","N/A","N/A","N/A","N/A","N/A"]
["CorianContinuous TroughDSCT5SS","Corian","Continuous Trough","DSCT",5,"SS","DSCTSS-85000-CA","DSCTSS-85000-CB","DSCTSS-85000-CC","DSCTSS-85000-CD","N/A","N/A","N/A","N/A","N/A","N/A"]
["CorianContinuous TroughDSCT6+SS","Corian","Continuous Trough","DSCT","6+","SS","DSCTSS-86+000-CA","DSCTSS-86+000-CB","DSCTSS-86+000-CC","DSCTSS-86+000-CD","N/A","N/A","N/A","N/A","N/A","N/A"]
["Corian_QuartzContinuous TroughAD1","Corian_Quartz","Continuous Trough","AD",1,null,{"$f":"$D39&F39 & \"-8\" & $E39 & \"000-Q\" &G$1","v":"AD-81000-QA"},{"$f":"$D39&F39 & \"-8\" & $E39 & \"000-Q\" &H$1","v":"AD-81000-QB"},{"$f":"$D39&F39 & \"-8\" & $E39 & \"000-Q\" &I$1","v":"AD-81000-QC"},{"$f":"$D39&F39 & \"-8\" & $E39 & \"000-Q\" &J$1","v":"AD-81000-QD"},{"$f":"$D39&F39 & \"-8\" & $E39 & \"000-Q\" &K$1","v":"AD-81000-QE"},"N/A","N/A","N/A","N/A","N/A"]
["Corian_QuartzContinuous TroughAD2","Corian_Quartz","Continuous Trough","AD",2,null,{"$f":"$D40&F40 & \"-8\" & $E40 & \"000-Q\" &G$1","v":"AD-82000-QA"},{"$f":"$D40&F40 & \"-8\" & $E40 & \"000-Q\" &H$1","v":"AD-82000-QB"},{"$f":"$D40&F40 & \"-8\" & $E40 & \"000-Q\" &I$1","v":"AD-82000-QC"},{"$f":"$D40&F40 & \"-8\" & $E40 & \"000-Q\" &J$1","v":"AD-82000-QD"},{"$f":"$D40&F40 & \"-8\" & $E40 & \"000-Q\" &K$1","v":"AD-82000-QE"},"N/A","N/A","N/A","N/A","N/A"]
["Corian_QuartzContinuous TroughAD3","Corian_Quartz","Continuous Trough","AD",3,null,"AD-83000-QA","AD-83000-QB","AD-83000-QC","AD-83000-QD","AD-83000-QE","N/A","N/A","N/A","N/A","N/A"]
["Corian_QuartzContinuous TroughAD4","Corian_Quartz","Continuous Trough","AD",4,null,"AD-84000-QA","AD-84000-QB","AD-84000-QC","AD-84000-QD","AD-84000-QE","N/A","N/A","N/A","N/A","N/A"]
["Corian_QuartzContinuous TroughAD5","Corian_Quartz","Continuous Trough","AD",5,null,"AD-85000-QA","AD-85000-QB","AD-85000-QC","AD-85000-QD","AD-85000-QE","N/A","N/A","N/A","N/A","N/A"]
["Corian_QuartzContinuous TroughAD6+","Corian_Quartz","Continuous Trough","AD","6+",null,"AD-86+000-QA","AD-86+000-QB","AD-86+000-QC","AD-86+000-QD","AD-86+000-QE","N/A","N/A","N/A","N/A","N/A"]
["Corian_QuartzContinuous TroughDSG1","Corian_Quartz","Continuous Trough","DSG",1,null,"DSG-81000-QA","DSG-81000-QB","DSG-81000-QC","DSG-81000-QD","DSG-81000-QE","N/A","N/A","N/A","N/A","N/A"]
["Corian_QuartzContinuous TroughDSG2","Corian_Quartz","Continuous Trough","DSG",2,null,"DSG-82000-QA","DSG-82000-QB","DSG-82000-QC","DSG-82000-QD","DSG-82000-QE","N/A","N/A","N/A","N/A","N/A"]
["Corian_QuartzContinuous TroughDSG3","Corian_Quartz","Continuous Trough","DSG",3,null,"DSG-83000-QA","DSG-83000-QB","DSG-83000-QC","DSG-83000-QD","DSG-83000-QE","N/A","N/A","N/A","N/A","N/A"]
["Corian_QuartzContinuous TroughDSG4","Corian_Quartz","Continuous Trough","DSG",4,null,"DSG-84000-QA","DSG-84000-QB","DSG-84000-QC","DSG-84000-QD","DSG-84000-QE","N/A","N/A","N/A","N/A","N/A"]
["Corian_QuartzContinuous TroughDSG5","Corian_Quartz","Continuous Trough","DSG",5,null,"DSG-85000-QA","DSG-85000-QB","DSG-85000-QC","DSG-85000-QD","DSG-85000-QE","N/A","N/A","N/A","N/A","N/A"]
["Corian_QuartzContinuous TroughDSG6+","Corian_Quartz","Continuous Trough","DSG","6+",null,"DSG-86+000-QA","DSG-86+000-QB","DSG-86+000-QC","DSG-86+000-QD","DSG-86+000-QE","N/A","N/A","N/A","N/A","N/A"]
["Corian_QuartzContinuous TroughDSWD1","Corian_Quartz","Continuous Trough","DSWD",1,null,"DSWD-81000-QA","DSWD-81000-QB","DSWD-81000-QC","DSWD-81000-QD","DSWD-81000-QE","N/A","N/A","N/A","N/A","N/A"]
["Corian_QuartzContinuous TroughDSWD2","Corian_Quartz","Continuous Trough","DSWD",2,null,"DSWD-82000-QA","DSWD-82000-QB","DSWD-82000-QC","DSWD-82000-QD","DSWD-82000-QE","N/A","N/A","N/A","N/A","N/A"]
["Corian_QuartzContinuous TroughDSWD3","Corian_Quartz","Continuous Trough","DSWD",3,null,"DSWD-83000-QA","DSWD-83000-QB","DSWD-83000-QC","DSWD-83000-QD","DSWD-83000-QE","N/A","N/A","N/A","N/A","N/A"]
["Corian_QuartzContinuous TroughDSWD4","Corian_Quartz","Continuous Trough","DSWD",4,null,"DSWD-84000-QA","DSWD-84000-QB","DSWD-84000-QC","DSWD-84000-QD","DSWD-84000-QE","N/A","N/A","N/A","N/A","N/A"]
["Corian_QuartzContinuous TroughDSWD5","Corian_Quartz","Continuous Trough","DSWD",5,null,"DSWD-85000-QA","DSWD-85000-QB","DSWD-85000-QC","DSWD-85000-QD","DSWD-85000-QE","N/A","N/A","N/A","N/A","N/A"]
["Corian_QuartzContinuous TroughDSWD6+","Corian_Quartz","Continuous Trough","DSWD","6+",null,"DSWD-86+000-QA","DSWD-86+000-QB","DSWD-86+000-QC","DSWD-86+000-QD","DSWD-86+000-QE","N/A","N/A","N/A","N/A","N/A"]
["Corian_QuartzContinuous TroughDSOF1","Corian_Quartz","Continuous Trough","DSOF",1,null,"DSOF-81000-QA","DSOF-81000-QB","DSOF-81000-QC","DSOF-81000-QD","DSOF-81000-QE","N/A","N/A","N/A","N/A","N/A"]
["Corian_QuartzContinuous TroughDSOF2","Corian_Quartz","Continuous Trough","DSOF",2,null,"DSOF-82000-QA","DSOF-82000-QB","DSOF-82000-QC","DSOF-82000-QD","DSOF-82000-QE","N/A","N/A","N/A","N/A","N/A"]
["Corian_QuartzContinuous TroughDSOF3","Corian_Quartz","Continuous Trough","DSOF",3,null,"DSOF-83000-QA","DSOF-83000-QB","DSOF-83000-QC","DSOF-83000-QD","DSOF-83000-QE","N/A","N/A","N/A","N/A","N/A"]
["Corian_QuartzContinuous TroughDSOF4","Corian_Quartz","Continuous Trough","DSOF",4,null,"DSOF-84000-QA","DSOF-84000-QB","DSOF-84000-QC","DSOF-84000-QD","DSOF-84000-QE","N/A","N/A","N/A","N/A","N/A"]
["Corian_QuartzContinuous TroughDSOF5","Corian_Quartz","Continuous Trough","DSOF",5,null,"DSOF-85000-QA","DSOF-85000-QB","DSOF-85000-QC","DSOF-85000-QD","DSOF-85000-QE","N/A","N/A","N/A","N/A","N/A"]
["Corian_QuartzContinuous TroughDSOF6+","Corian_Quartz","Continuous Trough","DSOF","6+",null,"DSOF-86+000-QA","DSOF-86+000-QB","DSOF-86+000-QC","DSOF-86+000-QD","DSOF-86+000-QE","N/A","N/A","N/A","N/A","N/A"]
["Corian_QuartzContinuous TroughDSUP1","Corian_Quartz","Continuous Trough","DSUP",1,null,"DSUP-81000-QA","DSUP-81000-QB","DSUP-81000-QC","DSUP-81000-QD","DSUP-81000-QE","N/A","N/A","N/A","N/A","N/A"]
["Corian_QuartzContinuous TroughDSVR1","Corian_Quartz","Continuous Trough","DSVR",1,null,"DSVR-81000-QA","DSVR-81000-QB","DSVR-81000-QC","DSVR-81000-QD","DSVR-81000-QE","N/A","N/A","N/A","N/A","N/A"]
["Corian_QuartzContinuous TroughDSVR2","Corian_Quartz","Continuous Trough","DSVR",2,null,"DSVR-82000-QA","DSVR-82000-QB","DSVR-82000-QC","DSVR-82000-QD","DSVR-82000-QE","N/A","N/A","N/A","N/A","N/A"]
["Corian_QuartzContinuous TroughDSVR3","Corian_Quartz","Continuous Trough","DSVR",3,null,"DSVR-83000-QA","DSVR-83000-QB","DSVR-83000-QC","DSVR-83000-QD","DSVR-83000-QE","N/A","N/A","N/A","N/A","N/A"]
["Corian_QuartzContinuous TroughDSVR4","Corian_Quartz","Continuous Trough","DSVR",4,null,"DSVR-84000-QA","DSVR-84000-QB","DSVR-84000-QC","DSVR-84000-QD","DSVR-84000-QE","N/A","N/A","N/A","N/A","N/A"]
["Corian_QuartzContinuous TroughDSVR5","Corian_Quartz","Continuous Trough","DSVR",5,null,"DSVR-85000-QA","DSVR-85000-QB","DSVR-85000-QC","DSVR-85000-QD","DSVR-85000-QE","N/A","N/A","N/A","N/A","N/A"]
["Corian_QuartzContinuous TroughDSVR6+","Corian_Quartz","Continuous Trough","DSVR","6+",null,"DSVR-86+000-QA","DSVR-86+000-QB","DSVR-86+000-QC","DSVR-86+000-QD","DSVR-86+000-QE","N/A","N/A","N/A","N/A","N/A"]
["Corian_QuartzContinuous TroughDSCT1SS","Corian_Quartz","Continuous Trough","DSCT",1,"SS","DSCTSS-81000-QA","DSCTSS-81000-QB","DSCTSS-81000-QC","DSCTSS-81000-QD","DSCTSS-81000-QE","N/A","N/A","N/A","N/A","N/A"]
["Corian_QuartzContinuous TroughDSCT2SS","Corian_Quartz","Continuous Trough","DSCT",2,"SS","DSCTSS-82000-QA","DSCTSS-82000-QB","DSCTSS-82000-QC","DSCTSS-82000-QD","DSCTSS-82000-QE","N/A","N/A","N/A","N/A","N/A"]
["Corian_QuartzContinuous TroughDSCT3SS","Corian_Quartz","Continuous Trough","DSCT",3,"SS","DSCTSS-83000-QA","DSCTSS-83000-QB","DSCTSS-83000-QC","DSCTSS-83000-QD","DSCTSS-83000-QE","N/A","N/A","N/A","N/A","N/A"]
["Corian_QuartzContinuous TroughDSCT4SS","Corian_Quartz","Continuous Trough","DSCT",4,"SS","DSCTSS-84000-QA","DSCTSS-84000-QB","DSCTSS-84000-QC","DSCTSS-84000-QD","DSCTSS-84000-QE","N/A","N/A","N/A","N/A","N/A"]
["Corian_QuartzContinuous TroughDSCT5SS","Corian_Quartz","Continuous Trough","DSCT",5,"SS","DSCTSS-85000-QA","DSCTSS-85000-QB","DSCTSS-85000-QC","DSCTSS-85000-QD","DSCTSS-85000-QE","N/A","N/A","N/A","N/A","N/A"]
["Corian_QuartzContinuous TroughDSCT6+SS","Corian_Quartz","Continuous Trough","DSCT","6+","SS","DSCTSS-86+000-QA","DSCTSS-86+000-QB","DSCTSS-86+000-QC","DSCTSS-86+000-QD","DSCTSS-86+000-QE","N/A","N/A","N/A","N/A","N/A"]
["SileStoneContinuous TroughAD1","SileStone","Continuous Trough","AD",1,null,"AD-81000-QA","AD-81000-QB","AD-81000-QC","AD-81000-QD","AD-81000-QE","N/A","N/A","N/A","N/A","N/A"]
["SileStoneContinuous TroughAD2","SileStone","Continuous Trough","AD",2,null,"AD-82000-QA","AD-82000-QB","AD-82000-QC","AD-82000-QD","AD-82000-QE","N/A","N/A","N/A","N/A","N/A"]
["SileStoneContinuous TroughAD3","SileStone","Continuous Trough","AD",3,null,"AD-83000-QA","AD-83000-QB","AD-83000-QC","AD-83000-QD","AD-83000-QE","N/A","N/A","N/A","N/A","N/A"]
["SileStoneContinuous TroughAD4","SileStone","Continuous Trough","AD",4,null,"AD-84000-QA","AD-84000-QB","AD-84000-QC","AD-84000-QD","AD-84000-QE","N/A","N/A","N/A","N/A","N/A"]
["SileStoneContinuous TroughAD5","SileStone","Continuous Trough","AD",5,null,"AD-85000-QA","AD-85000-QB","AD-85000-QC","AD-85000-QD","AD-85000-QE","N/A","N/A","N/A","N/A","N/A"]
["SileStoneContinuous TroughAD6+","SileStone","Continuous Trough","AD","6+",null,"AD-86+000-QA","AD-86+000-QB","AD-86+000-QC","AD-86+000-QD","AD-86+000-QE","N/A","N/A","N/A","N/A","N/A"]
["SileStoneContinuous TroughDSG1","SileStone","Continuous Trough","DSG",1,null,"DSG-81000-QA","DSG-81000-QB","DSG-81000-QC","DSG-81000-QD","DSG-81000-QE","N/A","N/A","N/A","N/A","N/A"]
["SileStoneContinuous TroughDSG2","SileStone","Continuous Trough","DSG",2,null,"DSG-82000-QA","DSG-82000-QB","DSG-82000-QC","DSG-82000-QD","DSG-82000-QE","N/A","N/A","N/A","N/A","N/A"]
["SileStoneContinuous TroughDSG3","SileStone","Continuous Trough","DSG",3,null,"DSG-83000-QA","DSG-83000-QB","DSG-83000-QC","DSG-83000-QD","DSG-83000-QE","N/A","N/A","N/A","N/A","N/A"]
["SileStoneContinuous TroughDSG4","SileStone","Continuous Trough","DSG",4,null,"DSG-84000-QA","DSG-84000-QB","DSG-84000-QC","DSG-84000-QD","DSG-84000-QE","N/A","N/A","N/A","N/A","N/A"]
["SileStoneContinuous TroughDSG5","SileStone","Continuous Trough","DSG",5,null,"DSG-85000-QA","DSG-85000-QB","DSG-85000-QC","DSG-85000-QD","DSG-85000-QE","N/A","N/A","N/A","N/A","N/A"]
["SileStoneContinuous TroughDSG6+","SileStone","Continuous Trough","DSG","6+",null,"DSG-86+000-QA","DSG-86+000-QB","DSG-86+000-QC","DSG-86+000-QD","DSG-86+000-QE","N/A","N/A","N/A","N/A","N/A"]
["SileStoneContinuous TroughDSWD1","SileStone","Continuous Trough","DSWD",1,null,"DSWD-81000-QA","DSWD-81000-QB","DSWD-81000-QC","DSWD-81000-QD","DSWD-81000-QE","N/A","N/A","N/A","N/A","N/A"]
["SileStoneContinuous TroughDSWD2","SileStone","Continuous Trough","DSWD",2,null,"DSWD-82000-QA","DSWD-82000-QB","DSWD-82000-QC","DSWD-82000-QD","DSWD-82000-QE","N/A","N/A","N/A","N/A","N/A"]
["SileStoneContinuous TroughDSWD3","SileStone","Continuous Trough","DSWD",3,null,"DSWD-83000-QA","DSWD-83000-QB","DSWD-83000-QC","DSWD-83000-QD","DSWD-83000-QE","N/A","N/A","N/A","N/A","N/A"]
["SileStoneContinuous TroughDSWD4","SileStone","Continuous Trough","DSWD",4,null,"DSWD-84000-QA","DSWD-84000-QB","DSWD-84000-QC","DSWD-84000-QD","DSWD-84000-QE","N/A","N/A","N/A","N/A","N/A"]
["SileStoneContinuous TroughDSWD5","SileStone","Continuous Trough","DSWD",5,null,"DSWD-85000-QA","DSWD-85000-QB","DSWD-85000-QC","DSWD-85000-QD","DSWD-85000-QE","N/A","N/A","N/A","N/A","N/A"]
["SileStoneContinuous TroughDSWD6+","SileStone","Continuous Trough","DSWD","6+",null,"DSWD-86+000-QA","DSWD-86+000-QB","DSWD-86+000-QC","DSWD-86+000-QD","DSWD-86+000-QE","N/A","N/A","N/A","N/A","N/A"]
["SileStoneContinuous TroughDSOF1","SileStone","Continuous Trough","DSOF",1,null,"DSOF-81000-QA","DSOF-81000-QB","DSOF-81000-QC","DSOF-81000-QD","DSOF-81000-QE","N/A","N/A","N/A","N/A","N/A"]
["SileStoneContinuous TroughDSOF2","SileStone","Continuous Trough","DSOF",2,null,"DSOF-82000-QA","DSOF-82000-QB","DSOF-82000-QC","DSOF-82000-QD","DSOF-82000-QE","N/A","N/A","N/A","N/A","N/A"]
["SileStoneContinuous TroughDSOF3","SileStone","Continuous Trough","DSOF",3,null,"DSOF-83000-QA","DSOF-83000-QB","DSOF-83000-QC","DSOF-83000-QD","DSOF-83000-QE","N/A","N/A","N/A","N/A","N/A"]
["SileStoneContinuous TroughDSOF4","SileStone","Continuous Trough","DSOF",4,null,"DSOF-84000-QA","DSOF-84000-QB","DSOF-84000-QC","DSOF-84000-QD","DSOF-84000-QE","N/A","N/A","N/A","N/A","N/A"]
["SileStoneContinuous TroughDSOF5","SileStone","Continuous Trough","DSOF",5,null,"DSOF-85000-QA","DSOF-85000-QB","DSOF-85000-QC","DSOF-85000-QD","DSOF-85000-QE","N/A","N/A","N/A","N/A","N/A"]
["SileStoneContinuous TroughDSOF6+","SileStone","Continuous Trough","DSOF","6+",null,"DSOF-86+000-QA","DSOF-86+000-QB","DSOF-86+000-QC","DSOF-86+000-QD","DSOF-86+000-QE","N/A","N/A","N/A","N/A","N/A"]
["SileStoneContinuous TroughDSUP1","SileStone","Continuous Trough","DSUP",1,null,"DSUP-81000-QA","DSUP-81000-QB","DSUP-81000-QC","DSUP-81000-QD","DSUP-81000-QE","N/A","N/A","N/A","N/A","N/A"]
["SileStoneContinuous TroughDSVR1","SileStone","Continuous Trough","DSVR",1,null,"DSVR-81000-QA","DSVR-81000-QB","DSVR-81000-QC","DSVR-81000-QD","DSVR-81000-QE","N/A","N/A","N/A","N/A","N/A"]
["SileStoneContinuous TroughDSVR2","SileStone","Continuous Trough","DSVR",2,null,"DSVR-82000-QA","DSVR-82000-QB","DSVR-82000-QC","DSVR-82000-QD","DSVR-82000-QE","N/A","N/A","N/A","N/A","N/A"]
["SileStoneContinuous TroughDSVR3","SileStone","Continuous Trough","DSVR",3,null,"DSVR-83000-QA","DSVR-83000-QB","DSVR-83000-QC","DSVR-83000-QD","DSVR-83000-QE","N/A","N/A","N/A","N/A","N/A"]
["SileStoneContinuous TroughDSVR4","SileStone","Continuous Trough","DSVR",4,null,{"$f":"$D104&F104 & \"-8\" & $E104 & \"000-Q\" &G$1","v":"DSVR-84000-QA"},{"$f":"$D104&F104 & \"-8\" & $E104 & \"000-Q\" &H$1","v":"DSVR-84000-QB"},{"$f":"$D104&F104 & \"-8\" & $E104 & \"000-Q\" &I$1","v":"DSVR-84000-QC"},{"$f":"$D104&F104 & \"-8\" & $E104 & \"000-Q\" &J$1","v":"DSVR-84000-QD"},{"$f":"$D104&F104 & \"-8\" & $E104 & \"000-Q\" &K$1","v":"DSVR-84000-QE"},"N/A","N/A","N/A","N/A","N/A"]
["SileStoneContinuous TroughDSVR5","SileStone","Continuous Trough","DSVR",5,null,"DSVR-85000-QA","DSVR-85000-QB","DSVR-85000-QC","DSVR-85000-QD","DSVR-85000-QE","N/A","N/A","N/A","N/A","N/A"]
["SileStoneContinuous TroughDSVR6+","SileStone","Continuous Trough","DSVR","6+",null,"DSVR-86+000-QA","DSVR-86+000-QB","DSVR-86+000-QC","DSVR-86+000-QD","DSVR-86+000-QE","N/A","N/A","N/A","N/A","N/A"]
["SileStoneContinuous TroughDSCT1SS","SileStone","Continuous Trough","DSCT",1,"SS","DSCTSS-81000-QA","DSCTSS-81000-QB","DSCTSS-81000-QC","DSCTSS-81000-QD","DSCTSS-81000-QE","N/A","N/A","N/A","N/A","N/A"]
["SileStoneContinuous TroughDSCT2SS","SileStone","Continuous Trough","DSCT",2,"SS","DSCTSS-82000-QA","DSCTSS-82000-QB","DSCTSS-82000-QC","DSCTSS-82000-QD","DSCTSS-82000-QE","N/A","N/A","N/A","N/A","N/A"]
["SileStoneContinuous TroughDSCT3SS","SileStone","Continuous Trough","DSCT",3,"SS","DSCTSS-83000-QA","DSCTSS-83000-QB","DSCTSS-83000-QC","DSCTSS-83000-QD","DSCTSS-83000-QE","N/A","N/A","N/A","N/A","N/A"]
["SileStoneContinuous TroughDSCT4SS","SileStone","Continuous Trough","DSCT",4,"SS","DSCTSS-84000-QA","DSCTSS-84000-QB","DSCTSS-84000-QC","DSCTSS-84000-QD","DSCTSS-84000-QE","N/A","N/A","N/A","N/A","N/A"]
["SileStoneContinuous TroughDSCT5SS","SileStone","Continuous Trough","DSCT",5,"SS","DSCTSS-85000-QA","DSCTSS-85000-QB","DSCTSS-85000-QC","DSCTSS-85000-QD","DSCTSS-85000-QE","N/A","N/A","N/A","N/A","N/A"]
["SileStoneContinuous TroughDSCT6+SS","SileStone","Continuous Trough","DSCT","6+","SS","DSCTSS-86+000-QA","DSCTSS-86+000-QB","DSCTSS-86+000-QC","DSCTSS-86+000-QD","DSCTSS-86+000-QE","N/A","N/A","N/A","N/A","N/A"]
["CorianIndividual BasinAD1","Corian","Individual Basin","AD",1,null,{"$f":"$D113&F113 & \"-8\" & $E113 & \"000-C\" &G$1","v":"AD-81000-CA"},{"$f":"$D113&F113 & \"-8\" & $E113 & \"000-C\" &H$1","v":"AD-81000-CB"},{"$f":"$D113&F113 & \"-8\" & $E113 & \"000-C\" &I$1","v":"AD-81000-CC"},{"$f":"$D113&F113 & \"-8\" & $E113 & \"000-C\" &J$1","v":"AD-81000-CD"},"N/A","N/A","N/A","N/A","N/A","N/A"]
["CorianIndividual BasinAD2","Corian","Individual Basin","AD",2,null,"AD-82000-CA","AD-82000-CB","AD-82000-CC","AD-82000-CD","N/A","N/A","N/A","N/A","N/A","N/A"]
["CorianIndividual BasinAD3","Corian","Individual Basin","AD",3,null,"AD-83000-CA","AD-83000-CB","AD-83000-CC","AD-83000-CD","N/A","N/A","N/A","N/A","N/A","N/A"]
["CorianIndividual BasinAD4","Corian","Individual Basin","AD",4,null,"AD-84000-CA","AD-84000-CB","AD-84000-CC","AD-84000-CD","N/A","N/A","N/A","N/A","N/A","N/A"]
["CorianIndividual BasinAD5","Corian","Individual Basin","AD",5,null,"AD-85000-CA","AD-85000-CB","AD-85000-CC","AD-85000-CD","N/A","N/A","N/A","N/A","N/A","N/A"]
["CorianIndividual BasinAD6+","Corian","Individual Basin","AD","6+",null,"AD-86+000-CA","AD-86+000-CB","AD-86+000-CC","AD-86+000-CD","N/A","N/A","N/A","N/A","N/A","N/A"]
["CorianIndividual BasinDSG1","Corian","Individual Basin","DSG",1,null,"DSG-81000-CA","DSG-81000-CB","DSG-81000-CC","DSG-81000-CD","N/A","N/A","N/A","N/A","N/A","N/A"]
["CorianIndividual BasinDSG2","Corian","Individual Basin","DSG",2,null,"DSG-82000-CA","DSG-82000-CB","DSG-82000-CC","DSG-82000-CD","N/A","N/A","N/A","N/A","N/A","N/A"]
["CorianIndividual BasinDSG3","Corian","Individual Basin","DSG",3,null,"DSG-83000-CA","DSG-83000-CB","DSG-83000-CC","DSG-83000-CD","N/A","N/A","N/A","N/A","N/A","N/A"]
["CorianIndividual BasinDSG4","Corian","Individual Basin","DSG",4,null,"DSG-84000-CA","DSG-84000-CB","DSG-84000-CC","DSG-84000-CD","N/A","N/A","N/A","N/A","N/A","N/A"]
["CorianIndividual BasinDSG5","Corian","Individual Basin","DSG",5,null,"DSG-85000-CA","DSG-85000-CB","DSG-85000-CC","DSG-85000-CD","N/A","N/A","N/A","N/A","N/A","N/A"]
["CorianIndividual BasinDSG6+","Corian","Individual Basin","DSG","6+",null,"DSG-86+000-CA","DSG-86+000-CB","DSG-86+000-CC","DSG-86+000-CD","N/A","N/A","N/A","N/A","N/A","N/A"]
["CorianIndividual BasinDSWD1","Corian","Individual Basin","DSWD",1,null,"DSWD-81000-CA","DSWD-81000-CB","DSWD-81000-CC","DSWD-81000-CD","N/A","N/A","N/A","N/A","N/A","N/A"]
["CorianIndividual BasinDSWD2","Corian","Individual Basin","DSWD",2,null,"DSWD-82000-CA","DSWD-82000-CB","DSWD-82000-CC","DSWD-82000-CD","N/A","N/A","N/A","N/A","N/A","N/A"]
["CorianIndividual BasinDSWD3","Corian","Individual Basin","DSWD",3,null,"DSWD-83000-CA","DSWD-83000-CB","DSWD-83000-CC","DSWD-83000-CD","N/A","N/A","N/A","N/A","N/A","N/A"]
["CorianIndividual BasinDSWD4","Corian","Individual Basin","DSWD",4,null,"DSWD-84000-CA","DSWD-84000-CB","DSWD-84000-CC","DSWD-84000-CD","N/A","N/A","N/A","N/A","N/A","N/A"]
["CorianIndividual BasinDSWD5","Corian","Individual Basin","DSWD",5,null,"DSWD-85000-CA","DSWD-85000-CB","DSWD-85000-CC","DSWD-85000-CD","N/A","N/A","N/A","N/A","N/A","N/A"]
["CorianIndividual BasinDSWD6+","Corian","Individual Basin","DSWD","6+",null,"DSWD-86+000-CA","DSWD-86+000-CB","DSWD-86+000-CC","DSWD-86+000-CD","N/A","N/A","N/A","N/A","N/A","N/A"]
["CorianIndividual BasinDSOF1","Corian","Individual Basin","DSOF",1,null,{"$f":"$D131&F131 & \"-8\" & $E131 & \"000-C\" &G$1","v":"DSOF-81000-CA"},{"$f":"$D131&F131 & \"-8\" & $E131 & \"000-C\" &H$1","v":"DSOF-81000-CB"},{"$f":"$D131&F131 & \"-8\" & $E131 & \"000-C\" &I$1","v":"DSOF-81000-CC"},{"$f":"$D131&F131 & \"-8\" & $E131 & \"000-C\" &J$1","v":"DSOF-81000-CD"},"N/A","N/A","N/A","N/A","N/A","N/A"]
["CorianIndividual BasinDSOF2","Corian","Individual Basin","DSOF",2,null,"DSOF-82000-CA","DSOF-82000-CB","DSOF-82000-CC","DSOF-82000-CD","N/A","N/A","N/A","N/A","N/A","N/A"]
["CorianIndividual BasinDSOF3","Corian","Individual Basin","DSOF",3,null,"DSOF-83000-CA","DSOF-83000-CB","DSOF-83000-CC","DSOF-83000-CD","N/A","N/A","N/A","N/A","N/A","N/A"]
["CorianIndividual BasinDSOF4","Corian","Individual Basin","DSOF",4,null,"DSOF-84000-CA","DSOF-84000-CB","DSOF-84000-CC","DSOF-84000-CD","N/A","N/A","N/A","N/A","N/A","N/A"]
["CorianIndividual BasinDSOF5","Corian","Individual Basin","DSOF",5,null,"DSOF-85000-CA","DSOF-85000-CB","DSOF-85000-CC","DSOF-85000-CD","N/A","N/A","N/A","N/A","N/A","N/A"]
["CorianIndividual BasinDSOF6+","Corian","Individual Basin","DSOF","6+",null,"DSOF-86+000-CA","DSOF-86+000-CB","DSOF-86+000-CC","DSOF-86+000-CD","N/A","N/A","N/A","N/A","N/A","N/A"]
["CorianIndividual BasinDSUP1","Corian","Individual Basin","DSUP",1,null,"DSUP-81000-CA","DSUP-81000-CB","DSUP-81000-CC","DSUP-81000-CD","N/A","N/A","N/A","N/A","N/A","N/A"]
["CorianIndividual BasinDSVR1","Corian","Individual Basin","DSVR",1,null,"DSVR-81000-CA","DSVR-81000-CB","DSVR-81000-CC","DSVR-81000-CD","N/A","N/A","N/A","N/A","N/A","N/A"]
["CorianIndividual BasinDSVR2","Corian","Individual Basin","DSVR",2,null,"DSVR-82000-CA","DSVR-82000-CB","DSVR-82000-CC","DSVR-82000-CD","N/A","N/A","N/A","N/A","N/A","N/A"]
["CorianIndividual BasinDSVR3","Corian","Individual Basin","DSVR",3,null,"DSVR-83000-CA","DSVR-83000-CB","DSVR-83000-CC","DSVR-83000-CD","N/A","N/A","N/A","N/A","N/A","N/A"]
["CorianIndividual BasinDSVR4","Corian","Individual Basin","DSVR",4,null,"DSVR-84000-CA","DSVR-84000-CB","DSVR-84000-CC","DSVR-84000-CD","N/A","N/A","N/A","N/A","N/A","N/A"]
["CorianIndividual BasinDSVR5","Corian","Individual Basin","DSVR",5,null,"DSVR-85000-CA","DSVR-85000-CB","DSVR-85000-CC","DSVR-85000-CD","N/A","N/A","N/A","N/A","N/A","N/A"]
["CorianIndividual BasinDSVR6+","Corian","Individual Basin","DSVR","6+",null,"DSVR-86+000-CA","DSVR-86+000-CB","DSVR-86+000-CC","DSVR-86+000-CD","N/A","N/A","N/A","N/A","N/A","N/A"]
["CorianIndividual BasinDSCT1SS","Corian","Individual Basin","DSCT",1,"SS","DSCTSS-81000-CA","DSCTSS-81000-CB","DSCTSS-81000-CC","DSCTSS-81000-CD","N/A","N/A","N/A","N/A","N/A","N/A"]
["CorianIndividual BasinDSCT2SS","Corian","Individual Basin","DSCT",2,"SS","DSCTSS-82000-CA","DSCTSS-82000-CB","DSCTSS-82000-CC","DSCTSS-82000-CD","N/A","N/A","N/A","N/A","N/A","N/A"]
["CorianIndividual BasinDSCT3SS","Corian","Individual Basin","DSCT",3,"SS","DSCTSS-83000-CA","DSCTSS-83000-CB","DSCTSS-83000-CC","DSCTSS-83000-CD","N/A","N/A","N/A","N/A","N/A","N/A"]
["CorianIndividual BasinDSCT4SS","Corian","Individual Basin","DSCT",4,"SS","DSCTSS-84000-CA","DSCTSS-84000-CB","DSCTSS-84000-CC","DSCTSS-84000-CD","N/A","N/A","N/A","N/A","N/A","N/A"]
["CorianIndividual BasinDSCT5SS","Corian","Individual Basin","DSCT",5,"SS","DSCTSS-85000-CA","DSCTSS-85000-CB","DSCTSS-85000-CC","DSCTSS-85000-CD","N/A","N/A","N/A","N/A","N/A","N/A"]
["CorianIndividual BasinDSCT6+SS","Corian","Individual Basin","DSCT","6+","SS","DSCTSS-86+000-CA","DSCTSS-86+000-CB","DSCTSS-86+000-CC","DSCTSS-86+000-CD","N/A","N/A","N/A","N/A","N/A","N/A"]
["Corian_QuartzIndividual BasinAD1","Corian_Quartz","Individual Basin","AD",1,null,{"$f":"$D150&F150 & \"-8\" & $E150 & \"000-Q\" &G$1","v":"AD-81000-QA"},{"$f":"$D150&F150 & \"-8\" & $E150 & \"000-Q\" &H$1","v":"AD-81000-QB"},{"$f":"$D150&F150 & \"-8\" & $E150 & \"000-Q\" &I$1","v":"AD-81000-QC"},{"$f":"$D150&F150 & \"-8\" & $E150 & \"000-Q\" &J$1","v":"AD-81000-QD"},{"$f":"$D150&F150 & \"-8\" & $E150 & \"000-Q\" &K$1","v":"AD-81000-QE"},"N/A","N/A","N/A","N/A","N/A"]
["Corian_QuartzIndividual BasinAD2","Corian_Quartz","Individual Basin","AD",2,null,{"$f":"$D151&F151 & \"-8\" & $E151 & \"000-Q\" &G$1","v":"AD-82000-QA"},{"$f":"$D151&F151 & \"-8\" & $E151 & \"000-Q\" &H$1","v":"AD-82000-QB"},{"$f":"$D151&F151 & \"-8\" & $E151 & \"000-Q\" &I$1","v":"AD-82000-QC"},{"$f":"$D151&F151 & \"-8\" & $E151 & \"000-Q\" &J$1","v":"AD-82000-QD"},{"$f":"$D151&F151 & \"-8\" & $E151 & \"000-Q\" &K$1","v":"AD-82000-QE"},"N/A","N/A","N/A","N/A","N/A"]
["Corian_QuartzIndividual BasinAD3","Corian_Quartz","Individual Basin","AD",3,null,"AD-83000-QA","AD-83000-QB","AD-83000-QC","AD-83000-QD","AD-83000-QE","N/A","N/A","N/A","N/A","N/A"]
["Corian_QuartzIndividual BasinAD4","Corian_Quartz","Individual Basin","AD",4,null,"AD-84000-QA","AD-84000-QB","AD-84000-QC","AD-84000-QD","AD-84000-QE","N/A","N/A","N/A","N/A","N/A"]
["Corian_QuartzIndividual BasinAD5","Corian_Quartz","Individual Basin","AD",5,null,"AD-85000-QA","AD-85000-QB","AD-85000-QC","AD-85000-QD","AD-85000-QE","N/A","N/A","N/A","N/A","N/A"]
["Corian_QuartzIndividual BasinAD6+","Corian_Quartz","Individual Basin","AD","6+",null,"AD-86+000-QA","AD-86+000-QB","AD-86+000-QC","AD-86+000-QD","AD-86+000-QE","N/A","N/A","N/A","N/A","N/A"]
["Corian_QuartzIndividual BasinDSG1","Corian_Quartz","Individual Basin","DSG",1,null,"DSG-81000-QA","DSG-81000-QB","DSG-81000-QC","DSG-81000-QD","DSG-81000-QE","N/A","N/A","N/A","N/A","N/A"]
["Corian_QuartzIndividual BasinDSG2","Corian_Quartz","Individual Basin","DSG",2,null,"DSG-82000-QA","DSG-82000-QB","DSG-82000-QC","DSG-82000-QD","DSG-82000-QE","N/A","N/A","N/A","N/A","N/A"]
["Corian_QuartzIndividual BasinDSG3","Corian_Quartz","Individual Basin","DSG",3,null,"DSG-83000-QA","DSG-83000-QB","DSG-83000-QC","DSG-83000-QD","DSG-83000-QE","N/A","N/A","N/A","N/A","N/A"]
["Corian_QuartzIndividual BasinDSG4","Corian_Quartz","Individual Basin","DSG",4,null,"DSG-84000-QA","DSG-84000-QB","DSG-84000-QC","DSG-84000-QD","DSG-84000-QE","N/A","N/A","N/A","N/A","N/A"]
["Corian_QuartzIndividual BasinDSG5","Corian_Quartz","Individual Basin","DSG",5,null,"DSG-85000-QA","DSG-85000-QB","DSG-85000-QC","DSG-85000-QD","DSG-85000-QE","N/A","N/A","N/A","N/A","N/A"]
["Corian_QuartzIndividual BasinDSG6+","Corian_Quartz","Individual Basin","DSG","6+",null,"DSG-86+000-QA","DSG-86+000-QB","DSG-86+000-QC","DSG-86+000-QD","DSG-86+000-QE","N/A","N/A","N/A","N/A","N/A"]
["Corian_QuartzIndividual BasinDSWD1","Corian_Quartz","Individual Basin","DSWD",1,null,"DSWD-81000-QA","DSWD-81000-QB","DSWD-81000-QC","DSWD-81000-QD","DSWD-81000-QE","N/A","N/A","N/A","N/A","N/A"]
["Corian_QuartzIndividual BasinDSWD2","Corian_Quartz","Individual Basin","DSWD",2,null,"DSWD-82000-QA","DSWD-82000-QB","DSWD-82000-QC","DSWD-82000-QD","DSWD-82000-QE","N/A","N/A","N/A","N/A","N/A"]
["Corian_QuartzIndividual BasinDSWD3","Corian_Quartz","Individual Basin","DSWD",3,null,"DSWD-83000-QA","DSWD-83000-QB","DSWD-83000-QC","DSWD-83000-QD","DSWD-83000-QE","N/A","N/A","N/A","N/A","N/A"]
["Corian_QuartzIndividual BasinDSWD4","Corian_Quartz","Individual Basin","DSWD",4,null,"DSWD-84000-QA","DSWD-84000-QB","DSWD-84000-QC","DSWD-84000-QD","DSWD-84000-QE","N/A","N/A","N/A","N/A","N/A"]
["Corian_QuartzIndividual BasinDSWD5","Corian_Quartz","Individual Basin","DSWD",5,null,"DSWD-85000-QA","DSWD-85000-QB","DSWD-85000-QC","DSWD-85000-QD","DSWD-85000-QE","N/A","N/A","N/A","N/A","N/A"]
["Corian_QuartzIndividual BasinDSWD6+","Corian_Quartz","Individual Basin","DSWD","6+",null,"DSWD-86+000-QA","DSWD-86+000-QB","DSWD-86+000-QC","DSWD-86+000-QD","DSWD-86+000-QE","N/A","N/A","N/A","N/A","N/A"]
["Corian_QuartzIndividual BasinDSOF1","Corian_Quartz","Individual Basin","DSOF",1,null,"DSOF-81000-QA","DSOF-81000-QB","DSOF-81000-QC","DSOF-81000-QD","DSOF-81000-QE","N/A","N/A","N/A","N/A","N/A"]
["Corian_QuartzIndividual BasinDSOF2","Corian_Quartz","Individual Basin","DSOF",2,null,"DSOF-82000-QA","DSOF-82000-QB","DSOF-82000-QC","DSOF-82000-QD","DSOF-82000-QE","N/A","N/A","N/A","N/A","N/A"]
["Corian_QuartzIndividual BasinDSOF3","Corian_Quartz","Individual Basin","DSOF",3,null,"DSOF-83000-QA","DSOF-83000-QB","DSOF-83000-QC","DSOF-83000-QD","DSOF-83000-QE","N/A","N/A","N/A","N/A","N/A"]
["Corian_QuartzIndividual BasinDSOF4","Corian_Quartz","Individual Basin","DSOF",4,null,"DSOF-84000-QA","DSOF-84000-QB","DSOF-84000-QC","DSOF-84000-QD","DSOF-84000-QE","N/A","N/A","N/A","N/A","N/A"]
["Corian_QuartzIndividual BasinDSOF5","Corian_Quartz","Individual Basin","DSOF",5,null,"DSOF-85000-QA","DSOF-85000-QB","DSOF-85000-QC","DSOF-85000-QD","DSOF-85000-QE","N/A","N/A","N/A","N/A","N/A"]
["Corian_QuartzIndividual BasinDSOF6+","Corian_Quartz","Individual Basin","DSOF","6+",null,"DSOF-86+000-QA","DSOF-86+000-QB","DSOF-86+000-QC","DSOF-86+000-QD","DSOF-86+000-QE","N/A","N/A","N/A","N/A","N/A"]
["Corian_QuartzIndividual BasinDSUP1","Corian_Quartz","Individual Basin","DSUP",1,null,"DSUP-81000-QA","DSUP-81000-QB","DSUP-81000-QC","DSUP-81000-QD","DSUP-81000-QE","N/A","N/A","N/A","N/A","N/A"]
["Corian_QuartzIndividual BasinDSVR1","Corian_Quartz","Individual Basin","DSVR",1,null,"DSVR-81000-QA","DSVR-81000-QB","DSVR-81000-QC","DSVR-81000-QD","DSVR-81000-QE","N/A","N/A","N/A","N/A","N/A"]
["Corian_QuartzIndividual BasinDSVR2","Corian_Quartz","Individual Basin","DSVR",2,null,"DSVR-82000-QA","DSVR-82000-QB","DSVR-82000-QC","DSVR-82000-QD","DSVR-82000-QE","N/A","N/A","N/A","N/A","N/A"]
["Corian_QuartzIndividual BasinDSVR3","Corian_Quartz","Individual Basin","DSVR",3,null,"DSVR-83000-QA","DSVR-83000-QB","DSVR-83000-QC","DSVR-83000-QD","DSVR-83000-QE","N/A","N/A","N/A","N/A","N/A"]
["Corian_QuartzIndividual BasinDSVR4","Corian_Quartz","Individual Basin","DSVR",4,null,"DSVR-84000-QA","DSVR-84000-QB","DSVR-84000-QC","DSVR-84000-QD","DSVR-84000-QE","N/A","N/A","N/A","N/A","N/A"]
["Corian_QuartzIndividual BasinDSVR5","Corian_Quartz","Individual Basin","DSVR",5,null,"DSVR-85000-QA","DSVR-85000-QB","DSVR-85000-QC","DSVR-85000-QD","DSVR-85000-QE","N/A","N/A","N/A","N/A","N/A"]
["Corian_QuartzIndividual BasinDSVR6+","Corian_Quartz","Individual Basin","DSVR","6+",null,"DSVR-86+000-QA","DSVR-86+000-QB","DSVR-86+000-QC","DSVR-86+000-QD","DSVR-86+000-QE","N/A","N/A","N/A","N/A","N/A"]
["Corian_QuartzIndividual BasinDSCT1SS","Corian_Quartz","Individual Basin","DSCT",1,"SS","DSCTSS-81000-QA","DSCTSS-81000-QB","DSCTSS-81000-QC","DSCTSS-81000-QD","DSCTSS-81000-QE","N/A","N/A","N/A","N/A","N/A"]
["Corian_QuartzIndividual BasinDSCT2SS","Corian_Quartz","Individual Basin","DSCT",2,"SS","DSCTSS-82000-QA","DSCTSS-82000-QB","DSCTSS-82000-QC","DSCTSS-82000-QD","DSCTSS-82000-QE","N/A","N/A","N/A","N/A","N/A"]
["Corian_QuartzIndividual BasinDSCT3SS","Corian_Quartz","Individual Basin","DSCT",3,"SS","DSCTSS-83000-QA","DSCTSS-83000-QB","DSCTSS-83000-QC","DSCTSS-83000-QD","DSCTSS-83000-QE","N/A","N/A","N/A","N/A","N/A"]
["Corian_QuartzIndividual BasinDSCT4SS","Corian_Quartz","Individual Basin","DSCT",4,"SS","DSCTSS-84000-QA","DSCTSS-84000-QB","DSCTSS-84000-QC","DSCTSS-84000-QD","DSCTSS-84000-QE","N/A","N/A","N/A","N/A","N/A"]
["Corian_QuartzIndividual BasinDSCT5SS","Corian_Quartz","Individual Basin","DSCT",5,"SS","DSCTSS-85000-QA","DSCTSS-85000-QB","DSCTSS-85000-QC","DSCTSS-85000-QD","DSCTSS-85000-QE","N/A","N/A","N/A","N/A","N/A"]
["Corian_QuartzIndividual BasinDSCT6+SS","Corian_Quartz","Individual Basin","DSCT","6+","SS","DSCTSS-86+000-QA","DSCTSS-86+000-QB","DSCTSS-86+000-QC","DSCTSS-86+000-QD","DSCTSS-86+000-QE","N/A","N/A","N/A","N/A","N/A"]
["SileStoneIndividual BasinAD1","SileStone","Individual Basin","AD",1,null,"AD-81000-QA","AD-81000-QB","AD-81000-QC","AD-81000-QD","AD-81000-QE","N/A","N/A","N/A","N/A","N/A"]
["SileStoneIndividual BasinAD2","SileStone","Individual Basin","AD",2,null,"AD-82000-QA","AD-82000-QB","AD-82000-QC","AD-82000-QD","AD-82000-QE","N/A","N/A","N/A","N/A","N/A"]
["SileStoneIndividual BasinAD3","SileStone","Individual Basin","AD",3,null,"AD-83000-QA","AD-83000-QB","AD-83000-QC","AD-83000-QD","AD-83000-QE","N/A","N/A","N/A","N/A","N/A"]
["SileStoneIndividual BasinAD4","SileStone","Individual Basin","AD",4,null,"AD-84000-QA","AD-84000-QB","AD-84000-QC","AD-84000-QD","AD-84000-QE","N/A","N/A","N/A","N/A","N/A"]
["SileStoneIndividual BasinAD5","SileStone","Individual Basin","AD",5,null,"AD-85000-QA","AD-85000-QB","AD-85000-QC","AD-85000-QD","AD-85000-QE","N/A","N/A","N/A","N/A","N/A"]
["SileStoneIndividual BasinAD6+","SileStone","Individual Basin","AD","6+",null,"AD-86+000-QA","AD-86+000-QB","AD-86+000-QC","AD-86+000-QD","AD-86+000-QE","N/A","N/A","N/A","N/A","N/A"]
["SileStoneIndividual BasinDSG1","SileStone","Individual Basin","DSG",1,null,"DSG-81000-QA","DSG-81000-QB","DSG-81000-QC","DSG-81000-QD","DSG-81000-QE","N/A","N/A","N/A","N/A","N/A"]
["SileStoneIndividual BasinDSG2","SileStone","Individual Basin","DSG",2,null,"DSG-82000-QA","DSG-82000-QB","DSG-82000-QC","DSG-82000-QD","DSG-82000-QE","N/A","N/A","N/A","N/A","N/A"]
["SileStoneIndividual BasinDSG3","SileStone","Individual Basin","DSG",3,null,"DSG-83000-QA","DSG-83000-QB","DSG-83000-QC","DSG-83000-QD","DSG-83000-QE","N/A","N/A","N/A","N/A","N/A"]
["SileStoneIndividual BasinDSG4","SileStone","Individual Basin","DSG",4,null,"DSG-84000-QA","DSG-84000-QB","DSG-84000-QC","DSG-84000-QD","DSG-84000-QE","N/A","N/A","N/A","N/A","N/A"]
["SileStoneIndividual BasinDSG5","SileStone","Individual Basin","DSG",5,null,"DSG-85000-QA","DSG-85000-QB","DSG-85000-QC","DSG-85000-QD","DSG-85000-QE","N/A","N/A","N/A","N/A","N/A"]
["SileStoneIndividual BasinDSG6+","SileStone","Individual Basin","DSG","6+",null,"DSG-86+000-QA","DSG-86+000-QB","DSG-86+000-QC","DSG-86+000-QD","DSG-86+000-QE","N/A","N/A","N/A","N/A","N/A"]
["SileStoneIndividual BasinDSWD1","SileStone","Individual Basin","DSWD",1,null,"DSWD-81000-QA","DSWD-81000-QB","DSWD-81000-QC","DSWD-81000-QD","DSWD-81000-QE","N/A","N/A","N/A","N/A","N/A"]
["SileStoneIndividual BasinDSWD2","SileStone","Individual Basin","DSWD",2,null,"DSWD-82000-QA","DSWD-82000-QB","DSWD-82000-QC","DSWD-82000-QD","DSWD-82000-QE","N/A","N/A","N/A","N/A","N/A"]
["SileStoneIndividual BasinDSWD3","SileStone","Individual Basin","DSWD",3,null,"DSWD-83000-QA","DSWD-83000-QB","DSWD-83000-QC","DSWD-83000-QD","DSWD-83000-QE","N/A","N/A","N/A","N/A","N/A"]
["SileStoneIndividual BasinDSWD4","SileStone","Individual Basin","DSWD",4,null,"DSWD-84000-QA","DSWD-84000-QB","DSWD-84000-QC","DSWD-84000-QD","DSWD-84000-QE","N/A","N/A","N/A","N/A","N/A"]
["SileStoneIndividual BasinDSWD5","SileStone","Individual Basin","DSWD",5,null,"DSWD-85000-QA","DSWD-85000-QB","DSWD-85000-QC","DSWD-85000-QD","DSWD-85000-QE","N/A","N/A","N/A","N/A","N/A"]
["SileStoneIndividual BasinDSWD6+","SileStone","Individual Basin","DSWD","6+",null,"DSWD-86+000-QA","DSWD-86+000-QB","DSWD-86+000-QC","DSWD-86+000-QD","DSWD-86+000-QE","N/A","N/A","N/A","N/A","N/A"]
["SileStoneIndividual BasinDSOF1","SileStone","Individual Basin","DSOF",1,null,"DSOF-81000-QA","DSOF-81000-QB","DSOF-81000-QC","DSOF-81000-QD","DSOF-81000-QE","N/A","N/A","N/A","N/A","N/A"]
["SileStoneIndividual BasinDSOF2","SileStone","Individual Basin","DSOF",2,null,"DSOF-82000-QA","DSOF-82000-QB","DSOF-82000-QC","DSOF-82000-QD","DSOF-82000-QE","N/A","N/A","N/A","N/A","N/A"]
["SileStoneIndividual BasinDSOF3","SileStone","Individual Basin","DSOF",3,null,"DSOF-83000-QA","DSOF-83000-QB","DSOF-83000-QC","DSOF-83000-QD","DSOF-83000-QE","N/A","N/A","N/A","N/A","N/A"]
["SileStoneIndividual BasinDSOF4","SileStone","Individual Basin","DSOF",4,null,"DSOF-84000-QA","DSOF-84000-QB","DSOF-84000-QC","DSOF-84000-QD","DSOF-84000-QE","N/A","N/A","N/A","N/A","N/A"]
["SileStoneIndividual BasinDSOF5","SileStone","Individual Basin","DSOF",5,null,"DSOF-85000-QA","DSOF-85000-QB","DSOF-85000-QC","DSOF-85000-QD","DSOF-85000-QE","N/A","N/A","N/A","N/A","N/A"]
["SileStoneIndividual BasinDSOF6+","SileStone","Individual Basin","DSOF","6+",null,"DSOF-86+000-QA","DSOF-86+000-QB","DSOF-86+000-QC","DSOF-86+000-QD","DSOF-86+000-QE","N/A","N/A","N/A","N/A","N/A"]
["SileStoneIndividual BasinDSUP1","SileStone","Individual Basin","DSUP",1,null,"DSUP-81000-QA","DSUP-81000-QB","DSUP-81000-QC","DSUP-81000-QD","DSUP-81000-QE","N/A","N/A","N/A","N/A","N/A"]
["SileStoneIndividual BasinDSVR1","SileStone","Individual Basin","DSVR",1,null,"DSVR-81000-QA","DSVR-81000-QB","DSVR-81000-QC","DSVR-81000-QD","DSVR-81000-QE","N/A","N/A","N/A","N/A","N/A"]
["SileStoneIndividual BasinDSVR2","SileStone","Individual Basin","DSVR",2,null,"DSVR-82000-QA","DSVR-82000-QB","DSVR-82000-QC","DSVR-82000-QD","DSVR-82000-QE","N/A","N/A","N/A","N/A","N/A"]
["SileStoneIndividual BasinDSVR3","SileStone","Individual Basin","DSVR",3,null,"DSVR-83000-QA","DSVR-83000-QB","DSVR-83000-QC","DSVR-83000-QD","DSVR-83000-QE","N/A","N/A","N/A","N/A","N/A"]
["SileStoneIndividual BasinDSVR4","SileStone","Individual Basin","DSVR",4,null,{"$f":"$D215&F215 & \"-8\" & $E215 & \"000-Q\" &G$1","v":"DSVR-84000-QA"},{"$f":"$D215&F215 & \"-8\" & $E215 & \"000-Q\" &H$1","v":"DSVR-84000-QB"},{"$f":"$D215&F215 & \"-8\" & $E215 & \"000-Q\" &I$1","v":"DSVR-84000-QC"},{"$f":"$D215&F215 & \"-8\" & $E215 & \"000-Q\" &J$1","v":"DSVR-84000-QD"},{"$f":"$D215&F215 & \"-8\" & $E215 & \"000-Q\" &K$1","v":"DSVR-84000-QE"},"N/A","N/A","N/A","N/A","N/A"]
["SileStoneIndividual BasinDSVR5","SileStone","Individual Basin","DSVR",5,null,"DSVR-85000-QA","DSVR-85000-QB","DSVR-85000-QC","DSVR-85000-QD","DSVR-85000-QE","N/A","N/A","N/A","N/A","N/A"]
["SileStoneIndividual BasinDSVR6+","SileStone","Individual Basin","DSVR","6+",null,"DSVR-86+000-QA","DSVR-86+000-QB","DSVR-86+000-QC","DSVR-86+000-QD","DSVR-86+000-QE","N/A","N/A","N/A","N/A","N/A"]
["SileStoneIndividual BasinDSCT1SS","SileStone","Individual Basin","DSCT",1,"SS","DSCTSS-81000-QA","DSCTSS-81000-QB","DSCTSS-81000-QC","DSCTSS-81000-QD","DSCTSS-81000-QE","N/A","N/A","N/A","N/A","N/A"]
["SileStoneIndividual BasinDSCT2SS","SileStone","Individual Basin","DSCT",2,"SS","DSCTSS-82000-QA","DSCTSS-82000-QB","DSCTSS-82000-QC","DSCTSS-82000-QD","DSCTSS-82000-QE","N/A","N/A","N/A","N/A","N/A"]
["SileStoneIndividual BasinDSCT3SS","SileStone","Individual Basin","DSCT",3,"SS","DSCTSS-83000-QA","DSCTSS-83000-QB","DSCTSS-83000-QC","DSCTSS-83000-QD","DSCTSS-83000-QE","N/A","N/A","N/A","N/A","N/A"]
["SileStoneIndividual BasinDSCT4SS","SileStone","Individual Basin","DSCT",4,"SS","DSCTSS-84000-QA","DSCTSS-84000-QB","DSCTSS-84000-QC","DSCTSS-84000-QD","DSCTSS-84000-QE","N/A","N/A","N/A","N/A","N/A"]
["SileStoneIndividual BasinDSCT5SS","SileStone","Individual Basin","DSCT",5,"SS","DSCTSS-85000-QA","DSCTSS-85000-QB","DSCTSS-85000-QC","DSCTSS-85000-QD","DSCTSS-85000-QE","N/A","N/A","N/A","N/A","N/A"]
["SileStoneIndividual BasinDSCT6+SS","SileStone","Individual Basin","DSCT","6+","SS","DSCTSS-86+000-QA","DSCTSS-86+000-QB","DSCTSS-86+000-QC","DSCTSS-86+000-QD","DSCTSS-86+000-QE","N/A","N/A","N/A","N/A","N/A"]
["CorianContinuous TroughDSCT1VC","Corian","Continuous Trough","DSCT",1,"VC",{"$f":"$D224&F224 & \"-8\" & $E224 & \"000-C\" &G$1","v":"DSCTVC-81000-CA"},{"$f":"$D224&F224 & \"-8\" & $E224 & \"000-C\" &H$1","v":"DSCTVC-81000-CB"},{"$f":"$D224&F224 & \"-8\" & $E224 & \"000-C\" &I$1","v":"DSCTVC-81000-CC"},{"$f":"$D224&F224 & \"-8\" & $E224 & \"000-C\" &J$1","v":"DSCTVC-81000-CD"},"N/A","N/A","N/A","N/A","N/A","N/A"]
["CorianContinuous TroughDSCT2VC","Corian","Continuous Trough","DSCT",2,"VC","DSCTVC-82000-CA","DSCTVC-82000-CB","DSCTVC-82000-CC","DSCTVC-82000-CD","N/A","N/A","N/A","N/A","N/A","N/A"]
["CorianContinuous TroughDSCT3VC","Corian","Continuous Trough","DSCT",3,"VC","DSCTVC-83000-CA","DSCTVC-83000-CB","DSCTVC-83000-CC","DSCTVC-83000-CD","N/A","N/A","N/A","N/A","N/A","N/A"]
["CorianContinuous TroughDSCT4VC","Corian","Continuous Trough","DSCT",4,"VC","DSCTVC-84000-CA","DSCTVC-84000-CB","DSCTVC-84000-CC","DSCTVC-84000-CD","N/A","N/A","N/A","N/A","N/A","N/A"]
["CorianContinuous TroughDSCT5VC","Corian","Continuous Trough","DSCT",5,"VC","DSCTVC-85000-CA","DSCTVC-85000-CB","DSCTVC-85000-CC","DSCTVC-85000-CD","N/A","N/A","N/A","N/A","N/A","N/A"]
["CorianContinuous TroughDSCT6+VC","Corian","Continuous Trough","DSCT","6+","VC","DSCTVC-86+000-CA","DSCTVC-86+000-CB","DSCTVC-86+000-CC","DSCTVC-86+000-CD","N/A","N/A","N/A","N/A","N/A","N/A"]
["Corian_QuartzContinuous TroughDSCT1VC","Corian_Quartz","Continuous Trough","DSCT",1,"VC",{"$f":"$D230&F230 & \"-8\" & $E230 & \"000-Q\" &G$1","v":"DSCTVC-81000-QA"},{"$f":"$D230&F230 & \"-8\" & $E230 & \"000-Q\" &H$1","v":"DSCTVC-81000-QB"},{"$f":"$D230&F230 & \"-8\" & $E230 & \"000-Q\" &I$1","v":"DSCTVC-81000-QC"},{"$f":"$D230&F230 & \"-8\" & $E230 & \"000-Q\" &J$1","v":"DSCTVC-81000-QD"},{"$f":"$D230&F230 & \"-8\" & $E230 & \"000-Q\" &K$1","v":"DSCTVC-81000-QE"},"N/A","N/A","N/A","N/A","N/A"]
["Corian_QuartzContinuous TroughDSCT2VC","Corian_Quartz","Continuous Trough","DSCT",2,"VC","DSCTVC-82000-QA","DSCTVC-82000-QB","DSCTVC-82000-QC","DSCTVC-82000-QD","DSCTVC-82000-QE","N/A","N/A","N/A","N/A","N/A"]
["Corian_QuartzContinuous TroughDSCT3VC","Corian_Quartz","Continuous Trough","DSCT",3,"VC","DSCTVC-83000-QA","DSCTVC-83000-QB","DSCTVC-83000-QC","DSCTVC-83000-QD","DSCTVC-83000-QE","N/A","N/A","N/A","N/A","N/A"]
["Corian_QuartzContinuous TroughDSCT4VC","Corian_Quartz","Continuous Trough","DSCT",4,"VC","DSCTVC-84000-QA","DSCTVC-84000-QB","DSCTVC-84000-QC","DSCTVC-84000-QD","DSCTVC-84000-QE","N/A","N/A","N/A","N/A","N/A"]
["Corian_QuartzContinuous TroughDSCT5VC","Corian_Quartz","Continuous Trough","DSCT",5,"VC","DSCTVC-85000-QA","DSCTVC-85000-QB","DSCTVC-85000-QC","DSCTVC-85000-QD","DSCTVC-85000-QE","N/A","N/A","N/A","N/A","N/A"]
["Corian_QuartzContinuous TroughDSCT6+VC","Corian_Quartz","Continuous Trough","DSCT","6+","VC","DSCTVC-86+000-QA","DSCTVC-86+000-QB","DSCTVC-86+000-QC","DSCTVC-86+000-QD","DSCTVC-86+000-QE","N/A","N/A","N/A","N/A","N/A"]
["SileStoneContinuous TroughDSCT1VC","SileStone","Continuous Trough","DSCT",1,"VC","DSCTVC-81000-QA",{"$f":"$D236&F236 & \"-8\" & $E236 & \"000-Q\" &H$1","v":"DSCTVC-81000-QB"},{"$f":"$D236&F236 & \"-8\" & $E236 & \"000-Q\" &I$1","v":"DSCTVC-81000-QC"},{"$f":"$D236&F236 & \"-8\" & $E236 & \"000-Q\" &J$1","v":"DSCTVC-81000-QD"},{"$f":"$D236&F236 & \"-8\" & $E236 & \"000-Q\" &K$1","v":"DSCTVC-81000-QE"},"N/A","N/A","N/A","N/A","N/A"]
["SileStoneContinuous TroughDSCT2VC","SileStone","Continuous Trough","DSCT",2,"VC","DSCTVC-82000-QA","DSCTVC-82000-QB","DSCTVC-82000-QC","DSCTVC-82000-QD","DSCTVC-82000-QE","N/A","N/A","N/A","N/A","N/A"]
["SileStoneContinuous TroughDSCT3VC","SileStone","Continuous Trough","DSCT",3,"VC","DSCTVC-83000-QA","DSCTVC-83000-QB","DSCTVC-83000-QC","DSCTVC-83000-QD","DSCTVC-83000-QE","N/A","N/A","N/A","N/A","N/A"]
["SileStoneContinuous TroughDSCT4VC","SileStone","Continuous Trough","DSCT",4,"VC","DSCTVC-84000-QA","DSCTVC-84000-QB","DSCTVC-84000-QC","DSCTVC-84000-QD","DSCTVC-84000-QE","N/A","N/A","N/A","N/A","N/A"]
["SileStoneContinuous TroughDSCT5VC","SileStone","Continuous Trough","DSCT",5,"VC","DSCTVC-85000-QA","DSCTVC-85000-QB","DSCTVC-85000-QC","DSCTVC-85000-QD","DSCTVC-85000-QE","N/A","N/A","N/A","N/A","N/A"]
["SileStoneContinuous TroughDSCT6+VC","SileStone","Continuous Trough","DSCT","6+","VC","DSCTVC-86+000-QA","DSCTVC-86+000-QB","DSCTVC-86+000-QC","DSCTVC-86+000-QD","DSCTVC-86+000-QE","N/A","N/A","N/A","N/A","N/A"]
["CorianIndividual BasinDSCT1VC","Corian","Individual Basin","DSCT",1,"VC","DSCTVC-81000-CA","DSCTVC-81000-CB","DSCTVC-81000-CC","DSCTVC-81000-CD","N/A","N/A","N/A","N/A","N/A","N/A"]
["CorianIndividual BasinDSCT2VC","Corian","Individual Basin","DSCT",2,"VC","DSCTVC-82000-CA","DSCTVC-82000-CB","DSCTVC-82000-CC","DSCTVC-82000-CD","N/A","N/A","N/A","N/A","N/A","N/A"]
["CorianIndividual BasinDSCT3VC","Corian","Individual Basin","DSCT",3,"VC","DSCTVC-83000-CA","DSCTVC-83000-CB","DSCTVC-83000-CC","DSCTVC-83000-CD","N/A","N/A","N/A","N/A","N/A","N/A"]
["CorianIndividual BasinDSCT4VC","Corian","Individual Basin","DSCT",4,"VC","DSCTVC-84000-CA","DSCTVC-84000-CB","DSCTVC-84000-CC","DSCTVC-84000-CD","N/A","N/A","N/A","N/A","N/A","N/A"]
["CorianIndividual BasinDSCT5VC","Corian","Individual Basin","DSCT",5,"VC","DSCTVC-85000-CA","DSCTVC-85000-CB","DSCTVC-85000-CC","DSCTVC-85000-CD","N/A","N/A","N/A","N/A","N/A","N/A"]
["CorianIndividual BasinDSCT6+VC","Corian","Individual Basin","DSCT","6+","VC","DSCTVC-86+000-CA","DSCTVC-86+000-CB","DSCTVC-86+000-CC","DSCTVC-86+000-CD","N/A","N/A","N/A","N/A","N/A","N/A"]
["Corian_QuartzIndividual BasinDSCT1VC","Corian_Quartz","Individual Basin","DSCT",1,"VC",{"$f":"$D248&F248 & \"-8\" & $E248 & \"000-Q\" &G$1","v":"DSCTVC-81000-QA"},{"$f":"$D248&F248 & \"-8\" & $E248 & \"000-Q\" &H$1","v":"DSCTVC-81000-QB"},{"$f":"$D248&F248 & \"-8\" & $E248 & \"000-Q\" &I$1","v":"DSCTVC-81000-QC"},{"$f":"$D248&F248 & \"-8\" & $E248 & \"000-Q\" &J$1","v":"DSCTVC-81000-QD"},{"$f":"$D248&F248 & \"-8\" & $E248 & \"000-Q\" &K$1","v":"DSCTVC-81000-QE"},"N/A","N/A","N/A","N/A","N/A"]
["Corian_QuartzIndividual BasinDSCT2VC","Corian_Quartz","Individual Basin","DSCT",2,"VC","DSCTVC-82000-QA","DSCTVC-82000-QB","DSCTVC-82000-QC","DSCTVC-82000-QD","DSCTVC-82000-QE","N/A","N/A","N/A","N/A","N/A"]
["Corian_QuartzIndividual BasinDSCT3VC","Corian_Quartz","Individual Basin","DSCT",3,"VC","DSCTVC-83000-QA","DSCTVC-83000-QB","DSCTVC-83000-QC","DSCTVC-83000-QD","DSCTVC-83000-QE","N/A","N/A","N/A","N/A","N/A"]
["Corian_QuartzIndividual BasinDSCT4VC","Corian_Quartz","Individual Basin","DSCT",4,"VC","DSCTVC-84000-QA","DSCTVC-84000-QB","DSCTVC-84000-QC","DSCTVC-84000-QD","DSCTVC-84000-QE","N/A","N/A","N/A","N/A","N/A"]
["Corian_QuartzIndividual BasinDSCT5VC","Corian_Quartz","Individual Basin","DSCT",5,"VC","DSCTVC-85000-QA","DSCTVC-85000-QB","DSCTVC-85000-QC","DSCTVC-85000-QD","DSCTVC-85000-QE","N/A","N/A","N/A","N/A","N/A"]
["Corian_QuartzIndividual BasinDSCT6+VC","Corian_Quartz","Individual Basin","DSCT","6+","VC","DSCTVC-86+000-QA","DSCTVC-86+000-QB","DSCTVC-86+000-QC","DSCTVC-86+000-QD","DSCTVC-86+000-QE","N/A","N/A","N/A","N/A","N/A"]
["SileStoneIndividual BasinDSCT1VC","SileStone","Individual Basin","DSCT",1,"VC","DSCTVC-81000-QA","DSCTVC-81000-QB","DSCTVC-81000-QC","DSCTVC-81000-QD","DSCTVC-81000-QE","N/A","N/A","N/A","N/A","N/A"]
["SileStoneIndividual BasinDSCT2VC","SileStone","Individual Basin","DSCT",2,"VC","DSCTVC-82000-QA","DSCTVC-82000-QB","DSCTVC-82000-QC","DSCTVC-82000-QD","DSCTVC-82000-QE","N/A","N/A","N/A","N/A","N/A"]
["SileStoneIndividual BasinDSCT3VC","SileStone","Individual Basin","DSCT",3,"VC","DSCTVC-83000-QA","DSCTVC-83000-QB","DSCTVC-83000-QC","DSCTVC-83000-QD","DSCTVC-83000-QE","N/A","N/A","N/A","N/A","N/A"]
["SileStoneIndividual BasinDSCT4VC","SileStone","Individual Basin","DSCT",4,"VC","DSCTVC-84000-QA","DSCTVC-84000-QB","DSCTVC-84000-QC","DSCTVC-84000-QD","DSCTVC-84000-QE","N/A","N/A","N/A","N/A","N/A"]
["SileStoneIndividual BasinDSCT5VC","SileStone","Individual Basin","DSCT",5,"VC","DSCTVC-85000-QA","DSCTVC-85000-QB","DSCTVC-85000-QC","DSCTVC-85000-QD","DSCTVC-85000-QE","N/A","N/A","N/A","N/A","N/A"]
["SileStoneIndividual BasinDSCT6+VC","SileStone","Individual Basin","DSCT","6+","VC","DSCTVC-86+000-QA","DSCTVC-86+000-QB","DSCTVC-86+000-QC","DSCTVC-86+000-QD","DSCTVC-86+000-QE","N/A","N/A","N/A","N/A","N/A"]
["CaeserstoneContinuous TroughAD1","Caeserstone","Continuous Trough","AD",1,null,"AD-81000-QA","AD-81000-QB","AD-81000-QC","AD-81000-QD","AD-81000-QE","N/A","N/A","N/A","N/A","N/A"]
["CaeserstoneContinuous TroughAD2","Caeserstone","Continuous Trough","AD",2,null,"AD-82000-QA","AD-82000-QB","AD-82000-QC","AD-82000-QD","AD-82000-QE","N/A","N/A","N/A","N/A","N/A"]
["CaeserstoneContinuous TroughAD3","Caeserstone","Continuous Trough","AD",3,null,"AD-83000-QA","AD-83000-QB","AD-83000-QC","AD-83000-QD","AD-83000-QE","N/A","N/A","N/A","N/A","N/A"]
["CaeserstoneContinuous TroughAD4","Caeserstone","Continuous Trough","AD",4,null,"AD-84000-QA","AD-84000-QB","AD-84000-QC","AD-84000-QD","AD-84000-QE","N/A","N/A","N/A","N/A","N/A"]
["CaeserstoneContinuous TroughAD5","Caeserstone","Continuous Trough","AD",5,null,"AD-85000-QA","AD-85000-QB","AD-85000-QC","AD-85000-QD","AD-85000-QE","N/A","N/A","N/A","N/A","N/A"]
["CaeserstoneContinuous TroughAD6+","Caeserstone","Continuous Trough","AD","6+",null,"AD-86+000-QA","AD-86+000-QB","AD-86+000-QC","AD-86+000-QD","AD-86+000-QE","N/A","N/A","N/A","N/A","N/A"]
["CaeserstoneContinuous TroughDSG1","Caeserstone","Continuous Trough","DSG",1,null,"DSG-81000-QA","DSG-81000-QB","DSG-81000-QC","DSG-81000-QD","DSG-81000-QE","N/A","N/A","N/A","N/A","N/A"]
["CaeserstoneContinuous TroughDSG2","Caeserstone","Continuous Trough","DSG",2,null,"DSG-82000-QA","DSG-82000-QB","DSG-82000-QC","DSG-82000-QD","DSG-82000-QE","N/A","N/A","N/A","N/A","N/A"]
["CaeserstoneContinuous TroughDSG3","Caeserstone","Continuous Trough","DSG",3,null,"DSG-83000-QA","DSG-83000-QB","DSG-83000-QC","DSG-83000-QD","DSG-83000-QE","N/A","N/A","N/A","N/A","N/A"]
["CaeserstoneContinuous TroughDSG4","Caeserstone","Continuous Trough","DSG",4,null,"DSG-84000-QA","DSG-84000-QB","DSG-84000-QC","DSG-84000-QD","DSG-84000-QE","N/A","N/A","N/A","N/A","N/A"]
["CaeserstoneContinuous TroughDSG5","Caeserstone","Continuous Trough","DSG",5,null,"DSG-85000-QA","DSG-85000-QB","DSG-85000-QC","DSG-85000-QD","DSG-85000-QE","N/A","N/A","N/A","N/A","N/A"]
["CaeserstoneContinuous TroughDSG6+","Caeserstone","Continuous Trough","DSG","6+",null,"DSG-86+000-QA","DSG-86+000-QB","DSG-86+000-QC","DSG-86+000-QD","DSG-86+000-QE","N/A","N/A","N/A","N/A","N/A"]
["CaeserstoneContinuous TroughDSWD1","Caeserstone","Continuous Trough","DSWD",1,null,"DSWD-81000-QA","DSWD-81000-QB","DSWD-81000-QC","DSWD-81000-QD","DSWD-81000-QE","N/A","N/A","N/A","N/A","N/A"]
["CaeserstoneContinuous TroughDSWD2","Caeserstone","Continuous Trough","DSWD",2,null,"DSWD-82000-QA","DSWD-82000-QB","DSWD-82000-QC","DSWD-82000-QD","DSWD-82000-QE","N/A","N/A","N/A","N/A","N/A"]
["CaeserstoneContinuous TroughDSWD3","Caeserstone","Continuous Trough","DSWD",3,null,"DSWD-83000-QA","DSWD-83000-QB","DSWD-83000-QC","DSWD-83000-QD","DSWD-83000-QE","N/A","N/A","N/A","N/A","N/A"]
["CaeserstoneContinuous TroughDSWD4","Caeserstone","Continuous Trough","DSWD",4,null,"DSWD-84000-QA","DSWD-84000-QB","DSWD-84000-QC","DSWD-84000-QD","DSWD-84000-QE","N/A","N/A","N/A","N/A","N/A"]
["CaeserstoneContinuous TroughDSWD5","Caeserstone","Continuous Trough","DSWD",5,null,"DSWD-85000-QA","DSWD-85000-QB","DSWD-85000-QC","DSWD-85000-QD","DSWD-85000-QE","N/A","N/A","N/A","N/A","N/A"]
["CaeserstoneContinuous TroughDSWD6+","Caeserstone","Continuous Trough","DSWD","6+",null,"DSWD-86+000-QA","DSWD-86+000-QB","DSWD-86+000-QC","DSWD-86+000-QD","DSWD-86+000-QE","N/A","N/A","N/A","N/A","N/A"]
["CaeserstoneContinuous TroughDSOF1","Caeserstone","Continuous Trough","DSOF",1,null,"DSOF-81000-QA","DSOF-81000-QB","DSOF-81000-QC","DSOF-81000-QD","DSOF-81000-QE","N/A","N/A","N/A","N/A","N/A"]
["CaeserstoneContinuous TroughDSOF2","Caeserstone","Continuous Trough","DSOF",2,null,"DSOF-82000-QA","DSOF-82000-QB","DSOF-82000-QC","DSOF-82000-QD","DSOF-82000-QE","N/A","N/A","N/A","N/A","N/A"]
["CaeserstoneContinuous TroughDSOF3","Caeserstone","Continuous Trough","DSOF",3,null,"DSOF-83000-QA","DSOF-83000-QB","DSOF-83000-QC","DSOF-83000-QD","DSOF-83000-QE","N/A","N/A","N/A","N/A","N/A"]
["CaeserstoneContinuous TroughDSOF4","Caeserstone","Continuous Trough","DSOF",4,null,"DSOF-84000-QA","DSOF-84000-QB","DSOF-84000-QC","DSOF-84000-QD","DSOF-84000-QE","N/A","N/A","N/A","N/A","N/A"]
["CaeserstoneContinuous TroughDSOF5","Caeserstone","Continuous Trough","DSOF",5,null,"DSOF-85000-QA","DSOF-85000-QB","DSOF-85000-QC","DSOF-85000-QD","DSOF-85000-QE","N/A","N/A","N/A","N/A","N/A"]
["CaeserstoneContinuous TroughDSOF6+","Caeserstone","Continuous Trough","DSOF","6+",null,"DSOF-86+000-QA","DSOF-86+000-QB","DSOF-86+000-QC","DSOF-86+000-QD","DSOF-86+000-QE","N/A","N/A","N/A","N/A","N/A"]
["CaeserstoneContinuous TroughDSUP1","Caeserstone","Continuous Trough","DSUP",1,null,"DSUP-81000-QA","DSUP-81000-QB","DSUP-81000-QC","DSUP-81000-QD","DSUP-81000-QE","N/A","N/A","N/A","N/A","N/A"]
["CaeserstoneContinuous TroughDSVR1","Caeserstone","Continuous Trough","DSVR",1,null,"DSVR-81000-QA","DSVR-81000-QB","DSVR-81000-QC","DSVR-81000-QD","DSVR-81000-QE","N/A","N/A","N/A","N/A","N/A"]
["CaeserstoneContinuous TroughDSVR2","Caeserstone","Continuous Trough","DSVR",2,null,"DSVR-82000-QA","DSVR-82000-QB","DSVR-82000-QC","DSVR-82000-QD","DSVR-82000-QE","N/A","N/A","N/A","N/A","N/A"]
["CaeserstoneContinuous TroughDSVR3","Caeserstone","Continuous Trough","DSVR",3,null,"DSVR-83000-QA","DSVR-83000-QB","DSVR-83000-QC","DSVR-83000-QD","DSVR-83000-QE","N/A","N/A","N/A","N/A","N/A"]
["CaeserstoneContinuous TroughDSVR4","Caeserstone","Continuous Trough","DSVR",4,null,"DSVR-84000-QA","DSVR-84000-QB","DSVR-84000-QC","DSVR-84000-QD","DSVR-84000-QE","N/A","N/A","N/A","N/A","N/A"]
["CaeserstoneContinuous TroughDSVR5","Caeserstone","Continuous Trough","DSVR",5,null,"DSVR-85000-QA","DSVR-85000-QB","DSVR-85000-QC","DSVR-85000-QD","DSVR-85000-QE","N/A","N/A","N/A","N/A","N/A"]
["CaeserstoneContinuous TroughDSVR6+","Caeserstone","Continuous Trough","DSVR","6+",null,"DSVR-86+000-QA","DSVR-86+000-QB","DSVR-86+000-QC","DSVR-86+000-QD","DSVR-86+000-QE","N/A","N/A","N/A","N/A","N/A"]
["CaeserstoneContinuous TroughDSCT1SS","Caeserstone","Continuous Trough","DSCT",1,"SS","DSCTSS-81000-QA","DSCTSS-81000-QB","DSCTSS-81000-QC","DSCTSS-81000-QD","DSCTSS-81000-QE","N/A","N/A","N/A","N/A","N/A"]
["CaeserstoneContinuous TroughDSCT2SS","Caeserstone","Continuous Trough","DSCT",2,"SS","DSCTSS-82000-QA","DSCTSS-82000-QB","DSCTSS-82000-QC","DSCTSS-82000-QD","DSCTSS-82000-QE","N/A","N/A","N/A","N/A","N/A"]
["CaeserstoneContinuous TroughDSCT3SS","Caeserstone","Continuous Trough","DSCT",3,"SS","DSCTSS-83000-QA","DSCTSS-83000-QB","DSCTSS-83000-QC","DSCTSS-83000-QD","DSCTSS-83000-QE","N/A","N/A","N/A","N/A","N/A"]
["CaeserstoneContinuous TroughDSCT4SS","Caeserstone","Continuous Trough","DSCT",4,"SS","DSCTSS-84000-QA","DSCTSS-84000-QB","DSCTSS-84000-QC","DSCTSS-84000-QD","DSCTSS-84000-QE","N/A","N/A","N/A","N/A","N/A"]
["CaeserstoneContinuous TroughDSCT5SS","Caeserstone","Continuous Trough","DSCT",5,"SS","DSCTSS-85000-QA","DSCTSS-85000-QB","DSCTSS-85000-QC","DSCTSS-85000-QD","DSCTSS-85000-QE","N/A","N/A","N/A","N/A","N/A"]
["CaeserstoneContinuous TroughDSCT6+SS","Caeserstone","Continuous Trough","DSCT","6+","SS","DSCTSS-86+000-QA","DSCTSS-86+000-QB","DSCTSS-86+000-QC","DSCTSS-86+000-QD","DSCTSS-86+000-QE","N/A","N/A","N/A","N/A","N/A"]
["CaeserstoneIndividual BasinAD1","Caeserstone","Individual Basin","AD",1,null,"AD-81000-QA","AD-81000-QB","AD-81000-QC","AD-81000-QD","AD-81000-QE","N/A","N/A","N/A","N/A","N/A"]
["CaeserstoneIndividual BasinAD2","Caeserstone","Individual Basin","AD",2,null,"AD-82000-QA","AD-82000-QB","AD-82000-QC","AD-82000-QD","AD-82000-QE","N/A","N/A","N/A","N/A","N/A"]
["CaeserstoneIndividual BasinAD3","Caeserstone","Individual Basin","AD",3,null,"AD-83000-QA","AD-83000-QB","AD-83000-QC","AD-83000-QD","AD-83000-QE","N/A","N/A","N/A","N/A","N/A"]
["CaeserstoneIndividual BasinAD4","Caeserstone","Individual Basin","AD",4,null,"AD-84000-QA","AD-84000-QB","AD-84000-QC","AD-84000-QD","AD-84000-QE","N/A","N/A","N/A","N/A","N/A"]
["CaeserstoneIndividual BasinAD5","Caeserstone","Individual Basin","AD",5,null,"AD-85000-QA","AD-85000-QB","AD-85000-QC","AD-85000-QD","AD-85000-QE","N/A","N/A","N/A","N/A","N/A"]
["CaeserstoneIndividual BasinAD6+","Caeserstone","Individual Basin","AD","6+",null,"AD-86+000-QA","AD-86+000-QB","AD-86+000-QC","AD-86+000-QD","AD-86+000-QE","N/A","N/A","N/A","N/A","N/A"]
["CaeserstoneIndividual BasinDSG1","Caeserstone","Individual Basin","DSG",1,null,"DSG-81000-QA","DSG-81000-QB","DSG-81000-QC","DSG-81000-QD","DSG-81000-QE","N/A","N/A","N/A","N/A","N/A"]
["CaeserstoneIndividual BasinDSG2","Caeserstone","Individual Basin","DSG",2,null,"DSG-82000-QA","DSG-82000-QB","DSG-82000-QC","DSG-82000-QD","DSG-82000-QE","N/A","N/A","N/A","N/A","N/A"]
["CaeserstoneIndividual BasinDSG3","Caeserstone","Individual Basin","DSG",3,null,"DSG-83000-QA","DSG-83000-QB","DSG-83000-QC","DSG-83000-QD","DSG-83000-QE","N/A","N/A","N/A","N/A","N/A"]
["CaeserstoneIndividual BasinDSG4","Caeserstone","Individual Basin","DSG",4,null,"DSG-84000-QA","DSG-84000-QB","DSG-84000-QC","DSG-84000-QD","DSG-84000-QE","N/A","N/A","N/A","N/A","N/A"]
["CaeserstoneIndividual BasinDSG5","Caeserstone","Individual Basin","DSG",5,null,"DSG-85000-QA","DSG-85000-QB","DSG-85000-QC","DSG-85000-QD","DSG-85000-QE","N/A","N/A","N/A","N/A","N/A"]
["CaeserstoneIndividual BasinDSG6+","Caeserstone","Individual Basin","DSG","6+",null,"DSG-86+000-QA","DSG-86+000-QB","DSG-86+000-QC","DSG-86+000-QD","DSG-86+000-QE","N/A","N/A","N/A","N/A","N/A"]
["CaeserstoneIndividual BasinDSWD1","Caeserstone","Individual Basin","DSWD",1,null,"DSWD-81000-QA","DSWD-81000-QB","DSWD-81000-QC","DSWD-81000-QD","DSWD-81000-QE","N/A","N/A","N/A","N/A","N/A"]
["CaeserstoneIndividual BasinDSWD2","Caeserstone","Individual Basin","DSWD",2,null,"DSWD-82000-QA","DSWD-82000-QB","DSWD-82000-QC","DSWD-82000-QD","DSWD-82000-QE","N/A","N/A","N/A","N/A","N/A"]
["CaeserstoneIndividual BasinDSWD3","Caeserstone","Individual Basin","DSWD",3,null,"DSWD-83000-QA","DSWD-83000-QB","DSWD-83000-QC","DSWD-83000-QD","DSWD-83000-QE","N/A","N/A","N/A","N/A","N/A"]
["CaeserstoneIndividual BasinDSWD4","Caeserstone","Individual Basin","DSWD",4,null,"DSWD-84000-QA","DSWD-84000-QB","DSWD-84000-QC","DSWD-84000-QD","DSWD-84000-QE","N/A","N/A","N/A","N/A","N/A"]
["CaeserstoneIndividual BasinDSWD5","Caeserstone","Individual Basin","DSWD",5,null,"DSWD-85000-QA","DSWD-85000-QB","DSWD-85000-QC","DSWD-85000-QD","DSWD-85000-QE","N/A","N/A","N/A","N/A","N/A"]
["CaeserstoneIndividual BasinDSWD6+","Caeserstone","Individual Basin","DSWD","6+",null,"DSWD-86+000-QA","DSWD-86+000-QB","DSWD-86+000-QC","DSWD-86+000-QD","DSWD-86+000-QE","N/A","N/A","N/A","N/A","N/A"]
["CaeserstoneIndividual BasinDSOF1","Caeserstone","Individual Basin","DSOF",1,null,"DSOF-81000-QA","DSOF-81000-QB","DSOF-81000-QC","DSOF-81000-QD","DSOF-81000-QE","N/A","N/A","N/A","N/A","N/A"]
["CaeserstoneIndividual BasinDSOF2","Caeserstone","Individual Basin","DSOF",2,null,"DSOF-82000-QA","DSOF-82000-QB","DSOF-82000-QC","DSOF-82000-QD","DSOF-82000-QE","N/A","N/A","N/A","N/A","N/A"]
["CaeserstoneIndividual BasinDSOF3","Caeserstone","Individual Basin","DSOF",3,null,"DSOF-83000-QA","DSOF-83000-QB","DSOF-83000-QC","DSOF-83000-QD","DSOF-83000-QE","N/A","N/A","N/A","N/A","N/A"]
["CaeserstoneIndividual BasinDSOF4","Caeserstone","Individual Basin","DSOF",4,null,"DSOF-84000-QA","DSOF-84000-QB","DSOF-84000-QC","DSOF-84000-QD","DSOF-84000-QE","N/A","N/A","N/A","N/A","N/A"]
["CaeserstoneIndividual BasinDSOF5","Caeserstone","Individual Basin","DSOF",5,null,"DSOF-85000-QA","DSOF-85000-QB","DSOF-85000-QC","DSOF-85000-QD","DSOF-85000-QE","N/A","N/A","N/A","N/A","N/A"]
["CaeserstoneIndividual BasinDSOF6+","Caeserstone","Individual Basin","DSOF","6+",null,"DSOF-86+000-QA","DSOF-86+000-QB","DSOF-86+000-QC","DSOF-86+000-QD","DSOF-86+000-QE","N/A","N/A","N/A","N/A","N/A"]
["CaeserstoneIndividual BasinDSUP1","Caeserstone","Individual Basin","DSUP",1,null,"DSUP-81000-QA","DSUP-81000-QB","DSUP-81000-QC","DSUP-81000-QD","DSUP-81000-QE","N/A","N/A","N/A","N/A","N/A"]
["CaeserstoneIndividual BasinDSVR1","Caeserstone","Individual Basin","DSVR",1,null,"DSVR-81000-QA","DSVR-81000-QB","DSVR-81000-QC","DSVR-81000-QD","DSVR-81000-QE","N/A","N/A","N/A","N/A","N/A"]
["CaeserstoneIndividual BasinDSVR2","Caeserstone","Individual Basin","DSVR",2,null,"DSVR-82000-QA","DSVR-82000-QB","DSVR-82000-QC","DSVR-82000-QD","DSVR-82000-QE","N/A","N/A","N/A","N/A","N/A"]
["CaeserstoneIndividual BasinDSVR3","Caeserstone","Individual Basin","DSVR",3,null,"DSVR-83000-QA","DSVR-83000-QB","DSVR-83000-QC","DSVR-83000-QD","DSVR-83000-QE","N/A","N/A","N/A","N/A","N/A"]
["CaeserstoneIndividual BasinDSVR4","Caeserstone","Individual Basin","DSVR",4,null,"DSVR-84000-QA","DSVR-84000-QB","DSVR-84000-QC","DSVR-84000-QD","DSVR-84000-QE","N/A","N/A","N/A","N/A","N/A"]
["CaeserstoneIndividual BasinDSVR5","Caeserstone","Individual Basin","DSVR",5,null,"DSVR-85000-QA","DSVR-85000-QB","DSVR-85000-QC","DSVR-85000-QD","DSVR-85000-QE","N/A","N/A","N/A","N/A","N/A"]
["CaeserstoneIndividual BasinDSVR6+","Caeserstone","Individual Basin","DSVR","6+",null,"DSVR-86+000-QA","DSVR-86+000-QB","DSVR-86+000-QC","DSVR-86+000-QD","DSVR-86+000-QE","N/A","N/A","N/A","N/A","N/A"]
["CaeserstoneIndividual BasinDSCT1SS","Caeserstone","Individual Basin","DSCT",1,"SS","DSCTSS-81000-QA","DSCTSS-81000-QB","DSCTSS-81000-QC","DSCTSS-81000-QD","DSCTSS-81000-QE","N/A","N/A","N/A","N/A","N/A"]
["CaeserstoneIndividual BasinDSCT2SS","Caeserstone","Individual Basin","DSCT",2,"SS","DSCTSS-82000-QA","DSCTSS-82000-QB","DSCTSS-82000-QC","DSCTSS-82000-QD","DSCTSS-82000-QE","N/A","N/A","N/A","N/A","N/A"]
["CaeserstoneIndividual BasinDSCT3SS","Caeserstone","Individual Basin","DSCT",3,"SS","DSCTSS-83000-QA","DSCTSS-83000-QB","DSCTSS-83000-QC","DSCTSS-83000-QD","DSCTSS-83000-QE","N/A","N/A","N/A","N/A","N/A"]
["CaeserstoneIndividual BasinDSCT4SS","Caeserstone","Individual Basin","DSCT",4,"SS","DSCTSS-84000-QA","DSCTSS-84000-QB","DSCTSS-84000-QC","DSCTSS-84000-QD","DSCTSS-84000-QE","N/A","N/A","N/A","N/A","N/A"]
["CaeserstoneIndividual BasinDSCT5SS","Caeserstone","Individual Basin","DSCT",5,"SS","DSCTSS-85000-QA","DSCTSS-85000-QB","DSCTSS-85000-QC","DSCTSS-85000-QD","DSCTSS-85000-QE","N/A","N/A","N/A","N/A","N/A"]
["CaeserstoneIndividual BasinDSCT6+SS","Caeserstone","Individual Basin","DSCT","6+","SS","DSCTSS-86+000-QA","DSCTSS-86+000-QB","DSCTSS-86+000-QC","DSCTSS-86+000-QD","DSCTSS-86+000-QE","N/A","N/A","N/A","N/A","N/A"]
["CaeserstoneContinuous TroughDSCT1VC","Caeserstone","Continuous Trough","DSCT",1,"VC","DSCTVC-81000-QA","DSCTVC-81000-QB","DSCTVC-81000-QC","DSCTVC-81000-QD","DSCTVC-81000-QE","N/A","N/A","N/A","N/A","N/A"]
["CaeserstoneContinuous TroughDSCT2VC","Caeserstone","Continuous Trough","DSCT",2,"VC","DSCTVC-82000-QA","DSCTVC-82000-QB","DSCTVC-82000-QC","DSCTVC-82000-QD","DSCTVC-82000-QE","N/A","N/A","N/A","N/A","N/A"]
["CaeserstoneContinuous TroughDSCT3VC","Caeserstone","Continuous Trough","DSCT",3,"VC","DSCTVC-83000-QA","DSCTVC-83000-QB","DSCTVC-83000-QC","DSCTVC-83000-QD","DSCTVC-83000-QE","N/A","N/A","N/A","N/A","N/A"]
["CaeserstoneContinuous TroughDSCT4VC","Caeserstone","Continuous Trough","DSCT",4,"VC","DSCTVC-84000-QA","DSCTVC-84000-QB","DSCTVC-84000-QC","DSCTVC-84000-QD","DSCTVC-84000-QE","N/A","N/A","N/A","N/A","N/A"]
["CaeserstoneContinuous TroughDSCT5VC","Caeserstone","Continuous Trough","DSCT",5,"VC","DSCTVC-85000-QA","DSCTVC-85000-QB","DSCTVC-85000-QC","DSCTVC-85000-QD","DSCTVC-85000-QE","N/A","N/A","N/A","N/A","N/A"]
["CaeserstoneContinuous TroughDSCT6+VC","Caeserstone","Continuous Trough","DSCT","6+","VC","DSCTVC-86+000-QA","DSCTVC-86+000-QB","DSCTVC-86+000-QC","DSCTVC-86+000-QD","DSCTVC-86+000-QE","N/A","N/A","N/A","N/A","N/A"]
["CaeserstoneIndividual BasinDSCT1VC","Caeserstone","Individual Basin","DSCT",1,"VC","DSCTVC-81000-QA","DSCTVC-81000-QB","DSCTVC-81000-QC","DSCTVC-81000-QD","DSCTVC-81000-QE","N/A","N/A","N/A","N/A","N/A"]
["CaeserstoneIndividual BasinDSCT2VC","Caeserstone","Individual Basin","DSCT",2,"VC","DSCTVC-82000-QA","DSCTVC-82000-QB","DSCTVC-82000-QC","DSCTVC-82000-QD","DSCTVC-82000-QE","N/A","N/A","N/A","N/A","N/A"]
["CaeserstoneIndividual BasinDSCT3VC","Caeserstone","Individual Basin","DSCT",3,"VC","DSCTVC-83000-QA","DSCTVC-83000-QB","DSCTVC-83000-QC","DSCTVC-83000-QD","DSCTVC-83000-QE","N/A","N/A","N/A","N/A","N/A"]
["CaeserstoneIndividual BasinDSCT4VC","Caeserstone","Individual Basin","DSCT",4,"VC","DSCTVC-84000-QA","DSCTVC-84000-QB","DSCTVC-84000-QC","DSCTVC-84000-QD","DSCTVC-84000-QE","N/A","N/A","N/A","N/A","N/A"]
["CaeserstoneIndividual BasinDSCT5VC","Caeserstone","Individual Basin","DSCT",5,"VC","DSCTVC-85000-QA","DSCTVC-85000-QB","DSCTVC-85000-QC","DSCTVC-85000-QD","DSCTVC-85000-QE","N/A","N/A","N/A","N/A","N/A"]
["CaeserstoneIndividual BasinDSCT6+VC","Caeserstone","Individual Basin","DSCT","6+","VC","DSCTVC-86+000-QA","DSCTVC-86+000-QB","DSCTVC-86+000-QC","DSCTVC-86+000-QD","DSCTVC-86+000-QE","N/A","N/A","N/A","N/A","N/A"]

{"sheet":"Dimensions","index":10,"n_rows":141,"n_cols":12,"rows_kept":141,"cut":false,"hidden":true,"merged":[]}
["Bounce Code","Material","Sink Type","Stations","Look Up","A","B","C","D",null,"Alcove","Material Number"]
[{"$f":"'Arc Worksheet'!D23&'Arc Worksheet'!#REF!&'Arc Worksheet'!#REF!","v":{"$error":"#REF!"}},"Corian","AD",1,{"$f":"B2&C2&D2","v":"CorianAD1"},4.5,21,4.5,30,null,"No"," "]
[null,"Corian","AD",2,"CorianAD2",4.5,51,4.5,60,null,"Yes","ACV001"]
[null,"Corian","AD",3,"CorianAD3",4.5,81,4.5,90]
[null,"Corian","AD",4,"CorianAD4",4.5,111,4.5,120]
[null,"Corian","AD",5,"CorianAD5",4.5,141,4.5,150]
[null,"Corian","AD","6+","CorianAD6+",4.5,171,4.5,180]
[null,"Corian","DSCT",1,"CorianDSCT1",7.1875,15.625,7.1875,30]
[null,"Corian","DSCT",2,"CorianDSCT2",7.1875,45.625,7.1875,60]
[null,"Corian","DSCT",3,"CorianDSCT3",7.1875,75.625,7.1875,90]
[null,"Corian","DSCT",4,"CorianDSCT4",7.1875,105.625,7.1875,120]
[null,"Corian","DSCT",5,"CorianDSCT5",7.1875,135.625,7.1875,150]
[null,"Corian","DSCT","6+","CorianDSCT6+",7.1875,165.625,7.1875,180]
[null,"Corian","DSG",1,"CorianDSG1",4,22,4,30]
[null,"Corian","DSG",2,"CorianDSG2",4,52,4,60]
[null,"Corian","DSG",3,"CorianDSG3",4,82,4,90]
[null,"Corian","DSG",4,"CorianDSG4",4,112,4,120]
[null,"Corian","DSG",5,"CorianDSG5",4,142,4,150]
[null,"Corian","DSG","6+","CorianDSG6+",4,172,4,180]
[null,"Corian","DSOF",1,"CorianDSOF1",6,18,6,30]
[null,"Corian","DSOF",2,"CorianDSOF2",6,48,6,60]
[null,"Corian","DSOF",3,"CorianDSOF3",6,78,6,90]
[null,"Corian","DSOF",4,"CorianDSOF4",6,108,6,120]
[null,"Corian","DSOF",5,"CorianDSOF5",6,138,6,150]
[null,"Corian","DSOF","6+","CorianDSOF6+",6,168,6,180]
[null,"Corian","DSVR",1,"CorianDSVR1",6.5,17,6.5,30]
[null,"Corian","DSVR",2,"CorianDSVR2",6.5,47,6.5,60]
[null,"Corian","DSVR",3,"CorianDSVR3",6.5,77,6.5,90]
[null,"Corian","DSVR",5,"CorianDSVR5",6.5,137,6.5,150]
[null,"Corian","DSVR","6+","CorianDSVR6+",6.5,167,6.5,180]
[null,"Corian","DSWD",1,"CorianDSWD1",4,22,4,30]
[null,"Corian","DSWD",2,"CorianDSWD2",4,52,4,60]
[null,"Corian","DSWD",3,"CorianDSWD3",4,82,4,90]
[null,"Corian","DSWD",4,{"$f":"B34&C34&D34","v":"CorianDSWD4"},4,112,4,120]
[null,"Corian","DSWD",5,"CorianDSWD5",4,142,4,150]
[null,"Corian","DSWD","6+","CorianDSWD6+",4,172,4,180]
[null,"Corian_Quartz","AD",1,"Corian_QuartzAD1",4.5,21,4.5,30]
[null,"Corian_Quartz","AD",2,"Corian_QuartzAD2",4.5,51,4.5,60]
[null,"Corian_Quartz","AD",3,"Corian_QuartzAD3",4.5,81,4.5,90]
[null,"Corian_Quartz","AD",4,"Corian_QuartzAD4",4.5,110,4.5,119]
[null,"Corian_Quartz","AD",5,"Corian_QuartzAD5",4.5,141,4.5,150]
[null,"Corian_Quartz","AD","6+","Corian_QuartzAD6+",4.5,171,4.5,180]
[null,"Corian_Quartz","DSCT",1,"Corian_QuartzDSCT1",7.1875,15.625,7.1875,30]
[null,"Corian_Quartz","DSCT",2,"Corian_QuartzDSCT2",7.1875,45.625,7.1875,60]
[null,"Corian_Quartz","DSCT",3,"Corian_QuartzDSCT3",7.1875,75.625,7.1875,90]
[null,"Corian_Quartz","DSCT",4,"Corian_QuartzDSCT4",7.1875,104.625,7.1875,119]
[null,"Corian_Quartz","DSCT",5,"Corian_QuartzDSCT5",7.1875,135.625,7.1875,150]
[null,"Corian_Quartz","DSCT","6+","Corian_QuartzDSCT6+",7.1875,165.625,7.1875,180]
[null,"Corian_Quartz","DSG",1,"Corian_QuartzDSG1",4,22,4,30]
[null,"Corian_Quartz","DSG",2,"Corian_QuartzDSG2",4,52,4,60]
[null,"Corian_Quartz","DSG",3,"Corian_QuartzDSG3",4,82,4,90]
[null,"Corian_Quartz","DSG",4,"Corian_QuartzDSG4",4,111,4,119]
[null,"Corian_Quartz","DSG",5,"Corian_QuartzDSG5",4,142,4,150]
[null,"Corian_Quartz","DSG","6+","Corian_QuartzDSG6+",4,172,4,180]
[null,"Corian_Quartz","DSOF",1,"Corian_QuartzDSOF1",6,18,6,30]
[null,"Corian_Quartz","DSOF",2,"Corian_QuartzDSOF2",6,48,6,60]
[null,"Corian_Quartz","DSOF",3,"Corian_QuartzDSOF3",6,78,6,90]
[null,"Corian_Quartz","DSOF",4,"Corian_QuartzDSOF4",6,107,6,119]
[null,"Corian_Quartz","DSOF",5,"Corian_QuartzDSOF5",6,138,6,150]
[null,"Corian_Quartz","DSOF","6+","Corian_QuartzDSOF6+",6,168,6,180]
[null,"Corian_Quartz","DSVR",1,"Corian_QuartzDSVR1",6.5,17,6.5,30]
[null,"Corian_Quartz","DSVR",2,"Corian_QuartzDSVR2",6.5,47,6.5,60]
[null,"Corian_Quartz","DSVR",3,"Corian_QuartzDSVR3",6.5,77,6.5,90]
[null,"Corian_Quartz","DSVR",5,"Corian_QuartzDSVR5",6.5,137,6.5,150]
[null,"Corian_Quartz","DSVR","6+","Corian_QuartzDSVR6+",6.5,167,6.5,180]
[null,"Corian_Quartz","DSWD",1,{"$f":"B66&C66&D66","v":"Corian_QuartzDSWD1"},4,22,4,30]
[null,"Corian_Quartz","DSWD",2,"Corian_QuartzDSWD2",4,52,4,60]
[null,"Corian_Quartz","DSWD",3,"Corian_QuartzDSWD3",4,82,4,90]
[null,"Corian_Quartz","DSWD",4,"Corian_QuartzDSWD4",4,111,4,119]
[null,"Corian_Quartz","DSWD",5,"Corian_QuartzDSWD5",4,142,4,150]
[null,"Corian_Quartz","DSWD","6+","Corian_QuartzDSWD6+",4,172,4,180]
[null,"Caeserstone","AD",1,"CaeserstoneAD1",4.5,21,4.5,30]
[null,"Caeserstone","AD",2,"CaeserstoneAD2",4.5,51,4.5,60]
[null,"Caeserstone","AD",3,"CaeserstoneAD3",4.5,81,4.5,90]
[null,"Caeserstone","AD",4,"CaeserstoneAD4",4.5,110,4.5,119]
[null,"Caeserstone","AD",5,"CaeserstoneAD5",4.5,141,4.5,150]
[null,"Caeserstone","AD","6+","CaeserstoneAD6+",4.5,171,4.5,180]
[null,"Caeserstone","DSCT",1,"CaeserstoneDSCT1",7.1875,15.625,7.1875,30]
[null,"Caeserstone","DSCT",2,"CaeserstoneDSCT2",7.1875,45.625,7.1875,60]
[null,"Caeserstone","DSCT",3,"CaeserstoneDSCT3",7.1875,75.625,7.1875,90]
[null,"Caeserstone","DSCT",4,"CaeserstoneDSCT4",7.1875,104.625,7.1875,119]
[null,"Caeserstone","DSCT",5,"CaeserstoneDSCT5",7.1875,135.625,7.1875,150]
[null,"Caeserstone","DSCT","6+","CaeserstoneDSCT6+",7.1875,165.625,7.1875,180]
[null,"Caeserstone","DSG",1,"CaeserstoneDSG1",4,22,4,30]
[null,"Caeserstone","DSG",2,"CaeserstoneDSG2",4,52,4,60]
[null,"Caeserstone","DSG",3,"CaeserstoneDSG3",4,82,4,90]
[null,"Caeserstone","DSG",4,"CaeserstoneDSG4",4,111,4,119]
[null,"Caeserstone","DSG",5,"CaeserstoneDSG5",4,142,4,150]
[null,"Caeserstone","DSG","6+","CaeserstoneDSG6+",4,172,4,180]
[null,"Caeserstone","DSOF",1,"CaeserstoneDSOF1",6,18,6,30]
[null,"Caeserstone","DSOF",2,"CaeserstoneDSOF2",6,48,6,60]
[null,"Caeserstone","DSOF",3,"CaeserstoneDSOF3",6,78,6,90]
[null,"Caeserstone","DSOF",4,"CaeserstoneDSOF4",6,107,6,119]
[null,"Caeserstone","DSOF",5,"CaeserstoneDSOF5",6,138,6,150]
[null,"Caeserstone","DSOF","6+","CaeserstoneDSOF6+",6,168,6,180]
[null,"Caeserstone","DSVR",1,"CaeserstoneDSVR1",6.5,17,6.5,30]
[null,"Caeserstone","DSVR",2,"CaeserstoneDSVR2",6.5,47,6.5,60]
[null,"Caeserstone","DSVR",3,{"$f":"B98&C98&D98","v":"CaeserstoneDSVR3"},6.5,77,6.5,90]
[null,"Caeserstone","DSVR",5,"CaeserstoneDSVR5",6.5,137,6.5,150]
[null,"Caeserstone","DSVR","6+","CaeserstoneDSVR6+",6.5,167,6.5,180]
[null,"Caeserstone","DSWD",1,"CaeserstoneDSWD1",4,22,4,30]
[null,"Caeserstone","DSWD",2,"CaeserstoneDSWD2",4,52,4,60]
[null,"Caeserstone","DSWD",3,"CaeserstoneDSWD3",4,82,4,90]
[null,"Caeserstone","DSWD",4,"CaeserstoneDSWD4",4,111,4,119]
[null,"Caeserstone","DSWD",5,"CaeserstoneDSWD5",4,142,4,150]
[null,"Caeserstone","DSWD","6+","CaeserstoneDSWD6+",4,172,4,180]
[null,"Silestone","AD",1,"SilestoneAD1",4.5,21,4.5,30]
[null,"Silestone","AD",2,"SilestoneAD2",4.5,51,4.5,60]
[null,"Silestone","AD",3,"SilestoneAD3",4.5,81,4.5,90]
[null,"Silestone","AD",4,"SilestoneAD4",4.5,110,4.5,119]
[null,"Silestone","AD",5,"SilestoneAD5",4.5,141,4.5,150]
[null,"Silestone","AD","6+","SilestoneAD6+",4.5,171,4.5,180]
[null,"Silestone","DSCT",1,"SilestoneDSCT1",7.1875,15.625,7.1875,30]
[null,"Silestone","DSCT",2,"SilestoneDSCT2",7.1875,45.625,7.1875,60]
[null,"Silestone","DSCT",3,"SilestoneDSCT3",7.1875,75.625,7.1875,90]
[null,"Silestone","DSCT",4,"SilestoneDSCT4",7.1875,104.625,7.1875,119]
[null,"Silestone","DSCT",5,"SilestoneDSCT5",7.1875,135.625,7.1875,150]
[null,"Silestone","DSCT","6+","SilestoneDSCT6+",7.1875,165.625,7.1875,180]
[null,"Silestone","DSG",1,"SilestoneDSG1",4,22,4,30]
[null,"Silestone","DSG",2,"SilestoneDSG2",4,52,4,60]
[null,"Silestone","DSG",3,"SilestoneDSG3",4,82,4,90]
[null,"Silestone","DSG",4,"SilestoneDSG4",4,111,4,119]
[null,"Silestone","DSG",5,"SilestoneDSG5",4,142,4,150]
[null,"Silestone","DSG","6+","SilestoneDSG6+",4,172,4,180]
[null,"Silestone","DSOF",1,"SilestoneDSOF1",6,18,6,30]
[null,"Silestone","DSOF",2,"SilestoneDSOF2",6,48,6,60]
[null,"Silestone","DSOF",3,"SilestoneDSOF3",6,78,6,90]
[null,"Silestone","DSOF",4,"SilestoneDSOF4",6,107,6,119]
[null,"Silestone","DSOF",5,"SilestoneDSOF5",6,138,6,150]
[null,"Silestone","DSOF","6+",{"$f":"B130&C130&D130","v":"SilestoneDSOF6+"},6,168,6,180]
[null,"Silestone","DSVR",1,"SilestoneDSVR1",6.5,17,6.5,30]
[null,"Silestone","DSVR",2,"SilestoneDSVR2",6.5,47,6.5,60]
[null,"Silestone","DSVR",3,"SilestoneDSVR3",6.5,77,6.5,90]
[null,"Silestone","DSVR",5,"SilestoneDSVR5",6.5,137,6.5,150]
[null,"Silestone","DSVR","6+","SilestoneDSVR6+",6.5,167,6.5,180]
[null,"Silestone","DSWD",1,"SilestoneDSWD1",4,22,4,30]
[null,"Silestone","DSWD",2,"SilestoneDSWD2",4,52,4,60]
[null,"Silestone","DSWD",3,"SilestoneDSWD3",4,82,4,90]
[null,"Silestone","DSWD",4,"SilestoneDSWD4",4,111,4,119]
[null,"Silestone","DSWD",5,"SilestoneDSWD5",4,142,4,150]
[null,"Silestone","DSWD","6+","SilestoneDSWD6+",4,172,4,180]

{"sheet":"Calculator","index":11,"n_rows":2,"n_cols":34,"rows_kept":2,"cut":false,"hidden":true,"merged":[]}
["Quantity","Material Type","Sink Type","Model","Edge Type","Stations","Trough Style","Group","LookUp Value 1","Hand Dryers (AD)","Faucet Model","Faucet Quantity","Soap Dispencer","Soap Disp. Quantity","Enclosure Type","LED Lights","Purse Hooks","Purse Hook Color","Purse Hook Quantity","HD(AD)$$","Enclosure$$","LED$$","PH$$","Faucet$$","Soap$$","Faucet & Soap Total","Add-On Total","Mounting Total","Sink Total","Discount ","Base Sink $$","Extended Price","Stone SKU","Sloan SKU"]
[{"$f":"Designer_Sink_Quote_1!D20","v":0},{"$f":"Designer_Sink_Quote_1!D23","v":0},{"$f":"Designer_Sink_Quote_1!D26","v":0},{"$f":"Designer_Sink_Quote_1!I20","v":0},{"$f":"Designer_Sink_Quote_1!I26","v":0},{"$f":"Designer_Sink_Quote_1!N20","v":0},{"$f":"Designer_Sink_Quote_1!D26","v":0},{"$f":"VLOOKUP('Arc Worksheet'!I23,'Drop Tables'!Z:AA,2,0)","v":{"$error":"#N/A"}},{"$f":"CONCATENATE(Quote3[[#This Row],[Material Type]],Quote3[[#This Row],[Sink Type]],Quote3[[#This Row],[Model]],Quote3[[#This Row],[Stations]])","v":"0000"},0,{"$f":"VLOOKUP(Designer_Sink_Quote_1!N32,'Faucet Price Table'!#REF!,2,0)","v":{"$error":"#REF!"}},{"$f":"Designer_Sink_Quote_1!D32","v":0},{"$f":"Designer_Sink_Quote_1!I35","v":0},{"$f":"Designer_Sink_Quote_1!D35","v":0},{"$f":"Designer_Sink_Quote_1!N26","v":0},{"$f":"Designer_Sink_Quote_1!D29","v":0},{"$f":"Designer_Sink_Quote_1!I29","v":0},{"$f":"Designer_Sink_Quote_1!S29","v":0},{"$f":"Designer_Sink_Quote_1!N29","v":0},0,{"$f":"IFERROR(INDEX('Sink Price Table'!#REF!,MATCH(Quote3[[#This Row],[LookUp Value 1]],'Sink Price Table'!#REF!,0),MATCH(Quote3[Enclosure Type],'Sink Price Table'!#REF!,0)),0)","v":0},{"$f":"IF(Quote3[[#This Row],[LED Lights]]=\"Yes\",VLOOKUP(Quote3[LookUp Value 1],'Sink Price Table'!#REF!,19,0),0)","v":0},{"$f":"IF(Quote3[[#This Row],[Purse Hooks]]=\"Yes\",(VLOOKUP(Quote3[LookUp Value 1],'Sink Price Table'!#REF!,20,0)*S2),0)","v":0},{"$f":"IFERROR((VLOOKUP(Quote3[Faucet Model],'Faucet Price Table'!#REF!,2,0)*Quote3[Faucet Quantity]),0)","v":0},{"$f":"IFERROR((VLOOKUP(Quote3[Soap Dispencer],'Soap Price Table'!#REF!,2,0)*Quote3[Soap Disp. Quantity]),0)","v":0},{"$f":"IFERROR(SUM(Quote3[[Faucet$$]:[Soap$$]])*Quote3[Quantity],0)","v":0},{"$f":"IFERROR(SUM(Quote3[[#This Row],[LED$$]:[PH$$]],Quote3[[#This Row],[HD(AD)$$]])*Quote3[Quantity],0)","v":0},{"$f":"IFERROR(Quote3[Enclosure$$]*Quote3[Quantity],0)","v":0},{"$f":"IFERROR(A2*Quote3[[#This Row],[Base Sink $$]],0)","v":0},{"$f":"Designer_Sink_Quote_1!I38","v":0},{"$f":"IFERROR(INDEX('Sink Price Table'!#REF!,MATCH(Quote3[[#This Row],[LookUp Value 1]],'Sink Price Table'!#REF!,0),MATCH(Quote3[[#This Row],[Group]],'Sink Price Table'!#REF!,0)),\"Oops! Something Went Wrong\nPlease Contact Sloan\")","v":"Oops! Something Went Wrong\nPlease Contact Sloan"},{"$f":"IFERROR((SUM(Quote3[[#This Row],[Faucet & Soap Total]],Quote3[[#This Row],[Add-On Total]],Quote3[[#This Row],[Mounting Total]],Quote3[[#This Row],[Sink Total]])-Quote3[[#This Row],[Discount ]]),0)","v":0},{"$f":"IFERROR(INDEX('Generic Codes'!$A$1:$P$112,MATCH(Quote3[LookUp Value 1],'Generic Codes'!$A$1:$A$112,0),MATCH(Quote3[Group],'Generic Codes'!$A$1:$P$1,0)),\"Oops! Something Went Wrong\nPlease Contact Sloan\")","v":"Oops! Something Went Wrong\nPlease Contact Sloan"},{"$f":"IFERROR(INDEX('Sku List'!$A$1:$P$48,MATCH(Quote3[LookUp Value 1],'Sku List'!$A$1:$A$48,0),MATCH(Quote3[Group],'Sku List'!$A$1:$P$1,0)),\"Oops! Something Went Wrong\nPlease Contact Sloan\")","v":"Oops! Something Went Wrong\nPlease Contact Sloan"}]

{"sheet":"Calculator_2","index":12,"n_rows":2,"n_cols":34,"rows_kept":2,"cut":false,"hidden":true,"merged":[]}
["Quantity","Material Type","Sink Type","Model","Edge Type","Stations","Trough Style","Group","LookUp Value 1","Hand Dryers (AD)","Faucet Model","Faucet Quantity","Soap Dispencer","Soap Disp. Quantity","Enclosure Type","LED Lights","Purse Hooks","Purse Hook Color","Purse Hook Quantity","HD(AD)$$","Enclosure$$","LED$$","PH$$","Faucet$$","Soap$$","Faucet & Soap Total","Add-On Total","Mounting Total","Sink Total","Discount ","Base Sink $$","Extended Price","Stone SKU","Sloan SKU"]
[{"$f":"'Arc Worksheet'!D20","v":0},{"$f":"'Arc Worksheet'!D23","v":0},{"$f":"'Arc Worksheet'!N23","v":0},{"$f":"'Arc Worksheet'!#REF!","v":{"$error":"#REF!"}},{"$f":"'Arc Worksheet'!I26","v":0},{"$f":"'Arc Worksheet'!#REF!","v":{"$error":"#REF!"}},{"$f":"'Arc Worksheet'!N23","v":0},{"$f":"VLOOKUP('Arc Worksheet'!I23,'Drop Tables'!Z:AA,2,0)","v":{"$error":"#N/A"}},{"$f":"CONCATENATE(Quote39[[#This Row],[Material Type]],Quote39[[#This Row],[Sink Type]],Quote39[[#This Row],[Model]],Quote39[[#This Row],[Stations]])","v":{"$error":"#REF!"}},0,{"$f":"VLOOKUP('Arc Worksheet'!#REF!,'Faucet Price Table'!#REF!,2,0)","v":{"$error":"#REF!"}},{"$f":"'Arc Worksheet'!#REF!","v":{"$error":"#REF!"}},{"$f":"'Arc Worksheet'!#REF!","v":{"$error":"#REF!"}},{"$f":"'Arc Worksheet'!#REF!","v":{"$error":"#REF!"}},{"$f":"'Arc Worksheet'!#REF!","v":{"$error":"#REF!"}},{"$f":"'Arc Worksheet'!I20","v":0},{"$f":"'Arc Worksheet'!#REF!","v":{"$error":"#REF!"}},{"$f":"'Arc Worksheet'!#REF!","v":{"$error":"#REF!"}},{"$f":"'Arc Worksheet'!#REF!","v":{"$error":"#REF!"}},0,{"$f":"IFERROR(INDEX('Sink Price Table'!#REF!,MATCH(Quote39[[#This Row],[LookUp Value 1]],'Sink Price Table'!#REF!,0),MATCH(Quote39[Enclosure Type],'Sink Price Table'!#REF!,0)),0)","v":0},{"$f":"IF(Quote39[[#This Row],[LED Lights]]=\"Yes\",VLOOKUP(Quote39[LookUp Value 1],'Sink Price Table'!#REF!,19,0),0)","v":0},{"$f":"IF(Quote39[[#This Row],[Purse Hooks]]=\"Yes\",(VLOOKUP(Quote39[LookUp Value 1],'Sink Price Table'!#REF!,20,0)*S2),0)","v":{"$error":"#REF!"}},{"$f":"IFERROR((VLOOKUP(Quote39[Faucet Model],'Faucet Price Table'!#REF!,2,0)*Quote39[Faucet Quantity]),0)","v":0},{"$f":"IFERROR((VLOOKUP(Quote39[Soap Dispencer],'Soap Price Table'!#REF!,2,0)*Quote39[Soap Disp. Quantity]),0)","v":0},{"$f":"IFERROR(SUM(Quote39[[Faucet$$]:[Soap$$]])*Quote39[Quantity],0)","v":0},{"$f":"IFERROR(SUM(Quote39[[#This Row],[LED$$]:[PH$$]],Quote39[[#This Row],[HD(AD)$$]])*Quote39[Quantity],0)","v":0},{"$f":"IFERROR(Quote39[Enclosure$$]*Quote39[Quantity],0)","v":0},{"$f":"IFERROR(A2*Quote39[[#This Row],[Base Sink $$]],0)","v":0},{"$f":"Designer_Sink_Quote_1!I38","v":0},{"$f":"IFERROR(INDEX('Sink Price Table'!#REF!,MATCH(Quote39[[#This Row],[LookUp Value 1]],'Sink Price Table'!#REF!,0),MATCH(Quote39[[#This Row],[Group]],'Sink Price Table'!#REF!,0)),\"Oops! Something Went Wrong\nPlease Contact Sloan\")","v":"Oops! Something Went Wrong\nPlease Contact Sloan"},{"$f":"IFERROR((SUM(Quote39[[#This Row],[Faucet & Soap Total]],Quote39[[#This Row],[Add-On Total]],Quote39[[#This Row],[Mounting Total]],Quote39[[#This Row],[Sink Total]])-Quote39[[#This Row],[Discount ]]),0)","v":0},{"$f":"IFERROR(INDEX('Generic Codes'!$A$1:$P$223,MATCH(Quote39[LookUp Value 1],'Generic Codes'!$A$1:$A$223,0),MATCH(Quote39[Group],'Generic Codes'!$A$1:$P$1,0)),\"Oops! Something Went Wrong\nPlease Contact Sloan\")","v":"Oops! Something Went Wrong\nPlease Contact Sloan"},{"$f":"IFERROR(INDEX('Sku List'!$A$1:$P$143,MATCH(Quote39[LookUp Value 1],'Sku List'!$A$1:$A$143,0),MATCH(Quote39[Group],'Sku List'!$A$1:$P$1,0)),\"Oops! Something Went Wrong\nPlease Contact Sloan\")","v":"Oops! Something Went Wrong\nPlease Contact Sloan"}]

{"sheet":"Drop Tables","index":13,"n_rows":412,"n_cols":29,"rows_kept":412,"cut":false,"hidden":true,"merged":[]}
["Yes/No1","Country","CA State List","US State List","Rep List","Model","Yes/No2","Material Name","Material Code","Trough Style","Station Quantity","Stone and Steel Reps.","Configuration","Material Name","Finishes ","Sizes","Threshold Design","Drain Style","Rough In","Shower Wall Configuration ","Materials","Finishes","Height","Hardware Finish","Material","Material Color List","Color Category","Color Code","Color Group"]
["Yes","Canada","Alberta","Alabama","American Sales Co.","AD","Yes","Caeserstone","E0001","Continuous Trough",1,"EP&D","Rectangle","Quartz - Caeserstone","Gloss/Polished","36\"x36\"","Zero - ADA","5\" round or square","Above Floor","Sliding Door","Quartz - Caeserstone","Gloss/Polished","84\"","Black","Caeserstone","Alpine Mist","D",0,"A"]
["No","United States","British Columbia","Alaska","Aspinall Associates","DSG","No","Corian","C0002","Individual Basin",2,"BBN","Pentagon","Solid Surface - Corian","Matte/Leather","36\"x42\"","2\" - ADA","Linear with no grate","Through Floor","Pivot Door","Solid Surface - Corian","Matte/Leather","96\"","Brushed Nickel","Caeserstone","Atlantic Salt","B",0,"B"]
["N/A","Other","Manitoba","Arkansas","Badgerland Trading","DSCT","Yes","Corian_Quartz","S0003",null,3,"Braley Gray","Curved ","Quartz - Corian Quartz",null,"48\"x32\"","4\" - Standard","Linear with grate",null,"Walk in Entry","Quartz - Corian Quartz","Clear","Custom","Oil Rubbed Bronze","Caeserstone","Bianco Drift","D",0,"C"]
[null,null,"New Brunswick","Arizona","BBN Sales","DSOF","No","Silestone","Z0004","Individual Basin",4,"Burns Cope","Custom","Quartz - Silestone",null,"60\"x30\"",null,"Custom",null,null,"Quartz - Silestone","Frosted",null,"White","Caeserstone","Blizzard","A","0108095","D"]
[null,null,"Newfoundland & Labrador","California","Braley Gray","DSVR",null,"Other","O0005",null,5,"Delco",null,"Acrylic",null,"Custom",null,null,null,null,"Acrylic","Etched",null,"Other","Caeserstone","Calacatta Nuovo","E",0,"E"]
[null,null,"Northwest Territories","Colorado","Burns Cope","DSWD",{"$f":"IF(OR('Arc Worksheet'!#REF!='Drop Tables'!F2,'Arc Worksheet'!#REF!='Drop Tables'!F3),\"AD\",#N/A)","v":{"$error":"#REF!"}},null,null,null,"6+","Dillard",null,"Other",null,null,null,null,null,null,"Other",null,null,null,"Caeserstone","Clamshell","B",0,{"$error":"#N/A"}]
[null,null,"Nova Scotia","Connecticut","C.A. Riner",null,{"$f":"IF(OR('Arc Worksheet'!#REF!='Drop Tables'!F6,'Arc Worksheet'!#REF!='Drop Tables'!F5,'Arc Worksheet'!#REF!='Drop Tables'!F4),\"Basin\",\"Trough\")","v":{"$error":"#REF!"}},null,null,null,null,"Diversified",null,"Solid Surface - Other",null,null,null,null,null,null,"Solid Surface - Other",null,null,null,"Caeserstone","Coastal Grey","D",0]
[null,null,"Nunavut","Delaware","Clapper Co.",null,{"$f":"IF('Arc Worksheet'!#REF!='Drop Tables'!L4,\"Laminate\",\"#N/A\")","v":{"$error":"#REF!"}},null,null,null,null,"Dobbin",null,"Quartz - Other",null,null,null,null,null,null,"Quartz - Other",null,null,null,"Caeserstone","Concrete","A","0108099"]
[null,null,"Ontario","Florida","Delco Sales",null,"Yes",null,null,null,null,"Engineered Concepts",null,null,null,null,null,null,null,null,"Glass",null,null,null,"Caeserstone","Cosmopolitan White","D",0]
[null,null,"Prince Edward Island","Georgia","Dillard Associates - SA",null,"No",null,null,null,null,"Joyce",null,"Shower Pan",null,null,null,null,null,null,null,null,null,null,"Caeserstone","Dreamy Marfil","D",0]
[null,null,"Quebec","Hawaii","Dillard Associates",null,"Yes",null,null,null,null,"Kliman",null,{"$f":"IF('Arc Worksheet'!D23=\"Quartz - Caeserstone\", \"Caeserstone\",IF('Arc Worksheet'!D23=\"Solid Surface - Corian\",\"Corian\",IF('Arc Worksheet'!D23=\"Quartz - Corian Quartz\",\"Corain_Quartz\",IF('Arc Worksheet'!D23=\"Quartz - Silestone\", \"Silestone\",\"Other\"))))","v":"Other"},null,null,null,null,null,null,null,null,null,null,"Caeserstone","Eggshell","A",0]
[null,null,"Saskatchewan","Idaho","Diversified Spec.",null,"No",null,null,null,null,"Maloney & Curcio",null,"Shower Wall",null,null,null,null,null,null,null,null,null,null,"Caeserstone","Fresh Concrete","D",0]
[null,null,"Yukon","Illinois","Edwards, Platt, & Deely",null,null,null,null,null,null,"Pannell",null,{"$f":"IF('Arc Worksheet'!N36=\"Quartz - Caeserstone\", \"Caeserstone\",IF('Arc Worksheet'!N36=\"Solid Surface - Corian\",\"Corian\",IF('Arc Worksheet'!N36=\"Quartz - Corian Quartz\",\"Corain_Quartz\",IF('Arc Worksheet'!N36=\"Quartz - Silestone\", \"Silestone\",\"Other\"))))","v":"Other"},null,null,null,null,null,null,null,null,null,null,"Caeserstone","Frosty Carrina","D",0]
[null,null,null,"Indiana","Engineered Concepts",null,{"$f":"IF('Arc Worksheet'!#REF!=\"DSWD\",\"Basin\",\"No\")","v":{"$error":"#REF!"}},null,null,null,null,"RE Fitzpatrick",null,null,null,null,null,null,null,null,null,null,null,null,"Caeserstone","Geogian Bluffs","D",0]
[null,null,null,"Iowa","Hamel Associates",null,"Yes",null,null,null,null,"Repco",null,null,null,null,null,null,null,null,null,null,null,null,"Caeserstone","Ginger","A",0]
[null,null,null,"Kansas","Hebco",null,"No",null,null,null,null,"SDAJ",null,null,null,null,null,null,null,null,null,null,null,null,"Caeserstone","Haze","B",0]
[null,null,null,"Kentucky","J.B. O'Connor Co. Inc.",null,null,null,null,null,null,"Smith & Stevenson",null,null,null,null,null,null,null,null,null,null,null,null,"Caeserstone","Jet Black","B",0]
[null,null,null,"Louisiana","J.H. Pokorny Associates",null,null,null,null,null,null,"Tri-Rep",null,null,null,null,null,null,null,null,null,null,null,null,"Caeserstone","Lagos Blue","B",0]
[null,null,null,"Maine","Joyce Agency",null,null,null,null,null,null,"WG Lesemann",null,null,null,null,null,null,null,null,null,null,null,null,"Caeserstone","Linen","B",0]
[null,null,null,"Maryland","Kliman Sales Inc.",null,null,null,null,null,null,null,null,null,null,null,null,null,null,null,null,null,null,null,"Caeserstone","London Grey","D",0]
[null,null,null,"Massachusetts","M & M Sales Inc.",null,null,null,null,null,null,null,null,null,null,null,null,null,null,null,null,null,null,null,"Caeserstone","Montblanc","D",0]
[null,null,null,"Michigan","Maloney & Curcio",null,null,null,null,null,null,null,null,null,null,null,null,null,null,null,null,null,null,null,"Caeserstone","Moorland Fog","B",0]
[null,null,null,"Minnesota","Marshall-Rodeno",null,null,null,null,null,null,null,null,null,null,null,null,null,null,null,null,null,null,null,"Caeserstone","Nobel Grey","D",0]
[null,null,null,"Mississippi","Mendell Sales",null,null,null,null,null,null,null,null,null,null,null,null,null,null,null,null,null,null,null,"Caeserstone","Nougat","A",0]
[null,null,null,"Missouri","Midwest Spec.",null,null,null,null,null,null,null,null,null,null,null,null,null,null,null,null,null,null,null,"Caeserstone","Ocean Foam","B",0]
[null,null,null,"Montana","Pannell",null,null,null,null,null,null,null,null,null,null,null,null,null,null,null,null,null,null,null,"Caeserstone","Organic White","B",0]
[null,null,null,"Nebraska","Premier Marketing",null,null,null,null,null,null,null,null,null,null,null,null,null,null,null,null,null,null,null,"Caeserstone","Pebble","B",0]
[null,null,null,"Nevada","R.E. Fitzpatrick",null,null,null,null,null,null,null,null,null,null,null,null,null,null,null,null,null,null,null,"Caeserstone","Piatra Grey","D",0]
[null,null,null,"New Hampshire","Repco",null,null,null,null,null,null,null,null,null,null,null,null,null,null,null,null,null,null,null,"Caeserstone","Pure White","D",0]
[null,null,null,"New Jersey","Service Reps Inc.",null,null,null,null,null,null,null,null,null,null,null,null,null,null,null,null,null,null,null,"Caeserstone","Quartz Reflections","B",0]
[null,null,null,"New Mexico","Service Reps Inc. - IA",null,null,null,null,null,null,null,null,null,null,null,null,null,null,null,null,null,null,null,"Caeserstone","Raven","B",0]
[null,null,null,"New York","Smith & Stevenson",null,null,null,null,null,null,null,null,null,null,null,null,null,null,null,null,null,null,null,"Caeserstone","Raw Concrete","D",0]
[null,null,null,"North Carolina","Southern Spec",null,null,null,null,null,null,null,null,null,null,null,null,null,null,null,null,null,null,null,"Caeserstone","Rugged Concrete","D",0]
[null,null,null,"North Dakota","Southwestern Mech - AZ",null,null,null,null,null,null,null,null,null,null,null,null,null,null,null,null,null,null,null,"Caeserstone","Shitake","B",0]
[null,null,null,"Ohio","Southwestern Mech - NV",null,null,null,null,null,null,null,null,null,null,null,null,null,null,null,null,null,null,null,"Caeserstone","Sleek Concrete","B",0]
[null,null,null,"Oklahoma","Stone, Drew, Ashe, Jones",null,null,null,null,null,null,null,null,null,null,null,null,null,null,null,null,null,null,null,"Caeserstone","Statuario Maximus","E",0]
[null,null,null,"Oregon","Stone, Drew, Ashe, Jones - AK",null,null,null,null,null,null,null,null,null,null,null,null,null,null,null,null,null,null,null,"Caeserstone","Statuario Nuovo","E",0]
[null,null,null,"Pennsylvania","Superior Products",null,null,null,null,null,null,null,null,null,null,null,null,null,null,null,null,null,null,null,"Caeserstone","Sympony Grey","D",0]
[null,null,null,"Rhode Island","Tri-Rep Sales",null,null,null,null,null,null,null,null,null,null,null,null,null,null,null,null,null,null,null,"Caeserstone","Taj Royal","D",0]
[null,null,null,"South Carolina","W.G. Lesemann & Son",null,null,null,null,null,null,null,null,null,null,null,null,null,null,null,null,null,null,null,"Caeserstone","Turbine Grey","B",0]
[null,null,null,"South Dakota","Will & Pierce Agency",null,null,null,null,null,null,null,null,null,null,null,null,null,null,null,null,null,null,null,"Caeserstone","Tuscan Dawn","D",0]
[null,null,null,"Tennessee","WMS Sales Inc.",null,null,null,null,null,null,null,null,null,null,null,null,null,null,null,null,null,null,null,"Caeserstone","Urban Safari","D",0]
[null,null,null,"Texas","Yost Associates",null,null,null,null,null,null,null,null,null,null,null,null,null,null,null,null,null,null,null,"Caeserstone","Villa Noir","D",0]
[null,null,null,"Utah","Ziel-Carlson Inc.",null,null,null,null,null,null,null,null,null,null,null,null,null,null,null,null,null,null,null,"Caeserstone","White Attica","D",0]
[null,null,null,"Vermont","R.G. Dobbin",null,null,null,null,null,null,null,null,null,null,null,null,null,null,null,null,null,null,null,"Caeserstone","Wild Rice","B",0]
[null,null,null,"Virginia",null,null,null,null,null,null,null,null,null,null,null,null,null,null,null,null,null,null,null,null,"Caeserstone","Woodlands","D",0]
[null,null,null,"Washington",null,null,null,null,null,null,null,null,null,null,null,null,null,null,null,null,null,null,null,null,"Corian","Abalone","A","0000001"]
[null,null,null,"West Virginia",null,null,null,null,null,null,null,null,null,null,null,null,null,null,null,null,null,null,null,null,"Corian","Allspice","D","=J2+1"]
[null,null,null,"Wisconsin",null,null,null,null,null,null,null,null,null,null,null,null,null,null,null,null,null,null,null,null,"Corian","Antarctica","B","0108003"]
[null,null,null,"Wyoming",null,null,null,null,null,null,null,null,null,null,null,null,null,null,null,null,null,null,null,null,"Corian","Anthracite","C","0108035"]
[null,null,null,null,null,null,null,null,null,null,null,null,null,null,null,null,null,null,null,null,null,null,null,null,"Corian","Aqualite","D",0]
[null,null,null,null,null,null,null,null,null,null,null,null,null,null,null,null,null,null,null,null,null,null,null,null,"Corian","Arctic Ice","C","0108028"]
[null,null,null,null,null,null,null,null,null,null,null,null,null,null,null,null,null,null,null,null,null,null,null,null,"Corian","Arrowroot","D","0108034"]
[null,null,null,null,null,null,null,null,null,null,null,null,null,null,null,null,null,null,null,null,null,null,null,null,"Corian","Ash Concrete","C",0]
[null,null,null,null,null,null,null,null,null,null,null,null,null,null,null,null,null,null,null,null,null,null,null,null,"Corian","Basil","D",0]
[null,null,null,null,null,null,null,null,null,null,null,null,null,null,null,null,null,null,null,null,null,null,null,null,"Corian","Bisque","A","0108042"]
[null,null,null,null,null,null,null,null,null,null,null,null,null,null,null,null,null,null,null,null,null,null,null,null,"Corian","Blue Pebble","B","0108016"]
[null,null,null,null,null,null,null,null,null,null,null,null,null,null,null,null,null,null,null,null,null,null,null,null,"Corian","Blue Spice","C",0]
[null,null,null,null,null,null,null,null,null,null,null,null,null,null,null,null,null,null,null,null,null,null,null,null,"Corian","Bone","A",0]
[null,null,null,null,null,null,null,null,null,null,null,null,null,null,null,null,null,null,null,null,null,null,null,null,"Corian","Bronzite","C",0]
[null,null,null,null,null,null,null,null,null,null,null,null,null,null,null,null,null,null,null,null,null,null,null,null,"Corian","Burled Birch","D",0]
[null,null,null,null,null,null,null,null,null,null,null,null,null,null,null,null,null,null,null,null,null,null,null,null,"Corian","Cameo White","A","0108004"]
[null,null,null,null,null,null,null,null,null,null,null,null,null,null,null,null,null,null,null,null,null,null,null,null,"Corian","Canvas","C","0108009"]
[null,null,null,null,null,null,null,null,null,null,null,null,null,null,null,null,null,null,null,null,null,null,null,null,"Corian","Canyon","B",0]
[null,null,null,null,null,null,null,null,null,null,null,null,null,null,null,null,null,null,null,null,null,null,null,null,"Corian","Carbon Concrete","C",0]
[null,null,null,null,null,null,null,null,null,null,null,null,null,null,null,null,null,null,null,null,null,null,null,null,"Corian","Cilantro","C",0]
[null,null,null,null,null,null,null,null,null,null,null,null,null,null,null,null,null,null,null,null,null,null,null,null,"Corian","Clam Shell","D",0]
[null,null,null,null,null,null,null,null,null,null,null,null,null,null,null,null,null,null,null,null,null,null,null,null,"Corian","Cobalt","C",0]
[null,null,null,null,null,null,null,null,null,null,null,null,null,null,null,null,null,null,null,null,null,null,null,null,"Corian","Cocoa Brown","B","0108047"]
[null,null,null,null,null,null,null,null,null,null,null,null,null,null,null,null,null,null,null,null,null,null,null,null,"Corian","Cocoa Prima","D",0]
[null,null,null,null,null,null,null,null,null,null,null,null,null,null,null,null,null,null,null,null,null,null,null,null,"Corian","Concrete","C","0108013"]
[null,null,null,null,null,null,null,null,null,null,null,null,null,null,null,null,null,null,null,null,null,null,null,null,"Corian","Cosmos Prima","D",0]
[null,null,null,null,null,null,null,null,null,null,null,null,null,null,null,null,null,null,null,null,null,null,null,null,"Corian","Cottage Lane","C",0]
[null,null,null,null,null,null,null,null,null,null,null,null,null,null,null,null,null,null,null,null,null,null,null,null,"Corian","Deep Anthracite","C",0]
[null,null,null,null,null,null,null,null,null,null,null,null,null,null,null,null,null,null,null,null,null,null,null,null,"Corian","Deep Bedrock","C",0]
[null,null,null,null,null,null,null,null,null,null,null,null,null,null,null,null,null,null,null,null,null,null,null,null,"Corian","Deep Black Quartz","C",0]
[null,null,null,null,null,null,null,null,null,null,null,null,null,null,null,null,null,null,null,null,null,null,null,null,"Corian","Deep Caviar","C",0]
[null,null,null,null,null,null,null,null,null,null,null,null,null,null,null,null,null,null,null,null,null,null,null,null,"Corian","Deep Cloud","C","0108037"]
[null,null,null,null,null,null,null,null,null,null,null,null,null,null,null,null,null,null,null,null,null,null,null,null,"Corian","Deep Espresso","C",0]
[null,null,null,null,null,null,null,null,null,null,null,null,null,null,null,null,null,null,null,null,null,null,null,null,"Corian","Deep Inkwell","D",0]
[null,null,null,null,null,null,null,null,null,null,null,null,null,null,null,null,null,null,null,null,null,null,null,null,"Corian","Deep Lapis","D",0]
[null,null,null,null,null,null,null,null,null,null,null,null,null,null,null,null,null,null,null,null,null,null,null,null,"Corian","Deep Mink","C","0108053"]
[null,null,null,null,null,null,null,null,null,null,null,null,null,null,null,null,null,null,null,null,null,null,null,null,"Corian","Deep Night Sky","C","0108018"]
[null,null,null,null,null,null,null,null,null,null,null,null,null,null,null,null,null,null,null,null,null,null,null,null,"Corian","Deep Nocturne","C","0108061"]
[null,null,null,null,null,null,null,null,null,null,null,null,null,null,null,null,null,null,null,null,null,null,null,null,"Corian","Deep Sable","C","0108065"]
[null,null,null,null,null,null,null,null,null,null,null,null,null,null,null,null,null,null,null,null,null,null,null,null,"Corian","Deep Smokey Pearl","D",0]
[null,null,null,null,null,null,null,null,null,null,null,null,null,null,null,null,null,null,null,null,null,null,null,null,"Corian","Deep Space","C",0]
[null,null,null,null,null,null,null,null,null,null,null,null,null,null,null,null,null,null,null,null,null,null,null,null,"Corian","Deep Storm","C",0]
[null,null,null,null,null,null,null,null,null,null,null,null,null,null,null,null,null,null,null,null,null,null,null,null,"Corian","Deep Terrain","D",0]
[null,null,null,null,null,null,null,null,null,null,null,null,null,null,null,null,null,null,null,null,null,null,null,null,"Corian","Deep Titanium","C","0108044"]
[null,null,null,null,null,null,null,null,null,null,null,null,null,null,null,null,null,null,null,null,null,null,null,null,"Corian","Designer White","B","0108001"]
[null,null,null,null,null,null,null,null,null,null,null,null,null,null,null,null,null,null,null,null,null,null,null,null,"Corian","Doeskin","C","0108060"]
[null,null,null,null,null,null,null,null,null,null,null,null,null,null,null,null,null,null,null,null,null,null,null,null,"Corian","Dove","C","0108015"]
[null,null,null,null,null,null,null,null,null,null,null,null,null,null,null,null,null,null,null,null,null,null,null,null,"Corian","Dune Prima","D",0]
[null,null,null,null,null,null,null,null,null,null,null,null,null,null,null,null,null,null,null,null,null,null,null,null,"Corian","Earth","D","0108063"]
[null,null,null,null,null,null,null,null,null,null,null,null,null,null,null,null,null,null,null,null,null,null,null,null,"Corian","Ecru","D",0]
[null,null,null,null,null,null,null,null,null,null,null,null,null,null,null,null,null,null,null,null,null,null,null,null,"Corian","Elderberry","D",0]
[null,null,null,null,null,null,null,null,null,null,null,null,null,null,null,null,null,null,null,null,null,null,null,null,"Corian","Elegant Gray","B",0]
[null,null,null,null,null,null,null,null,null,null,null,null,null,null,null,null,null,null,null,null,null,null,null,null,"Corian","Evening Prima","D",0]
[null,null,null,null,null,null,null,null,null,null,null,null,null,null,null,null,null,null,null,null,null,null,null,null,"Corian","Everest","B",0]
[null,null,null,null,null,null,null,null,null,null,null,null,null,null,null,null,null,null,null,null,null,null,null,null,"Corian","Fawn","C",0]
[null,null,null,null,null,null,null,null,null,null,null,null,null,null,null,null,null,null,null,null,null,null,null,null,"Corian","Flint","C",0]
[null,null,null,null,null,null,null,null,null,null,null,null,null,null,null,null,null,null,null,null,null,null,null,null,"Corian","Fossil","C","0108010"]
[null,null,null,null,null,null,null,null,null,null,null,null,null,null,null,null,null,null,null,null,null,null,null,null,"Corian","Glacier Ice","C","0108039"]
[null,null,null,null,null,null,null,null,null,null,null,null,null,null,null,null,null,null,null,null,null,null,null,null,"Corian","Glacier White","A","0108002"]
[null,null,null,null,null,null,null,null,null,null,null,null,null,null,null,null,null,null,null,null,null,null,null,null,"Corian","Granola","C",0]
[null,null,null,null,null,null,null,null,null,null,null,null,null,null,null,null,null,null,null,null,null,null,null,null,"Corian","Graylite","D","0108020"]
[null,null,null,null,null,null,null,null,null,null,null,null,null,null,null,null,null,null,null,null,null,null,null,null,"Corian","Hazelnut","D","0108026"]
[null,null,null,null,null,null,null,null,null,null,null,null,null,null,null,null,null,null,null,null,null,null,null,null,"Corian","Hickory Smoke","D",0]
[null,null,null,null,null,null,null,null,null,null,null,null,null,null,null,null,null,null,null,null,null,null,null,null,"Corian","Jasmine","D","0108058"]
[null,null,null,null,null,null,null,null,null,null,null,null,null,null,null,null,null,null,null,null,null,null,null,null,"Corian","Juniper","D",0]
[null,null,null,null,null,null,null,null,null,null,null,null,null,null,null,null,null,null,null,null,null,null,null,null,"Corian","Lava Rock","D","0108021"]
[null,null,null,null,null,null,null,null,null,null,null,null,null,null,null,null,null,null,null,null,null,null,null,null,"Corian","Limestone Prima","D",0]
[null,null,null,null,null,null,null,null,null,null,null,null,null,null,null,null,null,null,null,null,null,null,null,null,"Corian","Linen","A","0108006"]
[null,null,null,null,null,null,null,null,null,null,null,null,null,null,null,null,null,null,null,null,null,null,null,null,"Corian","Matterhorn","C","0108048"]
[null,null,null,null,null,null,null,null,null,null,null,null,null,null,null,null,null,null,null,null,null,null,null,null,"Corian","Maui","A","0108017"]
[null,null,null,null,null,null,null,null,null,null,null,null,null,null,null,null,null,null,null,null,null,null,null,null,"Corian","Milky Way","D","0108064"]
[null,null,null,null,null,null,null,null,null,null,null,null,null,null,null,null,null,null,null,null,null,null,null,null,"Corian","Mineral","D",0]
[null,null,null,null,null,null,null,null,null,null,null,null,null,null,null,null,null,null,null,null,null,null,null,null,"Corian","Modern White","B",0]
[null,null,null,null,null,null,null,null,null,null,null,null,null,null,null,null,null,null,null,null,null,null,null,null,"Corian","Mojave","B",0]
[null,null,null,null,null,null,null,null,null,null,null,null,null,null,null,null,null,null,null,null,null,null,null,null,"Corian","Moss","B",0]
[null,null,null,null,null,null,null,null,null,null,null,null,null,null,null,null,null,null,null,null,null,null,null,null,"Corian","Natural Gray","D","0108056"]
[null,null,null,null,null,null,null,null,null,null,null,null,null,null,null,null,null,null,null,null,null,null,null,null,"Corian","Neutral Concrete","C",0]
[null,null,null,null,null,null,null,null,null,null,null,null,null,null,null,null,null,null,null,null,null,null,null,null,"Corian","NightFall","B",0]
[null,null,null,null,null,null,null,null,null,null,null,null,null,null,null,null,null,null,null,null,null,null,null,null,"Corian","Nimbus Prima","D",0]
[null,null,null,null,null,null,null,null,null,null,null,null,null,null,null,null,null,null,null,null,null,null,null,null,"Corian","Oat","C","0108045"]
[null,null,null,null,null,null,null,null,null,null,null,null,null,null,null,null,null,null,null,null,null,null,null,null,"Corian","Pearl Gray","B","0108033"]
[null,null,null,null,null,null,null,null,null,null,null,null,null,null,null,null,null,null,null,null,null,null,null,null,"Corian","Pine","C","0108054"]
[null,null,null,null,null,null,null,null,null,null,null,null,null,null,null,null,null,null,null,null,null,null,null,null,"Corian","Platinum","B","0108040"]
[null,null,null,null,null,null,null,null,null,null,null,null,null,null,null,null,null,null,null,null,null,null,null,null,"Corian","Raffia","C","0108012"]
[null,null,null,null,null,null,null,null,null,null,null,null,null,null,null,null,null,null,null,null,null,null,null,null,"Corian","Rain Cloud","D","0108036"]
[null,null,null,null,null,null,null,null,null,null,null,null,null,null,null,null,null,null,null,null,null,null,null,null,"Corian","Rice Paper","C","0108005"]
[null,null,null,null,null,null,null,null,null,null,null,null,null,null,null,null,null,null,null,null,null,null,null,null,"Corian","Riverbed","D","0108023"]
[null,null,null,null,null,null,null,null,null,null,null,null,null,null,null,null,null,null,null,null,null,null,null,null,"Corian","Rosemary","D","0108041"]
[null,null,null,null,null,null,null,null,null,null,null,null,null,null,null,null,null,null,null,null,null,null,null,null,"Corian","Royal Red","C","0108023"]
[null,null,null,null,null,null,null,null,null,null,null,null,null,null,null,null,null,null,null,null,null,null,null,null,"Corian","Saffron","D",0]
[null,null,null,null,null,null,null,null,null,null,null,null,null,null,null,null,null,null,null,null,null,null,null,null,"Corian","Sagebrush","D",0]
[null,null,null,null,null,null,null,null,null,null,null,null,null,null,null,null,null,null,null,null,null,null,null,null,"Corian","Sahara","A",0]
[null,null,null,null,null,null,null,null,null,null,null,null,null,null,null,null,null,null,null,null,null,null,null,null,"Corian","Sand","B",0]
[null,null,null,null,null,null,null,null,null,null,null,null,null,null,null,null,null,null,null,null,null,null,null,null,"Corian","Sand Storm","D","0108052"]
[null,null,null,null,null,null,null,null,null,null,null,null,null,null,null,null,null,null,null,null,null,null,null,null,"Corian","Sandalwood","D","0108050"]
[null,null,null,null,null,null,null,null,null,null,null,null,null,null,null,null,null,null,null,null,null,null,null,null,"Corian","Savannah","B","0108007"]
[null,null,null,null,null,null,null,null,null,null,null,null,null,null,null,null,null,null,null,null,null,null,null,null,"Corian","Seafoam","C","0108051"]
[null,null,null,null,null,null,null,null,null,null,null,null,null,null,null,null,null,null,null,null,null,null,null,null,"Corian","Serene Sage","C",0]
[null,null,null,null,null,null,null,null,null,null,null,null,null,null,null,null,null,null,null,null,null,null,null,null,"Corian","Silt","B",0]
[null,null,null,null,null,null,null,null,null,null,null,null,null,null,null,null,null,null,null,null,null,null,null,null,"Corian","Silver Birch","C","0108025"]
[null,null,null,null,null,null,null,null,null,null,null,null,null,null,null,null,null,null,null,null,null,null,null,null,"Corian","Silver Gray","A",0]
[null,null,null,null,null,null,null,null,null,null,null,null,null,null,null,null,null,null,null,null,null,null,null,null,"Corian","Silverite","C",0]
[null,null,null,null,null,null,null,null,null,null,null,null,null,null,null,null,null,null,null,null,null,null,null,null,"Corian","Smoke Drift Prima","D",0]
[null,null,null,null,null,null,null,null,null,null,null,null,null,null,null,null,null,null,null,null,null,null,null,null,"Corian","Sonora","D",0]
[null,null,null,null,null,null,null,null,null,null,null,null,null,null,null,null,null,null,null,null,null,null,null,null,"Corian","Sorrel","D","0108019"]
[null,null,null,null,null,null,null,null,null,null,null,null,null,null,null,null,null,null,null,null,null,null,null,null,"Corian","Sparkling White","C",0]
[null,null,null,null,null,null,null,null,null,null,null,null,null,null,null,null,null,null,null,null,null,null,null,null,"Corian","Stardust","D","0108057"]
[null,null,null,null,null,null,null,null,null,null,null,null,null,null,null,null,null,null,null,null,null,null,null,null,"Corian","Suede","C","0108029"]
[null,null,null,null,null,null,null,null,null,null,null,null,null,null,null,null,null,null,null,null,null,null,null,null,"Corian","Tumbleweed","D",0]
[null,null,null,null,null,null,null,null,null,null,null,null,null,null,null,null,null,null,null,null,null,null,null,null,"Corian","Vanilla","A",0]
[null,null,null,null,null,null,null,null,null,null,null,null,null,null,null,null,null,null,null,null,null,null,null,null,"Corian","Venaro White","C","0108024"]
[null,null,null,null,null,null,null,null,null,null,null,null,null,null,null,null,null,null,null,null,null,null,null,null,"Corian","Weathered Concrete","C",0]
[null,null,null,null,null,null,null,null,null,null,null,null,null,null,null,null,null,null,null,null,null,null,null,null,"Corian","Whipped Cream","C","0108027"]
[null,null,null,null,null,null,null,null,null,null,null,null,null,null,null,null,null,null,null,null,null,null,null,null,"Corian","Whisper","C","0108008"]
[null,null,null,null,null,null,null,null,null,null,null,null,null,null,null,null,null,null,null,null,null,null,null,null,"Corian","White Jasmine","C",0]
[null,null,null,null,null,null,null,null,null,null,null,null,null,null,null,null,null,null,null,null,null,null,null,null,"Corian","White Onyx","D",0]
[null,null,null,null,null,null,null,null,null,null,null,null,null,null,null,null,null,null,null,null,null,null,null,null,"Corian","Willow","C","0108032"]
[null,null,null,null,null,null,null,null,null,null,null,null,null,null,null,null,null,null,null,null,null,null,null,null,"Corian","Windswept Prima","D",0]
[null,null,null,null,null,null,null,null,null,null,null,null,null,null,null,null,null,null,null,null,null,null,null,null,"Corian","Witch Hazel","D","0108055"]
[null,null,null,null,null,null,null,null,null,null,null,null,null,null,null,null,null,null,null,null,null,null,null,null,"Silestone","Alpina White","C",0]
[null,null,null,null,null,null,null,null,null,null,null,null,null,null,null,null,null,null,null,null,null,null,null,null,"Silestone","Altair","B",0]
[null,null,null,null,null,null,null,null,null,null,null,null,null,null,null,null,null,null,null,null,null,null,null,null,"Silestone","Arctic","E",0]
[null,null,null,null,null,null,null,null,null,null,null,null,null,null,null,null,null,null,null,null,null,null,null,null,"Silestone","Ariel","C",0]
[null,null,null,null,null,null,null,null,null,null,null,null,null,null,null,null,null,null,null,null,null,null,null,null,"Silestone","Bamboo","D",0]
[null,null,null,null,null,null,null,null,null,null,null,null,null,null,null,null,null,null,null,null,null,null,null,null,"Silestone","Blanco City","A",0]
[null,null,null,null,null,null,null,null,null,null,null,null,null,null,null,null,null,null,null,null,null,null,null,null,"Silestone","Blanco Maple","C","0108087"]
[null,null,null,null,null,null,null,null,null,null,null,null,null,null,null,null,null,null,null,null,null,null,null,null,"Silestone","Blanco Orion","D",0]
[null,null,null,null,null,null,null,null,null,null,null,null,null,null,null,null,null,null,null,null,null,null,null,null,"Silestone","Blue Sahara","B",0]
[null,null,null,null,null,null,null,null,null,null,null,null,null,null,null,null,null,null,null,null,null,null,null,null,"Silestone","Calacatta Gold","E",0]
[null,null,null,null,null,null,null,null,null,null,null,null,null,null,null,null,null,null,null,null,null,null,null,null,"Silestone","Calypso","E",0]
[null,null,null,null,null,null,null,null,null,null,null,null,null,null,null,null,null,null,null,null,null,null,null,null,"Silestone","Capri Limestone","C",0]
[null,null,null,null,null,null,null,null,null,null,null,null,null,null,null,null,null,null,null,null,null,null,null,null,"Silestone","Cemento","B",0]
[null,null,null,null,null,null,null,null,null,null,null,null,null,null,null,null,null,null,null,null,null,null,null,null,"Silestone","Charcoal Soapstone","D",0]
[null,null,null,null,null,null,null,null,null,null,null,null,null,null,null,null,null,null,null,null,null,null,null,null,"Silestone","Chrome","E",0]
[null,null,null,null,null,null,null,null,null,null,null,null,null,null,null,null,null,null,null,null,null,null,null,null,"Silestone","Classic White","C",0]
[null,null,null,null,null,null,null,null,null,null,null,null,null,null,null,null,null,null,null,null,null,null,null,null,"Silestone","Coppermist","D",0]
[null,null,null,null,null,null,null,null,null,null,null,null,null,null,null,null,null,null,null,null,null,null,null,null,"Silestone","Coral Clay","B",0]
[null,null,null,null,null,null,null,null,null,null,null,null,null,null,null,null,null,null,null,null,null,null,null,null,"Silestone","Cygnus","B",0]
[null,null,null,null,null,null,null,null,null,null,null,null,null,null,null,null,null,null,null,null,null,null,null,null,"Silestone","Daria","E",0]
[null,null,null,null,null,null,null,null,null,null,null,null,null,null,null,null,null,null,null,null,null,null,null,null,"Silestone","Forest Snow","D",0]
[null,null,null,null,null,null,null,null,null,null,null,null,null,null,null,null,null,null,null,null,null,null,null,null,"Silestone","Grey Expo","A",0]
[null,null,null,null,null,null,null,null,null,null,null,null,null,null,null,null,null,null,null,null,null,null,null,null,"Silestone","Helix","E",0]
[null,null,null,null,null,null,null,null,null,null,null,null,null,null,null,null,null,null,null,null,null,null,null,null,"Silestone","Iconic Black","D",0]
[null,null,null,null,null,null,null,null,null,null,null,null,null,null,null,null,null,null,null,null,null,null,null,null,"Silestone","Iconic White","E",0]
[null,null,null,null,null,null,null,null,null,null,null,null,null,null,null,null,null,null,null,null,null,null,null,null,"Silestone","Iron Bark","B",0]
[null,null,null,null,null,null,null,null,null,null,null,null,null,null,null,null,null,null,null,null,null,null,null,null,"Silestone","Iron Ore","E",0]
[null,null,null,null,null,null,null,null,null,null,null,null,null,null,null,null,null,null,null,null,null,null,null,null,"Silestone","Kensho","D",0]
[null,null,null,null,null,null,null,null,null,null,null,null,null,null,null,null,null,null,null,null,null,null,null,null,"Silestone","Kimbler Mist","E",0]
[null,null,null,null,null,null,null,null,null,null,null,null,null,null,null,null,null,null,null,null,null,null,null,null,"Silestone","Kona Beige","C",0]
[null,null,null,null,null,null,null,null,null,null,null,null,null,null,null,null,null,null,null,null,null,null,null,null,"Silestone","Lagoon","D",0]
[null,null,null,null,null,null,null,null,null,null,null,null,null,null,null,null,null,null,null,null,null,null,null,null,"Silestone","Lena","A",0]
[null,null,null,null,null,null,null,null,null,null,null,null,null,null,null,null,null,null,null,null,null,null,null,null,"Silestone","Luna","E",0]
[null,null,null,null,null,null,null,null,null,null,null,null,null,null,null,null,null,null,null,null,null,null,null,null,"Silestone","Lusso","D",0]
[null,null,null,null,null,null,null,null,null,null,null,null,null,null,null,null,null,null,null,null,null,null,null,null,"Silestone","Lyra","D",0]
[null,null,null,null,null,null,null,null,null,null,null,null,null,null,null,null,null,null,null,null,null,null,null,null,"Silestone","Marengo","A",0]
[null,null,null,null,null,null,null,null,null,null,null,null,null,null,null,null,null,null,null,null,null,null,null,null,"Silestone","Marquina","E",0]
[null,null,null,null,null,null,null,null,null,null,null,null,null,null,null,null,null,null,null,null,null,null,null,null,"Silestone","Minerva Cream","A",0]
[null,null,null,null,null,null,null,null,null,null,null,null,null,null,null,null,null,null,null,null,null,null,null,null,"Silestone","Moonstone","E",0]
[null,null,null,null,null,null,null,null,null,null,null,null,null,null,null,null,null,null,null,null,null,null,null,null,"Silestone","Mountain Mist","C",0]
[null,null,null,null,null,null,null,null,null,null,null,null,null,null,null,null,null,null,null,null,null,null,null,null,"Silestone","Noka","A",0]
[null,null,null,null,null,null,null,null,null,null,null,null,null,null,null,null,null,null,null,null,null,null,null,null,"Silestone","Ocean Jasper","E",0]
[null,null,null,null,null,null,null,null,null,null,null,null,null,null,null,null,null,null,null,null,null,null,null,null,"Silestone","Ocean Storm","E",0]
[null,null,null,null,null,null,null,null,null,null,null,null,null,null,null,null,null,null,null,null,null,null,null,null,"Silestone","Pearl Jasmine","D",0]
[null,null,null,null,null,null,null,null,null,null,null,null,null,null,null,null,null,null,null,null,null,null,null,null,"Silestone","Phoenix","E",0]
[null,null,null,null,null,null,null,null,null,null,null,null,null,null,null,null,null,null,null,null,null,null,null,null,"Silestone","Pietra","E",0]
[null,null,null,null,null,null,null,null,null,null,null,null,null,null,null,null,null,null,null,null,null,null,null,null,"Silestone","Quasar","E",0]
[null,null,null,null,null,null,null,null,null,null,null,null,null,null,null,null,null,null,null,null,null,null,null,null,"Silestone","Riverbed","E",0]
[null,null,null,null,null,null,null,null,null,null,null,null,null,null,null,null,null,null,null,null,null,null,null,null,"Silestone","Royal Reef","B",0]
[null,null,null,null,null,null,null,null,null,null,null,null,null,null,null,null,null,null,null,null,null,null,null,null,"Silestone","Seleno","E",0]
[null,null,null,null,null,null,null,null,null,null,null,null,null,null,null,null,null,null,null,null,null,null,null,null,"Silestone","Serena","E",0]
[null,null,null,null,null,null,null,null,null,null,null,null,null,null,null,null,null,null,null,null,null,null,null,null,"Silestone","Sienna Ridge","C",0]
[null,null,null,null,null,null,null,null,null,null,null,null,null,null,null,null,null,null,null,null,null,null,null,null,"Silestone","Sierra Madre","C",0]
[null,null,null,null,null,null,null,null,null,null,null,null,null,null,null,null,null,null,null,null,null,null,null,null,"Silestone","Statuario","E",0]
[null,null,null,null,null,null,null,null,null,null,null,null,null,null,null,null,null,null,null,null,null,null,null,null,"Silestone","Stellar Night","D",0]
[null,null,null,null,null,null,null,null,null,null,null,null,null,null,null,null,null,null,null,null,null,null,null,null,"Silestone","Stellar Snow","D",0]
[null,null,null,null,null,null,null,null,null,null,null,null,null,null,null,null,null,null,null,null,null,null,null,null,"Silestone","Tebas Black","A",0]
[null,null,null,null,null,null,null,null,null,null,null,null,null,null,null,null,null,null,null,null,null,null,null,null,"Silestone","Tigris Sand","D",0]
[null,null,null,null,null,null,null,null,null,null,null,null,null,null,null,null,null,null,null,null,null,null,null,null,"Silestone","Unsui","D",0]
[null,null,null,null,null,null,null,null,null,null,null,null,null,null,null,null,null,null,null,null,null,null,null,null,"Silestone","Vortium","E",0]
[null,null,null,null,null,null,null,null,null,null,null,null,null,null,null,null,null,null,null,null,null,null,null,null,"Silestone","White Diamond","E",0]
[null,null,null,null,null,null,null,null,null,null,null,null,null,null,null,null,null,null,null,null,null,null,null,null,"Silestone","White North","B",0]
[null,null,null,null,null,null,null,null,null,null,null,null,null,null,null,null,null,null,null,null,null,null,null,null,"Silestone","White Platinum","E",0]
[null,null,null,null,null,null,null,null,null,null,null,null,null,null,null,null,null,null,null,null,null,null,null,null,"Silestone","White Storm","B","0108096"]
[null,null,null,null,null,null,null,null,null,null,null,null,null,null,null,null,null,null,null,null,null,null,null,null,"Silestone","White Zeus Extreme","D",0]
[null,null,null,null,null,null,null,null,null,null,null,null,null,null,null,null,null,null,null,null,null,null,null,null,"Silestone","Yukon Blanco","D",0]
[null,null,null,null,null,null,null,null,null,null,null,null,null,null,null,null,null,null,null,null,null,null,null,null,"Silestone","Zirconium","E",0]
[null,null,null,null,null,null,null,null,null,null,null,null,null,null,null,null,null,null,null,null,null,null,null,null,"Silestone","Absolute Green***",{"$error":"#N/A"},{"$error":"#N/A"}]
[null,null,null,null,null,null,null,null,null,null,null,null,null,null,null,null,null,null,null,null,null,null,null,null,"Silestone","African Red***",{"$error":"#N/A"},{"$error":"#N/A"}]
[null,null,null,null,null,null,null,null,null,null,null,null,null,null,null,null,null,null,null,null,null,null,null,null,"Silestone","Albedo***",{"$error":"#N/A"},{"$error":"#N/A"}]
[null,null,null,null,null,null,null,null,null,null,null,null,null,null,null,null,null,null,null,null,null,null,null,null,"Silestone","Amarillo Palmira***",{"$error":"#N/A"},{"$error":"#N/A"}]
[null,null,null,null,null,null,null,null,null,null,null,null,null,null,null,null,null,null,null,null,null,null,null,null,"Silestone","Amarillo Sand***",{"$error":"#N/A"},{"$error":"#N/A"}]
[null,null,null,null,null,null,null,null,null,null,null,null,null,null,null,null,null,null,null,null,null,null,null,null,"Silestone","Antique Gold***",{"$error":"#N/A"},{"$error":"#N/A"}]
[null,null,null,null,null,null,null,null,null,null,null,null,null,null,null,null,null,null,null,null,null,null,null,null,"Silestone","Aquatint***",{"$error":"#N/A"},{"$error":"#N/A"}]
[null,null,null,null,null,null,null,null,null,null,null,null,null,null,null,null,null,null,null,null,null,null,null,null,"Silestone","Arezzo***",{"$error":"#N/A"},{"$error":"#N/A"}]
[null,null,null,null,null,null,null,null,null,null,null,null,null,null,null,null,null,null,null,null,null,null,null,null,"Silestone","Atlantis***",{"$error":"#N/A"},{"$error":"#N/A"}]
[null,null,null,null,null,null,null,null,null,null,null,null,null,null,null,null,null,null,null,null,null,null,null,null,"Silestone","Bering***",{"$error":"#N/A"},{"$error":"#N/A"}]
[null,null,null,null,null,null,null,null,null,null,null,null,null,null,null,null,null,null,null,null,null,null,null,null,"Silestone","Black Anubis***",{"$error":"#N/A"},{"$error":"#N/A"}]
[null,null,null,null,null,null,null,null,null,null,null,null,null,null,null,null,null,null,null,null,null,null,null,null,"Silestone","Black Canyon***",{"$error":"#N/A"},{"$error":"#N/A"}]
[null,null,null,null,null,null,null,null,null,null,null,null,null,null,null,null,null,null,null,null,null,null,null,null,"Silestone","Black Dragon***",{"$error":"#N/A"},{"$error":"#N/A"}]
[null,null,null,null,null,null,null,null,null,null,null,null,null,null,null,null,null,null,null,null,null,null,null,null,"Silestone","Black Forest***",{"$error":"#N/A"},{"$error":"#N/A"}]
[null,null,null,null,null,null,null,null,null,null,null,null,null,null,null,null,null,null,null,null,null,null,null,null,"Silestone","Blue Cielo***",{"$error":"#N/A"},{"$error":"#N/A"}]
[null,null,null,null,null,null,null,null,null,null,null,null,null,null,null,null,null,null,null,null,null,null,null,null,"Silestone","Blue Enjoy***",{"$error":"#N/A"},{"$error":"#N/A"}]
[null,null,null,null,null,null,null,null,null,null,null,null,null,null,null,null,null,null,null,null,null,null,null,null,"Silestone","Blue Safita***",{"$error":"#N/A"},{"$error":"#N/A"}]
[null,null,null,null,null,null,null,null,null,null,null,null,null,null,null,null,null,null,null,null,null,null,null,null,"Silestone","Brazilian Brown***",{"$error":"#N/A"},{"$error":"#N/A"}]
[null,null,null,null,null,null,null,null,null,null,null,null,null,null,null,null,null,null,null,null,null,null,null,null,"Silestone","Caramel Rhine***",{"$error":"#N/A"},{"$error":"#N/A"}]
[null,null,null,null,null,null,null,null,null,null,null,null,null,null,null,null,null,null,null,null,null,null,null,null,"Silestone","Carbono***",{"$error":"#N/A"},{"$error":"#N/A"}]
[null,null,null,null,null,null,null,null,null,null,null,null,null,null,null,null,null,null,null,null,null,null,null,null,"Silestone","Cobalt Blue***",{"$error":"#N/A"},{"$error":"#N/A"}]
[null,null,null,null,null,null,null,null,null,null,null,null,null,null,null,null,null,null,null,null,null,null,null,null,"Silestone","Coffee Brown***",{"$error":"#N/A"},{"$error":"#N/A"}]
[null,null,null,null,null,null,null,null,null,null,null,null,null,null,null,null,null,null,null,null,null,null,null,null,"Silestone","Coral Troya***",{"$error":"#N/A"},{"$error":"#N/A"}]
[null,null,null,null,null,null,null,null,null,null,null,null,null,null,null,null,null,null,null,null,null,null,null,null,"Silestone","Crystal Ash***",{"$error":"#N/A"},{"$error":"#N/A"}]
[null,null,null,null,null,null,null,null,null,null,null,null,null,null,null,null,null,null,null,null,null,null,null,null,"Silestone","Crystal Sand***",{"$error":"#N/A"},{"$error":"#N/A"}]
[null,null,null,null,null,null,null,null,null,null,null,null,null,null,null,null,null,null,null,null,null,null,null,null,"Silestone","Dinux***",{"$error":"#N/A"},{"$error":"#N/A"}]
[null,null,null,null,null,null,null,null,null,null,null,null,null,null,null,null,null,null,null,null,null,null,null,null,"Silestone","Doradus***",{"$error":"#N/A"},{"$error":"#N/A"}]
[null,null,null,null,null,null,null,null,null,null,null,null,null,null,null,null,null,null,null,null,null,null,null,null,"Silestone","Dreis***",{"$error":"#N/A"},{"$error":"#N/A"}]
[null,null,null,null,null,null,null,null,null,null,null,null,null,null,null,null,null,null,null,null,null,null,null,null,"Silestone","Ebony Pearl***",{"$error":"#N/A"},{"$error":"#N/A"}]
[null,null,null,null,null,null,null,null,null,null,null,null,null,null,null,null,null,null,null,null,null,null,null,null,"Silestone","Gedatsu***",{"$error":"#N/A"},{"$error":"#N/A"}]
[null,null,null,null,null,null,null,null,null,null,null,null,null,null,null,null,null,null,null,null,null,null,null,null,"Silestone","Giallo Nova***",{"$error":"#N/A"},{"$error":"#N/A"}]
[null,null,null,null,null,null,null,null,null,null,null,null,null,null,null,null,null,null,null,null,null,null,null,null,"Silestone","Giallo Quarry***",{"$error":"#N/A"},{"$error":"#N/A"}]
[null,null,null,null,null,null,null,null,null,null,null,null,null,null,null,null,null,null,null,null,null,null,null,null,"Silestone","Halley***",{"$error":"#N/A"},{"$error":"#N/A"}]
[null,null,null,null,null,null,null,null,null,null,null,null,null,null,null,null,null,null,null,null,null,null,null,null,"Silestone","Hudson***",{"$error":"#N/A"},{"$error":"#N/A"}]
[null,null,null,null,null,null,null,null,null,null,null,null,null,null,null,null,null,null,null,null,null,null,null,null,"Silestone","Ink***",{"$error":"#N/A"},{"$error":"#N/A"}]
[null,null,null,null,null,null,null,null,null,null,null,null,null,null,null,null,null,null,null,null,null,null,null,null,"Silestone","Istmo***",{"$error":"#N/A"},{"$error":"#N/A"}]
[null,null,null,null,null,null,null,null,null,null,null,null,null,null,null,null,null,null,null,null,null,null,null,null,"Silestone","Ivory Coast***",{"$error":"#N/A"},{"$error":"#N/A"}]
[null,null,null,null,null,null,null,null,null,null,null,null,null,null,null,null,null,null,null,null,null,null,null,null,"Silestone","Kalahari***",{"$error":"#N/A"},{"$error":"#N/A"}]
[null,null,null,null,null,null,null,null,null,null,null,null,null,null,null,null,null,null,null,null,null,null,null,null,"Silestone","Kimbler Mist","E",0]
[null,null,null,null,null,null,null,null,null,null,null,null,null,null,null,null,null,null,null,null,null,null,null,null,"Silestone","Koan***",{"$error":"#N/A"},{"$error":"#N/A"}]
[null,null,null,null,null,null,null,null,null,null,null,null,null,null,null,null,null,null,null,null,null,null,null,null,"Silestone","Magenta Energy***",{"$error":"#N/A"},{"$error":"#N/A"}]
[null,null,null,null,null,null,null,null,null,null,null,null,null,null,null,null,null,null,null,null,null,null,null,null,"Silestone","Mahogany***",{"$error":"#N/A"},{"$error":"#N/A"}]
[null,null,null,null,null,null,null,null,null,null,null,null,null,null,null,null,null,null,null,null,null,null,null,null,"Silestone","Mont Blanc***",{"$error":"#N/A"},{"$error":"#N/A"}]
[null,null,null,null,null,null,null,null,null,null,null,null,null,null,null,null,null,null,null,null,null,null,null,null,"Silestone","Niebla***",{"$error":"#N/A"},{"$error":"#N/A"}]
[null,null,null,null,null,null,null,null,null,null,null,null,null,null,null,null,null,null,null,null,null,null,null,null,"Silestone","Night Mist***",{"$error":"#N/A"},{"$error":"#N/A"}]
[null,null,null,null,null,null,null,null,null,null,null,null,null,null,null,null,null,null,null,null,null,null,null,null,"Silestone","Nuit Bleue***",{"$error":"#N/A"},{"$error":"#N/A"}]
[null,null,null,null,null,null,null,null,null,null,null,null,null,null,null,null,null,null,null,null,null,null,null,null,"Silestone","Nymbus***",{"$error":"#N/A"},{"$error":"#N/A"}]
[null,null,null,null,null,null,null,null,null,null,null,null,null,null,null,null,null,null,null,null,null,null,null,null,"Silestone","Olive Green***",{"$error":"#N/A"},{"$error":"#N/A"}]
[null,null,null,null,null,null,null,null,null,null,null,null,null,null,null,null,null,null,null,null,null,null,null,null,"Silestone","Olivia***",{"$error":"#N/A"},{"$error":"#N/A"}]
[null,null,null,null,null,null,null,null,null,null,null,null,null,null,null,null,null,null,null,null,null,null,null,null,"Silestone","Orange Cool***",{"$error":"#N/A"},{"$error":"#N/A"}]
[null,null,null,null,null,null,null,null,null,null,null,null,null,null,null,null,null,null,null,null,null,null,null,null,"Silestone","Orange Fuego***",{"$error":"#N/A"},{"$error":"#N/A"}]
[null,null,null,null,null,null,null,null,null,null,null,null,null,null,null,null,null,null,null,null,null,null,null,null,"Silestone","Polar Cap***",{"$error":"#N/A"},{"$error":"#N/A"}]
[null,null,null,null,null,null,null,null,null,null,null,null,null,null,null,null,null,null,null,null,null,null,null,null,"Silestone","Zirix***",{"$error":"#N/A"},{"$error":"#N/A"}]
[null,null,null,null,null,null,null,null,null,null,null,null,null,null,null,null,null,null,null,null,null,null,null,null,"Silestone","Rainforest***",{"$error":"#N/A"},{"$error":"#N/A"}]
[null,null,null,null,null,null,null,null,null,null,null,null,null,null,null,null,null,null,null,null,null,null,null,null,"Silestone","Red Eros***",{"$error":"#N/A"},{"$error":"#N/A"}]
[null,null,null,null,null,null,null,null,null,null,null,null,null,null,null,null,null,null,null,null,null,null,null,null,"Silestone","Red Pine***",{"$error":"#N/A"},{"$error":"#N/A"}]
[null,null,null,null,null,null,null,null,null,null,null,null,null,null,null,null,null,null,null,null,null,null,null,null,"Silestone","Red Vital***",{"$error":"#N/A"},{"$error":"#N/A"}]
[null,null,null,null,null,null,null,null,null,null,null,null,null,null,null,null,null,null,null,null,null,null,null,null,"Silestone","Rosa Grey***",{"$error":"#N/A"},{"$error":"#N/A"}]
[null,null,null,null,null,null,null,null,null,null,null,null,null,null,null,null,null,null,null,null,null,null,null,null,"Silestone","Rosso Monza***",{"$error":"#N/A"},{"$error":"#N/A"}]
[null,null,null,null,null,null,null,null,null,null,null,null,null,null,null,null,null,null,null,null,null,null,null,null,"Silestone","Santa Fe Brown***",{"$error":"#N/A"},{"$error":"#N/A"}]
[null,null,null,null,null,null,null,null,null,null,null,null,null,null,null,null,null,null,null,null,null,null,null,null,"Silestone","Satori***",{"$error":"#N/A"},{"$error":"#N/A"}]
[null,null,null,null,null,null,null,null,null,null,null,null,null,null,null,null,null,null,null,null,null,null,null,null,"Silestone","Silver Nube***",{"$error":"#N/A"},{"$error":"#N/A"}]
[null,null,null,null,null,null,null,null,null,null,null,null,null,null,null,null,null,null,null,null,null,null,null,null,"Silestone","Bianco River***",{"$error":"#N/A"},{"$error":"#N/A"}]
[null,null,null,null,null,null,null,null,null,null,null,null,null,null,null,null,null,null,null,null,null,null,null,null,"Silestone","Sonora Gold***",{"$error":"#N/A"},{"$error":"#N/A"}]
[null,null,null,null,null,null,null,null,null,null,null,null,null,null,null,null,null,null,null,null,null,null,null,null,"Silestone","Starlight***",{"$error":"#N/A"},{"$error":"#N/A"}]
[null,null,null,null,null,null,null,null,null,null,null,null,null,null,null,null,null,null,null,null,null,null,null,null,"Silestone","Steel***",{"$error":"#N/A"},{"$error":"#N/A"}]
[null,null,null,null,null,null,null,null,null,null,null,null,null,null,null,null,null,null,null,null,null,null,null,null,"Silestone","Stellar Fire***",{"$error":"#N/A"},{"$error":"#N/A"}]
[null,null,null,null,null,null,null,null,null,null,null,null,null,null,null,null,null,null,null,null,null,null,null,null,"Silestone","Stellar Marine***",{"$error":"#N/A"},{"$error":"#N/A"}]
[null,null,null,null,null,null,null,null,null,null,null,null,null,null,null,null,null,null,null,null,null,null,null,null,"Silestone","Stellar Sun***",{"$error":"#N/A"},{"$error":"#N/A"}]
[null,null,null,null,null,null,null,null,null,null,null,null,null,null,null,null,null,null,null,null,null,null,null,null,"Silestone","Tao***",{"$error":"#N/A"},{"$error":"#N/A"}]
[null,null,null,null,null,null,null,null,null,null,null,null,null,null,null,null,null,null,null,null,null,null,null,null,"Silestone","Tea Leaf***",{"$error":"#N/A"},{"$error":"#N/A"}]
[null,null,null,null,null,null,null,null,null,null,null,null,null,null,null,null,null,null,null,null,null,null,null,null,"Silestone","Terra***",{"$error":"#N/A"},{"$error":"#N/A"}]
[null,null,null,null,null,null,null,null,null,null,null,null,null,null,null,null,null,null,null,null,null,null,null,null,"Silestone","Toffee***",{"$error":"#N/A"},{"$error":"#N/A"}]
[null,null,null,null,null,null,null,null,null,null,null,null,null,null,null,null,null,null,null,null,null,null,null,null,"Silestone","Tritium***",{"$error":"#N/A"},{"$error":"#N/A"}]
[null,null,null,null,null,null,null,null,null,null,null,null,null,null,null,null,null,null,null,null,null,null,null,null,"Silestone","Urban Cream***",{"$error":"#N/A"},{"$error":"#N/A"}]
[null,null,null,null,null,null,null,null,null,null,null,null,null,null,null,null,null,null,null,null,null,null,null,null,"Silestone","Verde Agua***",{"$error":"#N/A"},{"$error":"#N/A"}]
[null,null,null,null,null,null,null,null,null,null,null,null,null,null,null,null,null,null,null,null,null,null,null,null,"Silestone","White Dune***",{"$error":"#N/A"},{"$error":"#N/A"}]
[null,null,null,null,null,null,null,null,null,null,null,null,null,null,null,null,null,null,null,null,null,null,null,null,"Silestone","Yellow Dream***",{"$error":"#N/A"},{"$error":"#N/A"}]
[null,null,null,null,null,null,null,null,null,null,null,null,null,null,null,null,null,null,null,null,null,null,null,null,"Silestone","Zynite***",{"$error":"#N/A"},{"$error":"#N/A"}]
[null,null,null,null,null,null,null,null,null,null,null,null,null,null,null,null,null,null,null,null,null,null,null,null,"Silestone","Blanco City","A",0]
[null,null,null,null,null,null,null,null,null,null,null,null,null,null,null,null,null,null,null,null,null,null,null,null,"Silestone","Tebas Black","A",0]
[null,null,null,null,null,null,null,null,null,null,null,null,null,null,null,null,null,null,null,null,null,null,null,null,"Silestone","Grey Expo","A",0]
[null,null,null,null,null,null,null,null,null,null,null,null,null,null,null,null,null,null,null,null,null,null,null,null,"Silestone","Minerva Cream","A",0]
[null,null,null,null,null,null,null,null,null,null,null,null,null,null,null,null,null,null,null,null,null,null,null,null,"Silestone","Royal Cemento***",{"$error":"#N/A"},{"$error":"#N/A"}]
[null,null,null,null,null,null,null,null,null,null,null,null,null,null,null,null,null,null,null,null,null,null,null,null,"Silestone","Iron Bark","B",0]
[null,null,null,null,null,null,null,null,null,null,null,null,null,null,null,null,null,null,null,null,null,null,null,null,"Silestone","Coral Clay","B",0]
[null,null,null,null,null,null,null,null,null,null,null,null,null,null,null,null,null,null,null,null,null,null,null,null,"Silestone","Reef***",{"$error":"#N/A"},{"$error":"#N/A"}]
[null,null,null,null,null,null,null,null,null,null,null,null,null,null,null,null,null,null,null,null,null,null,null,null,"Silestone","White North","B",0]
[null,null,null,null,null,null,null,null,null,null,null,null,null,null,null,null,null,null,null,null,null,null,null,null,"Silestone","White Storm","B","0108096"]
[null,null,null,null,null,null,null,null,null,null,null,null,null,null,null,null,null,null,null,null,null,null,null,null,"Silestone","Alpina White","C",0]
[null,null,null,null,null,null,null,null,null,null,null,null,null,null,null,null,null,null,null,null,null,null,null,null,"Silestone","Ariel","C",0]
[null,null,null,null,null,null,null,null,null,null,null,null,null,null,null,null,null,null,null,null,null,null,null,null,"Silestone","Blanco Maple","C","0108087"]
[null,null,null,null,null,null,null,null,null,null,null,null,null,null,null,null,null,null,null,null,null,null,null,null,"Silestone","Capri Limestone","C",0]
[null,null,null,null,null,null,null,null,null,null,null,null,null,null,null,null,null,null,null,null,null,null,null,null,"Silestone","Classic White","C",0]
[null,null,null,null,null,null,null,null,null,null,null,null,null,null,null,null,null,null,null,null,null,null,null,null,"Silestone","Mountain Mist","C",0]
[null,null,null,null,null,null,null,null,null,null,null,null,null,null,null,null,null,null,null,null,null,null,null,null,"Silestone","Sienna Ridge","C",0]
[null,null,null,null,null,null,null,null,null,null,null,null,null,null,null,null,null,null,null,null,null,null,null,null,"Silestone","Sierra Madre","C",0]
[null,null,null,null,null,null,null,null,null,null,null,null,null,null,null,null,null,null,null,null,null,null,null,null,"Silestone","Bamboo","D",0]
[null,null,null,null,null,null,null,null,null,null,null,null,null,null,null,null,null,null,null,null,null,null,null,null,"Silestone","Charcoal Soapstone","D",0]
[null,null,null,null,null,null,null,null,null,null,null,null,null,null,null,null,null,null,null,null,null,null,null,null,"Silestone","Coppermist","D",0]
[null,null,null,null,null,null,null,null,null,null,null,null,null,null,null,null,null,null,null,null,null,null,null,null,"Silestone","Iconic Black","D",0]
[null,null,null,null,null,null,null,null,null,null,null,null,null,null,null,null,null,null,null,null,null,null,null,null,"Silestone","Lagoon","D",0]
[null,null,null,null,null,null,null,null,null,null,null,null,null,null,null,null,null,null,null,null,null,null,null,null,"Silestone","Lyra","D",0]
[null,null,null,null,null,null,null,null,null,null,null,null,null,null,null,null,null,null,null,null,null,null,null,null,"Silestone","Pearl Jasmine","D",0]
[null,null,null,null,null,null,null,null,null,null,null,null,null,null,null,null,null,null,null,null,null,null,null,null,"Silestone","Stellar Night","D",0]
[null,null,null,null,null,null,null,null,null,null,null,null,null,null,null,null,null,null,null,null,null,null,null,null,"Silestone","Unsui","D",0]
[null,null,null,null,null,null,null,null,null,null,null,null,null,null,null,null,null,null,null,null,null,null,null,null,"Silestone","White Zeus Extreme","D",0]
[null,null,null,null,null,null,null,null,null,null,null,null,null,null,null,null,null,null,null,null,null,null,null,null,"Silestone","Arctic","E",0]
[null,null,null,null,null,null,null,null,null,null,null,null,null,null,null,null,null,null,null,null,null,null,null,null,"Silestone","Calypso","E",0]
[null,null,null,null,null,null,null,null,null,null,null,null,null,null,null,null,null,null,null,null,null,null,null,null,"Silestone","Eternal Marquina***",{"$error":"#N/A"},{"$error":"#N/A"}]
[null,null,null,null,null,null,null,null,null,null,null,null,null,null,null,null,null,null,null,null,null,null,null,null,"Silestone","Eternal Serena***",{"$error":"#N/A"},{"$error":"#N/A"}]
[null,null,null,null,null,null,null,null,null,null,null,null,null,null,null,null,null,null,null,null,null,null,null,null,"Silestone","Eternal Statuario***",{"$error":"#N/A"},{"$error":"#N/A"}]
[null,null,null,null,null,null,null,null,null,null,null,null,null,null,null,null,null,null,null,null,null,null,null,null,"Silestone","Iconic White","E",0]
[null,null,null,null,null,null,null,null,null,null,null,null,null,null,null,null,null,null,null,null,null,null,null,null,"Silestone","Kimbler Mist","E",0]
[null,null,null,null,null,null,null,null,null,null,null,null,null,null,null,null,null,null,null,null,null,null,null,null,"Silestone","Luna","E",0]
[null,null,null,null,null,null,null,null,null,null,null,null,null,null,null,null,null,null,null,null,null,null,null,null,"Silestone","Pacifica***",{"$error":"#N/A"},{"$error":"#N/A"}]
[null,null,null,null,null,null,null,null,null,null,null,null,null,null,null,null,null,null,null,null,null,null,null,null,"Silestone","Pietra","E",0]
[null,null,null,null,null,null,null,null,null,null,null,null,null,null,null,null,null,null,null,null,null,null,null,null,"Silestone","Quasar","E",0]
[null,null,null,null,null,null,null,null,null,null,null,null,null,null,null,null,null,null,null,null,null,null,null,null,"Silestone","Seleno","E",0]
[null,null,null,null,null,null,null,null,null,null,null,null,null,null,null,null,null,null,null,null,null,null,null,null,"Silestone","Vortium","E",0]
[null,null,null,null,null,null,null,null,null,null,null,null,null,null,null,null,null,null,null,null,null,null,null,null,"Silestone","Etnl Calacatta Gold***",{"$error":"#N/A"},{"$error":"#N/A"}]
[null,null,null,null,null,null,null,null,null,null,null,null,null,null,null,null,null,null,null,null,null,null,null,null,"Silestone","Iron Ore","E",0]
[null,null,null,null,null,null,null,null,null,null,null,null,null,null,null,null,null,null,null,null,null,null,null,null,"Silestone","Riverbed","E",0]
[null,null,null,null,null,null,null,null,null,null,null,null,null,null,null,null,null,null,null,null,null,null,null,null,"Silestone","White Diamond","E",0]
[null,null,null,null,null,null,null,null,null,null,null,null,null,null,null,null,null,null,null,null,null,null,null,null,"Silestone","Royal Reef","B",0]
[null,null,null,null,null,null,null,null,null,null,null,null,null,null,null,null,null,null,null,null,null,null,null,null,"Corian Quartz","Antique Pearl","D",0]
[null,null,null,null,null,null,null,null,null,null,null,null,null,null,null,null,null,null,null,null,null,null,null,null,"Corian Quartz","Astral Pearl","D",0]
[null,null,null,null,null,null,null,null,null,null,null,null,null,null,null,null,null,null,null,null,null,null,null,null,"Corian Quartz","Blue Carrara ","D",0]
[null,null,null,null,null,null,null,null,null,null,null,null,null,null,null,null,null,null,null,null,null,null,null,null,"Corian Quartz","Borealis Blue","D",0]
[null,null,null,null,null,null,null,null,null,null,null,null,null,null,null,null,null,null,null,null,null,null,null,null,"Corian Quartz","Calacatta Natura","E",0]
[null,null,null,null,null,null,null,null,null,null,null,null,null,null,null,null,null,null,null,null,null,null,null,null,"Corian Quartz","Caraway","D",0]
[null,null,null,null,null,null,null,null,null,null,null,null,null,null,null,null,null,null,null,null,null,null,null,null,"Corian Quartz","Cashmere Carrara","D",0]
[null,null,null,null,null,null,null,null,null,null,null,null,null,null,null,null,null,null,null,null,null,null,null,null,"Corian Quartz","Cloud White","D","0108074"]
[null,null,null,null,null,null,null,null,null,null,null,null,null,null,null,null,null,null,null,null,null,null,null,null,"Corian Quartz","Coarse Botticino","D",0]
[null,null,null,null,null,null,null,null,null,null,null,null,null,null,null,null,null,null,null,null,null,null,null,null,"Corian Quartz","Coarse Carrara","D",0]
[null,null,null,null,null,null,null,null,null,null,null,null,null,null,null,null,null,null,null,null,null,null,null,null,"Corian Quartz","Coarse Marfil","D",0]
[null,null,null,null,null,null,null,null,null,null,null,null,null,null,null,null,null,null,null,null,null,null,null,null,"Corian Quartz","Coarse Pepper","D",0]
[null,null,null,null,null,null,null,null,null,null,null,null,null,null,null,null,null,null,null,null,null,null,null,null,"Corian Quartz","Concrete Carrara ","D",0]
[null,null,null,null,null,null,null,null,null,null,null,null,null,null,null,null,null,null,null,null,null,null,null,null,"Corian Quartz","Coriander","D",0]
[null,null,null,null,null,null,null,null,null,null,null,null,null,null,null,null,null,null,null,null,null,null,null,null,"Corian Quartz","Cygnus Pearl","D",0]
[null,null,null,null,null,null,null,null,null,null,null,null,null,null,null,null,null,null,null,null,null,null,null,null,"Corian Quartz","Dove Grey","D",0]
[null,null,null,null,null,null,null,null,null,null,null,null,null,null,null,null,null,null,null,null,null,null,null,null,"Corian Quartz","Evergreen ","D",0]
[null,null,null,null,null,null,null,null,null,null,null,null,null,null,null,null,null,null,null,null,null,null,null,null,"Corian Quartz","Galaxy Black","D",0]
[null,null,null,null,null,null,null,null,null,null,null,null,null,null,null,null,null,null,null,null,null,null,null,null,"Corian Quartz","Graphite","D",0]
[null,null,null,null,null,null,null,null,null,null,null,null,null,null,null,null,null,null,null,null,null,null,null,null,"Corian Quartz","Gravel","D",0]
[null,null,null,null,null,null,null,null,null,null,null,null,null,null,null,null,null,null,null,null,null,null,null,null,"Corian Quartz","Grigione","D",0]
[null,null,null,null,null,null,null,null,null,null,null,null,null,null,null,null,null,null,null,null,null,null,null,null,"Corian Quartz","Imperial","D",0]
[null,null,null,null,null,null,null,null,null,null,null,null,null,null,null,null,null,null,null,null,null,null,null,null,"Corian Quartz","Indigo Swirl ","D",0]
[null,null,null,null,null,null,null,null,null,null,null,null,null,null,null,null,null,null,null,null,null,null,null,null,"Corian Quartz","Indus Red","D",0]
[null,null,null,null,null,null,null,null,null,null,null,null,null,null,null,null,null,null,null,null,null,null,null,null,"Corian Quartz","London Sky","D",0]
[null,null,null,null,null,null,null,null,null,null,null,null,null,null,null,null,null,null,null,null,null,null,null,null,"Corian Quartz","Lunar Pearl","D",0]
[null,null,null,null,null,null,null,null,null,null,null,null,null,null,null,null,null,null,null,null,null,null,null,null,"Corian Quartz","Marble Mist","D",0]
[null,null,null,null,null,null,null,null,null,null,null,null,null,null,null,null,null,null,null,null,null,null,null,null,"Corian Quartz","Mocha Latte","D",0]
[null,null,null,null,null,null,null,null,null,null,null,null,null,null,null,null,null,null,null,null,null,null,null,null,"Corian Quartz","Mossy Green","D",0]
[null,null,null,null,null,null,null,null,null,null,null,null,null,null,null,null,null,null,null,null,null,null,null,null,"Corian Quartz","Mossy Oak ","D",0]
[null,null,null,null,null,null,null,null,null,null,null,null,null,null,null,null,null,null,null,null,null,null,null,null,"Corian Quartz","Mystic Black","D",0]
[null,null,null,null,null,null,null,null,null,null,null,null,null,null,null,null,null,null,null,null,null,null,null,null,"Corian Quartz","Neve","D",0]
[null,null,null,null,null,null,null,null,null,null,null,null,null,null,null,null,null,null,null,null,null,null,null,null,"Corian Quartz","Oatmeal","D",0]
[null,null,null,null,null,null,null,null,null,null,null,null,null,null,null,null,null,null,null,null,null,null,null,null,"Corian Quartz","Octavio","E",0]
[null,null,null,null,null,null,null,null,null,null,null,null,null,null,null,null,null,null,null,null,null,null,null,null,"Corian Quartz","Onyx Carrara ","D",0]
[null,null,null,null,null,null,null,null,null,null,null,null,null,null,null,null,null,null,null,null,null,null,null,null,"Corian Quartz","Papyrus","D",0]
[null,null,null,null,null,null,null,null,null,null,null,null,null,null,null,null,null,null,null,null,null,null,null,null,"Corian Quartz","Portoro","E",0]
[null,null,null,null,null,null,null,null,null,null,null,null,null,null,null,null,null,null,null,null,null,null,null,null,"Corian Quartz","Provence ","D",0]
[null,null,null,null,null,null,null,null,null,null,null,null,null,null,null,null,null,null,null,null,null,null,null,null,"Corian Quartz","Saddle Brown","D",0]
[null,null,null,null,null,null,null,null,null,null,null,null,null,null,null,null,null,null,null,null,null,null,null,null,"Corian Quartz","Sage","D",0]
[null,null,null,null,null,null,null,null,null,null,null,null,null,null,null,null,null,null,null,null,null,null,null,null,"Corian Quartz","Snodrift","D",0]
[null,null,null,null,null,null,null,null,null,null,null,null,null,null,null,null,null,null,null,null,null,null,null,null,"Corian Quartz","Snow Flurry","D",0]
[null,null,null,null,null,null,null,null,null,null,null,null,null,null,null,null,null,null,null,null,null,null,null,null,"Corian Quartz","Snow White","D","0108084"]
[null,null,null,null,null,null,null,null,null,null,null,null,null,null,null,null,null,null,null,null,null,null,null,null,"Corian Quartz","Space Black","D",0]
[null,null,null,null,null,null,null,null,null,null,null,null,null,null,null,null,null,null,null,null,null,null,null,null,"Corian Quartz","Storm Grey","D","0108080"]
[null,null,null,null,null,null,null,null,null,null,null,null,null,null,null,null,null,null,null,null,null,null,null,null,"Corian Quartz","Stratus White","D","0108089"]
[null,null,null,null,null,null,null,null,null,null,null,null,null,null,null,null,null,null,null,null,null,null,null,null,"Corian Quartz","Toasted Almond","D",0]
[null,null,null,null,null,null,null,null,null,null,null,null,null,null,null,null,null,null,null,null,null,null,null,null,"Corian Quartz","Toffee","D",0]
[null,null,null,null,null,null,null,null,null,null,null,null,null,null,null,null,null,null,null,null,null,null,null,null,"Corian Quartz","Valente Pearl","E",0]
[null,null,null,null,null,null,null,null,null,null,null,null,null,null,null,null,null,null,null,null,null,null,null,null,"Corian Quartz","Venetia Cream","D",0]
[null,null,null,null,null,null,null,null,null,null,null,null,null,null,null,null,null,null,null,null,null,null,null,null,"Corian Quartz","Versilia Grigio","E",0]
[null,null,null,null,null,null,null,null,null,null,null,null,null,null,null,null,null,null,null,null,null,null,null,null,"Corian Quartz","Warm Taupe","D",0]
[null,null,null,null,null,null,null,null,null,null,null,null,null,null,null,null,null,null,null,null,null,null,null,null,"Corian Quartz","Wild Rice","v",0]
[null,null,null,null,null,null,null,null,null,null,null,null,null,null,null,null,null,null,null,null,null,null,null,null,null,"List Color Name in Notes Box"]

{"sheet":"Images (2)","index":14,"n_rows":8,"n_cols":6,"rows_kept":8,"cut":false,"hidden":true,"merged":[]}
["Bounce","Code","Image"]
[{"$f":"IF(ISBLANK('Arc Worksheet'!D23),\"Blank\",'Arc Worksheet'!D23)","v":"Blank"},"Steel",null,null,null,{"$f":"IF(ISBLANK(A2),#N/A,(INDEX($C$2:$C$70,MATCH($A$2,$B$2:$B$70,0))))","v":{"$error":"#N/A"}}]
[null,"Hardwoods"]
[null,"Solid Surface"]
[null,"Glass"]
[null,"Acrylic"]
[null,"Natural Stone"]
[null,"Custom"]

{"sheet":"To DOs","index":15,"n_rows":1,"n_cols":1,"rows_kept":1,"cut":false,"hidden":true,"merged":[]}
["Led off individual basin must multiply per station"]

{"sheet":"Color List 2","index":16,"n_rows":288,"n_cols":18,"rows_kept":288,"cut":false,"hidden":true,"merged":[]}
["Material Type","Brand","Color","Matl-Color","JP COLOR","Price Group","SAP Code","PriceCode","Supplier Color Code","Color Code","Ext Color Code","USE THIS",null,"IF Blank 000000",null,"Sink Color","Category","Code"]
["Quartz","Caeserstone","Alpine Mist",{"$f":"A2& \" - \" & C2","v":"Quartz - Alpine Mist"},{"$f":"A2&\" - \"&B2&\" - \"&C2","v":"Quartz - Caeserstone - Alpine Mist"},"C",null,"Quartz D",5110,"AMI",{"$f":"\"N\"&J2","v":"NAMI"},"D",null,null,null,"Silestone - Albedo***",{"$error":"#N/A"},{"$f":"IFERROR(VLOOKUP(P2,E:G,6,0),\"0000000\")","v":"0000000"}]
["Quartz","Caeserstone","Atlantic Salt","Quartz - Atlantic Salt",{"$f":"A3&\" - \"&B3&\" - \"&C3","v":"Quartz - Caeserstone - Atlantic Salt"},"B",null,"Quartz B",6270,"ASA","NASA","B",null,null,null,"Silestone - Aquatint***",{"$error":"#N/A"},"0000000"]
["Quartz","Caeserstone","Bianco Drift","Quartz - Bianco Drift","Quartz - Caeserstone - Bianco Drift","C",null,"Quartz D",6131,"BDR","NBDR","D",null,null,null,"Silestone - Ariel***",{"$error":"#N/A"},"0000000"]
["Quartz","Caeserstone","Blizzard","Quartz - Blizzard","Quartz - Caeserstone - Blizzard","A","0108095","Quartz A",2141,"BLI","NBLI","A",null,null,null,"Silestone - Bianco River","D","0000000"]
["Quartz","Caeserstone","Calacatta Nuovo","Quartz - Calacatta Nuovo","Quartz - Caeserstone - Calacatta Nuovo","E",null,"Quartz E",5131,"CAL","NCAL","E",null,null,null,"Silestone - Blanco Orion","D","0000000"]
["Quartz","Caeserstone","Clamshell","Quartz - Clamshell","Quartz - Caeserstone - Clamshell","B",null,"Quartz B",4130,"CLA","NCLA","B",null,null,null,"Silestone - Coppermist***",{"$error":"#N/A"},"0000000"]
["Quartz","Caeserstone","Coastal Grey","Quartz - Coastal Grey","Quartz - Caeserstone - Coastal Grey","C",null,"Quartz D",6003,"CGR","NCGR","D",null,null,null,"Silestone - Cygnus Suede","H","0000000"]
["Quartz","Caeserstone","Concrete","Quartz - Concrete","Quartz - Caeserstone - Concrete","A","0108099","Quartz A",2003,"CCR","NCCR","A",null,null,null,"Silestone - Daria Suede","J","0000000"]
["Quartz","Caeserstone","Cosmopolitan White","Quartz - Cosmopolitan White","Quartz - Caeserstone - Cosmopolitan White","C",null,"Quartz D",5130,"CWH","NCWH","D",null,null,null,"Silestone - Eternal Serena***",{"$error":"#N/A"},"0000000"]
["Quartz","Caeserstone","Dreamy Marfil","Quartz - Dreamy Marfil","Quartz - Caeserstone - Dreamy Marfil","C",null,"Quartz D",5220,"DMA","NDMA","D",null,null,null,"Silestone - Grey Amazon","D","0000000"]
["Quartz","Caeserstone","Eggshell","Quartz - Eggshell","Quartz - Caeserstone - Eggshell","A",null,"Quartz A",3141,"EGG","NEGG","A",null,null,null,"Silestone - Grey Expo***",{"$error":"#N/A"},"0000000"]
["Quartz","Caeserstone","Fresh Concrete","Quartz - Fresh Concrete","Quartz - Caeserstone - Fresh Concrete","C",null,"Quartz D",4001,"FCR","NFCR","D",null,null,null,"Silestone - Hudson***",{"$error":"#N/A"},"0000000"]
["Quartz","Caeserstone","Frosty Carrina","Quartz - Frosty Carrina","Quartz - Caeserstone - Frosty Carrina","C",null,"Quartz D",5141,"FCA","NFCA","D",null,null,null,"Silestone - Iconic White***",{"$error":"#N/A"},"0000000"]
["Quartz","Caeserstone","Geogian Bluffs","Quartz - Geogian Bluffs","Quartz - Caeserstone - Geogian Bluffs","C",null,"Quartz D",6134,"GBL","NGBL","D",null,null,null,"Silestone - Iron Bark***",{"$error":"#N/A"},"0000000"]
["Quartz","Caeserstone","Ginger","Quartz - Ginger","Quartz - Caeserstone - Ginger","A",null,"Quartz A",4330,"GIN","NGIN","A",null,null,null,"Silestone - Iron Ore***",{"$error":"#N/A"},"0000000"]
["Quartz","Caeserstone","Haze","Quartz - Haze","Quartz - Caeserstone - Haze","B",null,"Quartz B",2030,"HAZ","NHAZ","B",null,null,null,"Silestone - Koan***",{"$error":"#N/A"},"0000000"]
["Quartz","Caeserstone","Jet Black","Quartz - Jet Black","Quartz - Caeserstone - Jet Black","B",null,"Quartz B",3100,"JBL","NJBL","B",null,null,null,"Silestone - Marengo","A","0000000"]
["Quartz","Caeserstone","Lagos Blue","Quartz - Lagos Blue","Quartz - Caeserstone - Lagos Blue","B",null,"Quartz B",4350,"LBL","NLBL","B",null,null,null,"Silestone - Mountain Mist***",{"$error":"#N/A"},"0000000"]
["Quartz","Caeserstone","Linen","Quartz - Linen","Quartz - Caeserstone - Linen","B",null,"Quartz B",2230,"LIN","NLIN","B",null,null,null,"Silestone - Noka","A","0000000"]
["Quartz","Caeserstone","London Grey","Quartz - London Grey","Quartz - Caeserstone - London Grey","C",null,"Quartz D",5000,"LGR","NLGR","D",null,null,null,"Silestone - Nuit Bleue***",{"$error":"#N/A"},"0000000"]
["Quartz","Caeserstone","Montblanc","Quartz - Montblanc","Quartz - Caeserstone - Montblanc","C",null,"Quartz D",5043,"MBL","NMBL","D",null,null,null,"Silestone - Red Vital***",{"$error":"#N/A"},"0000000"]
["Quartz","Caeserstone","Moorland Fog","Quartz - Moorland Fog","Quartz - Caeserstone - Moorland Fog","B",null,"Quartz B",6046,"MLF","NMLF","B",null,null,null,"Silestone - Riverbed***",{"$error":"#N/A"},"0000000"]
["Quartz","Caeserstone","Nobel Grey","Quartz - Nobel Grey","Quartz - Caeserstone - Nobel Grey","C",null,"Quartz D",5211,"NGR","NNGR","D",null,null,null,"Silestone - Sienna Ridge***",{"$error":"#N/A"},"0000000"]
["Quartz","Caeserstone","Nougat","Quartz - Nougat","Quartz - Caeserstone - Nougat","A",null,"Quartz A",6600,"NOU","NNOU","A",null,null,null,"Silestone - Silver Nube***",{"$error":"#N/A"},"0000000"]
["Quartz","Caeserstone","Ocean Foam","Quartz - Ocean Foam","Quartz - Caeserstone - Ocean Foam","B",null,"Quartz B",6141,"OFO","NOFO","B",null,null,null,"Silestone - Starlight***",{"$error":"#N/A"},"0000000"]
["Quartz","Caeserstone","Organic White","Quartz - Organic White","Quartz - Caeserstone - Organic White","B",null,"Quartz B",4600,"OWH","NOWH","B",null,null,null,"Silestone - Stellar Night***",{"$error":"#N/A"},"0000000"]
["Quartz","Caeserstone","Pebble","Quartz - Pebble","Quartz - Caeserstone - Pebble","B",null,"Quartz B",4030,"PEB","NPEB","B",null,null,null,"Silestone - Tebas Black***",{"$error":"#N/A"},"0000000"]
["Quartz","Caeserstone","Piatra Grey","Quartz - Piatra Grey","Quartz - Caeserstone - Piatra Grey","C",null,"Quartz D",5003,"PIA","NPIA","D",null,null,null,"Silestone - Tigris Sand","D","0000000"]
["Quartz","Caeserstone","Pure White","Quartz - Pure White","Quartz - Caeserstone - Pure White","C",null,"Quartz D",1141,"PWH","NPWH","D",null,null,null,"Silestone - Urban Cream***",{"$error":"#N/A"},"0000000"]
["Quartz","Caeserstone","Quartz Reflections","Quartz - Quartz Reflections","Quartz - Caeserstone - Quartz Reflections","B",null,"Quartz B",7141,"QRE","NQRE","B",null,null,null,"Silestone - Verde Agua***",{"$error":"#N/A"},"0000000"]
["Quartz","Caeserstone","Raven","Quartz - Raven","Quartz - Caeserstone - Raven","B",null,"Quartz B",4120,"RAV","NRAV","B",null,null,null,"Silestone - White Diamond***",{"$error":"#N/A"},"0000000"]
["Quartz","Caeserstone","Raw Concrete","Quartz - Raw Concrete","Quartz - Caeserstone - Raw Concrete","C",null,"Quartz D",4004,"RCR","NRCR","D",null,null,null,"Silestone - White Dune***",{"$error":"#N/A"},"0000000"]
["Quartz","Caeserstone","Rugged Concrete","Quartz - Rugged Concrete","Quartz - Caeserstone - Rugged Concrete","C",null,"Quartz D",4033,"RGC","NRGC","D",null,null,null,"Silestone - White Zeus Extreme***",{"$error":"#N/A"},"0000000"]
["Quartz","Caeserstone","Shitake","Quartz - Shitake","Quartz - Caeserstone - Shitake","B",null,"Quartz B",4230,"SHI","NSHI","B",null,null,null,"Zodiaq - Antique Pearl","A","0000000"]
["Quartz","Caeserstone","Sleek Concrete","Quartz - Sleek Concrete","Quartz - Caeserstone - Sleek Concrete","B",null,"Quartz B",4003,"SCR","NSCR","B",null,null,null,"Zodiaq - Calacatta Natura","B","0000000"]
["Quartz","Caeserstone","Statuario Maximus","Quartz - Statuario Maximus","Quartz - Caeserstone - Statuario Maximus","E",null,"Quartz E",5031,"SMA","NSMA","E",null,null,null,"Zodiaq - Coarse Carrara","A","0000000"]
["Quartz","Caeserstone","Statuario Nuovo","Quartz - Statuario Nuovo","Quartz - Caeserstone - Statuario Nuovo","E",null,"Quartz E",5111,"SNU","NSNU","E",null,null,null,"Zodiaq - Coarse Marfil","A","0000000"]
["Quartz","Caeserstone","Sympony Grey","Quartz - Sympony Grey","Quartz - Caeserstone - Sympony Grey","C",null,"Quartz D",5133,"SGR","NSGR","D",null,null,null,"Zodiaq - Evergreen","A","0000000"]
["Quartz","Caeserstone","Taj Royal","Quartz - Taj Royal","Quartz - Caeserstone - Taj Royal","C",null,"Quartz D",5212,"TAJ","NTAJ","D",null,null,null,"Zodiaq - Galaxy Black","A","0000000"]
["Quartz","Caeserstone","Turbine Grey","Quartz - Turbine Grey","Quartz - Caeserstone - Turbine Grey","B",null,"Quartz B",6313,"TGR","NTGR","B",null,null,null,"Zodiaq - Indus Red","A","0000000"]
["Quartz","Caeserstone","Tuscan Dawn","Quartz - Tuscan Dawn","Quartz - Caeserstone - Tuscan Dawn","C",null,"Quartz D",5104,"TDA","NTDA","D",null,null,null,"Zodiaq - London Sky","A","0000000"]
["Quartz","Caeserstone","Urban Safari","Quartz - Urban Safari","Quartz - Caeserstone - Urban Safari","C",null,"Quartz D",5134,"USA","NUSA","D",null,null,null,"Zodiaq - Marble Mist","A","0000000"]
["Quartz","Caeserstone","Villa Noir","Quartz - Villa Noir","Quartz - Caeserstone - Villa Noir","C",null,"Quartz D",5100,"VNO","NVNO","D",null,null,null,"Zodiaq - Mystic Black","A","0000000"]
["Quartz","Caeserstone","White Attica","Quartz - White Attica","Quartz - Caeserstone - White Attica","C",null,"Quartz D",5143,"WHA","NWHA","D",null,null,null,"Zodiaq - Octavio","B","0000000"]
["Quartz","Caeserstone","Wild Rice","Quartz - Wild Rice","Quartz - Caeserstone - Wild Rice","B",null,"Quartz B",4360,"WRI","NWRI","B",null,null,null,"Zodiaq - Storm Grey","A","0000000"]
["Quartz","Caeserstone","Woodlands","Quartz - Woodlands","Quartz - Caeserstone - Woodlands","C",null,"Quartz D",6338,"WOO","NWOO","D",null,null,null,"Zodiaq - Stratus White","A","0000000"]
["Solid Surface","Corian","Abalone","Solid Surface - Abalone","Solid Surface - Corian - Abalone","A","0000001",{"$f":"\"Corian \" & F48","v":"Corian A"},{"$f":"J48","v":"ABA"},"ABA","CABA","A",null,null,null,"Corian - Abalone","A","0000000"]
["Solid Surface","Corian","Allspice","Solid Surface - Allspice","Solid Surface - Corian - Allspice","D","=J2+1","Corian D","ALS","ALS","CALS","D",null,null,null,"Corian - Allspice","D","0000000"]
["Solid Surface","Corian","Antarctica","Solid Surface - Antarctica","Solid Surface - Corian - Antarctica","B","0108003","Corian B","MAN","MAN","CMAN","B",null,null,null,"Corian - Antarctica","B","0000000"]
["Solid Surface","Corian","Anthracite","Solid Surface - Anthracite","Solid Surface - Corian - Anthracite","C","0108035","Corian C","ANT","ANT","CANT","C",null,null,null,"Corian - Anthracite","C","0000000"]
["Solid Surface","Corian","Aqualite","Solid Surface - Aqualite","Solid Surface - Corian - Aqualite","D",null,"Corian D","AQT","AQT","CAQT","D",null,null,null,"Corian - Aqualite","D","0000000"]
["Solid Surface","Corian","Arctic Ice","Solid Surface - Arctic Ice","Solid Surface - Corian - Arctic Ice","C","0108028","Corian C","ARI","ARI","CARI","C",null,null,null,"Corian - Arctic Ice","C","0000000"]
["Solid Surface","Corian","Arrowroot","Solid Surface - Arrowroot","Solid Surface - Corian - Arrowroot","D","0108034","Corian D","ARR","ARR","CARR","D",null,null,null,"Corian - Arrowroot","D","0000000"]
["Solid Surface","Corian","Ash Concrete","Solid Surface - Ash Concrete","Solid Surface - Corian - Ash Concrete","C",null,"Corian C","ACN","ACN","CACN","C",null,null,null,"Corian - Ash Concrete","C","0000000"]
["Solid Surface","Corian","Basil","Solid Surface - Basil","Solid Surface - Corian - Basil","D",null,"Corian D","BSL","BSL","CBSL","D",null,null,null,"Corian - Basil","D","0000000"]
["Solid Surface","Corian","Bisque","Solid Surface - Bisque","Solid Surface - Corian - Bisque","A","0108042","Corian A","BIS","BIS","CBIS","A",null,null,null,"Corian - Bisque","A","0000000"]
["Solid Surface","Corian","Blue Pebble","Solid Surface - Blue Pebble","Solid Surface - Corian - Blue Pebble","B","0108016","Corian B","BPE","BPE","CBPE","B",null,null,null,"Corian - Blue Pebble","B","0000000"]
["Solid Surface","Corian","Blue Spice","Solid Surface - Blue Spice","Solid Surface - Corian - Blue Spice","C",null,"Corian C","BLS","BLS","CBLS","C",null,null,null,"Corian - Blue Spice","C","0000000"]
["Solid Surface","Corian","Bone","Solid Surface - Bone","Solid Surface - Corian - Bone","A",null,"Corian A","BNE","BNE","CBNE","A",null,null,null,"Corian - Bone","A","0000000"]
["Solid Surface","Corian","Bronzite","Solid Surface - Bronzite","Solid Surface - Corian - Bronzite","C",null,"Corian C","BRO","BRO","CBRO","C",null,null,null,"Corian - Bronzite","C","0000000"]
["Solid Surface","Corian","Burled Birch","Solid Surface - Burled Birch","Solid Surface - Corian - Burled Birch","D",null,"Corian D","BUB","BUB","CBUB","D",null,null,null,"Corian - Burled Birch","D","0000000"]
["Solid Surface","Corian","Cameo White","Solid Surface - Cameo White","Solid Surface - Corian - Cameo White","A","0108004","Corian A","CWH","CWH","CCWH","A",null,null,null,"Corian - Cameo White","A","0000000"]
["Solid Surface","Corian","Canvas","Solid Surface - Canvas","Solid Surface - Corian - Canvas","C","0108009","Corian C","CVS","CVS","CCVS","C",null,null,null,"Corian - Canvas","C","0000000"]
["Solid Surface","Corian","Canyon","Solid Surface - Canyon","Solid Surface - Corian - Canyon","B",null,"Corian B","CAN","CAN","CCAN","B",null,null,null,"Corian - Canyon","B","0000000"]
["Solid Surface","Corian","Carbon Concrete",{"$f":"A66& \" - \" & C66","v":"Solid Surface - Carbon Concrete"},"Solid Surface - Corian - Carbon Concrete","C",null,"Corian C","CCN","CCN","CCCN","C",null,null,null,"Corian - Carbon Concrete","C",{"$f":"IFERROR(VLOOKUP(P66,E:G,6,0),\"0000000\")","v":"0000000"}]
["Solid Surface","Corian","Cilantro","Solid Surface - Cilantro",{"$f":"A67&\" - \"&B67&\" - \"&C67","v":"Solid Surface - Corian - Cilantro"},"C",null,"Corian C","CIL","CIL","CCIL","C",null,null,null,"Corian - Cilantro","C","0000000"]
["Solid Surface","Corian","Clam Shell","Solid Surface - Clam Shell","Solid Surface - Corian - Clam Shell","D",null,"Corian D","CSH","CSH","CCSH","D",null,null,null,"Corian - Clam Shell","D","0000000"]
["Solid Surface","Corian","Cobalt","Solid Surface - Cobalt","Solid Surface - Corian - Cobalt","C",null,"Corian C","COB","COB","CCOB","C",null,null,null,"Corian - Cobalt","C","0000000"]
["Solid Surface","Corian","Cocoa Brown","Solid Surface - Cocoa Brown","Solid Surface - Corian - Cocoa Brown","B","0108047","Corian B","CBR","CBR","CCBR","B",null,null,null,"Corian - Cocoa Brown","B","0000000"]
["Solid Surface","Corian","Cocoa Prima","Solid Surface - Cocoa Prima","Solid Surface - Corian - Cocoa Prima","D",null,"Corian D","CPM","CPM","CCPM","D",null,null,null,"Corian - Cocoa Prima","D","0000000"]
["Solid Surface","Corian","Concrete","Solid Surface - Concrete","Solid Surface - Corian - Concrete","C","0108013","Corian C","CON","CON","CCON","C",null,null,null,"Corian - Concrete","C","0000000"]
["Solid Surface","Corian","Cosmos Prima","Solid Surface - Cosmos Prima","Solid Surface - Corian - Cosmos Prima","D",null,"Corian D","OPM","OPM","COPM","D",null,null,null,"Corian - Cosmos Prima","D","0000000"]
["Solid Surface","Corian","Cottage Lane","Solid Surface - Cottage Lane","Solid Surface - Corian - Cottage Lane","C",null,"Corian C","COL","COL","CCOL","C",null,null,null,"Corian - Cottage Lane","C","0000000"]
["Solid Surface","Corian","Deep Anthracite","Solid Surface - Deep Anthracite","Solid Surface - Corian - Deep Anthracite","C",null,"Corian C","DAT","DAT","CDAT","C",null,null,null,"Corian - Deep Anthracite","C","0000000"]
["Solid Surface","Corian","Deep Bedrock","Solid Surface - Deep Bedrock","Solid Surface - Corian - Deep Bedrock","C",null,"Corian C","DBR","DBR","CDBR","C",null,null,null,"Corian - Deep Bedrock","C","0000000"]
["Solid Surface","Corian","Deep Black Quartz","Solid Surface - Deep Black Quartz","Solid Surface - Corian - Deep Black Quartz","C",null,"Corian C","DBQ","DBQ","CDBQ","C",null,null,null,"Corian - Deep Black Quartz","C","0000000"]
["Solid Surface","Corian","Deep Caviar","Solid Surface - Deep Caviar","Solid Surface - Corian - Deep Caviar","C",null,"Corian C","DCV","DCV","CDCV","C",null,null,null,"Corian - Deep Caviar","C","0000000"]
["Solid Surface","Corian","Deep Cloud","Solid Surface - Deep Cloud","Solid Surface - Corian - Deep Cloud","C","0108037","Corian C","DCL","DCL","CDCL","C",null,null,null,"Corian - Deep Cloud","C","0000000"]
["Solid Surface","Corian","Deep Espresso","Solid Surface - Deep Espresso","Solid Surface - Corian - Deep Espresso","C",null,{"$f":"\"Corian \" & F80","v":"Corian C"},{"$f":"J80","v":"DEP"},"DEP","CDEP","C",null,null,null,"Corian - Deep Espresso","C","0000000"]
["Solid Surface","Corian","Deep Inkwell","Solid Surface - Deep Inkwell","Solid Surface - Corian - Deep Inkwell","D",null,"Corian D","DIW","DIW","CDIW","D",null,null,null,"Corian - Deep Inkwell","D","0000000"]
["Solid Surface","Corian","Deep Lapis","Solid Surface - Deep Lapis","Solid Surface - Corian - Deep Lapis","D",null,"Corian D","DLS","DLS","CDLS","D",null,null,null,"Corian - Deep Lapis","D","0000000"]
["Solid Surface","Corian","Deep Mink","Solid Surface - Deep Mink","Solid Surface - Corian - Deep Mink","C","0108053","Corian C","DMK","DMK","CDMK","C",null,null,null,"Corian - Deep Mink","C","0000000"]
["Solid Surface","Corian","Deep Night Sky","Solid Surface - Deep Night Sky","Solid Surface - Corian - Deep Night Sky","C","0108018","Corian C","DNS","DNS","CDNS","C",null,null,null,"Corian - Deep Night Sky","C","0000000"]
["Solid Surface","Corian","Deep Nocturne","Solid Surface - Deep Nocturne","Solid Surface - Corian - Deep Nocturne","C","0108061","Corian C","DNC","DNC","CDNC","C",null,null,null,"Corian - Deep Nocturne","C","0000000"]
["Solid Surface","Corian","Deep Sable","Solid Surface - Deep Sable","Solid Surface - Corian - Deep Sable","C","0108065","Corian C","DSB","DSB","CDSB","C",null,null,null,"Corian - Deep Sable","C","0000000"]
["Solid Surface","Corian","Deep Smokey Pearl","Solid Surface - Deep Smokey Pearl","Solid Surface - Corian - Deep Smokey Pearl","D",null,"Corian D","DSY","DSY","CDSY","D",null,null,null,"Corian - Deep Smokey Pearl","D","0000000"]
["Solid Surface","Corian","Deep Space","Solid Surface - Deep Space","Solid Surface - Corian - Deep Space","C",null,"Corian C","DSC","DSC","CDSC","C",null,null,null,"Corian - Deep Space","C","0000000"]
["Solid Surface","Corian","Deep Storm","Solid Surface - Deep Storm","Solid Surface - Corian - Deep Storm","C",null,"Corian C","DSM","DSM","CDSM","C",null,null,null,"Corian - Deep Storm","C","0000000"]
["Solid Surface","Corian","Deep Terrain","Solid Surface - Deep Terrain","Solid Surface - Corian - Deep Terrain","D",null,"Corian D","DTR","DTR","CDTR","D",null,null,null,"Corian - Deep Terrain","D","0000000"]
["Solid Surface","Corian","Deep Titanium","Solid Surface - Deep Titanium","Solid Surface - Corian - Deep Titanium","C","0108044","Corian C","DTI","DTI","CDTI","C",null,null,null,"Corian - Deep Titanium","C","0000000"]
["Solid Surface","Corian","Designer White","Solid Surface - Designer White","Solid Surface - Corian - Designer White","B","0108001","Corian B","DEW","DEW","CDEW","B",null,null,null,"Corian - Designer White","B","0000000"]
["Solid Surface","Corian","Doeskin","Solid Surface - Doeskin","Solid Surface - Corian - Doeskin","C","0108060","Corian C","DOE","DOE","CDOE","C",null,null,null,"Corian - Doeskin","C","0000000"]
["Solid Surface","Corian","Dove","Solid Surface - Dove","Solid Surface - Corian - Dove","C","0108015","Corian C","DOV","DOV","CDOV","C",null,null,null,"Corian - Dove","C","0000000"]
["Solid Surface","Corian","Dune Prima","Solid Surface - Dune Prima","Solid Surface - Corian - Dune Prima","D",null,"Corian D","DPM","DPM","CDPM","D",null,null,null,"Corian - Dune Prima","D","0000000"]
["Solid Surface","Corian","Earth","Solid Surface - Earth","Solid Surface - Corian - Earth","D","0108063","Corian D","EAR","EAR","CEAR","D",null,null,null,"Corian - Earth","D","0000000"]
["Solid Surface","Corian","Ecru","Solid Surface - Ecru","Solid Surface - Corian - Ecru","D",null,"Corian D","ECR","ECR","CECR","D",null,null,null,"Corian - Ecru","D","0000000"]
["Solid Surface","Corian","Elderberry","Solid Surface - Elderberry","Solid Surface - Corian - Elderberry","D",null,"Corian D","ELB","ELB","CELB","D",null,null,null,"Corian - Elderberry","D","0000000"]
["Solid Surface","Corian","Elegant Gray","Solid Surface - Elegant Gray","Solid Surface - Corian - Elegant Gray","B",null,"Corian B","EGG","EGG","CEGG","B",null,null,null,"Corian - Elegant Gray","B","0000000"]
["Solid Surface","Corian","Evening Prima","Solid Surface - Evening Prima","Solid Surface - Corian - Evening Prima","D",null,"Corian D","EPM","EPM","CEPM","D",null,null,null,"Corian - Evening Prima","D","0000000"]
["Solid Surface","Corian","Everest","Solid Surface - Everest","Solid Surface - Corian - Everest","B",null,"Corian B","EVE","EVE","CEVE","B",null,null,null,"Corian - Everest","B","0000000"]
["Solid Surface","Corian","Fawn","Solid Surface - Fawn","Solid Surface - Corian - Fawn","C",null,"Corian C","FAW","FAW","CFAW","C",null,null,null,"Corian - Fawn","C","0000000"]
["Solid Surface","Corian","Flint","Solid Surface - Flint","Solid Surface - Corian - Flint","C",null,"Corian C","FLI","FLI","CFLI","C",null,null,null,"Corian - Flint","C","0000000"]
["Solid Surface","Corian","Fossil","Solid Surface - Fossil","Solid Surface - Corian - Fossil","C","0108010","Corian C","FOS","FOS","CFOS","C",null,null,null,"Corian - Fossil","C","0000000"]
["Solid Surface","Corian","Glacier Ice","Solid Surface - Glacier Ice","Solid Surface - Corian - Glacier Ice","C","0108039","Corian C","GLI","GLI","CGLI","C",null,null,null,"Corian - Glacier Ice","C","0000000"]
["Solid Surface","Corian","Glacier White","Solid Surface - Glacier White","Solid Surface - Corian - Glacier White","A","0108002","Corian A","GLW","GLW","CGLW","A",null,null,null,"Corian - Glacier White","A","0000000"]
["Solid Surface","Corian","Granola","Solid Surface - Granola","Solid Surface - Corian - Granola","C",null,"Corian C","GOA","GOA","CGOA","C",null,null,null,"Corian - Granola","C","0000000"]
["Solid Surface","Corian","Graylite","Solid Surface - Graylite","Solid Surface - Corian - Graylite","D","0108020","Corian D","GYT","GYT","CGYT","D",null,null,null,"Corian - Graylite","D","0000000"]
["Solid Surface","Corian","Hazelnut","Solid Surface - Hazelnut","Solid Surface - Corian - Hazelnut","D","0108026","Corian D","HAZ","HAZ","CHAZ","D",null,null,null,"Corian - Hazelnut","D","0000000"]
["Solid Surface","Corian","Hickory Smoke","Solid Surface - Hickory Smoke","Solid Surface - Corian - Hickory Smoke","D",null,"Corian D","HIS","HIS","CHIS","D",null,null,null,"Corian - Hickory Smoke","D","0000000"]
["Solid Surface","Corian","Jasmine","Solid Surface - Jasmine","Solid Surface - Corian - Jasmine","D","0108058","Corian D","JAS","JAS","CJAS","D",null,null,null,"Corian - Jasmine","D","0000000"]
["Solid Surface","Corian","Juniper","Solid Surface - Juniper","Solid Surface - Corian - Juniper","D",null,{"$f":"\"Corian \" & F112","v":"Corian D"},{"$f":"J112","v":"JUN"},"JUN","CJUN","D",null,null,null,"Corian - Juniper","D","0000000"]
["Solid Surface","Corian","Lava Rock","Solid Surface - Lava Rock","Solid Surface - Corian - Lava Rock","D","0108021","Corian D","LAR","LAR","CLAR","D",null,null,null,"Corian - Lava Rock","D","0000000"]
["Solid Surface","Corian","Limestone Prima","Solid Surface - Limestone Prima","Solid Surface - Corian - Limestone Prima","D",null,"Corian D","LPM","LPM","CLPM","D",null,null,null,"Corian - Limestone Prima","D","0000000"]
["Solid Surface","Corian","Linen","Solid Surface - Linen","Solid Surface - Corian - Linen","A","0108006","Corian A","LIN","LIN","CLIN","A",null,null,null,"Corian - Linen","A","0000000"]
["Solid Surface","Corian","Matterhorn","Solid Surface - Matterhorn","Solid Surface - Corian - Matterhorn","C","0108048","Corian C","MAT","MAT","CMAT","C",null,null,null,"Corian - Matterhorn","C","0000000"]
["Solid Surface","Corian","Maui","Solid Surface - Maui","Solid Surface - Corian - Maui","A","0108017","Corian A","MAU","MAU","CMAU","A",null,null,null,"Corian - Maui","A","0000000"]
["Solid Surface","Corian","Milky Way","Solid Surface - Milky Way","Solid Surface - Corian - Milky Way","D","0108064","Corian D","MKW","MKW","CMKW","D",null,null,null,"Corian - Milky Way","D","0000000"]
["Solid Surface","Corian","Mineral","Solid Surface - Mineral","Solid Surface - Corian - Mineral","D",null,"Corian D","MIN","MIN","CMIN","D",null,null,null,"Corian - Mineral","D","0000000"]
["Solid Surface","Corian","Modern White","Solid Surface - Modern White","Solid Surface - Corian - Modern White","B",null,"Corian B","MOW","MOW","CMOW","B",null,null,null,"Corian - Modern White","B","0000000"]
["Solid Surface","Corian","Mojave","Solid Surface - Mojave","Solid Surface - Corian - Mojave","B",null,"Corian B","SMJ","SMJ","CSMJ","B",null,null,null,"Corian - Mojave","B","0000000"]
["Solid Surface","Corian","Moss","Solid Surface - Moss","Solid Surface - Corian - Moss","B",null,"Corian B","MOS","MOS","CMOS","B",null,null,null,"Corian - Moss","B","0000000"]
["Solid Surface","Corian","Natural Gray","Solid Surface - Natural Gray","Solid Surface - Corian - Natural Gray","D","0108056","Corian D","NGR","NGR","CNGR","D",null,null,null,"Corian - Natural Gray","D","0000000"]
["Solid Surface","Corian","Neutral Concrete","Solid Surface - Neutral Concrete","Solid Surface - Corian - Neutral Concrete","C",null,"Corian C","NCN","NCN","CNCN","C",null,null,null,"Corian - Neutral Concrete","C","0000000"]
["Solid Surface","Corian","NightFall","Solid Surface - NightFall","Solid Surface - Corian - NightFall","B",null,"Corian B","NIF","NIF","CNIF","B",null,null,null,"Corian - NightFall","B","0000000"]
["Solid Surface","Corian","Nimbus Prima","Solid Surface - Nimbus Prima","Solid Surface - Corian - Nimbus Prima","D",null,"Corian D","NPM","NPM","CNPM","D",null,null,null,"Corian - Nimbus Prima","D","0000000"]
["Solid Surface","Corian","Oat","Solid Surface - Oat","Solid Surface - Corian - Oat","C","0108045","Corian C","OAA","OAA","COAA","C",null,null,null,"Corian - Oat","C","0000000"]
["Solid Surface","Corian","Pearl Gray","Solid Surface - Pearl Gray","Solid Surface - Corian - Pearl Gray","B","0108033","Corian B","PLG","PLG","CPLG","B",null,null,null,"Corian - Pearl Gray","B","0000000"]
["Solid Surface","Corian","Pine","Solid Surface - Pine","Solid Surface - Corian - Pine","C","0108054","Corian C","PNE","PNE","CPNE","C",null,null,null,"Corian - Pine","C","0000000"]
["Solid Surface","Corian","Platinum",{"$f":"A130& \" - \" & C130","v":"Solid Surface - Platinum"},"Solid Surface - Corian - Platinum","B","0108040","Corian B","MPL","MPL","CMPL","B",null,null,null,"Corian - Platinum","B",{"$f":"IFERROR(VLOOKUP(P130,E:G,6,0),\"0000000\")","v":"0000000"}]
["Quartz","Corian - Quartz","ANTIQUE PEARL","Quartz - ANTIQUE PEARL",{"$f":"A131&\" - \"&B131&\" - \"&C131","v":"Quartz - Corian - Quartz - ANTIQUE PEARL"},"A",null,"Quartz D",null,"TPE","ZTPE","D",null,null,null,"Corian - Raffia","C","0000000"]
["Quartz","Corian - Quartz","ASTRAL PEARL","Quartz - ASTRAL PEARL","Quartz - Corian - Quartz - ASTRAL PEARL","A",null,"Quartz D",null,"APE","ZAPE","D",null,null,null,"Corian - Rain Cloud","D","0000000"]
["Quartz","Corian - Quartz","BLUE CARRARA ","Quartz - BLUE CARRARA ","Quartz - Corian - Quartz - BLUE CARRARA ","A",null,"Quartz D",null,"BCA","ZBCA","D",null,null,null,"Corian - Rice Paper","C","0000000"]
["Quartz","Corian - Quartz","BOREALIS BLUE","Quartz - BOREALIS BLUE","Quartz - Corian - Quartz - BOREALIS BLUE","A",null,"Quartz D",null,"BBU","ZBBU","D",null,null,null,"Corian - Riverbed","D","0000000"]
["Quartz","Corian - Quartz","CALACATTA NATURA","Quartz - CALACATTA NATURA","Quartz - Corian - Quartz - CALACATTA NATURA","B",null,"Quartz E",null,"CAL","ZCAL","E",null,null,null,"Corian - Rosemary","D","0000000"]
["Quartz","Corian - Quartz","CARAWAY","Quartz - CARAWAY","Quartz - Corian - Quartz - CARAWAY","A",null,"Quartz D",null,"CRW","ZCRW","D",null,null,null,"Corian - Royal Red","C","0000000"]
["Quartz","Corian - Quartz","CASHMERE CARRARA","Quartz - CASHMERE CARRARA","Quartz - Corian - Quartz - CASHMERE CARRARA","A",null,"Quartz D",null,"CAC","ZCAC","D",null,null,null,"Corian - Saffron","D","0000000"]
["Quartz","Corian - Quartz","CLOUD WHITE","Quartz - CLOUD WHITE","Quartz - Corian - Quartz - CLOUD WHITE","A","0108074","Quartz D",null,"CWH","ZCWH","D",null,null,null,"Corian - Sagebrush","D","0000000"]
["Quartz","Corian - Quartz","COARSE BOTTICINO","Quartz - COARSE BOTTICINO","Quartz - Corian - Quartz - COARSE BOTTICINO","A",null,"Quartz D",null,"CBO","ZCBO","D",null,null,null,"Corian - Sahara","A","0000000"]
["Quartz","Corian - Quartz","COARSE CARRARA","Quartz - COARSE CARRARA","Quartz - Corian - Quartz - COARSE CARRARA","A",null,"Quartz D",null,"CCA","ZCCA","D",null,null,null,"Corian - Sand","B","0000000"]
["Quartz","Corian - Quartz","COARSE MARFIL","Quartz - COARSE MARFIL","Quartz - Corian - Quartz - COARSE MARFIL","A",null,"Quartz D",null,"CMA","ZCMA","D",null,null,null,"Corian - Sand Storm","D","0000000"]
["Quartz","Corian - Quartz","COARSE PEPPER","Quartz - COARSE PEPPER","Quartz - Corian - Quartz - COARSE PEPPER","A",null,"Quartz D",null,"CPR","ZCPR","D",null,null,null,"Corian - Sandalwood","D","0000000"]
["Quartz","Corian - Quartz","CONCRETE CARRARA ","Quartz - CONCRETE CARRARA ","Quartz - Corian - Quartz - CONCRETE CARRARA ","A",null,"Quartz D",null,"CON","ZCON","D",null,null,null,"Corian - Savannah","B","0000000"]
["Quartz","Corian - Quartz","CORIANDER","Quartz - CORIANDER","Quartz - Corian - Quartz - CORIANDER","A",null,"Quartz D",null,"COR","ZCOR","D",null,null,null,"Corian - Seafoam","C","0000000"]
["Quartz","Corian - Quartz","CYGNUS PEARL","Quartz - CYGNUS PEARL","Quartz - Corian - Quartz - CYGNUS PEARL","A",null,"Quartz D",null,"CPE","ZCPE","D",null,null,null,"Corian - Serene Sage","C","0000000"]
["Quartz","Corian - Quartz","DOVE GREY","Quartz - DOVE GREY","Quartz - Corian - Quartz - DOVE GREY","A",null,"Quartz D",null,"DGR","ZDGR","D",null,null,null,"Corian - Silt","B","0000000"]
["Quartz","Corian - Quartz","EVERGREEN ","Quartz - EVERGREEN ","Quartz - Corian - Quartz - EVERGREEN ","A",null,"Quartz D",null,"EVG","ZEVG","D",null,null,null,"Corian - Silver Birch","C","0000000"]
["Quartz","Corian - Quartz","GALAXY BLACK","Quartz - GALAXY BLACK","Quartz - Corian - Quartz - GALAXY BLACK","A",null,"Quartz D",null,"GBL","ZGBL","D",null,null,null,"Corian - Silver Gray","A","0000000"]
["Quartz","Corian - Quartz","GRAPHITE","Quartz - GRAPHITE","Quartz - Corian - Quartz - GRAPHITE","A",null,"Quartz D",null,"GPH","ZGPH","D",null,null,null,"Corian - Silverite","C","0000000"]
["Quartz","Corian - Quartz","GRAVEL","Quartz - GRAVEL","Quartz - Corian - Quartz - GRAVEL","A",null,"Quartz D",null,"GRA","ZGRA","D",null,null,null,"Corian - Smoke Drift Prima","D","0000000"]
["Quartz","Corian - Quartz","GRIGIONE","Quartz - GRIGIONE","Quartz - Corian - Quartz - GRIGIONE","A",null,"Quartz D",null,"GRI","ZGRI","D",null,null,null,"Corian - Sonora","D","0000000"]
["Quartz","Corian - Quartz","IMPERIAL","Quartz - IMPERIAL","Quartz - Corian - Quartz - IMPERIAL","A",null,"Quartz D",null,"IMP","ZIMP","D",null,null,null,"Corian - Sorrel","D","0000000"]
["Quartz","Corian - Quartz","INDIGO SWIRL ","Quartz - INDIGO SWIRL ","Quartz - Corian - Quartz - INDIGO SWIRL ","A",null,"Quartz D",null,"ISW","ZISW","D",null,null,null,"Corian - Sparkling White","C","0000000"]
["Quartz","Corian - Quartz","INDUS RED","Quartz - INDUS RED","Quartz - Corian - Quartz - INDUS RED","A",null,"Quartz D",null,"IRD","ZIRD","D",null,null,null,"Corian - Stardust","D","0000000"]
["Quartz","Corian - Quartz","LONDON SKY","Quartz - LONDON SKY","Quartz - Corian - Quartz - LONDON SKY","A",null,"Quartz D",null,"LON","ZLON","D",null,null,null,"Corian - Suede","C","0000000"]
["Quartz","Corian - Quartz","LUNAR PEARL","Quartz - LUNAR PEARL","Quartz - Corian - Quartz - LUNAR PEARL","A",null,"Quartz D",null,"LPE","ZLPE","D",null,null,null,"Corian - Tumbleweed","D","0000000"]
["Quartz","Corian - Quartz","MARBLE MIST","Quartz - MARBLE MIST","Quartz - Corian - Quartz - MARBLE MIST","A",null,"Quartz D",null,"MST","ZMST","D",null,null,null,"Corian - Vanilla","A","0000000"]
["Quartz","Corian - Quartz","MOCHA LATTE","Quartz - MOCHA LATTE","Quartz - Corian - Quartz - MOCHA LATTE","A",null,"Quartz D",null,"MOL","ZMOL","D",null,null,null,"Corian - Venaro White","C","0000000"]
["Quartz","Corian - Quartz","MOSSY GREEN","Quartz - MOSSY GREEN","Quartz - Corian - Quartz - MOSSY GREEN","A",null,"Quartz D",null,"MSY","ZMSY","D",null,null,null,"Corian - Weathered Concrete","C","0000000"]
["Quartz","Corian - Quartz","MOSSY OAK ","Quartz - MOSSY OAK ","Quartz - Corian - Quartz - MOSSY OAK ","A",null,"Quartz D",null,"MOA","ZMOA","D",null,null,null,"Corian - Whipped Cream","C","0000000"]
["Quartz","Corian - Quartz","MYSTIC BLACK","Quartz - MYSTIC BLACK","Quartz - Corian - Quartz - MYSTIC BLACK","A",null,"Quartz D",null,"MBL","ZMBL","D",null,null,null,"Corian - Whisper","C","0000000"]
["Quartz","Corian - Quartz","NEVE","Quartz - NEVE","Quartz - Corian - Quartz - NEVE","A",null,"Quartz D",null,"NEV","ZNEV","D",null,null,null,"Corian - White Jasmine","C","0000000"]
["Quartz","Corian - Quartz","OATMEAL","Quartz - OATMEAL","Quartz - Corian - Quartz - OATMEAL","A",null,"Quartz D",null,"OAT","ZOAT","D",null,null,null,"Corian - White Onyx","D","0000000"]
["Quartz","Corian - Quartz","OCTAVIO","Quartz - OCTAVIO","Quartz - Corian - Quartz - OCTAVIO","B",null,"Quartz E",null,"OCT","ZOCT","E",null,null,null,"Corian - Willow","C","0000000"]
["Quartz","Corian - Quartz","ONYX CARRARA ","Quartz - ONYX CARRARA ","Quartz - Corian - Quartz - ONYX CARRARA ","A",null,"Quartz D",null,"OCA","ZOCA","D",null,null,null,"Corian - Windswept Prima","D","0000000"]
["Quartz","Corian - Quartz","PAPYRUS","Quartz - PAPYRUS","Quartz - Corian - Quartz - PAPYRUS","A",null,"Quartz D",null,"PAP","ZPAP","D",null,null,null,"Corian - Witch Hazel","D","0000000"]
["Quartz","Corian - Quartz","PORTORO","Quartz - PORTORO","Quartz - Corian - Quartz - PORTORO","B",null,"Quartz E",null,"POR","ZPOR","E",null,null,null,"Silestone - African Red***",{"$error":"#N/A"},"0000000"]
["Quartz","Corian - Quartz","PROVENCE ","Quartz - PROVENCE ","Quartz - Corian - Quartz - PROVENCE ","A",null,"Quartz D",null,"PRO","ZPRO","D",null,null,null,"Silestone - Alpina White***",{"$error":"#N/A"},"0000000"]
["Quartz","Corian - Quartz","SADDLE BROWN","Quartz - SADDLE BROWN","Quartz - Corian - Quartz - SADDLE BROWN","A",null,"Quartz D",null,"SBD","ZSBD","D",null,null,null,"Silestone - Altair Suede","H","0000000"]
["Quartz","Corian - Quartz","SAGE","Quartz - SAGE","Quartz - Corian - Quartz - SAGE","A",null,"Quartz D",null,"SGE","ZSGE","D",null,null,null,"Silestone - Amarillo Palmira***",{"$error":"#N/A"},"0000000"]
["Quartz","Corian - Quartz","SNODRIFT","Quartz - SNODRIFT","Quartz - Corian - Quartz - SNODRIFT","A",null,"Quartz D",null,"SND","ZSND","D",null,null,null,"Silestone - Arezzo***",{"$error":"#N/A"},"0000000"]
["Quartz","Corian - Quartz","SNOW FLURRY","Quartz - SNOW FLURRY","Quartz - Corian - Quartz - SNOW FLURRY","A",null,"Quartz D",null,"SFL","ZSFL","D",null,null,null,"Silestone - Atlantis***",{"$error":"#N/A"},"0000000"]
["Quartz","Corian - Quartz","SNOW WHITE","Quartz - SNOW WHITE","Quartz - Corian - Quartz - SNOW WHITE","A","0108084","Quartz D",null,"SWH","ZSWH","D",null,null,null,"Silestone - Bamboo***",{"$error":"#N/A"},"0000000"]
["Quartz","Corian - Quartz","SPACE BLACK","Quartz - SPACE BLACK","Quartz - Corian - Quartz - SPACE BLACK","A",null,"Quartz D",null,"SBL","ZSBL","D",null,null,null,"Silestone - Bering***",{"$error":"#N/A"},"0000000"]
["Quartz","Corian - Quartz","STORM GREY","Quartz - STORM GREY","Quartz - Corian - Quartz - STORM GREY","A","0108080","Quartz D",null,"SGR","ZSGR","D",null,null,null,"Silestone - Black Anubis***",{"$error":"#N/A"},"0000000"]
["Quartz","Corian - Quartz","STRATUS WHITE","Quartz - STRATUS WHITE","Quartz - Corian - Quartz - STRATUS WHITE","A","0108089","Quartz D",null,"STW","ZSTW","D",null,null,null,"Silestone - Blanco City***",{"$error":"#N/A"},"0000000"]
["Quartz","Corian - Quartz","TOASTED ALMOND","Quartz - TOASTED ALMOND","Quartz - Corian - Quartz - TOASTED ALMOND","A",null,"Quartz D",null,"TAR","ZTAR","D",null,null,null,"Silestone - Blue Enjoy***",{"$error":"#N/A"},"0000000"]
["Quartz","Corian - Quartz","TOFFEE","Quartz - TOFFEE","Quartz - Corian - Quartz - TOFFEE","A",null,"Quartz D",null,"TPF","ZTPF","D",null,null,null,"Silestone - Brazilian Brown***",{"$error":"#N/A"},"0000000"]
["Quartz","Corian - Quartz","VALENTE PEARL","Quartz - VALENTE PEARL","Quartz - Corian - Quartz - VALENTE PEARL","B",null,"Quartz E",null,"VLP","ZVLP","E",null,null,null,"Silestone - Carbono***",{"$error":"#N/A"},"0000000"]
["Quartz","Corian - Quartz","VENETIA CREAM","Quartz - VENETIA CREAM","Quartz - Corian - Quartz - VENETIA CREAM","A",null,"Quartz D",null,"VEN","ZVEN","D",null,null,null,"Silestone - Charcoal Soapstone***",{"$error":"#N/A"},"0000000"]
["Quartz","Corian - Quartz","VERSILIA GRIGIO","Quartz - VERSILIA GRIGIO","Quartz - Corian - Quartz - VERSILIA GRIGIO","B",null,"Quartz E",null,"VER","ZVER","E",null,null,null,"Silestone - Classic White***",{"$error":"#N/A"},"0000000"]
["Quartz","Corian - Quartz","WARM TAUPE","Quartz - WARM TAUPE","Quartz - Corian - Quartz - WARM TAUPE","A",null,"Quartz D",null,"WTP","ZWTP","D",null,null,null,"Silestone - Coral Clay***",{"$error":"#N/A"},"0000000"]
["Quartz","Corian - Quartz","WILD RICE","Quartz - WILD RICE","Quartz - Corian - Quartz - WILD RICE","A",null,"Quartz D",null,"WRI","ZWRI","D",null,null,null,"Silestone - Dreis***",{"$error":"#N/A"},"0000000"]
["Solid Surface","Corian","Raffia","Solid Surface - Raffia","Solid Surface - Corian - Raffia","C","0108012",{"$f":"\"Corian \" & F184","v":"Corian C"},{"$f":"J184","v":"RAF"},"RAF","CRAF","C",null,null,null,"Silestone - Ebony Pearl***",{"$error":"#N/A"},"0000000"]
["Solid Surface","Corian","Rain Cloud","Solid Surface - Rain Cloud","Solid Surface - Corian - Rain Cloud","D","0108036","Corian D","RAC","RAC","CRAC","D",null,null,null,"Silestone - Etnl Calacatta Gold***",{"$error":"#N/A"},"0000000"]
["Solid Surface","Corian","Rice Paper","Solid Surface - Rice Paper","Solid Surface - Corian - Rice Paper","C","0108005","Corian C","RPA","RPA","CRPA","C",null,null,null,"Silestone - Gedatsu***",{"$error":"#N/A"},"0000000"]
["Solid Surface","Corian","Riverbed","Solid Surface - Riverbed","Solid Surface - Corian - Riverbed","D","0108023","Corian D","RVB","RVB","CRVB","D",null,null,null,"Silestone - Helix","E","0000000"]
["Solid Surface","Corian","Rosemary","Solid Surface - Rosemary","Solid Surface - Corian - Rosemary","D","0108041","Corian D","RSM","RSM","CRSM","D",null,null,null,"Silestone - Kalahari***",{"$error":"#N/A"},"0000000"]
["Solid Surface","Corian","Royal Red","Solid Surface - Royal Red","Solid Surface - Corian - Royal Red","C","0108023","Corian C","RVB","RVB","CRVB","C",null,null,null,"Silestone - Kona Beige","C","0000000"]
["Solid Surface","Corian","Saffron","Solid Surface - Saffron","Solid Surface - Corian - Saffron","D",null,"Corian D","SAF","SAF","CSAF","D",null,null,null,"Silestone - Lena","A","0000000"]
["Solid Surface","Corian","Sagebrush","Solid Surface - Sagebrush","Solid Surface - Corian - Sagebrush","D",null,"Corian D","SAB","SAB","CSAB","D",null,null,null,"Silestone - Lena Suede","G","0000000"]
["Solid Surface","Corian","Sahara","Solid Surface - Sahara","Solid Surface - Corian - Sahara","A",null,"Corian A","MSA","MSA","CMSA","A",null,null,null,"Silestone - Magenta Energy***",{"$error":"#N/A"},"0000000"]
["Solid Surface","Corian","Sand","Solid Surface - Sand","Solid Surface - Corian - Sand","B",null,"Corian B","SAN","SAN","CSAN","B",null,null,null,"Silestone - Mahogany***",{"$error":"#N/A"},"0000000"]
["Solid Surface","Corian","Sand Storm",{"$f":"A194& \" - \" & C194","v":"Solid Surface - Sand Storm"},"Solid Surface - Corian - Sand Storm","D","0108052","Corian D","SAS","SAS","CSAS","D",null,null,null,"Silestone - Merope","D",{"$f":"IFERROR(VLOOKUP(P194,E:G,6,0),\"0000000\")","v":"0000000"}]
["Solid Surface","Corian","Sandalwood","Solid Surface - Sandalwood",{"$f":"A195&\" - \"&B195&\" - \"&C195","v":"Solid Surface - Corian - Sandalwood"},"D","0108050","Corian D","SAW","SAW","CSAW","D",null,null,null,"Silestone - Minerva Cream***",{"$error":"#N/A"},"0000000"]
["Solid Surface","Corian","Savannah","Solid Surface - Savannah","Solid Surface - Corian - Savannah","B","0108007","Corian B","MSV","MSV","CMSV","B",null,null,null,"Silestone - Mont Blanc***",{"$error":"#N/A"},"0000000"]
["Solid Surface","Corian","Seafoam","Solid Surface - Seafoam","Solid Surface - Corian - Seafoam","C","0108051","Corian C","SEF","SEF","CSEF","C",null,null,null,"Silestone - Moonstone","E","0000000"]
["Solid Surface","Corian","Serene Sage","Solid Surface - Serene Sage","Solid Surface - Corian - Serene Sage","C",null,"Corian C","SSA","SSA","CSSA","C",null,null,null,"Silestone - Niebla***",{"$error":"#N/A"},"0000000"]
["Solid Surface","Corian","Silt","Solid Surface - Silt","Solid Surface - Corian - Silt","B",null,"Corian B","SIL","SIL","CSIL","B",null,null,null,"Silestone - Olive Green***",{"$error":"#N/A"},"0000000"]
["Solid Surface","Corian","Silver Birch","Solid Surface - Silver Birch","Solid Surface - Corian - Silver Birch","C","0108025","Corian C","SVB","SVB","CSVB","C",null,null,null,"Silestone - Orange Cool***",{"$error":"#N/A"},"0000000"]
["Solid Surface","Corian","Silver Gray","Solid Surface - Silver Gray","Solid Surface - Corian - Silver Gray","A",null,"Corian A","SIG","SIG","CSIG","A",null,null,null,"Silestone - Orange Fuego***",{"$error":"#N/A"},"0000000"]
["Solid Surface","Corian","Silverite","Solid Surface - Silverite","Solid Surface - Corian - Silverite","C",null,"Corian C","SLV","SLV","CSLV","C",null,null,null,"Silestone - Pietra***",{"$error":"#N/A"},"0000000"]
["Solid Surface","Corian","Smoke Drift Prima","Solid Surface - Smoke Drift Prima","Solid Surface - Corian - Smoke Drift Prima","D",null,"Corian D","SPM","SPM","CSPM","D",null,null,null,"Silestone - Polar Cap***",{"$error":"#N/A"},"0000000"]
["Solid Surface","Corian","Sonora","Solid Surface - Sonora","Solid Surface - Corian - Sonora","D",null,"Corian D","SON","SON","CSON","D",null,null,null,"Silestone - Red Pine","D","0000000"]
["Solid Surface","Corian","Sorrel","Solid Surface - Sorrel","Solid Surface - Corian - Sorrel","D","0108019","Corian D","SOR","SOR","CSOR","D",null,null,null,"Silestone - Reef***",{"$error":"#N/A"},"0000000"]
["Solid Surface","Corian","Sparkling White","Solid Surface - Sparkling White","Solid Surface - Corian - Sparkling White","C",null,"Corian C","SKW","SKW","CSKW","C",null,null,null,"Silestone - Royal Reef***",{"$error":"#N/A"},"0000000"]
["Solid Surface","Corian","Stardust","Solid Surface - Stardust","Solid Surface - Corian - Stardust","D","0108057","Corian D","STR","STR","CSTR","D",null,null,null,"Silestone - Sierra Madre***",{"$error":"#N/A"},"0000000"]
["Solid Surface","Corian","Suede","Solid Surface - Suede","Solid Surface - Corian - Suede","C","0108029","Corian C","SUE","SUE","CSUE","C",null,null,null,"Silestone - Steel***",{"$error":"#N/A"},"0000000"]
["Solid Surface","Corian","Tumbleweed","Solid Surface - Tumbleweed","Solid Surface - Corian - Tumbleweed","D",null,"Corian D","TWE","TWE","CTWE","D",null,null,null,"Silestone - Stellar Cream","D","0000000"]
["Solid Surface","Corian","Vanilla","Solid Surface - Vanilla","Solid Surface - Corian - Vanilla","A",null,"Corian A","VAN","VAN","CVAN","A",null,null,null,"Silestone - Tea Leaf***",{"$error":"#N/A"},"0000000"]
["Solid Surface","Corian","Venaro White","Solid Surface - Venaro White","Solid Surface - Corian - Venaro White","C","0108024","Corian C","VWH","VWH","CVWH","C",null,null,null,"Silestone - Terra***",{"$error":"#N/A"},"0000000"]
["Solid Surface","Corian","Weathered Concrete","Solid Surface - Weathered Concrete","Solid Surface - Corian - Weathered Concrete","C",null,"Corian C","WCN","WCN","CWCN","C",null,null,null,"Silestone - Toffee***",{"$error":"#N/A"},"0000000"]
["Solid Surface","Corian","Whipped Cream","Solid Surface - Whipped Cream","Solid Surface - Corian - Whipped Cream","C","0108027","Corian C","WHC","WHC","CWHC","C",null,null,null,"Silestone - Vortium***",{"$error":"#N/A"},"0000000"]
["Solid Surface","Corian","Whisper","Solid Surface - Whisper","Solid Surface - Corian - Whisper","C","0108008","Corian C","WHI","WHI","CWHI","C",null,null,null,"Silestone - White Platinum","F","0000000"]
["Solid Surface","Corian","White Jasmine","Solid Surface - White Jasmine","Solid Surface - Corian - White Jasmine","C",null,"Corian C","WJA","WJA","CWJA","C",null,null,null,"Silestone - White Storm***",{"$error":"#N/A"},"0000000"]
["Solid Surface","Corian","White Onyx","Solid Surface - White Onyx","Solid Surface - Corian - White Onyx","D",null,"Corian D","WOX","WOX","CWOX","D",null,null,null,"Silestone - Zirix***",{"$error":"#N/A"},"0000000"]
["Solid Surface","Corian","Willow","Solid Surface - Willow","Solid Surface - Corian - Willow","C","0108032","Corian C","WIL","WIL","CWIL","C",null,null,null,"Silestone - Zynite***",{"$error":"#N/A"},"0000000"]
["Solid Surface","Corian","Windswept Prima","Solid Surface - Windswept Prima","Solid Surface - Corian - Windswept Prima","D",null,"Corian D","WPM","WPM","CWPM","D",null,null,null,"Zodiaq - Astral Pearl","A","0000000"]
["Solid Surface","Corian","Witch Hazel","Solid Surface - Witch Hazel","Solid Surface - Corian - Witch Hazel","D","0108055","Corian D","WIH","WIH","CWIH","D",null,null,null,"Zodiaq - Blue Carrara","A","0000000"]
["Quartz","Silestone","Alpina White","Quartz - Alpina White","Quartz - Silestone - Alpina White","C",null,"Quartz C",null,"AWH","SAWH","C",null,null,null,"Zodiaq - Coarse Carrara","A","0000000"]
["Quartz","Silestone","Altair","Quartz - Altair","Quartz - Silestone - Altair","B",null,"Quartz B",null,"ALT","SALT","B",null,null,null,"Zodiaq - Coarse Pepper","A","0000000"]
["Quartz","Silestone","Arctic","Quartz - Arctic","Quartz - Silestone - Arctic","E",null,"Quartz E",null,"ARC","SARC","E",null,null,null,"Zodiaq - Concrete Carrara","A","0000000"]
["Quartz","Silestone","Ariel","Quartz - Ariel","Quartz - Silestone - Ariel","C",null,"Quartz C",null,"ARL","SARL","C",null,null,null,"Zodiaq - Graphite","A","0000000"]
["Quartz","Silestone","Bamboo","Quartz - Bamboo","Quartz - Silestone - Bamboo","D",null,"Quartz D",null,"BAM","SBAM","D",null,null,null,"Zodiaq - Grigione","A","0000000"]
["Quartz","Silestone","Blanco City","Quartz - Blanco City","Quartz - Silestone - Blanco City","A",null,"Quartz A",null,"BLC","SBLC","A",null,null,null,"Zodiaq - Lunar Pearl","A","0000000"]
["Quartz","Silestone","Blanco Maple","Quartz - Blanco Maple","Quartz - Silestone - Blanco Maple","C","0108087","Quartz C",null,"BLM","SBLM","C",null,null,null,"Zodiaq - Névé","A","0000000"]
["Quartz","Silestone","Blanco Orion","Quartz - Blanco Orion","Quartz - Silestone - Blanco Orion","D",null,"Quartz D",null,"BLO","SBLO","D",null,null,null,"Zodiaq - Onyx Carrara","A","0000000"]
["Quartz","Silestone","Blue Sahara","Quartz - Blue Sahara","Quartz - Silestone - Blue Sahara","B",null,"Quartz B",null,"BSA","SBSA","B",null,null,null,"Zodiaq - Portoro","B","0000000"]
["Quartz","Silestone","Calacatta Gold","Quartz - Calacatta Gold","Quartz - Silestone - Calacatta Gold","E",null,"Quartz E",null,"CGL","SCGL","E",null,null,null,"Zodiaq - Saddle Brown","A","0000000"]
["Quartz","Silestone","Calypso","Quartz - Calypso","Quartz - Silestone - Calypso","E",null,"Quartz E",null,"CAL","SCAL","E",null,null,null,"Zodiaq - Snow White","A","0000000"]
["Quartz","Silestone","Capri Limestone","Quartz - Capri Limestone","Quartz - Silestone - Capri Limestone","C",null,"Quartz C",null,"CLM","SCLM","C",null,null,null,"Zodiaq - Snowdrift","A","0000000"]
["Quartz","Silestone","Cemento","Quartz - Cemento","Quartz - Silestone - Cemento","B",null,"Quartz B",null,"CEM","SCEM","B",null,null,null,"Zodiaq - Toffee","A","0000000"]
["Quartz","Silestone","Charcoal Soapstone","Quartz - Charcoal Soapstone","Quartz - Silestone - Charcoal Soapstone","D",null,"Quartz D",null,"CHS","SCHS","D",null,null,null,"Zodiaq - Valente Pearl","B","0000000"]
["Quartz","Silestone","Chrome","Quartz - Chrome","Quartz - Silestone - Chrome","E",null,"Quartz E",null,"CHR","SCHR","E",null,null,null,"Silestone - Altair (15)","B","0000000"]
["Quartz","Silestone","Classic White","Quartz - Classic White","Quartz - Silestone - Classic White","C",null,"Quartz C",null,"CLW","SCLW","C",null,null,null,"Silestone - Antique Gold***",{"$error":"#N/A"},"0000000"]
["Quartz","Silestone","Coppermist","Quartz - Coppermist","Quartz - Silestone - Coppermist","D",null,"Quartz D",null,"CMS","SCMS","D",null,null,null,"Silestone - Bianco River***",{"$error":"#N/A"},"0000000"]
["Quartz","Silestone","Coral Clay","Quartz - Coral Clay","Quartz - Silestone - Coral Clay","B",null,"Quartz B",null,"CCL","SCCL","B",null,null,null,"Silestone - Black Canyon***",{"$error":"#N/A"},"0000000"]
["Quartz","Silestone","Cygnus","Quartz - Cygnus","Quartz - Silestone - Cygnus","B",null,"Quartz B",null,"CYG","SCYG","B",null,null,null,"Silestone - Blanco Maple***",{"$error":"#N/A"},"0000000"]
["Quartz","Silestone","Daria","Quartz - Daria","Quartz - Silestone - Daria","E",null,"Quartz E",null,"DAR","SDAR","E",null,null,null,"Silestone - Capri Limestone***",{"$error":"#N/A"},"0000000"]
["Quartz","Silestone","Forest Snow","Quartz - Forest Snow","Quartz - Silestone - Forest Snow","D",null,"Quartz D",null,"FSN","SFSN","D",null,null,null,"Silestone - Caramel Rhine***",{"$error":"#N/A"},"0000000"]
["Quartz","Silestone","Grey Expo","Quartz - Grey Expo","Quartz - Silestone - Grey Expo","A",null,"Quartz A",null,"GEX","SGEX","A",null,null,null,"Silestone - Coral Troya***",{"$error":"#N/A"},"0000000"]
["Quartz","Silestone","Helix","Quartz - Helix","Quartz - Silestone - Helix","E",null,"Quartz E",null,"HLX","SHLX","E",null,null,null,"Silestone - Creamstone","F","0000000"]
["Quartz","Silestone","Iconic Black","Quartz - Iconic Black","Quartz - Silestone - Iconic Black","D",null,"Quartz D",null,"ICB","SICB","D",null,null,null,"Silestone - Crystal Ash***",{"$error":"#N/A"},"0000000"]
["Quartz","Silestone","Iconic White","Quartz - Iconic White","Quartz - Silestone - Iconic White","E",null,"Quartz E",null,"ICW","SICW","E",null,null,null,"Silestone - Crystal Sand***",{"$error":"#N/A"},"0000000"]
["Quartz","Silestone","Iron Bark","Quartz - Iron Bark","Quartz - Silestone - Iron Bark","B",null,"Quartz B",null,"IBR","SIBR","B",null,null,null,"Silestone - Cygnus (15)","B","0000000"]
["Quartz","Silestone","Iron Ore","Quartz - Iron Ore","Quartz - Silestone - Iron Ore","E",null,"Quartz E",null,"IOR","SIOR","E",null,null,null,"Silestone - Dinux***",{"$error":"#N/A"},"0000000"]
["Quartz","Silestone","Kensho","Quartz - Kensho","Quartz - Silestone - Kensho","D",null,"Quartz D",null,"KSH","SKSH","D",null,null,null,"Silestone - Eternal Marquina***",{"$error":"#N/A"},"0000000"]
["Quartz","Silestone","Kimbler Mist","Quartz - Kimbler Mist","Quartz - Silestone - Kimbler Mist","E",null,"Quartz E",null,"KMS","SKMS","E",null,null,null,"Silestone - Forest Snow","D","0000000"]
["Quartz","Silestone","Kona Beige","Quartz - Kona Beige","Quartz - Silestone - Kona Beige","C",null,"Quartz C",null,"KBG","SKBG","C",null,null,null,"Silestone - Giallo Quarry***",{"$error":"#N/A"},"0000000"]
["Quartz","Silestone","Lagoon","Quartz - Lagoon","Quartz - Silestone - Lagoon","D",null,"Quartz D",null,"LAG","SLAG","D",null,null,null,"Silestone - Halley***",{"$error":"#N/A"},"0000000"]
["Quartz","Silestone","Lena","Quartz - Lena","Quartz - Silestone - Lena","A",null,"Quartz A",null,"LEN","SLEN","A",null,null,null,"Silestone - Ink***",{"$error":"#N/A"},"0000000"]
["Quartz","Silestone","Luna","Quartz - Luna","Quartz - Silestone - Luna","E",null,"Quartz E",null,"LUN","SLUN","E",null,null,null,"Silestone - Istmo***",{"$error":"#N/A"},"0000000"]
["Quartz","Silestone","Lusso","Quartz - Lusso","Quartz - Silestone - Lusso","D",null,"Quartz D",null,"LUS","SLUS","D",null,null,null,"Silestone - Ivory Coast***",{"$error":"#N/A"},"0000000"]
["Quartz","Silestone","Lyra","Quartz - Lyra","Quartz - Silestone - Lyra","D",null,"Quartz D",null,"LYR","SLYR","D",null,null,null,"Silestone - Kimbler Mist***",{"$error":"#N/A"},"0000000"]
["Quartz","Silestone","Marengo","Quartz - Marengo","Quartz - Silestone - Marengo","A",null,"Quartz A",null,"MNG","SMNG","A",null,null,null,"Silestone - Luna***",{"$error":"#N/A"},"0000000"]
["Quartz","Silestone","Marquina","Quartz - Marquina","Quartz - Silestone - Marquina","E",null,"Quartz E",null,"MAR","SMAR","E",null,null,null,"Silestone - Lusso","D","0000000"]
["Quartz","Silestone","Minerva Cream","Quartz - Minerva Cream","Quartz - Silestone - Minerva Cream","A",null,"Quartz A",null,"MIN","SMIN","A",null,null,null,"Silestone - Lyra***",{"$error":"#N/A"},"0000000"]
["Quartz","Silestone","Moonstone",{"$f":"A258& \" - \" & C258","v":"Quartz - Moonstone"},"Quartz - Silestone - Moonstone","E",null,"Quartz E",null,"MNS","SMNS","E",null,null,null,"Silestone - Nymbus***",{"$error":"#N/A"},{"$f":"IFERROR(VLOOKUP(P258,E:G,6,0),\"0000000\")","v":"0000000"}]
["Quartz","Silestone","Mountain Mist","Quartz - Mountain Mist",{"$f":"A259&\" - \"&B259&\" - \"&C259","v":"Quartz - Silestone - Mountain Mist"},"C",null,"Quartz C",null,"MMI","SMMI","C",null,null,null,"Silestone - Olivia***",{"$error":"#N/A"},"0000000"]
["Quartz","Silestone","Noka","Quartz - Noka","Quartz - Silestone - Noka","A",null,"Quartz A",null,"NOK","SNOK","A",null,null,null,"Silestone - Phoenix","E","0000000"]
["Quartz","Silestone","Ocean Jasper","Quartz - Ocean Jasper","Quartz - Silestone - Ocean Jasper","E",null,"Quartz E",null,"OJA","SOJA","E",null,null,null,"Silestone - Red Pine Suede","I","0000000"]
["Quartz","Silestone","Ocean Storm","Quartz - Ocean Storm","Quartz - Silestone - Ocean Storm","E",null,"Quartz E",null,"OST","SOST","E",null,null,null,"Silestone - Rosso Monza***",{"$error":"#N/A"},"0000000"]
["Quartz","Silestone","Pearl Jasmine","Quartz - Pearl Jasmine","Quartz - Silestone - Pearl Jasmine","D",null,"Quartz D",null,"PJA","SPJA","D",null,null,null,"Silestone - Royal Cemento***",{"$error":"#N/A"},"0000000"]
["Quartz","Silestone","Phoenix","Quartz - Phoenix","Quartz - Silestone - Phoenix","E",null,"Quartz E",null,"PHO","SPHO","E",null,null,null,"Silestone - Santa Fe Brown***",{"$error":"#N/A"},"0000000"]
["Quartz","Silestone","Pietra","Quartz - Pietra","Quartz - Silestone - Pietra","E",null,"Quartz E",null,"PTR","SPTR","E",null,null,null,"Silestone - Satori***",{"$error":"#N/A"},"0000000"]
["Quartz","Silestone","Quasar","Quartz - Quasar","Quartz - Silestone - Quasar","E",null,"Quartz E",null,"QUA","SQUA","E",null,null,null,"Silestone - Sonora Gold***",{"$error":"#N/A"},"0000000"]
["Quartz","Silestone","Riverbed","Quartz - Riverbed","Quartz - Silestone - Riverbed","E",null,"Quartz E",null,"RVB","SRVB","E",null,null,null,"Silestone - Stellar Fire***",{"$error":"#N/A"},"0000000"]
["Quartz","Silestone","Royal Reef","Quartz - Royal Reef","Quartz - Silestone - Royal Reef","B",null,"Quartz B",null,"RRF","SRRF","B",null,null,null,"Silestone - Stellar Marine***",{"$error":"#N/A"},"0000000"]
["Quartz","Silestone","Seleno","Quartz - Seleno","Quartz - Silestone - Seleno","E",null,"Quartz E",null,"SEL","SSEL","E",null,null,null,"Silestone - Tao***",{"$error":"#N/A"},"0000000"]
["Quartz","Silestone","Serena","Quartz - Serena","Quartz - Silestone - Serena","E",null,"Quartz E",null,"SER","SSER","E",null,null,null,"Silestone - Tritium***",{"$error":"#N/A"},"0000000"]
["Quartz","Silestone","Sienna Ridge","Quartz - Sienna Ridge","Quartz - Silestone - Sienna Ridge","C",null,"Quartz C",null,"SRD","SSRD","C",null,null,null,"Silestone - Unsui***",{"$error":"#N/A"},"0000000"]
["Quartz","Silestone","Sierra Madre","Quartz - Sierra Madre","Quartz - Silestone - Sierra Madre","C",null,"Quartz C",null,"SMD","SSMD","C",null,null,null,"Silestone - Yellow Dream***",{"$error":"#N/A"},"0000000"]
["Quartz","Silestone","Statuario","Quartz - Statuario","Quartz - Silestone - Statuario","E",null,"Quartz E",null,"STA","SSTA","E",null,null,null,"Silestone - Yukon Blanco","D","0000000"]
["Quartz","Silestone","Stellar Night","Quartz - Stellar Night","Quartz - Silestone - Stellar Night","D",null,"Quartz D",null,"SNT","SSNT","D",null,null,null,"Zodiaq - Caraway","A","0000000"]
["Quartz","Silestone","Stellar Snow","Quartz - Stellar Snow","Quartz - Silestone - Stellar Snow","D",null,"Quartz D",null,"SSN","SSSN","D",null,null,null,"Zodiaq - Cashmere Carrara","A","0000000"]
["Quartz","Silestone","Tebas Black","Quartz - Tebas Black","Quartz - Silestone - Tebas Black","A",null,"Quartz A",null,"TBL","STBL","A",null,null,null,"Zodiaq - Cloud White","A","0000000"]
["Quartz","Silestone","Tigris Sand","Quartz - Tigris Sand","Quartz - Silestone - Tigris Sand","D",null,"Quartz D",null,"TSN","STSN","D",null,null,null,"Zodiaq - Coarse Botticino","A","0000000"]
["Quartz","Silestone","Unsui","Quartz - Unsui","Quartz - Silestone - Unsui","D",null,"Quartz D",null,"UNS","SUNS","D",null,null,null,"Zodiaq - Coriander","A","0000000"]
["Quartz","Silestone","Vortium","Quartz - Vortium","Quartz - Silestone - Vortium","E",null,"Quartz E",null,"VOR","SVOR","E",null,null,null,"Zodiaq - Dove Grey","A","0000000"]
["Quartz","Silestone","White Diamond","Quartz - White Diamond","Quartz - Silestone - White Diamond","E",null,"Quartz E",null,"WDI","SWDI","E",null,null,null,"Zodiaq - Imperial","A","0000000"]
["Quartz","Silestone","White North","Quartz - White North","Quartz - Silestone - White North","B",null,"Quartz B",null,"SWN","SWN","B",null,null,null,"Zodiaq - Indigo Swirl","A","0000000"]
["Quartz","Silestone","White Platinum","Quartz - White Platinum","Quartz - Silestone - White Platinum","E",null,"Quartz E",null,"WPL","SWPL","E",null,null,null,"Zodiaq - Mocha Latte","A","0000000"]
["Quartz","Silestone","White Storm","Quartz - White Storm","Quartz - Silestone - White Storm","B","0108096","Quartz B",null,"WST","SWST","B",null,null,null,"Zodiaq - Mossy Green","A","0000000"]
["Quartz","Silestone","White Zeus Extreme","Quartz - White Zeus Extreme","Quartz - Silestone - White Zeus Extreme","D",null,"Quartz D",null,"WZX","SWZX","D",null,null,null,"Zodiaq - Mossy Oak","A","0000000"]
["Quartz","Silestone","Yukon Blanco","Quartz - Yukon Blanco","Quartz - Silestone - Yukon Blanco","D",null,"Quartz D",null,"YBL","SYBL","D",null,null,null,"Zodiaq - Oatmeal","A","0000000"]
["Quartz","Silestone","Zirconium","Quartz - Zirconium","Quartz - Silestone - Zirconium","E",null,"Quartz E",null,"ZIR","SZIR","E",null,null,null,"Zodiaq - Space Black","A","0000000"]
[null,null,null,null,null,null,null,null,null,null,null,null,null,null,null,"Zodiaq - Venetia Cream","A","0000000"]
[null,null,null,null,null,null,null,null,null,null,null,null,null,null,null,"Zodiaq - Versilia Grigio","B","0000000"]

{"sheet":"Sink Price Table","index":17,"n_rows":241,"n_cols":11,"rows_kept":241,"cut":false,"hidden":true,"merged":[]}
["LUP","Material","Trough","Model","Stations","Bowl","A","B","C","D","E"]
[{"$f":"CONCATENATE(B2,C2,D2,E2,F2,)","v":"CorianContinuous TroughAD1"},"Corian","Continuous Trough","AD",1,null,1116.796,1161.7959000000001,1241.7959000000001,1376.7959000000001,"ERR"]
["CorianContinuous TroughAD2","Corian","Continuous Trough","AD",2,null,1265.9368999999999,1161.7959000000001,1241.7959000000001,1376.7959000000001,"ERR"]
["CorianContinuous TroughAD3","Corian","Continuous Trough","AD",3,null,2268.6838000000002,2358.6838000000002,2518.6838000000002,2788.6838000000002,"ERR"]
["CorianContinuous TroughAD4","Corian","Continuous Trough","AD",4,null,2444.1437999999998,2534.1437999999998,2694.1437999999998,2964.1437999999998,"ERR"]
["CorianContinuous TroughAD5","Corian","Continuous Trough","AD",5,null,4323.5466999999999,4503.5466999999999,4823.5466999999999,5363.5467000000008,"ERR"]
["CorianContinuous TroughAD6+","Corian","Continuous Trough","AD","6+",null,4639.3746999999994,4819.3746999999994,5139.3746999999994,5679.3746999999994,"ERR"]
["CorianContinuous TroughDSG1","Corian","Continuous Trough","DSG",1,null,1088.6849999999999,1133.6849999999999,1213.6849999999999,1348.6849999999999,"ERR"]
["CorianContinuous TroughDSG2","Corian","Continuous Trough","DSG",2,null,1202.7339999999999,1247.7339999999999,1327.7339999999999,1462.7339999999999,"ERR"]
["CorianContinuous TroughDSG3","Corian","Continuous Trough","DSG",3,null,2177.37,2267.37,2427.37,2697.37,"ERR"]
["CorianContinuous TroughDSG4","Corian","Continuous Trough","DSG",4,null,2317.7379999999998,2407.7379999999998,2567.7379999999998,2837.7379999999998,"ERR"]
["CorianContinuous TroughDSG5","Corian","Continuous Trough","DSG",5,null,4169.03,4349.03,4669.03,5209.03,"ERR"]
["CorianContinuous TroughDSG6+","Corian","Continuous Trough","DSG","6+",null,4449.7659999999996,4629.7659999999996,4949.7659999999996,5489.7659999999996,"ERR"]
["CorianContinuous TroughDSWD1","Corian","Continuous Trough","DSWD",1,null,1109.7402,1154.7402,1234.7402,1369.7402,"ERR"]
["CorianContinuous TroughDSWD2","Corian","Continuous Trough","DSWD",2,null,1227.2983999999999,1272.2983999999999,1352.2983999999999,1487.2983999999999,"ERR"]
["CorianContinuous TroughDSWD3","Corian","Continuous Trough","DSWD",3,null,2219.4803999999999,2309.4803999999999,2469.4803999999999,2739.4803999999999,"ERR"]
["CorianContinuous TroughDSWD4","Corian","Continuous Trough","DSWD",4,null,2363.3576000000003,2453.3576000000003,2613.3576000000003,2883.3576000000003,"ERR"]
["CorianContinuous TroughDSWD5","Corian","Continuous Trough","DSWD",5,null,4247.9870000000001,4427.9870000000001,4747.9870000000001,5287.9869999999992,"ERR"]
["CorianContinuous TroughDSWD6+","Corian","Continuous Trough","DSWD","6+",null,4535.7413999999999,4715.7413999999999,5035.7413999999999,5575.7413999999999,"ERR"]
["CorianIndividual BasinAD1","Corian","Individual Basin","AD",1,null,1116.796,1161.7959000000001,1241.7959000000001,1376.7959000000001,"ERR"]
["CorianIndividual BasinAD2","Corian","Individual Basin","AD",2,null,1265.9368999999999,1161.7959000000001,1241.7959000000001,1376.7959000000001,"ERR"]
["CorianIndividual BasinAD3","Corian","Individual Basin","AD",3,null,2268.6838000000002,2358.6838000000002,2518.6838000000002,2788.6838000000002,"ERR"]
["CorianIndividual BasinAD4","Corian","Individual Basin","AD",4,null,2444.1437999999998,2534.1437999999998,2694.1437999999998,2964.1437999999998,"ERR"]
["CorianIndividual BasinAD5","Corian","Individual Basin","AD",5,null,4323.5466999999999,4503.5466999999999,4823.5466999999999,5363.5467000000008,"ERR"]
["CorianIndividual BasinAD6+","Corian","Individual Basin","AD","6+",null,4639.3746999999994,4819.3746999999994,5139.3746999999994,5679.3746999999994,"ERR"]
["CorianIndividual BasinDSCT1SS","Corian","Individual Basin","DSCT",1,"SS",672.47850000000005,717.47850000000005,797.47850000000005,932.47850000000005,"ERR"]
["CorianIndividual BasinDSCT1VC","Corian","Individual Basin","DSCT",1,"VC",593.92849999999999,638.92849999999999,718.9285000000001,853.9285000000001,"ERR"]
["CorianIndividual BasinDSCT2SS","Corian","Individual Basin","DSCT",2,"SS",1012.227,1057.2269999999999,1137.2269999999999,1272.2269999999999,"ERR"]
["CorianIndividual BasinDSCT2VC","Corian","Individual Basin","DSCT",2,"VC",855.12699999999995,900.12699999999995,980.12699999999995,1115.127,"ERR"]
["CorianIndividual BasinDSCT3SS","Corian","Individual Basin","DSCT",3,"SS",1772.4354999999998,1862.4354999999998,2022.4354999999998,2292.4355,"ERR"]
["CorianIndividual BasinDSCT3VC","Corian","Individual Basin","DSCT",3,"VC",1536.7855,1626.7855,1786.7855,2056.7855,"ERR"]
["CorianIndividual BasinDSCT4SS","Corian","Individual Basin","DSCT",4,"SS",2112.1839999999997,2202.1839999999997,2362.1839999999997,2632.1840000000002,"ERR"]
["CorianIndividual BasinDSCT4VC","Corian","Individual Basin","DSCT",4,"VC",1797.9839999999999,1887.9839999999999,2047.9839999999999,2317.9839999999999,"ERR"]
["CorianIndividual BasinDSCT5SS","Corian","Individual Basin","DSCT",5,"SS",3073.5275000000001,3253.5275000000001,3573.5275000000001,4113.5275000000001,"ERR"]
["CorianIndividual BasinDSCT5VC","Corian","Individual Basin","DSCT",5,"VC",2680.7775000000001,2860.7775000000001,3180.7775000000001,3720.7775000000001,"ERR"]
["CorianIndividual BasinDSCT6+SS","Corian","Individual Basin","DSCT","6+","SS",3544.8709999999996,3724.8709999999996,4044.8709999999996,4584.8710000000001,"ERR"]
["CorianIndividual BasinDSCT6+VC","Corian","Individual Basin","DSCT","6+","VC",3073.5709999999999,3253.5709999999999,3573.5709999999999,4113.5709999999999,"ERR"]
["CorianIndividual BasinDSG1","Corian","Individual Basin","DSG",1,null,1088.6849999999999,1133.6849999999999,1213.6849999999999,1348.6849999999999,"ERR"]
["CorianIndividual BasinDSG2","Corian","Individual Basin","DSG",2,null,1202.7339999999999,1247.7339999999999,1327.7339999999999,1462.7339999999999,"ERR"]
["CorianIndividual BasinDSG3","Corian","Individual Basin","DSG",3,null,2177.37,2267.37,2427.37,2697.37,"ERR"]
["CorianIndividual BasinDSG4","Corian","Individual Basin","DSG",4,null,2317.7379999999998,2407.7379999999998,2567.7379999999998,2837.7379999999998,"ERR"]
["CorianIndividual BasinDSG5","Corian","Individual Basin","DSG",5,null,4169.03,4349.03,4669.03,5209.03,"ERR"]
["CorianIndividual BasinDSG6+","Corian","Individual Basin","DSG","6+",null,4449.7659999999996,4629.7659999999996,4949.7659999999996,5489.7659999999996,"ERR"]
["CorianIndividual BasinDSOF1","Corian","Individual Basin","DSOF",1,null,1109.7402,1154.7402,1234.7402,1369.7402,"ERR"]
["CorianIndividual BasinDSOF2","Corian","Individual Basin","DSOF",2,null,1239.3030000000001,1284.3030000000001,1364.3029999999999,1499.3029999999999,"ERR"]
["CorianIndividual BasinDSOF3","Corian","Individual Basin","DSOF",3,null,2229.7303999999999,2319.7303999999999,2479.7303999999999,2749.7303999999999,"ERR"]
["CorianIndividual BasinDSOF4","Corian","Individual Basin","DSOF",4,null,2383.8576000000003,2473.8576000000003,2633.8576000000003,2903.8576000000003,"ERR"]
["CorianIndividual BasinDSOF5","Corian","Individual Basin","DSOF",5,null,4268.4870000000001,4448.4870000000001,4768.4870000000001,5308.4869999999992,"ERR"]
["CorianIndividual BasinDSOF6+","Corian","Individual Basin","DSOF","6+",null,4575.2644,4755.2644,5075.2644,5615.2643999999991,"ERR"]
["CorianIndividual BasinDSVR1","Corian","Individual Basin","DSVR",1,null,526.66250000000002,571.66250000000002,651.66250000000002,786.66250000000002,"ERR"]
["CorianIndividual BasinDSVR2","Corian","Individual Basin","DSVR",2,null,720.59500000000003,765.59500000000003,845.59500000000003,980.59500000000003,"ERR"]
["CorianIndividual BasinDSVR3","Corian","Individual Basin","DSVR",3,null,1334.9875,1424.9875,1584.9875,1854.9875,"ERR"]
["CorianIndividual BasinDSVR4","Corian","Individual Basin","DSVR",4,null,1528.92,1618.92,1778.92,2048.92,"ERR"]
["CorianIndividual BasinDSVR5","Corian","Individual Basin","DSVR",5,null,2344.4475000000002,2524.4475000000002,2844.4475000000002,3384.4475000000002,"ERR"]
["CorianIndividual BasinDSVR6+","Corian","Individual Basin","DSVR","6+",null,2669.9749999999999,2849.9749999999999,3169.9749999999999,3709.9749999999999,"ERR"]
["CorianIndividual BasinDSWD1","Corian","Individual Basin","DSWD",1,null,1109.7402,1154.7402,1234.7402,1369.7402,"ERR"]
["CorianIndividual BasinDSWD2","Corian","Individual Basin","DSWD",2,null,1227.2983999999999,1272.2983999999999,1352.2983999999999,1487.2983999999999,"ERR"]
["CorianIndividual BasinDSWD3","Corian","Individual Basin","DSWD",3,null,2219.4803999999999,2309.4803999999999,2469.4803999999999,2739.4803999999999,"ERR"]
["CorianIndividual BasinDSWD4","Corian","Individual Basin","DSWD",4,null,2363.3576000000003,2453.3576000000003,2613.3576000000003,2883.3576000000003,"ERR"]
["CorianIndividual BasinDSWD5","Corian","Individual Basin","DSWD",5,null,4247.9870000000001,4427.9870000000001,4747.9870000000001,5287.9869999999992,"ERR"]
["CorianIndividual BasinDSWD6+","Corian","Individual Basin","DSWD","6+",null,4535.7413999999999,4715.7413999999999,5035.7413999999999,5575.7413999999999,"ERR"]
["Corian_QuartzIndividual BasinAD1","Corian_Quartz","Individual Basin","AD",1,null,2175.4022,2242.5005000000001,6507.5789000000004,2533.5869000000002,4183.8509000000004]
["Corian_QuartzIndividual BasinAD2","Corian_Quartz","Individual Basin","AD",2,null,2959.0282000000002,3026.1158,3067.4053999999996,3317.2128000000002,4017.0661999999998]
["Corian_QuartzIndividual BasinAD3","Corian_Quartz","Individual Basin","AD",3,null,5016.6970000000001,5150.8828999999996,5233.4621000000006,5733.0662000000002,7132.7837]
["Corian_QuartzIndividual BasinAD4","Corian_Quartz","Individual Basin","AD",4,null,5827.4831999999997,5961.6796999999997,6044.2588999999998,6543.8630000000003,7943.5805]
[{"$f":"CONCATENATE(B66,C66,D66,E66,F66,)","v":"Corian_QuartzIndividual BasinAD5"},"Corian_Quartz","Individual Basin","AD",5,null,9182.3634999999995,9450.7458999999999,9105.9699999999993,10615.1126,13414.547500000001]
["Corian_QuartzIndividual BasinAD6+","Corian_Quartz","Individual Basin","AD","6+",null,10138.054100000001,10406.4365,10571.5949,11570.8032,14370.2381]
["Corian_QuartzIndividual BasinDSCT1SS","Corian_Quartz","Individual Basin","DSCT",1,"SS",1455.9389000000001,1523.0371,1564.3267000000001,1814.1341,2513.9875000000002]
["Corian_QuartzIndividual BasinDSCT1VC","Corian_Quartz","Individual Basin","DSCT",1,"VC",1455.9389000000001,1523.0371,1564.3267000000001,1814.1341,2513.9875000000002]
["Corian_QuartzIndividual BasinDSCT2SS","Corian_Quartz","Individual Basin","DSCT",2,"SS",2116.7098000000001,2183.808,2225.0976000000001,2473.8490000000002,3174.7584000000002]
["Corian_QuartzIndividual BasinDSCT2VC","Corian_Quartz","Individual Basin","DSCT",2,"VC",2116.7098000000001,2183.808,2225.0976000000001,2474.9050000000002,3174.7584000000002]
["Corian_QuartzIndividual BasinDSCT3SS","Corian_Quartz","Individual Basin","DSCT",3,"SS",3548.8674999999998,3683.0640000000003,3765.6432,4265.2474000000002,5664.9647999999997]
["Corian_QuartzIndividual BasinDSCT3VC","Corian_Quartz","Individual Basin","DSCT",3,"VC",3548.5507000000002,3683.0640000000003,3765.6432,4265.2474000000002,5664.9647999999997]
["Corian_QuartzIndividual BasinDSCT4SS","Corian_Quartz","Individual Basin","DSCT",4,"SS",4215.1296000000002,4349.3154999999997,4431.8946999999998,4931.4989000000005,6331.2163]
["Corian_QuartzIndividual BasinDSCT4VC","Corian_Quartz","Individual Basin","DSCT",4,"VC",4215.1296000000002,4349.3154999999997,4431.8630000000003,4931.4989000000005,6331.2163]
["Corian_QuartzIndividual BasinDSCT5SS","Corian_Quartz","Individual Basin","DSCT",5,"SS",6424.1654000000008,6692.5478000000003,6857.7061999999996,7856.9146000000001,10656.349399999999]
["Corian_QuartzIndividual BasinDSCT5VC","Corian_Quartz","Individual Basin","DSCT",5,"VC",6424.1654000000008,6692.5478000000003,6857.7061999999996,7856.9146000000001,10656.349399999999]
["Corian_QuartzIndividual BasinDSCT6+SS","Corian_Quartz","Individual Basin","DSCT","6+","SS",7119.6997999999994,7388.0821999999998,7553.240600000001,8552.4490000000005,11351.8838]
["Corian_QuartzIndividual BasinDSCT6+VC","Corian_Quartz","Individual Basin","DSCT","6+","VC",7119.6997999999994,7388.0821999999998,7553.240600000001,8552.4490000000005,11351.8838]
["Corian_QuartzIndividual BasinDSG1","Corian_Quartz","Individual Basin","DSG",1,null,2145.7498000000001,2212.848,2444.2175999999999,2503.9344000000001,3202.848]
["Corian_QuartzIndividual BasinDSG2","Corian_Quartz","Individual Basin","DSG",2,null,2893.1549,2960.2426,3001.5321999999996,3251.3395,3951.1929999999998]
["Corian_QuartzIndividual BasinDSG3","Corian_Quartz","Individual Basin","DSG",3,null,4921.1711999999998,5055.3571000000002,5137.9363000000003,5637.5405000000001,7037.2579000000005]
["Corian_QuartzIndividual BasinDSG4","Corian_Quartz","Individual Basin","DSG",4,null,5695.7366000000002,5829.9225999999999,5912.5018000000009,6412.1058999999996,7811.8233999999993]
["Corian_QuartzIndividual BasinDSG5","Corian_Quartz","Individual Basin","DSG",5,null,9020.9645,9289.3468999999986,9454.5053000000007,10453.713599999999,13253.148500000001]
["Corian_QuartzIndividual BasinDSG6+","Corian_Quartz","Individual Basin","DSG","6+",null,9940.4341999999997,10208.8166,10373.975,11373.183400000002,14172.618200000001]
["Corian_QuartzIndividual BasinDSOF1","Corian_Quartz","Individual Basin","DSOF",1,null,2167.2604999999999,2234.3586999999998,2275.6482999999998,2525.4450999999999,3225.3090999999999]
["Corian_QuartzIndividual BasinDSOF2","Corian_Quartz","Individual Basin","DSOF",2,null,2928.1823999999997,2995.2806,3036.5702000000001,3286.3670000000002,3986.2309999999998]
["Corian_QuartzIndividual BasinDSOF3","Corian_Quartz","Individual Basin","DSOF",3,null,4974.7632000000003,5108.9596999999994,5191.5389000000005,2523.143,7090.8605000000007]
["Corian_QuartzIndividual BasinDSOF4","Corian_Quartz","Individual Basin","DSOF",4,null,5763.5424000000003,5897.7282999999998,5980.3074999999999,6479.9117000000006,7879.6291000000001]
["Corian_QuartzIndividual BasinDSOF5","Corian_Quartz","Individual Basin","DSOF",5,null,9123.6288000000004,9392.0112000000008,9557.1695999999993,10556.377899999999,13355.8128]
["Corian_QuartzIndividual BasinDSOF6+","Corian_Quartz","Individual Basin","DSOF","6+",null,10060.9238,9283.8662000000004,10494.464599999999,1989.6729999999998,14293.1078]
["Corian_QuartzIndividual BasinDSVR1","Corian_Quartz","Individual Basin","DSVR",1,null,1378.73,1442.27,1481.37,1717.93,2380.67]
["Corian_QuartzIndividual BasinDSVR2","Corian_Quartz","Individual Basin","DSVR",2,null,2004.46,2068,2107.1,2343.66,3006.4]
["Corian_QuartzIndividual BasinDSVR3","Corian_Quartz","Individual Basin","DSVR",3,null,3360.67,3487.75,3565.95,4039.06,5364.55]
["Corian_QuartzIndividual BasinDSVR4","Corian_Quartz","Individual Basin","DSVR",4,null,3991.6,4118.67,4196.87,4669.9799999999996,5995.47]
["Corian_QuartzIndividual BasinDSVR5","Corian_Quartz","Individual Basin","DSVR",5,null,6083.49,6337.64,6494.04,7440.26,100.91239999999999]
["Corian_QuartzIndividual BasinDSVR6+","Corian_Quartz","Individual Basin","DSVR","6+",null,6742.14,6996.29,7152.69,8098.91,10749.89]
["Corian_QuartzIndividual BasinDSWD1","Corian_Quartz","Individual Basin","DSWD",1,null,2167.2604999999999,2234.3586999999998,2275.6482999999998,2525.4450999999999,3225.3090999999999]
["Corian_QuartzIndividual BasinDSWD2","Corian_Quartz","Individual Basin","DSWD",2,null,2885.9213,2984.6995000000002,3025.9890999999998,3275.7859000000003,3975.6498999999999]
["Corian_QuartzIndividual BasinDSWD3","Corian_Quartz","Individual Basin","DSWD",3,null,4964.1821,5098.3786,5181.4858000000004,5680.5618999999997,7080.2793999999994]
["Corian_QuartzIndividual BasinDSWD4","Corian_Quartz","Individual Basin","DSWD",4,null,5742.3802000000005,5876.5661,5959.1453000000001,6458.7493999999997,7858.4668999999994]
["Corian_QuartzIndividual BasinDSWD5","Corian_Quartz","Individual Basin","DSWD",5,null,9102.4665999999997,93.708500000000001,9536.0074000000004,10535.215700000001,13334.650600000001]
["Corian_QuartzIndividual BasinDSWD6+","Corian_Quartz","Individual Basin","DSWD","6+",null,10029.1805,10297.562900000001,10462.721299999999,11461.929599999999,14261.3645]
["Corian_QuartzContinuous TroughAD1","Corian_Quartz","Continuous Trough","AD",1,null,2175.4022,2242.5005000000001,6507.5789000000004,2533.5869000000002,4183.8509000000004]
["Corian_QuartzContinuous TroughAD2","Corian_Quartz","Continuous Trough","AD",2,null,2959.0282000000002,3026.1158,3067.4053999999996,3317.2128000000002,4017.0661999999998]
["Corian_QuartzContinuous TroughAD3","Corian_Quartz","Continuous Trough","AD",3,null,5016.6970000000001,5150.8828999999996,5233.4621000000006,5733.0662000000002,7132.7837]
["Corian_QuartzContinuous TroughAD4","Corian_Quartz","Continuous Trough","AD",4,null,5827.4831999999997,5961.6796999999997,6044.2588999999998,6543.8630000000003,7943.5805]
["Corian_QuartzContinuous TroughAD5","Corian_Quartz","Continuous Trough","AD",5,null,9182.3634999999995,9450.7458999999999,9105.9699999999993,10615.1126,13414.547500000001]
["Corian_QuartzContinuous TroughAD6+","Corian_Quartz","Continuous Trough","AD","6+",null,10138.054100000001,10406.4365,10571.5949,11570.8032,14370.2381]
["Corian_QuartzContinuous TroughDSG1","Corian_Quartz","Continuous Trough","DSG",1,null,2145.7498000000001,2212.848,2444.2175999999999,2503.9344000000001,3202.848]
["Corian_QuartzContinuous TroughDSG2","Corian_Quartz","Continuous Trough","DSG",2,null,2893.1549,2960.2426,3001.5321999999996,3251.3395,3951.1929999999998]
["Corian_QuartzContinuous TroughDSG3","Corian_Quartz","Continuous Trough","DSG",3,null,4921.1711999999998,5055.3571000000002,5137.9363000000003,5637.5405000000001,7037.2579000000005]
["Corian_QuartzContinuous TroughDSG4","Corian_Quartz","Continuous Trough","DSG",4,null,5695.7366000000002,5829.9225999999999,5912.5018000000009,6412.1058999999996,7811.8233999999993]
["Corian_QuartzContinuous TroughDSG5","Corian_Quartz","Continuous Trough","DSG",5,null,9020.9645,9289.3468999999986,9454.5053000000007,10453.713599999999,13253.148500000001]
["Corian_QuartzContinuous TroughDSG6+","Corian_Quartz","Continuous Trough","DSG","6+",null,9940.4341999999997,10208.8166,10373.975,11373.183400000002,14172.618200000001]
["Corian_QuartzContinuous TroughDSWD1","Corian_Quartz","Continuous Trough","DSWD",1,null,2167.2604999999999,2234.3586999999998,2275.6482999999998,2525.4450999999999,3225.3090999999999]
["Corian_QuartzContinuous TroughDSWD2","Corian_Quartz","Continuous Trough","DSWD",2,null,2885.9213,2984.6995000000002,3025.9890999999998,3275.7859000000003,3975.6498999999999]
["Corian_QuartzContinuous TroughDSWD3","Corian_Quartz","Continuous Trough","DSWD",3,null,4964.1821,5098.3786,5181.4858000000004,5680.5618999999997,7080.2793999999994]
["Corian_QuartzContinuous TroughDSWD4","Corian_Quartz","Continuous Trough","DSWD",4,null,5742.3802000000005,5876.5661,5959.1453000000001,6458.7493999999997,7858.4668999999994]
["Corian_QuartzContinuous TroughDSWD5","Corian_Quartz","Continuous Trough","DSWD",5,null,9102.4665999999997,93.708500000000001,9536.0074000000004,10535.215700000001,13334.650600000001]
["Corian_QuartzContinuous TroughDSWD6+","Corian_Quartz","Continuous Trough","DSWD","6+",null,10029.1805,10297.562900000001,10462.721299999999,11461.929599999999,14261.3645]
["CaeserstoneIndividual BasinAD1","Caeserstone","Individual Basin","AD",1,null,2175.4022,2242.5005000000001,6507.5789000000004,2533.5869000000002,4183.8509000000004]
["CaeserstoneIndividual BasinAD2","Caeserstone","Individual Basin","AD",2,null,2959.0282000000002,3026.1158,3067.4053999999996,3317.2128000000002,4017.0661999999998]
["CaeserstoneIndividual BasinAD3","Caeserstone","Individual Basin","AD",3,null,5016.6970000000001,5150.8828999999996,5233.4621000000006,5733.0662000000002,7132.7837]
["CaeserstoneIndividual BasinAD4","Caeserstone","Individual Basin","AD",4,null,5827.4831999999997,5961.6796999999997,6044.2588999999998,6543.8630000000003,7943.5805]
["CaeserstoneIndividual BasinAD5","Caeserstone","Individual Basin","AD",5,null,9182.3634999999995,9450.7458999999999,9105.9699999999993,10615.1126,13414.547500000001]
["CaeserstoneIndividual BasinAD6+","Caeserstone","Individual Basin","AD","6+",null,10138.054100000001,10406.4365,10571.5949,11570.8032,14370.2381]
["CaeserstoneIndividual BasinDSCT1SS","Caeserstone","Individual Basin","DSCT",1,"SS",1455.9389000000001,1523.0371,1564.3267000000001,1814.1341,2513.9875000000002]
["CaeserstoneIndividual BasinDSCT1VC","Caeserstone","Individual Basin","DSCT",1,"VC",1455.9389000000001,1523.0371,1564.3267000000001,1814.1341,2513.9875000000002]
[{"$f":"CONCATENATE(B130,C130,D130,E130,F130,)","v":"CaeserstoneIndividual BasinDSCT2SS"},"Caeserstone","Individual Basin","DSCT",2,"SS",2116.7098000000001,2183.808,2225.0976000000001,2473.8490000000002,3174.7584000000002]
["CaeserstoneIndividual BasinDSCT2VC","Caeserstone","Individual Basin","DSCT",2,"VC",2116.7098000000001,2183.808,2225.0976000000001,2474.9050000000002,3174.7584000000002]
["CaeserstoneIndividual BasinDSCT3SS","Caeserstone","Individual Basin","DSCT",3,"SS",3548.8674999999998,3683.0640000000003,3765.6432,4265.2474000000002,5664.9647999999997]
["CaeserstoneIndividual BasinDSCT3VC","Caeserstone","Individual Basin","DSCT",3,"VC",3548.5507000000002,3683.0640000000003,3765.6432,4265.2474000000002,5664.9647999999997]
["CaeserstoneIndividual BasinDSCT4SS","Caeserstone","Individual Basin","DSCT",4,"SS",4215.1296000000002,4349.3154999999997,4431.8946999999998,4931.4989000000005,6331.2163]
["CaeserstoneIndividual BasinDSCT4VC","Caeserstone","Individual Basin","DSCT",4,"VC",4215.1296000000002,4349.3154999999997,4431.8630000000003,4931.4989000000005,6331.2163]
["CaeserstoneIndividual BasinDSCT5SS","Caeserstone","Individual Basin","DSCT",5,"SS",6424.1654000000008,6692.5478000000003,6857.7061999999996,7856.9146000000001,10656.349399999999]
["CaeserstoneIndividual BasinDSCT5VC","Caeserstone","Individual Basin","DSCT",5,"VC",6424.1654000000008,6692.5478000000003,6857.7061999999996,7856.9146000000001,10656.349399999999]
["CaeserstoneIndividual BasinDSCT6+SS","Caeserstone","Individual Basin","DSCT","6+","SS",7119.6997999999994,7388.0821999999998,7553.240600000001,8552.4490000000005,11351.8838]
["CaeserstoneIndividual BasinDSCT6+VC","Caeserstone","Individual Basin","DSCT","6+","VC",7119.6997999999994,7388.0821999999998,7553.240600000001,8552.4490000000005,11351.8838]
["CaeserstoneIndividual BasinDSG1","Caeserstone","Individual Basin","DSG",1,null,2145.7498000000001,2212.848,2444.2175999999999,2503.9344000000001,3202.848]
["CaeserstoneIndividual BasinDSG2","Caeserstone","Individual Basin","DSG",2,null,2893.1549,2960.2426,3001.5321999999996,3251.3395,3951.1929999999998]
["CaeserstoneIndividual BasinDSG3","Caeserstone","Individual Basin","DSG",3,null,4921.1711999999998,5055.3571000000002,5137.9363000000003,5637.5405000000001,7037.2579000000005]
["CaeserstoneIndividual BasinDSG4","Caeserstone","Individual Basin","DSG",4,null,5695.7366000000002,5829.9225999999999,5912.5018000000009,6412.1058999999996,7811.8233999999993]
["CaeserstoneIndividual BasinDSG5","Caeserstone","Individual Basin","DSG",5,null,9020.9645,9289.3468999999986,9454.5053000000007,10453.713599999999,13253.148500000001]
["CaeserstoneIndividual BasinDSG6+","Caeserstone","Individual Basin","DSG","6+",null,9940.4341999999997,10208.8166,10373.975,11373.183400000002,14172.618200000001]
["CaeserstoneIndividual BasinDSOF1","Caeserstone","Individual Basin","DSOF",1,null,2167.2604999999999,2234.3586999999998,2275.6482999999998,2525.4450999999999,3225.3090999999999]
["CaeserstoneIndividual BasinDSOF2","Caeserstone","Individual Basin","DSOF",2,null,2928.1823999999997,2995.2806,3036.5702000000001,3286.3670000000002,3986.2309999999998]
["CaeserstoneIndividual BasinDSOF3","Caeserstone","Individual Basin","DSOF",3,null,4974.7632000000003,5108.9596999999994,5191.5389000000005,2523.143,7090.8605000000007]
["CaeserstoneIndividual BasinDSOF4","Caeserstone","Individual Basin","DSOF",4,null,5763.5424000000003,5897.7282999999998,5980.3074999999999,6479.9117000000006,7879.6291000000001]
["CaeserstoneIndividual BasinDSOF5","Caeserstone","Individual Basin","DSOF",5,null,9123.6288000000004,9392.0112000000008,9557.1695999999993,10556.377899999999,13355.8128]
["CaeserstoneIndividual BasinDSOF6+","Caeserstone","Individual Basin","DSOF","6+",null,10060.9238,9283.8662000000004,10494.464599999999,1989.6729999999998,14293.1078]
["CaeserstoneIndividual BasinDSVR1","Caeserstone","Individual Basin","DSVR",1,null,1378.73,1442.27,1481.37,1717.93,2380.67]
["CaeserstoneIndividual BasinDSVR2","Caeserstone","Individual Basin","DSVR",2,null,2004.46,2068,2107.1,2343.66,3006.4]
["CaeserstoneIndividual BasinDSVR3","Caeserstone","Individual Basin","DSVR",3,null,3360.67,3487.75,3565.95,4039.06,5364.55]
["CaeserstoneIndividual BasinDSVR4","Caeserstone","Individual Basin","DSVR",4,null,3991.6,4118.67,4196.87,4669.9799999999996,5995.47]
["CaeserstoneIndividual BasinDSVR5","Caeserstone","Individual Basin","DSVR",5,null,6083.49,6337.64,6494.04,7440.26,100.91239999999999]
["CaeserstoneIndividual BasinDSVR6+","Caeserstone","Individual Basin","DSVR","6+",null,6742.14,6996.29,7152.69,8098.91,10749.89]
["CaeserstoneIndividual BasinDSWD1","Caeserstone","Individual Basin","DSWD",1,null,2167.2604999999999,2234.3586999999998,2275.6482999999998,2525.4450999999999,3225.3090999999999]
["CaeserstoneIndividual BasinDSWD2","Caeserstone","Individual Basin","DSWD",2,null,2885.9213,2984.6995000000002,3025.9890999999998,3275.7859000000003,3975.6498999999999]
["CaeserstoneIndividual BasinDSWD3","Caeserstone","Individual Basin","DSWD",3,null,4964.1821,5098.3786,5181.4858000000004,5680.5618999999997,7080.2793999999994]
["CaeserstoneIndividual BasinDSWD4","Caeserstone","Individual Basin","DSWD",4,null,5742.3802000000005,5876.5661,5959.1453000000001,6458.7493999999997,7858.4668999999994]
["CaeserstoneIndividual BasinDSWD5","Caeserstone","Individual Basin","DSWD",5,null,9102.4665999999997,93.708500000000001,9536.0074000000004,10535.215700000001,13334.650600000001]
["CaeserstoneIndividual BasinDSWD6+","Caeserstone","Individual Basin","DSWD","6+",null,10029.1805,10297.562900000001,10462.721299999999,11461.929599999999,14261.3645]
["CaeserstoneContinuous TroughAD1","Caeserstone","Continuous Trough","AD",1,null,2175.4022,2242.5005000000001,6507.5789000000004,2533.5869000000002,4183.8509000000004]
["CaeserstoneContinuous TroughAD2","Caeserstone","Continuous Trough","AD",2,null,2959.0282000000002,3026.1158,3067.4053999999996,3317.2128000000002,4017.0661999999998]
["CaeserstoneContinuous TroughAD3","Caeserstone","Continuous Trough","AD",3,null,5016.6970000000001,5150.8828999999996,5233.4621000000006,5733.0662000000002,7132.7837]
["CaeserstoneContinuous TroughAD4","Caeserstone","Continuous Trough","AD",4,null,5827.4831999999997,5961.6796999999997,6044.2588999999998,6543.8630000000003,7943.5805]
["CaeserstoneContinuous TroughAD5","Caeserstone","Continuous Trough","AD",5,null,9182.3634999999995,9450.7458999999999,9105.9699999999993,10615.1126,13414.547500000001]
["CaeserstoneContinuous TroughAD6+","Caeserstone","Continuous Trough","AD","6+",null,10138.054100000001,10406.4365,10571.5949,11570.8032,14370.2381]
["CaeserstoneContinuous TroughDSG1","Caeserstone","Continuous Trough","DSG",1,null,2145.7498000000001,2212.848,2444.2175999999999,2503.9344000000001,3202.848]
["CaeserstoneContinuous TroughDSG2","Caeserstone","Continuous Trough","DSG",2,null,2893.1549,2960.2426,3001.5321999999996,3251.3395,3951.1929999999998]
["CaeserstoneContinuous TroughDSG3","Caeserstone","Continuous Trough","DSG",3,null,4921.1711999999998,5055.3571000000002,5137.9363000000003,5637.5405000000001,7037.2579000000005]
["CaeserstoneContinuous TroughDSG4","Caeserstone","Continuous Trough","DSG",4,null,5695.7366000000002,5829.9225999999999,5912.5018000000009,6412.1058999999996,7811.8233999999993]
["CaeserstoneContinuous TroughDSG5","Caeserstone","Continuous Trough","DSG",5,null,9020.9645,9289.3468999999986,9454.5053000000007,10453.713599999999,13253.148500000001]
["CaeserstoneContinuous TroughDSG6+","Caeserstone","Continuous Trough","DSG","6+",null,9940.4341999999997,10208.8166,10373.975,11373.183400000002,14172.618200000001]
["CaeserstoneContinuous TroughDSWD1","Caeserstone","Continuous Trough","DSWD",1,null,2167.2604999999999,2234.3586999999998,2275.6482999999998,2525.4450999999999,3225.3090999999999]
["CaeserstoneContinuous TroughDSWD2","Caeserstone","Continuous Trough","DSWD",2,null,2885.9213,2984.6995000000002,3025.9890999999998,3275.7859000000003,3975.6498999999999]
["CaeserstoneContinuous TroughDSWD3","Caeserstone","Continuous Trough","DSWD",3,null,4964.1821,5098.3786,5181.4858000000004,5680.5618999999997,7080.2793999999994]
["CaeserstoneContinuous TroughDSWD4","Caeserstone","Continuous Trough","DSWD",4,null,5742.3802000000005,5876.5661,5959.1453000000001,6458.7493999999997,7858.4668999999994]
["CaeserstoneContinuous TroughDSWD5","Caeserstone","Continuous Trough","DSWD",5,null,9102.4665999999997,93.708500000000001,9536.0074000000004,10535.215700000001,13334.650600000001]
["CaeserstoneContinuous TroughDSWD6+","Caeserstone","Continuous Trough","DSWD","6+",null,10029.1805,10297.562900000001,10462.721299999999,11461.929599999999,14261.3645]
[{"$f":"CONCATENATE(B182,C182,D182,E182,F182,)","v":"SileStoneIndividual BasinAD1"},"SileStone","Individual Basin","AD",1,null,2175.4022,2242.5005000000001,6507.5789000000004,2533.5869000000002,4183.8509000000004]
[{"$f":"CONCATENATE(B183,C183,D183,E183,F183,)","v":"SileStoneIndividual BasinAD2"},"SileStone","Individual Basin","AD",2,null,2959.0282000000002,3026.1158,3067.4053999999996,3317.2128000000002,4017.0661999999998]
["SileStoneIndividual BasinAD3","SileStone","Individual Basin","AD",3,null,5016.6970000000001,5150.8828999999996,5233.4621000000006,5733.0662000000002,7132.7837]
["SileStoneIndividual BasinAD4","SileStone","Individual Basin","AD",4,null,5827.4831999999997,5961.6796999999997,6044.2588999999998,6543.8630000000003,7943.5805]
["SileStoneIndividual BasinAD5","SileStone","Individual Basin","AD",5,null,9182.3634999999995,9450.7458999999999,9105.9699999999993,10615.1126,13414.547500000001]
["SileStoneIndividual BasinAD6+","SileStone","Individual Basin","AD","6+",null,10138.054100000001,10406.4365,10571.5949,11570.8032,14370.2381]
["SileStoneIndividual BasinDSCT1SS","SileStone","Individual Basin","DSCT",1,"SS",1455.9389000000001,1523.0371,1564.3267000000001,1814.1341,2513.9875000000002]
["SileStoneIndividual BasinDSCT1VC","SileStone","Individual Basin","DSCT",1,"VC",1455.9389000000001,1523.0371,1564.3267000000001,1814.1341,2513.9875000000002]
["SileStoneIndividual BasinDSCT2SS","SileStone","Individual Basin","DSCT",2,"SS",2116.7098000000001,2183.808,2225.0976000000001,2473.8490000000002,3174.7584000000002]
["SileStoneIndividual BasinDSCT2VC","SileStone","Individual Basin","DSCT",2,"VC",2116.7098000000001,2183.808,2225.0976000000001,2474.9050000000002,3174.7584000000002]
["SileStoneIndividual BasinDSCT3SS","SileStone","Individual Basin","DSCT",3,"SS",3548.8674999999998,3683.0640000000003,3765.6432,4265.2474000000002,5664.9647999999997]
["SileStoneIndividual BasinDSCT3VC","SileStone","Individual Basin","DSCT",3,"VC",3548.5507000000002,3683.0640000000003,3765.6432,4265.2474000000002,5664.9647999999997]
["SileStoneIndividual BasinDSCT4SS","SileStone","Individual Basin","DSCT",4,"SS",4215.1296000000002,4349.3154999999997,4431.8946999999998,4931.4989000000005,6331.2163]
["SileStoneIndividual BasinDSCT4VC","SileStone","Individual Basin","DSCT",4,"VC",4215.1296000000002,4349.3154999999997,4431.8630000000003,4931.4989000000005,6331.2163]
["SileStoneIndividual BasinDSCT5SS","SileStone","Individual Basin","DSCT",5,"SS",6424.1654000000008,6692.5478000000003,6857.7061999999996,7856.9146000000001,10656.349399999999]
["SileStoneIndividual BasinDSCT5VC","SileStone","Individual Basin","DSCT",5,"VC",6424.1654000000008,6692.5478000000003,6857.7061999999996,7856.9146000000001,10656.349399999999]
["SileStoneIndividual BasinDSCT6+SS","SileStone","Individual Basin","DSCT","6+","SS",7119.6997999999994,7388.0821999999998,7553.240600000001,8552.4490000000005,11351.8838]
["SileStoneIndividual BasinDSCT6+VC","SileStone","Individual Basin","DSCT","6+","VC",7119.6997999999994,7388.0821999999998,7553.240600000001,8552.4490000000005,11351.8838]
["SileStoneIndividual BasinDSG1","SileStone","Individual Basin","DSG",1,null,2145.7498000000001,2212.848,2444.2175999999999,2503.9344000000001,3202.848]
["SileStoneIndividual BasinDSG2","SileStone","Individual Basin","DSG",2,null,2893.1549,2960.2426,3001.5321999999996,3251.3395,3951.1929999999998]
["SileStoneIndividual BasinDSG3","SileStone","Individual Basin","DSG",3,null,4921.1711999999998,5055.3571000000002,5137.9363000000003,5637.5405000000001,7037.2579000000005]
["SileStoneIndividual BasinDSG4","SileStone","Individual Basin","DSG",4,null,5695.7366000000002,5829.9225999999999,5912.5018000000009,6412.1058999999996,7811.8233999999993]
["SileStoneIndividual BasinDSG5","SileStone","Individual Basin","DSG",5,null,9020.9645,9289.3468999999986,9454.5053000000007,10453.713599999999,13253.148500000001]
["SileStoneIndividual BasinDSG6+","SileStone","Individual Basin","DSG","6+",null,9940.4341999999997,10208.8166,10373.975,11373.183400000002,14172.618200000001]
["SileStoneIndividual BasinDSOF1","SileStone","Individual Basin","DSOF",1,null,2167.2604999999999,2234.3586999999998,2275.6482999999998,2525.4450999999999,3225.3090999999999]
["SileStoneIndividual BasinDSOF2","SileStone","Individual Basin","DSOF",2,null,2928.1823999999997,2995.2806,3036.5702000000001,3286.3670000000002,3986.2309999999998]
["SileStoneIndividual BasinDSOF3","SileStone","Individual Basin","DSOF",3,null,4974.7632000000003,5108.9596999999994,5191.5389000000005,2523.143,7090.8605000000007]
["SileStoneIndividual BasinDSOF4","SileStone","Individual Basin","DSOF",4,null,5763.5424000000003,5897.7282999999998,5980.3074999999999,6479.9117000000006,7879.6291000000001]
["SileStoneIndividual BasinDSOF5","SileStone","Individual Basin","DSOF",5,null,9123.6288000000004,9392.0112000000008,9557.1695999999993,10556.377899999999,13355.8128]
["SileStoneIndividual BasinDSOF6+","SileStone","Individual Basin","DSOF","6+",null,10060.9238,9283.8662000000004,10494.464599999999,1989.6729999999998,14293.1078]
["SileStoneIndividual BasinDSVR1","SileStone","Individual Basin","DSVR",1,null,1378.73,1442.27,1481.37,1717.93,2380.67]
["SileStoneIndividual BasinDSVR2","SileStone","Individual Basin","DSVR",2,null,2004.46,2068,2107.1,2343.66,3006.4]
["SileStoneIndividual BasinDSVR3","SileStone","Individual Basin","DSVR",3,null,3360.67,3487.75,3565.95,4039.06,5364.55]
["SileStoneIndividual BasinDSVR4","SileStone","Individual Basin","DSVR",4,null,3991.6,4118.67,4196.87,4669.9799999999996,5995.47]
["SileStoneIndividual BasinDSVR5","SileStone","Individual Basin","DSVR",5,null,6083.49,6337.64,6494.04,7440.26,100.91239999999999]
["SileStoneIndividual BasinDSVR6+","SileStone","Individual Basin","DSVR","6+",null,6742.14,6996.29,7152.69,8098.91,10749.89]
["SileStoneIndividual BasinDSWD1","SileStone","Individual Basin","DSWD",1,null,2167.2604999999999,2234.3586999999998,2275.6482999999998,2525.4450999999999,3225.3090999999999]
["SileStoneIndividual BasinDSWD2","SileStone","Individual Basin","DSWD",2,null,2885.9213,2984.6995000000002,3025.9890999999998,3275.7859000000003,3975.6498999999999]
["SileStoneIndividual BasinDSWD3","SileStone","Individual Basin","DSWD",3,null,4964.1821,5098.3786,5181.4858000000004,5680.5618999999997,7080.2793999999994]
["SileStoneIndividual BasinDSWD4","SileStone","Individual Basin","DSWD",4,null,5742.3802000000005,5876.5661,5959.1453000000001,6458.7493999999997,7858.4668999999994]
["SileStoneIndividual BasinDSWD5","SileStone","Individual Basin","DSWD",5,null,9102.4665999999997,93.708500000000001,9536.0074000000004,10535.215700000001,13334.650600000001]
["SileStoneIndividual BasinDSWD6+","SileStone","Individual Basin","DSWD","6+",null,10029.1805,10297.562900000001,10462.721299999999,11461.929599999999,14261.3645]
["SileStoneContinuous TroughAD1","SileStone","Continuous Trough","AD",1,null,2175.4022,2242.5005000000001,6507.5789000000004,2533.5869000000002,4183.8509000000004]
["SileStoneContinuous TroughAD2","SileStone","Continuous Trough","AD",2,null,2959.0282000000002,3026.1158,3067.4053999999996,3317.2128000000002,4017.0661999999998]
["SileStoneContinuous TroughAD3","SileStone","Continuous Trough","AD",3,null,5016.6970000000001,5150.8828999999996,5233.4621000000006,5733.0662000000002,7132.7837]
["SileStoneContinuous TroughAD4","SileStone","Continuous Trough","AD",4,null,5827.4831999999997,5961.6796999999997,6044.2588999999998,6543.8630000000003,7943.5805]
["SileStoneContinuous TroughAD5","SileStone","Continuous Trough","AD",5,null,9182.3634999999995,9450.7458999999999,9105.9699999999993,10615.1126,13414.547500000001]
["SileStoneContinuous TroughAD6+","SileStone","Continuous Trough","AD","6+",null,10138.054100000001,10406.4365,10571.5949,11570.8032,14370.2381]
["SileStoneContinuous TroughDSG1","SileStone","Continuous Trough","DSG",1,null,2145.7498000000001,2212.848,2444.2175999999999,2503.9344000000001,3202.848]
["SileStoneContinuous TroughDSG2","SileStone","Continuous Trough","DSG",2,null,2893.1549,2960.2426,3001.5321999999996,3251.3395,3951.1929999999998]
["SileStoneContinuous TroughDSG3","SileStone","Continuous Trough","DSG",3,null,4921.1711999999998,5055.3571000000002,5137.9363000000003,5637.5405000000001,7037.2579000000005]
["SileStoneContinuous TroughDSG4","SileStone","Continuous Trough","DSG",4,null,5695.7366000000002,5829.9225999999999,5912.5018000000009,6412.1058999999996,7811.8233999999993]
["SileStoneContinuous TroughDSG5","SileStone","Continuous Trough","DSG",5,null,9020.9645,9289.3468999999986,9454.5053000000007,10453.713599999999,13253.148500000001]
["SileStoneContinuous TroughDSG6+","SileStone","Continuous Trough","DSG","6+",null,9940.4341999999997,10208.8166,10373.975,11373.183400000002,14172.618200000001]
["SileStoneContinuous TroughDSWD1","SileStone","Continuous Trough","DSWD",1,null,2167.2604999999999,2234.3586999999998,2275.6482999999998,2525.4450999999999,3225.3090999999999]
["SileStoneContinuous TroughDSWD2","SileStone","Continuous Trough","DSWD",2,null,2885.9213,2984.6995000000002,3025.9890999999998,3275.7859000000003,3975.6498999999999]
["SileStoneContinuous TroughDSWD3","SileStone","Continuous Trough","DSWD",3,null,4964.1821,5098.3786,5181.4858000000004,5680.5618999999997,7080.2793999999994]
["SileStoneContinuous TroughDSWD4","SileStone","Continuous Trough","DSWD",4,null,5742.3802000000005,5876.5661,5959.1453000000001,6458.7493999999997,7858.4668999999994]
["SileStoneContinuous TroughDSWD5","SileStone","Continuous Trough","DSWD",5,null,9102.4665999999997,93.708500000000001,9536.0074000000004,10535.215700000001,13334.650600000001]
["SileStoneContinuous TroughDSWD6+","SileStone","Continuous Trough","DSWD","6+",null,10029.1805,10297.562900000001,10462.721299999999,11461.929599999999,14261.3645]

{"sheet":"Sku List","index":18,"n_rows":245,"n_cols":25,"rows_kept":245,"cut":false,"hidden":true,"merged":[]}
["LOOK UP","Material","Trough or Basin","Prefix","# Stations","Bowl Type","A","B","C","D","E","F","G","H","I","J"]
[{"$f":"CONCATENATE(B2,C2,D2,E2,F2)","v":"CorianContinuous TroughAD1"},"Corian","Continuous Trough","AD",1,null,3862000,3862001,3862002,3862003,"ERR","ERR","ERR","ERR","ERR","ERR"]
["CorianContinuous TroughAD2","Corian","Continuous Trough","AD",2,null,3862004,3862005,3862006,3862007,"ERR","ERR","ERR","ERR","ERR","ERR"]
["CorianContinuous TroughAD3","Corian","Continuous Trough","AD",3,null,3862008,3862009,3862010,3862011,"ERR","ERR","ERR","ERR","ERR","ERR"]
["CorianContinuous TroughAD4","Corian","Continuous Trough","AD",4,null,3862012,3862013,3862014,3862015,"ERR","ERR","ERR","ERR","ERR","ERR"]
["CorianContinuous TroughAD5","Corian","Continuous Trough","AD",5,null,3862016,3862017,3862018,3862019,"ERR","ERR","ERR","ERR","ERR","ERR"]
["CorianContinuous TroughAD6+","Corian","Continuous Trough","AD","6+",null,3862020,3862021,3862022,3862023,"ERR","ERR","ERR","ERR","ERR","ERR"]
["CorianContinuous TroughDSG1","Corian","Continuous Trough","DSG",1,null,3862024,3862025,3862026,3862027,"ERR","ERR","ERR","ERR","ERR","ERR"]
["CorianContinuous TroughDSG2","Corian","Continuous Trough","DSG",2,null,3862028,3862029,3862030,3862031,"ERR","ERR","ERR","ERR","ERR","ERR"]
["CorianContinuous TroughDSG3","Corian","Continuous Trough","DSG",3,null,3862032,3862033,3862034,3862035,"ERR","ERR","ERR","ERR","ERR","ERR"]
["CorianContinuous TroughDSG4","Corian","Continuous Trough","DSG",4,null,3862036,3862037,3862038,3862039,"ERR","ERR","ERR","ERR","ERR","ERR"]
["CorianContinuous TroughDSG5","Corian","Continuous Trough","DSG",5,null,3862040,3862041,3862042,3862043,"ERR","ERR","ERR","ERR","ERR","ERR"]
["CorianContinuous TroughDSG6+","Corian","Continuous Trough","DSG","6+",null,3862044,3862045,3862046,3862047,"ERR","ERR","ERR","ERR","ERR","ERR"]
["CorianContinuous TroughDSWD1","Corian","Continuous Trough","DSWD",1,null,3862048,3862049,3862050,3862051,"ERR","ERR","ERR","ERR","ERR","ERR"]
["CorianContinuous TroughDSWD2","Corian","Continuous Trough","DSWD",2,null,3862052,3862053,3862054,3862055,"ERR","ERR","ERR","ERR","ERR","ERR"]
["CorianContinuous TroughDSWD3","Corian","Continuous Trough","DSWD",3,null,3862056,3862057,3862058,3862059,"ERR","ERR","ERR","ERR","ERR","ERR"]
["CorianContinuous TroughDSWD4","Corian","Continuous Trough","DSWD",4,null,3862060,3862061,3862062,3862063,"ERR","ERR","ERR","ERR","ERR","ERR"]
["CorianContinuous TroughDSWD5","Corian","Continuous Trough","DSWD",5,null,3862064,3862065,3862066,3862067,"ERR","ERR","ERR","ERR","ERR","ERR"]
["CorianContinuous TroughDSWD6+","Corian","Continuous Trough","DSWD","6+",null,3862068,3862069,3862070,3862071,"ERR","ERR","ERR","ERR","ERR","ERR"]
["Corian_QuartzContinuous TroughAD1","Corian_Quartz","Continuous Trough","AD",1,null,3862200,3862230,3862260,3862290,3862320,"ERR","ERR","ERR","ERR","ERR"]
["Corian_QuartzContinuous TroughAD2","Corian_Quartz","Continuous Trough","AD",2,null,3862201,3862231,3862261,3862291,3862321,"ERR","ERR","ERR","ERR","ERR"]
["Corian_QuartzContinuous TroughAD3","Corian_Quartz","Continuous Trough","AD",3,null,3862202,3862232,3862262,3862292,3862322,"ERR","ERR","ERR","ERR","ERR"]
["Corian_QuartzContinuous TroughAD4","Corian_Quartz","Continuous Trough","AD",4,null,3862203,3862233,3862263,3862293,3862323,"ERR","ERR","ERR","ERR","ERR"]
["Corian_QuartzContinuous TroughAD5","Corian_Quartz","Continuous Trough","AD",5,null,3862204,3862234,3862264,3862294,3862324,"ERR","ERR","ERR","ERR","ERR"]
["Corian_QuartzContinuous TroughAD6+","Corian_Quartz","Continuous Trough","AD","6+",null,3862205,3862235,3862265,3862295,3862325,"ERR","ERR","ERR","ERR","ERR"]
["Corian_QuartzContinuous TroughDSG1","Corian_Quartz","Continuous Trough","DSG",1,null,3862206,3862236,3862266,3862296,3862326,"ERR","ERR","ERR","ERR","ERR"]
["Corian_QuartzContinuous TroughDSG2","Corian_Quartz","Continuous Trough","DSG",2,null,3862207,3862237,3862267,3862297,3862327,"ERR","ERR","ERR","ERR","ERR"]
["Corian_QuartzContinuous TroughDSG3","Corian_Quartz","Continuous Trough","DSG",3,null,3862208,3862238,3862268,3862298,3862328,"ERR","ERR","ERR","ERR","ERR"]
["Corian_QuartzContinuous TroughDSG4","Corian_Quartz","Continuous Trough","DSG",4,null,3862209,3862239,3862269,3862299,3862329,"ERR","ERR","ERR","ERR","ERR"]
["Corian_QuartzContinuous TroughDSG5","Corian_Quartz","Continuous Trough","DSG",5,null,3862210,3862240,3862270,3862300,3862330,"ERR","ERR","ERR","ERR","ERR"]
["Corian_QuartzContinuous TroughDSG6+","Corian_Quartz","Continuous Trough","DSG","6+",null,3862211,3862241,3862271,3862301,3862331,"ERR","ERR","ERR","ERR","ERR"]
["Corian_QuartzContinuous TroughDSWD1","Corian_Quartz","Continuous Trough","DSWD",1,null,3862212,3862242,3862272,3862302,3862332,"ERR","ERR","ERR","ERR","ERR"]
["Corian_QuartzContinuous TroughDSWD2","Corian_Quartz","Continuous Trough","DSWD",2,null,3862213,3862243,3862273,3862303,3862333,"ERR","ERR","ERR","ERR","ERR"]
[{"$f":"CONCATENATE(B34,C34,D34,E34,F34)","v":"Corian_QuartzContinuous TroughDSWD3"},"Corian_Quartz","Continuous Trough","DSWD",3,null,3862214,3862244,3862274,3862304,3862334,"ERR","ERR","ERR","ERR","ERR"]
["Corian_QuartzContinuous TroughDSWD4","Corian_Quartz","Continuous Trough","DSWD",4,null,3862215,3862245,3862275,3862305,3862335,"ERR","ERR","ERR","ERR","ERR"]
["Corian_QuartzContinuous TroughDSWD5","Corian_Quartz","Continuous Trough","DSWD",5,null,3862216,3862246,3862276,3862306,3862336,"ERR","ERR","ERR","ERR","ERR"]
["Corian_QuartzContinuous TroughDSWD6+","Corian_Quartz","Continuous Trough","DSWD","6+",null,3862217,3862247,3862277,3862307,3862337,"ERR","ERR","ERR","ERR","ERR"]
["SileStoneContinuous TroughAD1","SileStone","Continuous Trough","AD",1,null,3862200,3862230,3862260,3862290,3862320,"ERR","ERR","ERR","ERR","ERR"]
["SileStoneContinuous TroughAD2","SileStone","Continuous Trough","AD",2,null,3862201,3862231,3862261,3862291,3862321,"ERR","ERR","ERR","ERR","ERR"]
["SileStoneContinuous TroughAD3","SileStone","Continuous Trough","AD",3,null,3862202,3862232,3862262,3862292,3862322,"ERR","ERR","ERR","ERR","ERR"]
["SileStoneContinuous TroughAD4","SileStone","Continuous Trough","AD",4,null,3862203,3862233,3862263,3862293,3862323,"ERR","ERR","ERR","ERR","ERR"]
["SileStoneContinuous TroughAD5","SileStone","Continuous Trough","AD",5,null,3862204,3862234,3862264,3862294,3862324,"ERR","ERR","ERR","ERR","ERR"]
["SileStoneContinuous TroughAD6+","SileStone","Continuous Trough","AD","6+",null,3862205,3862235,3862265,3862295,3862325,"ERR","ERR","ERR","ERR","ERR"]
["SileStoneContinuous TroughDSG1","SileStone","Continuous Trough","DSG",1,null,3862206,3862236,3862266,3862296,3862326,"ERR","ERR","ERR","ERR","ERR"]
["SileStoneContinuous TroughDSG2","SileStone","Continuous Trough","DSG",2,null,3862207,3862237,3862267,3862297,3862327,"ERR","ERR","ERR","ERR","ERR"]
["SileStoneContinuous TroughDSG3","SileStone","Continuous Trough","DSG",3,null,3862208,3862238,3862268,3862298,3862328,"ERR","ERR","ERR","ERR","ERR"]
["SileStoneContinuous TroughDSG4","SileStone","Continuous Trough","DSG",4,null,3862209,3862239,3862269,3862299,3862329,"ERR","ERR","ERR","ERR","ERR"]
["SileStoneContinuous TroughDSG5","SileStone","Continuous Trough","DSG",5,null,3862210,3862240,3862270,3862300,3862330,"ERR","ERR","ERR","ERR","ERR"]
["SileStoneContinuous TroughDSG6+","SileStone","Continuous Trough","DSG","6+",null,3862211,3862241,3862271,3862301,3862331,"ERR","ERR","ERR","ERR","ERR"]
["SileStoneContinuous TroughDSWD1","SileStone","Continuous Trough","DSWD",1,null,3862212,3862242,3862272,3862302,3862332,"ERR","ERR","ERR","ERR","ERR"]
["SileStoneContinuous TroughDSWD2","SileStone","Continuous Trough","DSWD",2,null,3862213,3862243,3862273,3862303,3862333,"ERR","ERR","ERR","ERR","ERR"]
["SileStoneContinuous TroughDSWD3","SileStone","Continuous Trough","DSWD",3,null,3862214,3862244,3862274,3862304,3862334,"ERR","ERR","ERR","ERR","ERR"]
["SileStoneContinuous TroughDSWD4","SileStone","Continuous Trough","DSWD",4,null,3862215,3862245,3862275,3862305,3862335,"ERR","ERR","ERR","ERR","ERR"]
["SileStoneContinuous TroughDSWD5","SileStone","Continuous Trough","DSWD",5,null,3862216,3862246,3862276,3862306,3862336,"ERR","ERR","ERR","ERR","ERR"]
["SileStoneContinuous TroughDSWD6+","SileStone","Continuous Trough","DSWD","6+",null,3862217,3862247,3862277,3862307,3862337,"ERR","ERR","ERR","ERR","ERR"]
["CorianIndividual BasinAD1","Corian","Individual Basin","AD",1,null,3862000,3862001,3862002,3862003,"ERR","ERR","ERR","ERR","ERR","ERR",null,"Corian","Indi","AD","DSCT","DSG","DSVR","DSOF","DSWD"]
["CorianIndividual BasinAD2","Corian","Individual Basin","AD",2,null,3862004,3862005,3862006,3862007,"ERR","ERR","ERR","ERR","ERR","ERR"]
["CorianIndividual BasinAD3","Corian","Individual Basin","AD",3,null,3862008,3862009,3862010,3862011,"ERR","ERR","ERR","ERR","ERR","ERR"]
["CorianIndividual BasinAD4","Corian","Individual Basin","AD",4,null,3862012,3862013,3862014,3862015,"ERR","ERR","ERR","ERR","ERR","ERR"]
["CorianIndividual BasinAD5","Corian","Individual Basin","AD",5,null,3862016,3862017,3862018,3862019,"ERR","ERR","ERR","ERR","ERR","ERR"]
["CorianIndividual BasinAD6+","Corian","Individual Basin","AD","6+",null,3862020,3862021,3862022,3862023,"ERR","ERR","ERR","ERR","ERR","ERR"]
["CorianIndividual BasinDSCT1VC","Corian","Individual Basin","DSCT",1,"VC",3862096,3862097,3862098,3862099,"ERR","ERR","ERR","ERR","ERR","ERR"]
["CorianIndividual BasinDSCT1SS","Corian","Individual Basin","DSCT",1,"SS",3862120,3862121,3862122,3862123,"ERR","ERR","ERR","ERR","ERR","ERR"]
["CorianIndividual BasinDSCT2VC","Corian","Individual Basin","DSCT",2,"VC",3862100,3862101,3862102,3862103,"ERR","ERR","ERR","ERR","ERR","ERR"]
["CorianIndividual BasinDSCT2SS","Corian","Individual Basin","DSCT",2,"SS",3862124,3862125,3862126,3862127,"ERR","ERR","ERR","ERR","ERR","ERR"]
[{"$f":"CONCATENATE(B66,C66,D66,E66,F66)","v":"CorianIndividual BasinDSCT3VC"},"Corian","Individual Basin","DSCT",3,"VC",3862104,3862105,3862106,3862107,"ERR","ERR","ERR","ERR","ERR","ERR"]
["CorianIndividual BasinDSCT3SS","Corian","Individual Basin","DSCT",3,"SS",3862128,3862129,3862130,3862131,"ERR","ERR","ERR","ERR","ERR","ERR"]
["CorianIndividual BasinDSCT4VC","Corian","Individual Basin","DSCT",4,"VC",3862108,3862109,3862110,3862111,"ERR","ERR","ERR","ERR","ERR","ERR"]
["CorianIndividual BasinDSCT4SS","Corian","Individual Basin","DSCT",4,"SS",3862132,3862133,3862134,3862135,"ERR","ERR","ERR","ERR","ERR","ERR"]
["CorianIndividual BasinDSCT5VC","Corian","Individual Basin","DSCT",5,"VC",3862112,3862113,3862114,3862115,"ERR","ERR","ERR","ERR","ERR","ERR"]
["CorianIndividual BasinDSCT5SS","Corian","Individual Basin","DSCT",5,"SS",3862136,3862137,3862138,3862139,"ERR","ERR","ERR","ERR","ERR","ERR"]
["CorianIndividual BasinDSCT6+VC","Corian","Individual Basin","DSCT","6+","VC",3862116,3862117,3862118,3862119,"ERR","ERR","ERR","ERR","ERR","ERR"]
["CorianIndividual BasinDSCT6+SS","Corian","Individual Basin","DSCT","6+","SS",3862140,3862141,3862142,3862143,"ERR","ERR","ERR","ERR","ERR","ERR"]
["CorianIndividual BasinDSG1","Corian","Individual Basin","DSG",1,null,3862024,3862025,3862026,3862027,"ERR","ERR","ERR","ERR","ERR","ERR"]
["CorianIndividual BasinDSG2","Corian","Individual Basin","DSG",2,null,3862028,3862029,3862030,3862031,"ERR","ERR","ERR","ERR","ERR","ERR"]
["CorianIndividual BasinDSG3","Corian","Individual Basin","DSG",3,null,3862032,3862033,3862034,3862035,"ERR","ERR","ERR","ERR","ERR","ERR"]
["CorianIndividual BasinDSG4","Corian","Individual Basin","DSG",4,null,3862036,3862037,3862038,3862039,"ERR","ERR","ERR","ERR","ERR","ERR"]
["CorianIndividual BasinDSG5","Corian","Individual Basin","DSG",5,null,3862040,3862041,3862042,3862043,"ERR","ERR","ERR","ERR","ERR","ERR"]
["CorianIndividual BasinDSG6+","Corian","Individual Basin","DSG","6+",null,3862044,3862045,3862046,3862047,"ERR","ERR","ERR","ERR","ERR","ERR"]
["CorianIndividual BasinDSOF1","Corian","Individual Basin","DSOF",1,null,3862072,3862073,3862074,3862075,"ERR","ERR","ERR","ERR","ERR","ERR"]
["CorianIndividual BasinDSOF2","Corian","Individual Basin","DSOF",2,null,3862076,3862077,3862078,3862079,"ERR","ERR","ERR","ERR","ERR","ERR"]
["CorianIndividual BasinDSOF3","Corian","Individual Basin","DSOF",3,null,3862080,3862081,3862082,3862083,"ERR","ERR","ERR","ERR","ERR","ERR"]
["CorianIndividual BasinDSOF4","Corian","Individual Basin","DSOF",4,null,3862084,3862085,3862086,3862087,"ERR","ERR","ERR","ERR","ERR","ERR"]
["CorianIndividual BasinDSOF5","Corian","Individual Basin","DSOF",5,null,3862088,3862089,3862090,3862091,"ERR","ERR","ERR","ERR","ERR","ERR"]
["CorianIndividual BasinDSOF6+","Corian","Individual Basin","DSOF","6+",null,3862092,3862093,3862094,3862095,"ERR","ERR","ERR","ERR","ERR","ERR"]
["CorianIndividual BasinDSUP1","Corian","Individual Basin","DSUP",1,null,"ERR","ERR","ERR","ERR","ERR","ERR","ERR","ERR","ERR","ERR"]
["CorianIndividual BasinDSVR1","Corian","Individual Basin","DSVR",1,null,3862144,3862145,3862146,3862147,"ERR","ERR","ERR","ERR","ERR","ERR"]
["CorianIndividual BasinDSVR2","Corian","Individual Basin","DSVR",2,null,3862148,3862149,3862150,3862151,"ERR","ERR","ERR","ERR","ERR","ERR"]
["CorianIndividual BasinDSVR3","Corian","Individual Basin","DSVR",3,null,3862152,3862153,3862154,3862155,"ERR","ERR","ERR","ERR","ERR","ERR"]
["CorianIndividual BasinDSVR4","Corian","Individual Basin","DSVR",4,null,3862156,3862157,3862158,3862159,"ERR","ERR","ERR","ERR","ERR","ERR"]
["CorianIndividual BasinDSVR5","Corian","Individual Basin","DSVR",5,null,3862160,3862161,3862162,3862163,"ERR","ERR","ERR","ERR","ERR","ERR"]
["CorianIndividual BasinDSVR6+","Corian","Individual Basin","DSVR","6+",null,3862164,3862165,3862166,3862167,"ERR","ERR","ERR","ERR","ERR","ERR"]
["CorianIndividual BasinDSWD1","Corian","Individual Basin","DSWD",1,null,3862048,3862049,3862050,3862051,"ERR","ERR","ERR","ERR","ERR","ERR"]
["CorianIndividual BasinDSWD2","Corian","Individual Basin","DSWD",2,null,3862052,3862053,3862054,3862055,"ERR","ERR","ERR","ERR","ERR","ERR"]
["CorianIndividual BasinDSWD3","Corian","Individual Basin","DSWD",3,null,3862056,3862057,3862058,3862059,"ERR","ERR","ERR","ERR","ERR","ERR"]
["CorianIndividual BasinDSWD4","Corian","Individual Basin","DSWD",4,null,3862060,3862061,3862062,3862063,"ERR","ERR","ERR","ERR","ERR","ERR"]
["CorianIndividual BasinDSWD5","Corian","Individual Basin","DSWD",5,null,3862064,3862065,3862066,3862067,"ERR","ERR","ERR","ERR","ERR","ERR"]
[{"$f":"CONCATENATE(B98,C98,D98,E98,F98)","v":"CorianIndividual BasinDSWD6+"},"Corian","Individual Basin","DSWD","6+",null,3862068,3862069,3862070,3862071,"ERR","ERR","ERR","ERR","ERR","ERR"]
["Corian_QuartzIndividual BasinAD1","Corian_Quartz","Individual Basin","AD",1,null,3862200,3862230,3862260,3862290,3862320,"ERR","ERR","ERR","ERR","ERR"]
["Corian_QuartzIndividual BasinAD2","Corian_Quartz","Individual Basin","AD",2,null,3862201,3862231,3862261,3862291,3862321,"ERR","ERR","ERR","ERR","ERR"]
["Corian_QuartzIndividual BasinAD3","Corian_Quartz","Individual Basin","AD",3,null,3862202,3862232,3862262,3862292,3862322,"ERR","ERR","ERR","ERR","ERR"]
["Corian_QuartzIndividual BasinAD4","Corian_Quartz","Individual Basin","AD",4,null,3862203,3862233,3862263,3862293,3862323,"ERR","ERR","ERR","ERR","ERR"]
["Corian_QuartzIndividual BasinAD5","Corian_Quartz","Individual Basin","AD",5,null,3862204,3862234,3862264,3862294,3862324,"ERR","ERR","ERR","ERR","ERR"]
["Corian_QuartzIndividual BasinAD6+","Corian_Quartz","Individual Basin","AD","6+",null,3862205,3862235,3862265,3862295,3862325,"ERR","ERR","ERR","ERR","ERR"]
["Corian_QuartzIndividual BasinDSCT1VC","Corian_Quartz","Individual Basin","DSCT",1,"VC",3862350,3862356,3862356,3862368,3862374,"ERR","ERR","ERR","ERR","ERR"]
["Corian_QuartzIndividual BasinDSCT1SS","Corian_Quartz","Individual Basin","DSCT",1,"SS",3862224,3862254,3862284,3862314,3862344,"ERR","ERR","ERR","ERR","ERR"]
["Corian_QuartzIndividual BasinDSCT2VC","Corian_Quartz","Individual Basin","DSCT",2,"VC",3862351,3862357,3862357,3862369,3862375,"ERR","ERR","ERR","ERR","ERR"]
["Corian_QuartzIndividual BasinDSCT2SS","Corian_Quartz","Individual Basin","DSCT",2,"SS",3862225,3862255,3862285,3862315,3862345,"ERR","ERR","ERR","ERR","ERR"]
["Corian_QuartzIndividual BasinDSCT3VC","Corian_Quartz","Individual Basin","DSCT",3,"VC",3862352,3862358,3862358,3862370,3862376,"ERR","ERR","ERR","ERR","ERR"]
["Corian_QuartzIndividual BasinDSCT3SS","Corian_Quartz","Individual Basin","DSCT",3,"SS",3862226,3862256,3862286,3862316,3862346,"ERR","ERR","ERR","ERR","ERR"]
["Corian_QuartzIndividual BasinDSCT4VC","Corian_Quartz","Individual Basin","DSCT",4,"VC",3862353,3862359,3862359,3862371,3862377,"ERR","ERR","ERR","ERR","ERR"]
["Corian_QuartzIndividual BasinDSCT4SS","Corian_Quartz","Individual Basin","DSCT",4,"SS",3862227,3862257,3862287,3862317,3862347,"ERR","ERR","ERR","ERR","ERR"]
["Corian_QuartzIndividual BasinDSCT5VC","Corian_Quartz","Individual Basin","DSCT",5,"VC",3862354,3862360,3862360,3862372,3862378,"ERR","ERR","ERR","ERR","ERR"]
["Corian_QuartzIndividual BasinDSCT5SS","Corian_Quartz","Individual Basin","DSCT",5,"SS",3862228,3862258,3862288,3862318,3862348,"ERR","ERR","ERR","ERR","ERR"]
["Corian_QuartzIndividual BasinDSCT6+VC","Corian_Quartz","Individual Basin","DSCT","6+","VC",3862355,3862361,3862361,3862373,3862379,"ERR","ERR","ERR","ERR","ERR"]
["Corian_QuartzIndividual BasinDSCT6+SS","Corian_Quartz","Individual Basin","DSCT","6+","SS",3862229,3862259,3862289,3862319,3862349,"ERR","ERR","ERR","ERR","ERR"]
["Corian_QuartzIndividual BasinDSG1","Corian_Quartz","Individual Basin","DSG",1,null,3862206,3862236,3862266,3862296,3862326,"ERR","ERR","ERR","ERR","ERR"]
["Corian_QuartzIndividual BasinDSG2","Corian_Quartz","Individual Basin","DSG",2,null,3862207,3862237,3862267,3862297,3862327,"ERR","ERR","ERR","ERR","ERR"]
["Corian_QuartzIndividual BasinDSG3","Corian_Quartz","Individual Basin","DSG",3,null,3862208,3862238,3862268,3862298,3862328,"ERR","ERR","ERR","ERR","ERR"]
["Corian_QuartzIndividual BasinDSG4","Corian_Quartz","Individual Basin","DSG",4,null,3862209,3862239,3862269,3862299,3862329,"ERR","ERR","ERR","ERR","ERR"]
["Corian_QuartzIndividual BasinDSG5","Corian_Quartz","Individual Basin","DSG",5,null,3862210,3862240,3862270,3862300,3862330,"ERR","ERR","ERR","ERR","ERR"]
["Corian_QuartzIndividual BasinDSG6+","Corian_Quartz","Individual Basin","DSG","6+",null,3862211,3862241,3862271,3862301,3862331,"ERR","ERR","ERR","ERR","ERR"]
["Corian_QuartzIndividual BasinDSOF1","Corian_Quartz","Individual Basin","DSOF",1,null,3862218,3862248,3862278,3862308,3862338,"ERR","ERR","ERR","ERR","ERR"]
["Corian_QuartzIndividual BasinDSOF2","Corian_Quartz","Individual Basin","DSOF",2,null,3862219,3862249,3862279,3862309,3862339,"ERR","ERR","ERR","ERR","ERR"]
["Corian_QuartzIndividual BasinDSOF3","Corian_Quartz","Individual Basin","DSOF",3,null,3862220,3862250,3862280,3862310,3862340,"ERR","ERR","ERR","ERR","ERR"]
["Corian_QuartzIndividual BasinDSOF4","Corian_Quartz","Individual Basin","DSOF",4,null,3862221,3862251,3862281,3862311,3862341,"ERR","ERR","ERR","ERR","ERR"]
["Corian_QuartzIndividual BasinDSOF5","Corian_Quartz","Individual Basin","DSOF",5,null,3862222,3862252,3862282,3862312,3862342,"ERR","ERR","ERR","ERR","ERR"]
["Corian_QuartzIndividual BasinDSOF6+","Corian_Quartz","Individual Basin","DSOF","6+",null,3862223,3862253,3862283,3862313,3862343,"ERR","ERR","ERR","ERR","ERR"]
["Corian_QuartzIndividual BasinDSUP1","Corian_Quartz","Individual Basin","DSUP",1,null,"ERR","ERR","ERR","ERR","ERR","ERR","ERR","ERR","ERR","ERR"]
[{"$f":"CONCATENATE(B130,C130,D130,E130,F130)","v":"Corian_QuartzIndividual BasinDSVR1"},"Corian_Quartz","Individual Basin","DSVR",1,null,3862380,3862386,3862392,3862398,3862404,"ERR","ERR","ERR","ERR","ERR"]
["Corian_QuartzIndividual BasinDSVR2","Corian_Quartz","Individual Basin","DSVR",2,null,3862381,3862387,3862393,3862399,3862405,"ERR","ERR","ERR","ERR","ERR"]
["Corian_QuartzIndividual BasinDSVR3","Corian_Quartz","Individual Basin","DSVR",3,null,3862382,3862388,3862394,3862400,3862406,"ERR","ERR","ERR","ERR","ERR"]
["Corian_QuartzIndividual BasinDSVR4","Corian_Quartz","Individual Basin","DSVR",4,null,3862383,3862389,3862395,3862401,3862407,"ERR","ERR","ERR","ERR","ERR"]
["Corian_QuartzIndividual BasinDSVR5","Corian_Quartz","Individual Basin","DSVR",5,null,3862384,3862390,3862396,3862402,3862408,"ERR","ERR","ERR","ERR","ERR"]
["Corian_QuartzIndividual BasinDSVR6+","Corian_Quartz","Individual Basin","DSVR","6+",null,3862385,3862391,3862397,3862403,3862409,"ERR","ERR","ERR","ERR","ERR"]
["Corian_QuartzIndividual BasinDSWD1","Corian_Quartz","Individual Basin","DSWD",1,null,3862212,3862242,3862272,3862302,3862332,"ERR","ERR","ERR","ERR","ERR"]
["Corian_QuartzIndividual BasinDSWD2","Corian_Quartz","Individual Basin","DSWD",2,null,3862213,3862243,3862273,3862303,3862333,"ERR","ERR","ERR","ERR","ERR"]
["Corian_QuartzIndividual BasinDSWD3","Corian_Quartz","Individual Basin","DSWD",3,null,3862214,3862244,3862274,3862304,3862334,"ERR","ERR","ERR","ERR","ERR"]
["Corian_QuartzIndividual BasinDSWD4","Corian_Quartz","Individual Basin","DSWD",4,null,3862215,3862245,3862275,3862305,3862335,"ERR","ERR","ERR","ERR","ERR"]
["Corian_QuartzIndividual BasinDSWD5","Corian_Quartz","Individual Basin","DSWD",5,null,3862216,3862246,3862276,3862306,3862336,"ERR","ERR","ERR","ERR","ERR"]
["Corian_QuartzIndividual BasinDSWD6+","Corian_Quartz","Individual Basin","DSWD","6+",null,3862217,3862247,3862277,3862307,3862337,"ERR","ERR","ERR","ERR","ERR"]
["SileStoneIndividual BasinAD1","SileStone","Individual Basin","AD",1,null,3862200,3862230,3862260,3862290,3862320,"ERR","ERR","ERR","ERR","ERR"]
["SileStoneIndividual BasinAD2","SileStone","Individual Basin","AD",2,null,3862201,3862231,3862261,3862291,3862321,"ERR","ERR","ERR","ERR","ERR"]
["SileStoneIndividual BasinAD3","SileStone","Individual Basin","AD",3,null,3862202,3862232,3862262,3862292,3862322,"ERR","ERR","ERR","ERR","ERR"]
["SileStoneIndividual BasinAD4","SileStone","Individual Basin","AD",4,null,3862203,3862233,3862263,3862293,3862323,"ERR","ERR","ERR","ERR","ERR"]
["SileStoneIndividual BasinAD5","SileStone","Individual Basin","AD",5,null,3862204,3862234,3862264,3862294,3862324,"ERR","ERR","ERR","ERR","ERR"]
["SileStoneIndividual BasinAD6+","SileStone","Individual Basin","AD","6+",null,3862205,3862235,3862265,3862295,3862325,"ERR","ERR","ERR","ERR","ERR"]
["SileStoneIndividual BasinDSCT1VC","SileStone","Individual Basin","DSCT",1,"VC",3862350,3862356,3862356,3862368,3862374,"ERR","ERR","ERR","ERR","ERR"]
["SileStoneIndividual BasinDSCT1SS","SileStone","Individual Basin","DSCT",1,"SS",3862224,3862254,3862284,3862314,3862344,"ERR","ERR","ERR","ERR","ERR"]
["SileStoneIndividual BasinDSCT2VC","SileStone","Individual Basin","DSCT",2,"VC",3862351,3862357,3862357,3862369,3862375,"ERR","ERR","ERR","ERR","ERR"]
["SileStoneIndividual BasinDSCT2SS","SileStone","Individual Basin","DSCT",2,"SS",3862225,3862255,3862285,3862315,3862345,"ERR","ERR","ERR","ERR","ERR"]
["SileStoneIndividual BasinDSCT3VC","SileStone","Individual Basin","DSCT",3,"VC",3862352,3862358,3862358,3862370,3862376,"ERR","ERR","ERR","ERR","ERR"]
["SileStoneIndividual BasinDSCT3SS","SileStone","Individual Basin","DSCT",3,"SS",3862226,3862256,3862286,3862316,3862346,"ERR","ERR","ERR","ERR","ERR"]
["SileStoneIndividual BasinDSCT4VC","SileStone","Individual Basin","DSCT",4,"VC",3862353,3862359,3862359,3862371,3862377,"ERR","ERR","ERR","ERR","ERR"]
["SileStoneIndividual BasinDSCT4SS","SileStone","Individual Basin","DSCT",4,"SS",3862227,3862257,3862287,3862317,3862347,"ERR","ERR","ERR","ERR","ERR"]
["SileStoneIndividual BasinDSCT5VC","SileStone","Individual Basin","DSCT",5,"VC",3862354,3862360,3862360,3862372,3862378,"ERR","ERR","ERR","ERR","ERR"]
["SileStoneIndividual BasinDSCT5SS","SileStone","Individual Basin","DSCT",5,"SS",3862228,3862258,3862288,3862318,3862348,"ERR","ERR","ERR","ERR","ERR"]
["SileStoneIndividual BasinDSCT6+VC","SileStone","Individual Basin","DSCT","6+","VC",3862355,3862361,3862361,3862373,3862379,"ERR","ERR","ERR","ERR","ERR"]
["SileStoneIndividual BasinDSCT6+SS","SileStone","Individual Basin","DSCT","6+","SS",3862229,3862259,3862289,3862319,3862349,"ERR","ERR","ERR","ERR","ERR"]
["SileStoneIndividual BasinDSG1","SileStone","Individual Basin","DSG",1,null,3862206,3862236,3862266,3862296,3862326,"ERR","ERR","ERR","ERR","ERR"]
["SileStoneIndividual BasinDSG2","SileStone","Individual Basin","DSG",2,null,3862207,3862237,3862267,3862297,3862327,"ERR","ERR","ERR","ERR","ERR"]
[{"$f":"CONCATENATE(B162,C162,D162,E162,F162)","v":"SileStoneIndividual BasinDSG3"},"SileStone","Individual Basin","DSG",3,null,3862208,3862238,3862268,3862298,3862328,"ERR","ERR","ERR","ERR","ERR"]
["SileStoneIndividual BasinDSG4","SileStone","Individual Basin","DSG",4,null,3862209,3862239,3862269,3862299,3862329,"ERR","ERR","ERR","ERR","ERR"]
["SileStoneIndividual BasinDSG5","SileStone","Individual Basin","DSG",5,null,3862210,3862240,3862270,3862300,3862330,"ERR","ERR","ERR","ERR","ERR"]
["SileStoneIndividual BasinDSG6+","SileStone","Individual Basin","DSG","6+",null,3862211,3862241,3862271,3862301,3862331,"ERR","ERR","ERR","ERR","ERR"]
["SileStoneIndividual BasinDSOF1","SileStone","Individual Basin","DSOF",1,null,3862218,3862248,3862278,3862308,3862338,"ERR","ERR","ERR","ERR","ERR"]
["SileStoneIndividual BasinDSOF2","SileStone","Individual Basin","DSOF",2,null,3862219,3862249,3862279,3862309,3862339,"ERR","ERR","ERR","ERR","ERR"]
["SileStoneIndividual BasinDSOF3","SileStone","Individual Basin","DSOF",3,null,3862220,3862250,3862280,3862310,3862340,"ERR","ERR","ERR","ERR","ERR"]
["SileStoneIndividual BasinDSOF4","SileStone","Individual Basin","DSOF",4,null,3862221,3862251,3862281,3862311,3862341,"ERR","ERR","ERR","ERR","ERR"]
["SileStoneIndividual BasinDSOF5","SileStone","Individual Basin","DSOF",5,null,3862222,3862252,3862282,3862312,3862342,"ERR","ERR","ERR","ERR","ERR"]
["SileStoneIndividual BasinDSOF6+","SileStone","Individual Basin","DSOF","6+",null,3862223,3862253,3862283,3862313,3862343,"ERR","ERR","ERR","ERR","ERR"]
["SileStoneIndividual BasinDSUP1","SileStone","Individual Basin","DSUP",1,null,"ERR","ERR","ERR","ERR","ERR","ERR","ERR","ERR","ERR","ERR"]
["SileStoneIndividual BasinDSVR1","SileStone","Individual Basin","DSVR",1,null,3862380,3862386,3862392,3862398,3862404,"ERR","ERR","ERR","ERR","ERR"]
["SileStoneIndividual BasinDSVR2","SileStone","Individual Basin","DSVR",2,null,3862381,3862387,3862393,3862399,3862405,"ERR","ERR","ERR","ERR","ERR"]
["SileStoneIndividual BasinDSVR3","SileStone","Individual Basin","DSVR",3,null,3862382,3862388,3862394,3862400,3862406,"ERR","ERR","ERR","ERR","ERR"]
["SileStoneIndividual BasinDSVR4","SileStone","Individual Basin","DSVR",4,null,3862383,3862389,3862395,3862401,3862407,"ERR","ERR","ERR","ERR","ERR"]
["SileStoneIndividual BasinDSVR5","SileStone","Individual Basin","DSVR",5,null,3862384,3862390,3862396,3862402,3862408,"ERR","ERR","ERR","ERR","ERR"]
["SileStoneIndividual BasinDSVR6+","SileStone","Individual Basin","DSVR","6+",null,3862385,3862391,3862397,3862403,3862409,"ERR","ERR","ERR","ERR","ERR"]
["SileStoneIndividual BasinDSWD1","SileStone","Individual Basin","DSWD",1,null,3862212,3862242,3862272,3862302,3862332,"ERR","ERR","ERR","ERR","ERR"]
["SileStoneIndividual BasinDSWD2","SileStone","Individual Basin","DSWD",2,null,3862213,3862243,3862273,3862303,3862333,"ERR","ERR","ERR","ERR","ERR"]
["SileStoneIndividual BasinDSWD3","SileStone","Individual Basin","DSWD",3,null,3862214,3862244,3862274,3862304,3862334,"ERR","ERR","ERR","ERR","ERR"]
["SileStoneIndividual BasinDSWD4","SileStone","Individual Basin","DSWD",4,null,3862215,3862245,3862275,3862305,3862335,"ERR","ERR","ERR","ERR","ERR"]
["SileStoneIndividual BasinDSWD5","SileStone","Individual Basin","DSWD",5,null,3862216,3862246,3862276,3862306,3862336,"ERR","ERR","ERR","ERR","ERR"]
["SileStoneIndividual BasinDSWD6+","SileStone","Individual Basin","DSWD","6+",null,3862217,3862247,3862277,3862307,3862337,"ERR","ERR","ERR","ERR","ERR"]
["CaeserstoneContinuous TroughAD1","Caeserstone","Continuous Trough","AD",1,null,3862200,3862230,3862260,3862290,3862320,"ERR","ERR","ERR","ERR","ERR"]
["CaeserstoneContinuous TroughAD2","Caeserstone","Continuous Trough","AD",2,null,3862201,3862231,3862261,3862291,3862321,"ERR","ERR","ERR","ERR","ERR"]
["CaeserstoneContinuous TroughAD3","Caeserstone","Continuous Trough","AD",3,null,3862202,3862232,3862262,3862292,3862322,"ERR","ERR","ERR","ERR","ERR"]
["CaeserstoneContinuous TroughAD4","Caeserstone","Continuous Trough","AD",4,null,3862203,3862233,3862263,3862293,3862323,"ERR","ERR","ERR","ERR","ERR"]
["CaeserstoneContinuous TroughAD5","Caeserstone","Continuous Trough","AD",5,null,3862204,3862234,3862264,3862294,3862324,"ERR","ERR","ERR","ERR","ERR"]
["CaeserstoneContinuous TroughAD6+","Caeserstone","Continuous Trough","AD","6+",null,3862205,3862235,3862265,3862295,3862325,"ERR","ERR","ERR","ERR","ERR"]
["CaeserstoneContinuous TroughDSG1","Caeserstone","Continuous Trough","DSG",1,null,3862206,3862236,3862266,3862296,3862326,"ERR","ERR","ERR","ERR","ERR"]
["CaeserstoneContinuous TroughDSG2","Caeserstone","Continuous Trough","DSG",2,null,3862207,3862237,3862267,3862297,3862327,"ERR","ERR","ERR","ERR","ERR"]
["CaeserstoneContinuous TroughDSG3","Caeserstone","Continuous Trough","DSG",3,null,3862208,3862238,3862268,3862298,3862328,"ERR","ERR","ERR","ERR","ERR"]
["CaeserstoneContinuous TroughDSG4","Caeserstone","Continuous Trough","DSG",4,null,3862209,3862239,3862269,3862299,3862329,"ERR","ERR","ERR","ERR","ERR"]
["CaeserstoneContinuous TroughDSG5","Caeserstone","Continuous Trough","DSG",5,null,3862210,3862240,3862270,3862300,3862330,"ERR","ERR","ERR","ERR","ERR"]
["CaeserstoneContinuous TroughDSG6+","Caeserstone","Continuous Trough","DSG","6+",null,3862211,3862241,3862271,3862301,3862331,"ERR","ERR","ERR","ERR","ERR"]
["CaeserstoneContinuous TroughDSWD1","Caeserstone","Continuous Trough","DSWD",1,null,3862212,3862242,3862272,3862302,3862332,"ERR","ERR","ERR","ERR","ERR"]
["CaeserstoneContinuous TroughDSWD2","Caeserstone","Continuous Trough","DSWD",2,null,3862213,3862243,3862273,3862303,3862333,"ERR","ERR","ERR","ERR","ERR"]
["CaeserstoneContinuous TroughDSWD3","Caeserstone","Continuous Trough","DSWD",3,null,3862214,3862244,3862274,3862304,3862334,"ERR","ERR","ERR","ERR","ERR"]
["CaeserstoneContinuous TroughDSWD4","Caeserstone","Continuous Trough","DSWD",4,null,3862215,3862245,3862275,3862305,3862335,"ERR","ERR","ERR","ERR","ERR"]
["CaeserstoneContinuous TroughDSWD5","Caeserstone","Continuous Trough","DSWD",5,null,3862216,3862246,3862276,3862306,3862336,"ERR","ERR","ERR","ERR","ERR"]
["CaeserstoneContinuous TroughDSWD6+","Caeserstone","Continuous Trough","DSWD","6+",null,3862217,3862247,3862277,3862307,3862337,"ERR","ERR","ERR","ERR","ERR"]
["CaeserstoneIndividual BasinAD1","Caeserstone","Individual Basin","AD",1,null,3862200,3862230,3862260,3862290,3862320,"ERR","ERR","ERR","ERR","ERR"]
["CaeserstoneIndividual BasinAD2","Caeserstone","Individual Basin","AD",2,null,3862201,3862231,3862261,3862291,3862321,"ERR","ERR","ERR","ERR","ERR"]
["CaeserstoneIndividual BasinAD3","Caeserstone","Individual Basin","AD",3,null,3862202,3862232,3862262,3862292,3862322,"ERR","ERR","ERR","ERR","ERR"]
["CaeserstoneIndividual BasinAD4","Caeserstone","Individual Basin","AD",4,null,3862203,3862233,3862263,3862293,3862323,"ERR","ERR","ERR","ERR","ERR"]
["CaeserstoneIndividual BasinAD5","Caeserstone","Individual Basin","AD",5,null,3862204,3862234,3862264,3862294,3862324,"ERR","ERR","ERR","ERR","ERR"]
["CaeserstoneIndividual BasinAD6+","Caeserstone","Individual Basin","AD","6+",null,3862205,3862235,3862265,3862295,3862325,"ERR","ERR","ERR","ERR","ERR"]
["CaeserstoneIndividual BasinDSCT1VC","Caeserstone","Individual Basin","DSCT",1,"VC",3862350,3862356,3862356,3862368,3862374,"ERR","ERR","ERR","ERR","ERR"]
["CaeserstoneIndividual BasinDSCT1SS","Caeserstone","Individual Basin","DSCT",1,"SS",3862224,3862254,3862284,3862314,3862344,"ERR","ERR","ERR","ERR","ERR"]
["CaeserstoneIndividual BasinDSCT2VC","Caeserstone","Individual Basin","DSCT",2,"VC",3862351,3862357,3862357,3862369,3862375,"ERR","ERR","ERR","ERR","ERR"]
["CaeserstoneIndividual BasinDSCT2SS","Caeserstone","Individual Basin","DSCT",2,"SS",3862225,3862255,3862285,3862315,3862345,"ERR","ERR","ERR","ERR","ERR"]
["CaeserstoneIndividual BasinDSCT3VC","Caeserstone","Individual Basin","DSCT",3,"VC",3862352,3862358,3862358,3862370,3862376,"ERR","ERR","ERR","ERR","ERR"]
["CaeserstoneIndividual BasinDSCT3SS","Caeserstone","Individual Basin","DSCT",3,"SS",3862226,3862256,3862286,3862316,3862346,"ERR","ERR","ERR","ERR","ERR"]
["CaeserstoneIndividual BasinDSCT4VC","Caeserstone","Individual Basin","DSCT",4,"VC",3862353,3862359,3862359,3862371,3862377,"ERR","ERR","ERR","ERR","ERR"]
["CaeserstoneIndividual BasinDSCT4SS","Caeserstone","Individual Basin","DSCT",4,"SS",3862227,3862257,3862287,3862317,3862347,"ERR","ERR","ERR","ERR","ERR"]
["CaeserstoneIndividual BasinDSCT5VC","Caeserstone","Individual Basin","DSCT",5,"VC",3862354,3862360,3862360,3862372,3862378,"ERR","ERR","ERR","ERR","ERR"]
["CaeserstoneIndividual BasinDSCT5SS","Caeserstone","Individual Basin","DSCT",5,"SS",3862228,3862258,3862288,3862318,3862348,"ERR","ERR","ERR","ERR","ERR"]
["CaeserstoneIndividual BasinDSCT6+VC","Caeserstone","Individual Basin","DSCT","6+","VC",3862355,3862361,3862361,3862373,3862379,"ERR","ERR","ERR","ERR","ERR"]
["CaeserstoneIndividual BasinDSCT6+SS","Caeserstone","Individual Basin","DSCT","6+","SS",3862229,3862259,3862289,3862319,3862349,"ERR","ERR","ERR","ERR","ERR"]
["CaeserstoneIndividual BasinDSG1","Caeserstone","Individual Basin","DSG",1,null,3862206,3862236,3862266,3862296,3862326,"ERR","ERR","ERR","ERR","ERR"]
["CaeserstoneIndividual BasinDSG2","Caeserstone","Individual Basin","DSG",2,null,3862207,3862237,3862267,3862297,3862327,"ERR","ERR","ERR","ERR","ERR"]
["CaeserstoneIndividual BasinDSG3","Caeserstone","Individual Basin","DSG",3,null,3862208,3862238,3862268,3862298,3862328,"ERR","ERR","ERR","ERR","ERR"]
["CaeserstoneIndividual BasinDSG4","Caeserstone","Individual Basin","DSG",4,null,3862209,3862239,3862269,3862299,3862329,"ERR","ERR","ERR","ERR","ERR"]
["CaeserstoneIndividual BasinDSG5","Caeserstone","Individual Basin","DSG",5,null,3862210,3862240,3862270,3862300,3862330,"ERR","ERR","ERR","ERR","ERR"]
[{"$f":"CONCATENATE(B226,C226,D226,E226,F226)","v":"CaeserstoneIndividual BasinDSG6+"},"Caeserstone","Individual Basin","DSG","6+",null,3862211,3862241,3862271,3862301,3862331,"ERR","ERR","ERR","ERR","ERR"]
["CaeserstoneIndividual BasinDSOF1","Caeserstone","Individual Basin","DSOF",1,null,3862218,3862248,3862278,3862308,3862338,"ERR","ERR","ERR","ERR","ERR"]
["CaeserstoneIndividual BasinDSOF2","Caeserstone","Individual Basin","DSOF",2,null,3862219,3862249,3862279,3862309,3862339,"ERR","ERR","ERR","ERR","ERR"]
["CaeserstoneIndividual BasinDSOF3","Caeserstone","Individual Basin","DSOF",3,null,3862220,3862250,3862280,3862310,3862340,"ERR","ERR","ERR","ERR","ERR"]
["CaeserstoneIndividual BasinDSOF4","Caeserstone","Individual Basin","DSOF",4,null,3862221,3862251,3862281,3862311,3862341,"ERR","ERR","ERR","ERR","ERR"]
["CaeserstoneIndividual BasinDSOF5","Caeserstone","Individual Basin","DSOF",5,null,3862222,3862252,3862282,3862312,3862342,"ERR","ERR","ERR","ERR","ERR"]
["CaeserstoneIndividual BasinDSOF6+","Caeserstone","Individual Basin","DSOF","6+",null,3862223,3862253,3862283,3862313,3862343,"ERR","ERR","ERR","ERR","ERR"]
["CaeserstoneIndividual BasinDSUP1","Caeserstone","Individual Basin","DSUP",1,null,"ERR","ERR","ERR","ERR","ERR","ERR","ERR","ERR","ERR","ERR"]
["CaeserstoneIndividual BasinDSVR1","Caeserstone","Individual Basin","DSVR",1,null,3862380,3862386,3862392,3862398,3862404,"ERR","ERR","ERR","ERR","ERR"]
["CaeserstoneIndividual BasinDSVR2","Caeserstone","Individual Basin","DSVR",2,null,3862381,3862387,3862393,3862399,3862405,"ERR","ERR","ERR","ERR","ERR"]
["CaeserstoneIndividual BasinDSVR3","Caeserstone","Individual Basin","DSVR",3,null,3862382,3862388,3862394,3862400,3862406,"ERR","ERR","ERR","ERR","ERR"]
["CaeserstoneIndividual BasinDSVR4","Caeserstone","Individual Basin","DSVR",4,null,3862383,3862389,3862395,3862401,3862407,"ERR","ERR","ERR","ERR","ERR"]
["CaeserstoneIndividual BasinDSVR5","Caeserstone","Individual Basin","DSVR",5,null,3862384,3862390,3862396,3862402,3862408,"ERR","ERR","ERR","ERR","ERR"]
["CaeserstoneIndividual BasinDSVR6+","Caeserstone","Individual Basin","DSVR","6+",null,3862385,3862391,3862397,3862403,3862409,"ERR","ERR","ERR","ERR","ERR"]
["CaeserstoneIndividual BasinDSWD1","Caeserstone","Individual Basin","DSWD",1,null,3862212,3862242,3862272,3862302,3862332,"ERR","ERR","ERR","ERR","ERR"]
["CaeserstoneIndividual BasinDSWD2","Caeserstone","Individual Basin","DSWD",2,null,3862213,3862243,3862273,3862303,3862333,"ERR","ERR","ERR","ERR","ERR"]
["CaeserstoneIndividual BasinDSWD3","Caeserstone","Individual Basin","DSWD",3,null,3862214,3862244,3862274,3862304,3862334,"ERR","ERR","ERR","ERR","ERR"]
["CaeserstoneIndividual BasinDSWD4","Caeserstone","Individual Basin","DSWD",4,null,3862215,3862245,3862275,3862305,3862335,"ERR","ERR","ERR","ERR","ERR"]
["CaeserstoneIndividual BasinDSWD5","Caeserstone","Individual Basin","DSWD",5,null,3862216,3862246,3862276,3862306,3862336,"ERR","ERR","ERR","ERR","ERR"]
["CaeserstoneIndividual BasinDSWD6+","Caeserstone","Individual Basin","DSWD","6+",null,3862217,3862247,3862277,3862307,3862337,"ERR","ERR","ERR","ERR","ERR"]

{"sheet":"Soap Price Table","index":19,"n_rows":27,"n_cols":4,"rows_kept":27,"cut":false,"hidden":true,"merged":[]}
["Material #","Description","List Price","Material #"]
[3346093,"ESD1500A CP SOAP DISPENSER W/SOAP",583,3346093]
[3346092,"ESD1501A CP FAUCET/SOAP DISPENSER COMBO",1328.8,3346092]
[3346089,"ESD2000A CP SOAP DISPENSER W/SOAP",598,3346089]
[3346088,"ESD2001A CP FAUCET/SOAP DISPENSER COMBO",1412.3,3346088]
[3346052,"ESD200-LT CP ELECT  SOAP DISPENSER",452.5,3346052]
[3346051,"ESD200-P CP ELECT SOAP DISPENSER",502.7,3346051]
[3346098,"ESD2100A CP SOAP DISPENSER W/SOAP",526,3346098]
[3346099,"ESD2101A CP FAUCET/SOAP DISPENSER COMBO",962.65,3346099]
[3346050,"ESD250 CP BATTERY SOAP DISPENSER",502.7,3346050]
[3346058,"ESD300-LT CP ELECT SOAP DISPENSER",522.75,3346058]
[3346057,"ESD300-P CP ELECT SOAP DISPENSER",572.95000000000005,3346057]
[3346059,"ESD350 CP BATTERY SOAP DISPENSER",572.95000000000005,3346059]
[3346080,"ESD400A CP BASYS STYLE FOAMING SOAP KIT",650.5,3346080]
[3346081,"ESD400A PVDBN BASYS STYLE SOAP KIT",845.65,3346081]
[3346083,"ESD400A PVDPB BASYS STYLE SOAP KIT",845.65,3346083]
[3346082,"ESD400A PVDSF BASYS STYLE SOAP KIT",845.65,3346082]
[3346087,"ESD500A CP SOAP DISPENSER W/SOAP",611,3346087]
[3346086,"ESD501A CP FAUCET/SOAP DISPENSER COMBO",1362.85,3346086]
[3346091,"ESD600A CP SOAP DISPENSER W/SOAP",476,3346091]
[3346090,"ESD601A CP FAUCET/SOAP DISPENSER COMBO",1148.25,3346090]
[3346095,"ESD700A CP SOAP DISPENSER W/SOAP",632,3346095]
[3346094,"ESD701A CP FAUCET/SOAP DISPENSER COMBO",1401.05,3346094]
[3346097,"ESD800A CP SOAP DISPENSER W/SOAP",505,3346097]
[3346096,"ESD801A CP FAUCET/SOAP DISPENSER COMBO",1364.6,3346096]
[7000004,"SJS1650  SOAP DISP SENSOR DECK MNT LIQ",226.05,7000004]
[7000015,"SJS1750 BELOW DECK FOAM SOAP DISPENSER",416.4,7000015]

{"sheet":"Faucet Price Table","index":20,"n_rows":722,"n_cols":4,"rows_kept":722,"cut":false,"hidden":true,"merged":[]}
["Material #","Description","List Price","Material #"]
[3335132,"EAF100-LT CP ELECT FAUCET 1.0 GPM (IQ)",771.65,3335132]
[3335012,"EAF100-LT CP ELECT FAUCET 1.5 GPM (IQ)",771.65,3335012]
[3335166,"EAF100-LT-ISM CP ELECT FCT 0.35 GPM",780.1,3335166]
[3335140,"EAF100-LT-ISM CP ELECT FCT 0.5 GPM (IQ)",780.1,3335140]
[3335127,"EAF100-LT-ISM CP ELECT FCT 1.0 GPM (IQ)",780.1,3335127]
[3335013,"EAF100-LT-ISM CP ELECT FCT 1.5 GPM (IQ)",780.1,3335013]
[3335014,"EAF100-LT-ISM-IC CP ELECT FCT",801,3335014]
[3335037,"EAF100-P CP ELECT FAUCET (IQ)",834.15,3335037]
[3335161,"EAF100-P CP ELECT FAUCET 0.35 GPM",796.7,3335161]
[3335124,"EAF100-P CP ELECT FAUCET 1.0 GPM (IQ)",796.7,3335124]
[3335003,"EAF100-P CP ELECT FAUCET 1.5 GPM (IQ)",796.7,3335003]
[3335157,"EAF100-P-ISM CP ELECT FCT 0.35 GPM",818.55,3335157]
[3335123,"EAF100-P-ISM CP ELECT FCT 1.0 GPM (IQ)",818.55,3335123]
[3335004,"EAF100-P-ISM CP ELECT FCT 1.5 GPM (IQ)",818.55,3335004]
[3335005,"EAF100-P-ISM-DPU CP ELECT FAUCET (IQ)",945.8,3335005]
[3335008,"EAF100-P-ISM-IC CP ELECT FAUCET",871.6,3335008]
[3335153,"EAF150 CP BATTERY FAUCET 0.35 GPM",723.9,3335153]
[3335109,"EAF150 CP BATTERY FAUCET 0.5 GPM (IQ)",723.9,3335109]
[3335122,"EAF150 CP BATTERY FAUCET 1.0 GPM (IQ)",723.9,3335122]
[3335000,"EAF150 CP BATTERY FAUCET 1.5 GPM (IQ)",723.9,3335000]
[3335045,"EAF150 CP-IC BATTERY FAUCET",771.7,3335045]
[3335151,"EAF150-ISM CP BATTERY FCT 0.35 GPM",745.8,3335151]
[3335121,"EAF150-ISM CP BATTERY FCT 1.0 GPM (IQ)",745.8,3335121]
[3335001,"EAF150-ISM CP BATTERY FCT 1.5 GPM (IQ)",745.8,3335001]
[3335002,"EAF150-ISM-DPU CP BATTERY FAUCET (IQ)",818.55,3335002]
[3335165,"EAF150-ISM-IC CP BATT FCT 0.35 GPM",793.3,3335165]
[3335126,"EAF150-ISM-IC CP BATT FCT 1.0 GPM",793.3,3335126]
[3335007,"EAF150-ISM-IC CP BATT FCT 1.5 GPM",793.3,3335007]
[3335055,"EAF200-LT CP ELECT FAUCET (IQ)",696.4,3335055]
[3335164,"EAF200-LT CP ELECT FAUCET 0.35 GPM",696.4,3335164]
[3335054,"EAF200-LT-ISM CP ELECT FAUCET (IQ)",718.1,3335054]
[3335049,"EAF200-LT-ISM-IC CP ELECT FAUCET (IQ)",771.15,3335049]
[3335050,"EAF200-P CP ELECT FAUCET (IQ)",796.8,3335050]
[3335158,"EAF200-P CP ELECT FAUCET 0.35 GPM",796.8,3335158]
[3335051,"EAF200-P-ISM CP ELECT FAUCET (IQ)",818.5,3335051]
[3335156,"EAF200-P-ISM CP ELECT FAUCET 0.35 GPM",818.5,3335156]
[3335053,"EAF200-P-ISM-DPU CP ELECT FAUCET (IQ)",945.8,3335053]
[3335052,"EAF200-P-ISM-IC  CP ELECT FAUCET",871.6,3335052]
[3335075,"EAF225-P-ISM CP ELECT FAUCET 0.5 GPM",934.5,3335075]
[3335130,"EAF225-P-ISM CP ELECT FAUCET 1.0 GPM",934.5,3335130]
[3335076,"EAF225-P-ISM-DPU-IC CP ELECTRONIC FAUCET",1030.3499999999999,3335076]
[3335077,"EAF225-P-ISM-IC CP ELECTRONIC FAUCET",982.45,3335077]
[3335060,"EAF250 CP BATTERY FAUCET (IQ)",723.9,3335060]
[3335155,"EAF250 CP BATTERY FAUCET 0.35 GPM",723.9,3335155]
[3335061,"EAF250-ISM CP BATTERY FAUCET (IQ)",745.8,3335061]
[3335154,"EAF250-ISM CP BATTERY FAUCET 0.35 GPM",745.8,3335154]
[3335167,"EAF250-ISM CP LL BATTERY FAUCET 0.35 GPM",820.4,3335167]
[3335063,"EAF250-ISM-DPU CP BATTERY FAUCET (IQ)",818.55,3335063]
[3335062,"EAF250-ISM-IC CP BATTERY FAUCET",793.3,3335062]
[3335016,"EAF275 CP BATTERY FAUCET",791.85,3335016]
[3335152,"EAF275 CP BATTERY FAUCET 0.35 GPM",791.85,3335152]
[3335024,"EAF275-IC CP BATTERY FAUCET",864.95,3335024]
[3335150,"EAF275-ISM CP BATT FAUCET W/MIX 0.35 GPM",814.3,3335150]
[3335141,"EAF275-ISM CP BATT FCT W/MIX 30 SEC T/O",814.3,3335141]
[3335017,"EAF275-ISM CP BATTERY FAUCET W/MIX",814.3,3335017]
[3335070,"EAF275-ISM PVDBN BATTERY FAUCET W/MIX",1027.8,3335070]
[3335117,"EAF275-ISM PVDPB BATTERY FCT W/MIX",1027.8,3335117]
[3335092,"EAF275-ISM PVDSF BATTERY FAUCET W/MIX",1027.8,3335092]
[3335028,"EAF275-ISM-DPU-IC CP BATTERY FAUCET",914.35,3335028]
[3335025,"EAF275-ISM-IC CP BATTERY FAUCET",886.85,3335025]
[3335163,"EAF275-ISM-IC CP BATTERY FAUCET 0.35 GPM",886.85,3335163]
[3335160,"EAF350 CP BATTERY FAUCET 0.35 GPM",482.25,3335160]
[3335110,"EAF350 CP BATTERY FAUCET 0.5 GPM",482.25,3335110]
[3335106,"EAF350 CP BATTERY FAUCET 1.5 GPM",482.25,3335106]
[3335159,"EAF350-ISM CP BATTERY FAUCET 0.35 GPM",504.95,3335159]
[3335111,"EAF350-ISM CP BATTERY FAUCET 0.5 GPM",504.95,3335111]
[3335107,"EAF350-ISM CP BATTERY FAUCET 1.5 GPM",504.95,3335107]
[3335098,"EAF700-B CP ELECT FAUCET 1.5 GPM",884.35,3335098]
[3335119,"EAF700-LT CP ELECT FAUCET 0.5 GPM",778.45,3335119]
[3335094,"EAF700-LT CP ELECT FAUCET 1.5 GPM",778.45,3335094]
[3335128,"EAF700-LT-ISM CP ELECT FAUCET 1.0 GPM",813.65,3335128]
[3335081,"EAF700-LT-ISM CP ELECT FAUCET 1.5 GPM",813.65,3335081]
[3335131,"EAF700-P CP ELECT FAUCET 1.0 GPM",778.45,3335131]
[3335096,"EAF700-P CP ELECT FAUCET 1.5 GPM",778.45,3335096]
[3335129,"EAF700-P-ISM CP ELECT FAUCET 1.0 GPM",813.65,3335129]
[3335079,"EAF700-P-ISM CP ELECT FAUCET 1.5 GPM",813.65,3335079]
[3335097,"EAF750 CP ELECT GOOSENECK FAUCET",733.85,3335097]
[3335162,"EAF750-ISM CP BATTERY FAUCET 0.35 GPM",769.05,3335162]
[3335125,"EAF750-ISM CP BATTERY FAUCET 1.0 GPM",769.05,3335125]
[3335074,"EAF750-ISM CP BATTERY FAUCET 1.5 GPM",769.05,3335074]
[3335100,"EAF900-P CP SENSO ELECT FAUCET",2867.65,3335100]
[3315325,"EBF187-4 CP BATTERY FAUCET 0.35 GPM",904.15,3315325]
[3315107,"EBF187-4 CP BATTERY FAUCET 0.5 GPM",904.15,3315107]
[3315144,"EBF187-4-ADM CP BATTERY FAUCET 0.5 GPM",1168.1500000000001,3315144]
[3315146,"EBF187-4-BDM CP BATTERY FAUCET 0.5 GPM",940.5,3315146]
[3315094,"EBF187-4-BDT CP BATTERY FAUCET 0.5 GPM",1080,3315094]
[3315141,"EBF187-8 CP BATTERY FAUCET 0.5 GPM",935.4,3315141]
[3315145,"EBF187-8-ADM CP BATTERY FAUCET 0.5 GPM",1204,3315145]
[3315147,"EBF187-8-BDM CP BATTERY FAUCET 0.5 GPM",971.7,3315147]
[3315095,"EBF187-8-BDT CP BATTERY FAUCET 0.5 GPM",1110.3499999999999,3315095]
[3315333,"EBF550 CP BATTERY FAUCET 0.35 GPM",1004.35,3315333]
[3315313,"EBF550 CP BATTERY FAUCET 1.0 GPM",1004.35,3315313]
[3315312,"EBF550 CP BATTERY FAUCET 1.5 GPM",1004.35,3315312]
[3315156,"EBF550 CP BATTERY FAUCET 2.2 GPM",1004.35,3315156]
[3315162,"EBF550-BDM CP BATTERY FAUCET",1040.6500000000001,3315162]
[3315098,"EBF550-BDT CP BATTERY FAUCET",1179,3315098]
[3315099,"EBF550-H-BDM CP BATTERY FCT 1.5 GPM",1121.4000000000001,3315099]
[3315163,"EBF550-H-BDT CP BATTERY FCT 1.5 GPM",1257.3499999999999,3315163]
[3315114,"EBF615-4 CP BATTERY FAUCET",672.25,3315114]
[3315154,"EBF615-4-BDM CP BATTERY FAUCET",708.55,3315154]
[3315331,"EBF615-4-BDM CP BATTERY FAUCET 0.35 GPM",708.55,3315331]
[3315181,"EBF615-4-BDT CP BATTERY FAUCET",831.3,3315181]
[3315324,"EBF615-4-CP BATTERY FAUCET 0.35 GPM",672.25,3315324]
[3315152,"EBF615-8 CP BATTERY FAUCET",722.7,3315152]
[3315153,"EBF615-8-ADM CP BATTERY FAUCET",983.5,3315153]
[3315155,"EBF615-8-BDM CP BATTERY FAUCET",758.95,3315155]
[3315182,"EBF615-8-BDT CP BATTERY FAUCET",880.15,3315182]
[3315302,"EBF625-4 CP BATTERY FAUCET",705.9,3315302]
[3315303,"EBF625-8 CP BATTERY FAUCET",758.8,3315303]
[3315025,"EBF650 CP BATTERY FAUCET",744.8,3315025]
[3315322,"EBF650 CP BATTERY FAUCET 0.35 GPM",744.8,3315322]
[3315304,"EBF650 CP BATTERY FAUCET W/ETF1024",744.8,3315304]
[3315249,"EBF650 PVDBN BATTERY FAUCET",940.1,3315249]
[3315077,"EBF650 PVDPB BATTERY FAUCET",940.1,3315077]
[3315193,"EBF650 PVDSF BATTERY FAUCET",940.1,3315193]
[3315139,"EBF650-8 CP BATTERY FAUCET",824.95,3315139]
[3315138,"EBF650-8-BDM CP BATTERY FAUCET",861.2,3315138]
[3315184,"EBF650-8-BDT CP BATTERY FAUCET",1004.6,3315184]
[3315137,"EBF650-BDM CP BATTERY FAUCET",781.15,3315137]
[3315326,"EBF650-BDM CP BATTERY FAUCET 0.35 GPM",781.15,3315326]
[3315183,"EBF650-BDT CP BATTERY FAUCET",926.9,3315183]
[3315330,"EBF650-BDT CP BATTERY FAUCET 0.35 GPM",926.9,3315330]
[3315199,"EBF650-LF CP BATTERY FAUCET",744.8,3315199]
[3315300,"EBF655 CP BATTERY FAUCET",782.1,3315300]
[3315332,"EBF655 CP BATTERY FAUCET 0.35 GPM",782.1,3315332]
[3315327,"EBF750-4 CP BATTERY FAUCET 0.35 GPM",924.7,3315327]
[3315318,"EBF750-4 CP BATTERY FAUCET 1.0 GPM",924.7,3315318]
[3315314,"EBF750-4 CP BATTERY FAUCET 1.5 GPM",924.7,3315314]
[3315104,"EBF750-4 CP BATTERY FAUCET 2.2 GPM",924.7,3315104]
[3315315,"EBF750-4-BDM CP 1.5GPM BATTERY FCT",961.05,3315315]
[3315170,"EBF750-4-BDM CP BATTERY FAUCET",961.05,3315170]
[3315317,"EBF750-4-BDT CP 1.5GPM BATTERY FCT",1101.55,3315317]
[3315185,"EBF750-4-BDT CP BATTERY FAUCET",1101.55,3315185]
[3315251,"EBF750-4-LR CP BATTERY FAUCET 2.2 GPM",971,3315251]
[3315164,"EBF750-8 CP BATTERY FAUCET 2.2 GPM",980.1,3315164]
[3315168,"EBF750-8-ADM CP BATTERY FAUCET",1315.05,3315168]
[3315171,"EBF750-8-BDM CP BATTERY FAUCET",1016.4,3315171]
[3315186,"EBF750-8-BDT CP BATTERY FAUCET",1155.25,3315186]
[3315172,"EBF750-H-4-BDM CP BATTERY FCT 1.5 GPM",1041.8,3315172]
[3315187,"EBF750-H-4-BDT CP BATTERY FCT 1.5 GPM",1179.9000000000001,3315187]
[3315165,"EBF750-H-8 CP BATTERY FCT 1.5 GPM",1060.9000000000001,3315165]
[3315169,"EBF750-H-8-ADM CP BATTERY FCT 1.5 GPM",1395.75,3315169]
[3315173,"EBF750-H-8-BDM CP BATTERY FCT 1.5 GPM",1097.0999999999999,3315173]
[3315188,"EBF750-H-8-BDT CP BATTERY FCT 1.5 GPM",1233.75,3315188]
[3315229,"EBF750-PS-4 CP BATTERY FAUCET",924.7,3315229]
[3315105,"EBF750S-4 CP BATTERY FAUCET 2.2 GPM",931.65,3315105]
[3315176,"EBF750S-4-BDM CP BATTERY FAUCET",967.85,3315176]
[3315316,"EBF750S-4-BDM CP BATTERY FCT 1.5 GPM",967.85,3315316]
[3315189,"EBF750S-4-BDT CP BATTERY FAUCET",1108.2,3315189]
[3315166,"EBF750S-8 CP BATTERY FAUCET 2.2 GPM",987.05,3315166]
[3315174,"EBF750S-8-ADM CP BATTERY FAUCET",1322,3315174]
[3315177,"EBF750S-8-BDM CP BATTERY FAUCET",1023.2,3315177]
[3315190,"EBF750S-8-BDT CP BATTERY FAUCET",1162,3315190]
[3315178,"EBF750S-H-4-BDM CP BATTERY FCT 1.5 GPM",1048.55,3315178]
[3315191,"EBF750S-H-4-BDT CP BATTERY FCT 1.5 GPM",1186.55,3315191]
[3315167,"EBF750S-H-8 CP BATTERY FCT 1.5 GPM",1067.7,3315167]
[3315175,"EBF750S-H-8-ADM CP BATTERY FCT 1.5 GPM",1402.6,3315175]
[3315179,"EBF750S-H-8-BDM CP BATTERY FCT 1.5 GPM",1103.95,3315179]
[3315192,"EBF750S-H-8-BDT CP BATTERY FCT 1.5 GPM",1240.3499999999999,3315192]
[3315010,"EBF85-4 CP BATTERY FAUCET",859.6,3315010]
[3315323,"EBF85-4 CP BATTERY FAUCET 0.35 GPM",859.6,3315323]
[3315128,"EBF85-4-ADM CP BATTERY FAUCET",1112.5,3315128]
[3315130,"EBF85-4-BDM CP BATTERY FAUCET",895.9,3315130]
[3315328,"EBF85-4-BDM CP BATTERY FAUCET 0.35 GPM",895.9,3315328]
[3315088,"EBF85-4-BDT CP BATTERY FAUCET",1025.95,3315088]
[3315329,"EBF85-4-BDT CP BATTERY FAUCET 0.35 GPM",1025.95,3315329]
[3315047,"EBF85-8 CP BATTERY FAUCET",895.7,3315047]
[3315129,"EBF85-8-ADM CP BATTERY FAUCET",1148.45,3315129]
[3315131,"EBF85-8-BDM CP BATTERY FAUCET",931.8,3315131]
[3315091,"EBF85-8-BDT CP BATTERY FAUCET",1061.05,3315091]
[3324030,"EFX100.000.0000 CP SENSOR FAUCET",864.65,3324030]
[3324246,"EFX100.000.0010 CP SENSOR FAUCET",939.85,3324246]
[3324215,"EFX100.002.0000 CP SENSOR FAUCET",864.65,3324215]
[3324332,"EFX100.002.0010 CP SENSOR FAUCET",939.85,3324332]
[3324216,"EFX100.002.0110 CP SENSOR FAUCET",1002.4,3324216]
[3324384,"EFX100.003.0000 CP SENSOR FAUCET",864.65,3324384]
[3324298,"EFX100.003.0010 CP SENSOR FAUCET",939.85,3324298]
[3324023,"EFX100.500.0000 CP SENSOR FAUCET",902.2,3324023]
[3324012,"EFX100.500.0010 CP SENSOR FAUCET",977.4,3324012]
[3324340,"EFX100.500.0040 CP SENSOR FAUCET",977.4,3324340]
[3324439,"EFX100.500.0111 CP SENSOR FAUCET",1077.6500000000001,3324439]
[3324280,"EFX100.500.0140 CP SENSOR FAUCET",1040.05,3324280]
[3324024,"EFX100.502.0000 CP SENSOR FAUCET",902.2,3324024]
[3324456,"EFX100.502.0010 CP SENSOR FAUCET",977.45,3324456]
[3324252,"EFX100.502.0040 CP SENSOR FAUCET",977.4,3324252]
[3324229,"EFX100.502.0100 CP SENSOR FAUCET",977.4,3324229]
[3324476,"EFX100.503.0010 CP SENSOR FAUCET",977.4,3324476]
[3324025,"EFX150.000.0000 CP SENSOR FAUCET",827,3324025]
[3324223,"EFX150.002.0000 CP SENSOR FAUCET",827,3324223]
[3324300,"EFX150.003.0000 CP SENSOR FAUCET",827,3324300]
[3324261,"EFX150.200.0100 CP SENSOR FAUCET",1170.3499999999999,3324261]
[3324296,"EFX150.203.0000 CP SENSOR FAUCET",1107.7,3324296]
[3324026,"EFX150.500.0000 CP SENSOR FAUCET",864.65,3324026]
[3324083,"EFX150.500.0001 CP SENSOR FAUCET",902.25,3324083]
[3324230,"EFX150.500.0100 CP SENSOR FAUCET",927.25,3324230]
[3324267,"EFX150.500.0200 CP SENSOR FAUCET",939.85,3324267]
[3324011,"EFX150.502.0000 CP SENSOR FAUCET",864.65,3324011]
[3324027,"EFX150.502.0100 CP SENSOR FAUCET",927.25,3324027]
[3324303,"EFX150.503.0000 CP SENSOR FAUCET",864.65,3324303]
[3324341,"EFX150.503.0100 CP SENSOR FAUCET",927.25,3324341]
[3324243,"EFX175.000.0000 CP SENSOR FAUCET",952.25,3324243]
[3324396,"EFX175.000.0100 CP SENSOR FAUCET",1014.95,3324396]
[3324220,"EFX175.002.0000 CP SENSOR FAUCET",952.25,3324220]
[3324221,"EFX175.002.0200 CP SENSOR FAUCET",1027.45,3324221]
[3324301,"EFX175.003.0000 CP SENSOR FAUCET",952.25,3324301]
[3324244,"EFX175.500.0000 CP SENSOR FAUCET",989.9,3324244]
[3324010,"EFX175.502.0000 CP SENSOR FAUCET",989.9,3324010]
[3324084,"EFX175.502.0001 CP SENSOR FAUCET",1027.5,3324084]
[3324212,"EFX175.502.0010 CP SENSOR FAUCET",1065.0999999999999,3324212]
[3324028,"EFX175.502.0100 CP SENSOR FAUCET",1052.55,3324028]
[3324211,"EFX175.502.0110 CP SENSOR FAUCET",1127.7,3324211]
[3324304,"EFX175.503.0000 CP SENSOR FAUCET",989.9,3324304]
[3324385,"EFX175.503.0100 CP SENSOR FAUCET",1052.55,3324385]
[3324224,"EFX177.000.0000 CP SENSOR FAUCET",1265.5,3324224]
[3324209,"EFX177.000.0100 CP SENSOR FAUCET",1328.2,3324209]
[3324302,"EFX177.003.0000 CP SENSOR FAUCET",1265.5,3324302]
[3324386,"EFX177.003.0100 CP SENSOR FAUCET",1328.2,3324386]
[3324086,"EFX177.500.0000 CP SENSOR FAUCET",1303.1500000000001,3324086]
[3324013,"EFX177.502.0000 CP SENSOR FAUCET",1303.1500000000001,3324013]
[3324029,"EFX177.502.0100 CP SENSOR FAUCET",1303.1500000000001,3324029]
[3324242,"EFX177.502.0200 CP SENSOR FAUCET",1378.35,3324242]
[3324305,"EFX177.503.0000 CP SENSOR FAUCET",1303.1500000000001,3324305]
[3324328,"EFX177.503.0100 CP SENSOR FAUCET",1338.2,3324328]
[3324365,"EFX180.000.0000 CP SENSOR FAUCET",952.3,3324365]
[3324364,"EFX180.002.0000 CP SENSOR FAUCET",952.3,3324364]
[3324361,"EFX180.003.0000 CP SENSOR FAUCET",952.3,3324361]
[3324363,"EFX180.500.0000 CP SENSOR FAUCET",989.95,3324363]
[3324362,"EFX180.502.0000 CP SENSOR FAUCET",989.95,3324362]
[3324360,"EFX180.503.0000 CP SENSOR FAUCET",989.95,3324360]
[3324031,"EFX200.000.0000 CP SENSOR FAUCET",751.85,3324031]
[3324247,"EFX200.000.0010 CP SENSOR FAUCET",827,3324247]
[3324465,"EFX200.000.0011 CP SENSOR FAUCET",864.65,3324465]
[3324254,"EFX200.000.0040 CP SENSOR FAUCET",827,3324254]
[3324207,"EFX200.000.0110 CP SENSOR FAUCET",889.65,3324207]
[3324344,"EFX200.000.0210 CP SENSOR FAUCET",902.2,3324344]
[3324204,"EFX200.002.0000 CP SENSOR FAUCET",751.5,3324204]
[3324283,"EFX200.002.0010 CP SENSOR FAUCET",827,3324283]
[3324398,"EFX200.002.0040 CP SENSOR FAUCET",827.05,3324398]
[3324205,"EFX200.002.0110 CP SENSOR FAUCET",889.65,3324205]
[3324394,"EFX200.002.0200 CP SENSOR FAUCET",827.05,3324394]
[3324284,"EFX200.002.0210 CP SENSOR FAUCET",902.2,3324284]
[3324449,"EFX200.100.0000 CP SENSOR FAUCET",792,3324449]
[3324435,"EFX200.100.0010 CP SENSOR FAUCET",867.15,3324435]
[3324203,"EFX200.100.0040 CP SENSOR FAUCET",867.1,3324203]
[3324463,"EFX200.200.0000 CP SENSOR FAUCET",1032.55,3324463]
[3324250,"EFX200.200.0010 CP SENSOR FAUCET",1107.7,3324250]
[3324233,"EFX200.200.0040 CP SENSOR FAUCET",1107.7,3324233]
[3324451,"EFX200.200.0100 CP SENSOR FAUCET",1095.1500000000001,3324451]
[3324292,"EFX200.200.0140 CP SENSOR FAUCET",1170.3499999999999,3324292]
[3324279,"EFX200.202.0000 CP SENSOR FAUCET",1032.55,3324279]
[3324448,"EFX200.202.0010 CP SENSOR FAUCET",1107.7,3324448]
[3324347,"EFX200.203.0010 CP SENSOR FAUCET",1107.7,3324347]
[3324450,"EFX200.203.0110 CP SENSOR FAUCET",1467.9,3324450]
[3324461,"EFX200.203.0140 CP SENSOR FAUCET",1170.3499999999999,3324461]
[3324393,"EFX200.203.0240 CP SENSOR FAUCET",1182.9000000000001,3324393]
[3324014,"EFX200.500.0000 CP SENSOR FAUCET",789.5,3324014]
[3324095,"EFX200.500.0010 CP SENSOR FAUCET",864.65,3324095]
[3324381,"EFX200.500.0040 CP SENSOR FAUCET",864.65,3324381]
[3324241,"EFX200.500.0110 CP SENSOR FAUCET",927.25,3324241]
[3324033,"EFX200.502.0000 CP SENSOR FAUCET",789.5,3324033]
[3324239,"EFX200.502.0001 CP SENSOR FAUCET",827.05,3324239]
[3324240,"EFX200.502.0010 CP SENSOR FAUCET",864.65,3324240]
[3324082,"EFX200.502.0040 CP SENSOR FAUCET",864.65,3324082]
[3324231,"EFX200.502.0100 CP SENSOR FAUCET",852.05,3324231]
[3324459,"EFX200.502.0110 CP SENSOR FAUCET",927.25,3324459]
[3324299,"EFX200.503.0000 CP SENSOR FAUCET",789.5,3324299]
[3324444,"EFX200.503.0010 CP SENSOR FAUCET",864.65,3324444]
[3324447,"EFX200.503.0011 CP SENSOR FAUCET",902.3,3324447]
[3324441,"EFX200.503.0110 CP SENSOR FAUCET",927.25,3324441]
[3324005,"EFX250.000.0000 CP SENSOR FAUCET",714.25,3324005]
[3324478,"EFX250.000.0000 PVDBN SENSOR FAUCET",919.85,3324478]
[3324483,"EFX250.000.0000 PVDPB SENSOR FAUCET",919.85,3324483]
[3324482,"EFX250.000.0000 PVDSF SENSOR FAUCET",919.85,3324482]
[3324453,"EFX250.000.0001 CP SENSOR FAUCET",751.9,3324453]
[3324454,"EFX250.000.0101 CP SENSOR FAUCET",814.45,3324454]
[3324073,"EFX250.002.0000 CP SENSOR FAUCET",714.25,3324073]
[3324077,"EFX250.002.0100 CP SENSOR FAUCET",776.85,3324077]
[3324260,"EFX250.002.0200 CP SENSOR FAUCET",789.45,3324260]
[3324306,"EFX250.003.0000 CP SENSOR FAUCET",714.25,3324306]
[3324337,"EFX250.100.0000 CP SENSOR FAUCET",753.15,3324337]
[3324489,"EFX250.200.0000 CP SENSOR FAUCET",994.9,3324489]
[3324488,"EFX250.200.0100 CP SENSOR FAUCET",1057.5,3324488]
[3324264,"EFX250.200.0200 CP SENSOR FAUCET",1102.1500000000001,3324264]
[3324258,"EFX250.202.0000 CP SENSOR FAUCET",994.95,3324258]
[3324004,"EFX250.500.0000 CP SENSOR FAUCET",751.85,3324004]
[3324480,"EFX250.500.0000 PVDBN SENSOR FAUCET",954,3324480]
[3324481,"EFX250.500.0000 PVDPB SENSOR FAUCET",954,3324481]
[3324468,"EFX250.500.0000 PVDSF SENSOR FAUCET",954,3324468]
[3324278,"EFX250.500.0001 CP SENSOR FAUCET",864.7,3324278]
[3324058,"EFX250.500.0100 CP SENSOR FAUCET",814.45,3324058]
[3324076,"EFX250.500.0200 CP SENSOR FAUCET",827,3324076]
[3324035,"EFX250.502.0000 CP SENSOR FAUCET",751.85,3324035]
[3324236,"EFX250.502.0001 CP SENSOR FAUCET",789.5,3324236]
[3324060,"EFX250.502.0100 CP SENSOR FAUCET",814.45,3324060]
[3324218,"EFX250.502.0200 CP SENSOR FAUCET",827,3324218]
[3324309,"EFX250.503.0000 CP SENSOR FAUCET",751.85,3324309]
[3324446,"EFX250.503.0001 CP SENSOR FAUCET",789.5,3324446]
[3324399,"EFX250.503.0100 CP SENSOR FAUCET",814.45,3324399]
[3324003,"EFX275.000.0000 CP SENSOR FAUCET",839.55,3324003]
[3324437,"EFX275.000.0001 CP SENSOR FAUCET",877.15,3324437]
[3324293,"EFX275.000.0100 CP SENSOR FAUCET",902.1,3324293]
[3324074,"EFX275.002.0000 CP SENSOR FAUCET",839.55,3324074]
[3324265,"EFX275.002.0100 CP SENSOR FAUCET",902.1,3324265]
[3324307,"EFX275.003.0000 CP SENSOR FAUCET",839.55,3324307]
[3324436,"EFX275.100.0000 CP SENSOR FAUCET",879.6,3324436]
[3324438,"EFX275.100.0101 CP SENSOR FAUCET",941.8,3324438]
[3324217,"EFX275.100.0200 CP SENSOR FAUCET",954.8,3324217]
[3324466,"EFX275.102.0000 CP SENSOR FAUCET",879.6,3324466]
[3324342,"EFX275.102.0100 CP SENSOR FAUCET",942.25,3324342]
[3324397,"EFX275.200.0000 CP SENSOR FAUCET",1120.2,3324397]
[3324339,"EFX275.200.0100 CP SENSOR FAUCET",1182.8499999999999,3324339]
[3324259,"EFX275.202.0000 CP SENSOR FAUCET",1120.2,3324259]
[3324343,"EFX275.203.0000 CP SENSOR FAUCET",1182.8499999999999,3324343]
[3324002,"EFX275.500.0000 CP SENSOR FAUCET",877.15,3324002]
[3324015,"EFX275.500.0100 CP SENSOR FAUCET",939.85,3324015]
[3324034,"EFX275.502.0000 CP SENSOR FAUCET",877.15,3324034]
[3324085,"EFX275.502.0001 CP SENSOR FAUCET",914.75,3324085]
[3324042,"EFX275.502.0100 CP SENSOR FAUCET",939.85,3324042]
[3324078,"EFX275.502.0200 CP SENSOR FAUCET",952.25,3324078]
[3324310,"EFX275.503.0000 CP SENSOR FAUCET",877.15,3324310]
[3324281,"EFX275.503.0100 CP SENSOR FAUCET",939.8,3324281]
[3324213,"EFX277.000.0000 CP SENSOR FAUCET",1152.7,3324213]
[3324208,"EFX277.000.0100 CP SENSOR FAUCET",1215.4000000000001,3324208]
[3324080,"EFX277.002.0000 CP SENSOR FAUCET",1152.7,3324080]
[3324308,"EFX277.003.0000 CP SENSOR FAUCET",1152.7,3324308]
[3324061,"EFX277.500.0000 CP SENSOR FAUCET",1190.3499999999999,3324061]
[3324059,"EFX277.500.0100 CP SENSOR FAUCET",1253,3324059]
[3324032,"EFX277.502.0000 CP SENSOR FAUCET",1190.3499999999999,3324032]
[3324043,"EFX277.502.0100 CP SENSOR FAUCET",1253.05,3324043]
[3324311,"EFX277.503.0000 CP SENSOR FAUCET",1190.3499999999999,3324311]
[3324067,"EFX277.503.0200 CP SENSOR FAUCET",1265.5,3324067]
[3324371,"EFX280.000.0000 CP SENSOR FAUCET",839.5,3324371]
[3324370,"EFX280.002.0000 CP SENSOR FAUCET",839.5,3324370]
[3324367,"EFX280.003.0000 CP SENSOR FAUCET",839.5,3324367]
[3324369,"EFX280.500.0000 CP SENSOR FAUCET",877.15,3324369]
[3324368,"EFX280.502.0000 CP SENSOR FAUCET",877.15,3324368]
[3324366,"EFX280.503.0000 CP SENSOR FAUCET",877.15,3324366]
[3324088,"EFX300.000.0000 CP SENSOR FAUCET",626.54999999999995,3324088]
[3324096,"EFX300.000.0010 CP SENSOR FAUCET",701.7,3324096]
[3324238,"EFX300.000.0040 CP SENSOR FAUCET",701.7,3324238]
[3324346,"EFX300.000.0210 CP SENSOR FAUCET",776.9,3324346]
[3324392,"EFX300.002.0000 CP SENSOR FAUCET",626.6,3324392]
[3324092,"EFX300.002.0010 CP SENSOR FAUCET",701.7,3324092]
[3324460,"EFX300.003.0000 CP SENSOR FAUCET",626.54999999999995,3324460]
[3324458,"EFX300.003.0010 CP SENSOR FAUCET",701.75,3324458]
[3324007,"EFX300.010.0010 CP SENSOR FAUCET",689.2,3324007]
[3324269,"EFX300.012.0010 CP SENSOR FAUCET",701.75,3324269]
[3324350,"EFX300.013.0010 CP SENSOR FAUCET",701.7,3324350]
[3324046,"EFX300.100.0010 CP SENSOR FAUCET",741.85,3324046]
[3324020,"EFX300.110.0010 CP SENSOR FAUCET",741.85,3324020]
[3324391,"EFX300.200.0000 CP SENSOR FAUCET",907.3,3324391]
[3324434,"EFX300.200.0010 CP SENSOR FAUCET",982.4,3324434]
[3324329,"EFX300.200.0040 CP SENSOR FAUCET",982.4,3324329]
[3324382,"EFX300.200.0110 CP SENSOR FAUCET",1045.05,3324382]
[3324379,"EFX300.202.0000 CP SENSOR FAUCET",907.3,3324379]
[3324093,"EFX300.202.0010 CP SENSOR FAUCET",982.45,3324093]
[3324457,"EFX300.203.0110 CP SENSOR FAUCET",1020.05,3324457]
[3324210,"EFX300.210.0110 CP SENSOR FAUCET",1045.05,3324210]
[3324089,"EFX300.500.0000 CP SENSOR FAUCET",664.15,3324089]
[3324097,"EFX300.500.0010 CP SENSOR FAUCET",739.35,3324097]
[3324452,"EFX300.500.0040 CP SENSOR FAUCET",739.35,3324452]
[3324295,"EFX300.502.0010 CP SENSOR FAUCET",739.35,3324295]
[3324263,"EFX300.502.0040 CP SENSOR FAUCET",739.35,3324263]
[3324330,"EFX300.502.0210 CP SENSOR FAUCET",814.5,3324330]
[3324037,"EFX350.000.0000 CP SENSOR FAUCET",588.95000000000005,3324037]
[3324294,"EFX350.000.0100 CP SENSOR FAUCET",651.6,3324294]
[3324345,"EFX350.000.0200 CP SENSOR FAUCET",664.1,3324345]
[3324200,"EFX350.002.0000 CP SENSOR FAUCET",588.95000000000005,3324200]
[3324312,"EFX350.003.0000 CP SENSOR FAUCET",588.95000000000005,3324312]
[3324019,"EFX350.010.0000 CP SENSOR FAUCET",588.95000000000005,3324019]
[3324066,"EFX350.010.0100 CP SENSOR FAUCET",639.79999999999995,3324066]
[3324000,"EFX350.012.0000 CP SENSOR FAUCET",588.95000000000005,3324000]
[3324351,"EFX350.013.0000 CP SENSOR FAUCET",588.95000000000005,3324351]
[3324047,"EFX350.100.0000 CP SENSOR FAUCET",629.1,3324047]
[3324075,"EFX350.100.0200 CP SENSOR FAUCET",704.25,3324075]
[3324201,"EFX350.102.0000 CP SENSOR FAUCET",629.1,3324201]
[3324006,"EFX350.110.0000 CP SENSOR FAUCET",629.45000000000005,3324006]
[3324048,"EFX350.200.0000 CP SENSOR FAUCET",869.7,3324048]
[3324336,"EFX350.202.0000 CP SENSOR FAUCET",869.7,3324336]
[3324380,"EFX350.203.0000 CP SENSOR FAUCET",869.65,3324380]
[3324069,"EFX350.210.0000 CP SENSOR FAUCET",869.7,3324069]
[3324331,"EFX350.212.0000 CP SENSOR FAUCET",869.7,3324331]
[3324225,"EFX350.500.0000 CP SENSOR FAUCET",626.54999999999995,3324225]
[3324081,"EFX350.502.0000 CP SENSOR FAUCET",626.54999999999995,3324081]
[3324206,"EFX350.502.0100 CP SENSOR FAUCET",689.2,3324206]
[3324315,"EFX350.503.0000 CP SENSOR FAUCET",626.54999999999995,3324315]
[3324087,"EFX375.000.0000 CP SENSOR FAUCET",714.25,3324087]
[3324090,"EFX375.000.0100 CP SENSOR FAUCET",776.85,3324090]
[3324276,"EFX375.000.0200 CP SENSOR FAUCET",789.45,3324276]
[3324045,"EFX375.002.0000 CP SENSOR FAUCET",714.25,3324045]
[3324313,"EFX375.003.0000 CP SENSOR FAUCET",714.25,3324313]
[3324275,"EFX375.100.0200 CP SENSOR FAUCET",829.55,3324275]
[3324395,"EFX375.200.0000 CP SENSOR FAUCET",994.95,3324395]
[3324226,"EFX375.500.0000 CP SENSOR FAUCET",751.85,3324226]
[3324234,"EFX375.500.0100 CP SENSOR FAUCET",814.45,3324234]
[3324257,"EFX375.500.0200 CP SENSOR FAUCET",827,3324257]
[3324227,"EFX375.502.0000 CP SENSOR FAUCET",751.85,3324227]
[3324316,"EFX375.503.0000 CP SENSOR FAUCET",751.85,3324316]
[3324255,"EFX377.000.0000 CP SENSOR FAUCET",1027.45,3324255]
[3324256,"EFX377.000.0200 CP SENSOR FAUCET",1102.5999999999999,3324256]
[3324314,"EFX377.003.0000 CP SENSOR FAUCET",1027.45,3324314]
[3324272,"EFX377.500.0000 CP SENSOR FAUCET",1065.0999999999999,3324272]
[3324273,"EFX377.502.0000 CP SENSOR FAUCET",1065.0999999999999,3324273]
[3324317,"EFX377.503.0000 CP SENSOR FAUCET",1065.0999999999999,3324317]
[3324021,"EFX380.010.0000 CP SENSOR FAUCET",714.25,3324021]
[3324094,"EFX380.010.0100 CP SENSOR FAUCET",776.85,3324094]
[3324022,"EFX380.012.0000 CP SENSOR FAUCET",714.25,3324022]
[3324354,"EFX380.013.0000 CP SENSOR FAUCET",789.45,3324354]
[3324235,"EFX380.210.0000 CP SENSOR FAUCET",994.95,3324235]
[3324062,"EFX380.210.0100 CP SENSOR FAUCET",1057.5,3324062]
[3324262,"EFX380.212.0000 CP SENSOR FAUCET",994.95,3324262]
[3324050,"EFX600.000.0000 CP SENSOR FAUCET",626.54999999999995,3324050]
[3324245,"EFX600.000.0010 CP SENSOR FAUCET",744.4,3324245]
[3324202,"EFX600.000.0040 CP SENSOR FAUCET",701.7,3324202]
[3324487,"EFX600.010.0000 CP SENSOR FAUCET",660.2,3324487]
[3324008,"EFX600.010.0010 CP SENSOR FAUCET",701.7,3324008]
[3324099,"EFX600.012.0010 CP SENSOR FAUCET",701.7,3324099]
[3324352,"EFX600.013.0010 CP SENSOR FAUCET",701.7,3324352]
[3324462,"EFX600.102.0010 CP SENSOR FAUCET",741.9,3324462]
[3324017,"EFX600.110.0010 CP SENSOR FAUCET",741.95,3324017]
[3324334,"EFX600.200.0010 CP SENSOR FAUCET",982.4,3324334]
[3324324,"EFX600.200.0040 CP SENSOR FAUCET",982.4,3324324]
[3324274,"EFX600.202.0010 CP SENSOR FAUCET",982.45,3324274]
[3324464,"EFX600.202.0040 CP SENSOR FAUCET",982.4,3324464]
[3324484,"EFX600.203.0000 CP SENSOR FAUCET",907.3,3324484]
[3324266,"EFX600.210.0010 CP SENSOR FAUCET",982.45,3324266]
[3324052,"EFX650.000.0000 CP SENSOR FAUCET",588.95000000000005,3324052]
[3324065,"EFX650.002.0000 CP SENSOR FAUCET",588.95000000000005,3324065]
[3324318,"EFX650.003.0000 CP SENSOR FAUCET",588.95000000000005,3324318]
[3324001,"EFX650.010.0000 CP SENSOR FAUCET",588.95000000000005,3324001]
[3324036,"EFX650.012.0000 CP SENSOR FAUCET",588.95000000000005,3324036]
[3324353,"EFX650.013.0000 CP SENSOR FAUCET",588.95000000000005,3324353]
[3324053,"EFX650.100.0000 CP SENSOR FAUCET",629.1,3324053]
[3324253,"EFX650.102.0000 CP SENSOR FAUCET",629.1,3324253]
[3324009,"EFX650.110.0000 CP SENSOR FAUCET",629.04999999999995,3324009]
[3324349,"EFX650.202.0000 CP SENSOR FAUCET",869.55,3324349]
[3324486,"EFX650.203.0000 CP SENSOR FAUCET",869.6,3324486]
[3324039,"EFX650.210.0000 CP SENSOR FAUCET",869.7,3324039]
[3324440,"EFX650.213.0000 CP SENSOR FAUCET",869.65,3324440]
[3324091,"EFX675.000.0000 CP SENSOR FAUCET",714.25,3324091]
[3324228,"EFX675.002.0000 CP SENSOR FAUCET",714.25,3324228]
[3324319,"EFX675.003.0000 CP SENSOR FAUCET",714.25,3324319]
[3324285,"EFX675.100.0000 CP SENSOR FAUCET",754.4,3324285]
[3324214,"EFX675.200.0000 CP SENSOR FAUCET",994.95,3324214]
[3324270,"EFX677.000.0000 CP SENSOR FAUCET",1027.45,3324270]
[3324271,"EFX677.002.0000 CP SENSOR FAUCET",1027.5,3324271]
[3324320,"EFX677.003.0000 CP SENSOR FAUCET",1027.45,3324320]
[3324018,"EFX680.010.0000 CP SENSOR FAUCET",714.25,3324018]
[3324268,"EFX680.012.0000 CP SENSOR FAUCET",714.25,3324268]
[3324355,"EFX680.013.0000 CP SENSOR FAUCET",713.2,3324355]
[3324477,"EFX680.110.0000 CP SENSOR FAUCET",754.35,3324477]
[3324277,"EFX680.113.0000 CP SENSOR FAUCET",754.4,3324277]
[3324237,"EFX680.210.0000 CP SENSOR FAUCET",994.95,3324237]
[3365341,"ETF500-B CP ELECT FAUCET 2.2 GPM",922.55,3365341]
[3365367,"ETF500-B-BDM CP ELECTRONIC FAUCET",958.9,3365367]
[3365236,"ETF500-B-BDT CP ELECTRONIC FAUCET",1099.4000000000001,3365236]
[3365343,"ETF500-H-B CP ELECT FAUCET 1.5 GPM",1003.2,3365343]
[3365378,"ETF500-H-B-BDM CP ELECT FCT 1.5 GPM",1039.5999999999999,3365378]
[3365239,"ETF500-H-B-BDT CP ELECT FCT 1.5 GPM",1177.8,3365239]
[3365382,"ETF500-H-LT-BDM CP ELECT FCT 1.5 GPM",984.7,3365382]
[3365240,"ETF500-H-LT-BDT CP ELECT FCT 1.5 GPM",1124.5,3365240]
[3365342,"ETF500-H-P CP ELECT FAUCET 1.5 GPM",983.75,3365342]
[3365374,"ETF500-H-P-BDM CP ELECT FCT 1.5 GPM",1020.05,3365374]
[3365238,"ETF500-H-P-BDT CP ELECT FCT 1.5 GPM",1158.8499999999999,3365238]
[3365651,"ETF500-LT CP ELECT FAUCET 1.0 GPM",867.65,3365651]
[3365284,"ETF500-LT CP ELECT FAUCET 2.2 GPM",867.65,3365284]
[3365645,"ETF500-LT CP ELECTRONIC FCT 1.5GPM",867.65,3365645]
[3365371,"ETF500-LT-BDM CP ELECTRONIC FAUCET",903.95,3365371]
[3365237,"ETF500-LT-BDT CP ELECTRONIC FAUCET",1046.0999999999999,3365237]
[3365340,"ETF500-P CP ELECT FAUCET 2.2 GPM",903,3365340]
[3365364,"ETF500-P-BDM CP ELECTRONIC FAUCET",939.25,3365364]
[3365235,"ETF500-P-BDT CP ELECTRONIC FAUCET",1080.45,3365235]
[3365333,"ETF600-8-B CP ELECTRONIC FAUCET",743.1,3365333]
[3365328,"ETF600-8-B-BDM CP ELECTRONIC FAUCET",779.35,3365328]
[3365263,"ETF600-8-B-BDT CP ELECTRONIC FAUCET",925.2,3365263]
[3365334,"ETF600-8-LT CP ELECTRONIC FAUCET",688.2,3365334]
[3365329,"ETF600-8-LT-BDM CP ELECTRONIC FAUCET",724.55,3365329]
[3365264,"ETF600-8-LT-BDT CP ELECTRONIC FAUCET",872,3365264]
[3365332,"ETF600-8-P CP ELECTRONIC FAUCET",723.5,3365332]
[3365327,"ETF600-8-P-BDM CP ELECTRONIC FAUCET",759.85,3365327]
[3365250,"ETF600-8-P-BDT CP ELECTRONIC FAUCET",906.3,3365250]
[3365331,"ETF600-B CP ELECTRONIC FAUCET",663,3365331]
[3365779,"ETF600-B CP ELECTRONIC FAUCET 0.35 GPM",663,3365779]
[3365325,"ETF600-B-BDM CP ELECTRONIC FAUCET",699.25,3365325]
[3365248,"ETF600-B-BDT CP ELECTRONIC FAUCET",847.5,3365248]
[3365055,"ETF600-LT CP ELECTRONIC FAUCET",608.20000000000005,3365055]
[3365770,"ETF600-LT CP ELECTRONIC FAUCET 0.35 GPM",608.20000000000005,3365770]
[3365326,"ETF600-LT-BDM CP ELECTRONIC FAUCET",644.5,3365326]
[3365249,"ETF600-LT-BDT CP ELECTRONIC FAUCET",794.3,3365249]
[3365330,"ETF600-P CP ELECTRONIC FAUCET",643.5,3365330]
[3365773,"ETF600-P CP ELECTRONIC FAUCET 0.35 GPM",643.5,3365773]
[3365697,"ETF600-P PVDBN ELECTRONIC FAUCET",812.15,3365697]
[3365658,"ETF600-P PVDPB ELECTRONIC FAUCET",812.15,3365658]
[3365657,"ETF600-P PVDSF ELECTRONIC FAUCET",812.15,3365657]
[3365324,"ETF600-P-BDM CP ELECTRONIC FAUCET",679.8,3365324]
[3365247,"ETF600-P-BDT CP ELECTRONIC FAUCET",828.6,3365247]
[3365164,"ETF610-4-B CP ELECTRONIC FAUCET",674.9,3365164]
[3365169,"ETF610-4-B-BDM CP ELECTRONIC FAUCET",709.4,3365169]
[3365267,"ETF610-4-B-BDT CP ELECTRONIC FAUCET",846.15,3365267]
[3365293,"ETF610-4-LT CP ELECTRONIC FAUCET",622.79999999999995,3365293]
[3365774,"ETF610-4-LT CP ELECTRONIC FAUCET 0.35GPM",622.79999999999995,3365774]
[3365170,"ETF610-4-LT-BDM CP ELECTRONIC FAUCET",657.3,3365170]
[3365268,"ETF610-4-LT-BDT CP ELECTRONIC FAUCET",795.6,3365268]
[3365163,"ETF610-4-P CP ELECTRONIC FAUCET",656.3,3365163]
[3365775,"ETF610-4-P CP ELECTRONIC FAUCET 0.35 GPM",656.3,3365775]
[3365168,"ETF610-4-P-BDM CP ELECTRONIC FAUCET",690.85,3365168]
[3365266,"ETF610-4-P-BDT CP ELECTRONIC FAUCET",828.1,3365266]
[3365166,"ETF610-8-B CP ELECTRONIC FAUCET",722.85,3365166]
[3365175,"ETF610-8-B-ADM CP ELECTRONIC FAUCET",983.65,3365175]
[3365172,"ETF610-8-B-BDM CP ELECTRONIC FAUCET",763.7,3365172]
[3365270,"ETF610-8-B-BDT CP ELECTRONIC FAUCET",858.35,3365270]
[3365167,"ETF610-8-LT CP ELECTRONIC FAUCET",670.65,3365167]
[3365176,"ETF610-8-LT-ADM CP ELECTRONIC FAUCET",931.5,3365176]
[3365173,"ETF610-8-LT-BDM CP ELECTRONIC FAUCET",714.25,3365173]
[3365271,"ETF610-8-LT-BDT CP ELECTRONIC FAUCET",842.45,3365271]
[3365165,"ETF610-8-P CP ELECTRONIC FAUCET",704.3,3365165]
[3365174,"ETF610-8-P-ADM CP ELECTRONIC FAUCET",965.15,3365174]
[3365171,"ETF610-8-P-BDM CP ELECTRONIC FAUCET",744.9,3365171]
[3365269,"ETF610-8-P-BDT CP ELECTRONIC FAUCET",876.1,3365269]
[3365424,"ETF660-4-B CP ELECTRONIC FAUCET",694.35,3365424]
[3365389,"ETF660-4-B-ADM CP ELECTRONIC FAUCET",959.95,3365389]
[3365406,"ETF660-4-B-BDM CP ELECTRONIC FAUCET",730.65,3365406]
[3365273,"ETF660-4-B-BDT CP ELECTRONIC FAUCET",877.8,3365273]
[3365020,"ETF660-4-LT CP ELECTRONIC FAUCET",619.29999999999995,3365020]
[3365393,"ETF660-4-LT-ADM CP ELECTRONIC FAUCET",905.1,3365393]
[3365407,"ETF660-4-LT-BDM CP ELECTRONIC FAUCET",675.75,3365407]
[3365274,"ETF660-4-LT-BDT CP ELECTRONIC FAUCET",824.55,3365274]
[3365423,"ETF660-4-P CP ELECTRONIC FAUCET",674.9,3365423]
[3365385,"ETF660-4-P-ADM CP ELECTRONIC FAUCET",940.55,3365385]
[3365405,"ETF660-4-P-BDM CP ELECTRONIC FAUCET",711.2,3365405]
[3365272,"ETF660-4-P-BDT CP ELECTRONIC FAUCET",858.95,3365272]
[3365426,"ETF660-8-B CP ELECTRONIC FAUCET",730.5,3365426]
[3365403,"ETF660-8-B-ADM CP ELECTRONIC FAUCET",979.25,3365403]
[3365409,"ETF660-8-B-BDM CP ELECTRONIC FAUCET",766.8,3365409]
[3365276,"ETF660-8-B-BDT CP ELECTRONIC FAUCET",912.9,3365276]
[3365427,"ETF660-8-LT CP ELECTRONIC FAUCET",675.45,3365427]
[3365404,"ETF660-8-LT-ADM CP ELECTRONIC FAUCET",924.45,3365404]
[3365410,"ETF660-8-LT-BDM CP ELECTRONIC FAUCET",711.85,3365410]
[3365277,"ETF660-8-LT-BDT CP ELECTRONIC FAUCET",859.65,3365277]
[3365425,"ETF660-8-P CP ELECTRONIC FAUCET",710.9,3365425]
[3365397,"ETF660-8-P-ADM CP ELECTRONIC FAUCET",959.85,3365397]
[3365408,"ETF660-8-P-BDM CP ELECTRONIC FAUCET",747.25,3365408]
[3365275,"ETF660-8-P-BDT CP ELECTRONIC FAUCET",894.05,3365275]
[3365749,"ETF660-WS-LT CP ELECTRONIC FAUCET",619.29999999999995,3365749]
[3365677,"ETF700-4-B CP ELECT FAUCET 0.5 GPM",0,3365677]
[3365178,"ETF700-4-B CP ELECT FAUCET 2.2 GPM",843,3365178]
[3365194,"ETF700-4-B-BDM CP ELECT FAUCET 2.2 GPM",879.25,3365194]
[3365279,"ETF700-4-B-BDT CP ELECT FAUCET 2.2 GPM",1022.15,3365279]
[3365652,"ETF700-4-LT CP ELECT FAUCET 1.0 GPM",788.15,3365652]
[3365286,"ETF700-4-LT CP ELECT FAUCET 2.2 GPM",788.15,3365286]
[3365646,"ETF700-4-LT CP ELECTRONIC FCT 1.5GPM",788.15,3365646]
[3365195,"ETF700-4-LT-BDM CP ELECT FAUCET 2.2 GPM",824.4,3365195]
[3365280,"ETF700-4-LT-BDT CP ELECT FAUCET 2.2 GPM",968.85,3365280]
[3365490,"ETF700-4-LT-LF CP ELECT FAUCET 2.2 GPM",755.75,3365490]
[3365734,"ETF700-4-LT-LP CP ELEC FAUCT 2.2 GPM NYP",827.55,3365734]
[3365177,"ETF700-4-P CP ELECT FAUCET 2.2 GPM",823.55,3365177]
[3365193,"ETF700-4-P-BDM CP ELECT FAUCET 2.2 GPM",859.85,3365193]
[3365278,"ETF700-4-P-BDT CP ELECT FAUCET 2.2 GPM",1003.25,3365278]
[3365660,"ETF700-4-P-LP CP ELECT FAUCET 1.5 GPM",988.25,3365660]
[3365180,"ETF700-8-B CP ELECT FAUCET 2.2 GPM",898.35,3365180]
[3365224,"ETF700-8-B-ADM CP ELECT FAUCET 2.2 GPM",1233.3499999999999,3365224]
[3365200,"ETF700-8-B-BDM CP ELECT FAUCET 2.2 GPM",934.75,3365200]
[3365282,"ETF700-8-B-BDT CP ELECT FAUCET 2.2 GPM",1076,3365282]
[3365181,"ETF700-8-LT CP ELECT FAUCET 2.2 GPM",843.5,3365181]
[3365225,"ETF700-8-LT-ADM CP ELECT FAUCET 2.2 GPM",1178.55,3365225]
[3365555,"ETF700-8-LT-ADM-BA CP ELECT FAUCET 2.2 G",1237.45,3365555]
[3365201,"ETF700-8-LT-BDM CP ELECT FAUCET 2.2 GPM",879.85,3365201]
[3365433,"ETF700-8-LT-BDT CP ELECT FAUCET 2.2 GPM",1022.7,3365433]
[3365662,"ETF700-8-LT-LF CP ELECT FAUCET 2.2 GPM",811.25,3365662]
[3365179,"ETF700-8-P CP ELECT FAUCET 2.2 GPM",879,3365179]
[3365223,"ETF700-8-P-ADM CP ELECT FAUCET 2.2 GPM",1214,3365223]
[3365199,"ETF700-8-P-BDM CP ELECT FAUCET 2.2 GPM",915.3,3365199]
[3365281,"ETF700-8-P-BDT CP ELECT FAUCET 2.2 GPM",1057.1500000000001,3365281]
[3365011,"ETF700-H-4-B CP ELECT FCT 1.5 GPM",941.7,3365011]
[3365197,"ETF700-H-4-B-BDM CP ELECT FCT 1.5 GPM",978,3365197]
[3365435,"ETF700-H-4-B-BDT CP ELECT FAUCET 1.5 GPM",1100.5999999999999,3365435]
[3365115,"ETF700-H-4-LT CP ELECT FCT 1.5 GPM",868.8,3365115]
[3365198,"ETF700-H-4-LT-BDM CP ELECT FCT 1.5 GPM",905.1,3365198]
[3365436,"ETF700-H-4-LT-BDT CP ELECT FAUCT 1.5 GPM",1047.2,3365436]
[3365010,"ETF700-H-4-P CP ELECT FCT 1.5 GPM",904.25,3365010]
[3365196,"ETF700-H-4-P-BDM CP ELECT FCT 1.5 GPM",940.55,3365196]
[3365434,"ETF700-H-4-P-BDT CP ELECT FAUCET 1.5 GPM",1081.5999999999999,3365434]
[3365183,"ETF700-H-8-B CP ELECT FCT 1.5 GPM",997.15,3365183]
[3365227,"ETF700-H-8-B-ADM CP ELECT FCT 1.5 GPM",1332.05,3365227]
[3365203,"ETF700-H-8-B-BDM CP ELECT FCT 1.5 GPM",1033.3499999999999,3365203]
[3365438,"ETF700-H-8-B-BDT CP ELECT FAUCET 1.5 GPM",1154.4000000000001,3365438]
[3365184,"ETF700-H-8-LT CP ELECT FCT 1.5 GPM",924.2,3365184]
[3365228,"ETF700-H-8-LT-ADM CP ELECT FCT 1.5 GPM",1259.2,3365228]
[3365204,"ETF700-H-8-LT-BDM CP ELECT FCT 1.5 GPM",960.5,3365204]
[3365439,"ETF700-H-8-LT-BDT CP ELECT FAUCT 1.5 GPM",1101,3365439]
[3365182,"ETF700-H-8-P CP ELECT FCT 1.5 GPM",959.7,3365182]
[3365226,"ETF700-H-8-P-ADM CP ELECT FCT 1.5 GPM",1294.6500000000001,3365226]
[3365202,"ETF700-H-8-P-BDM CP ELECT FCT 1.5 GPM",995.95,3365202]
[3365437,"ETF700-H-8-P-BDT CP ELECT FAUCET 1.5 GPM",1135.45,3365437]
[3365429,"ETF770-4-B CP ELECT FAUCET 2.2 GPM",694.35,3365429]
[3365412,"ETF770-4-B-ADM CP ELECTRONIC FAUCET",959.95,3365412]
[3365418,"ETF770-4-B-BDM CP ELECTRONIC FAUCET",730.65,3365418]
[3365454,"ETF770-4-B-BDT CP ELECT FAUCET 2.2 GPM",877.8,3365454]
[3365780,"ETF770-4-LT CP ELECT FAUCET 0.35 GPM",639.4,3365780]
[3365650,"ETF770-4-LT CP ELECT FAUCET 1.0 GPM",639.4,3365650]
[3365021,"ETF770-4-LT CP ELECT FAUCET 2.2 GPM",639.4,3365021]
[3365647,"ETF770-4-LT CP ELECTRONIC FCT 1.5GPM",639.4,3365647]
[3365413,"ETF770-4-LT-ADM CP ELECTRONIC FAUCET",905.1,3365413]
[3365419,"ETF770-4-LT-BDM CP ELECTRONIC FAUCET",675.75,3365419]
[3365455,"ETF770-4-LT-BDT CP ELECT FAUCET 2.2 GPM",824.55,3365455]
[3365776,"ETF770-4-P CP ELECT FAUCET 0.35 GPM",674.9,3365776]
[3365558,"ETF770-4-P CP ELECT FAUCET 1.0 GPM",674.9,3365558]
[3365428,"ETF770-4-P CP ELECT FAUCET 2.2 GPM",674.9,3365428]
[3365648,"ETF770-4-P ELECTRONIC FCT 1.5GPM",674.9,3365648]
[3365411,"ETF770-4-P-ADM CP ELECTRONIC FAUCET",940.55,3365411]
[3365417,"ETF770-4-P-BDM CP ELECTRONIC FAUCET",711.2,3365417]
[3365453,"ETF770-4-P-BDT CP ELECT FAUCET 2.2 GPM",858.95,3365453]
[3365431,"ETF770-8-B CP ELECT FAUCET 2.2 GPM",730.5,3365431]
[3365415,"ETF770-8-B-ADM CP ELECTRONIC FAUCET",979.25,3365415]
[3365421,"ETF770-8-B-BDM CP ELECTRONIC FAUCET",766.8,3365421]
[3365457,"ETF770-8-B-BDT CP ELECT FAUCET 2.2 GPM",912.9,3365457]
[3365564,"ETF770-8-LT CP ELECT FAUCET 1.0 GPM",675.45,3365564]
[3365432,"ETF770-8-LT CP ELECT FAUCET 2.2 GPM",675.45,3365432]
[3365416,"ETF770-8-LT-ADM CP ELECTRONIC FAUCET",924.45,3365416]
[3365422,"ETF770-8-LT-BDM CP ELECTRONIC FAUCET",711.85,3365422]
[3365458,"ETF770-8-LT-BDT CP ELECT FAUCET 2.2 GPM",859.65,3365458]
[3365561,"ETF770-8-P CP ELECT FAUCET 1.0 GPM",710.9,3365561]
[3365430,"ETF770-8-P CP ELECT FAUCET 2.2 GPM",710.9,3365430]
[3365414,"ETF770-8-P-ADM CP ELECTRONIC FAUCET",959.85,3365414]
[3365420,"ETF770-8-P-BDM CP ELECTRONIC FAUCET",747.25,3365420]
[3365777,"ETF770-8-P-BDT CP ELECT FAUCET 0.35 GPM",894.05,3365777]
[3365560,"ETF770-8-P-BDT CP ELECT FAUCET 1.0 GPM",894.05,3365560]
[3365456,"ETF770-8-P-BDT CP ELECT FAUCET 2.2 GPM",894.05,3365456]
[3365726,"ETF800-B CP ELECTRONIC FAUCET 0.5 GPM",1087.1500000000001,3365726]
[3365723,"ETF800-LT CP ELECTRONIC FAUCET 0.5 GPM",1032.45,3365723]
[3365721,"ETF800-P CP ELECTRONIC FAUCET 0.5 GPM",1065.45,3365721]
[3365724,"ETF800-P-BDM CP ELECT FAUCET 0.5 GPM",1099.2,3365724]
[3365725,"ETF800-P-BDT CP ELECT FAUCET 0.5 GPM",1220.25,3365725]
[3365321,"ETF80-4-B CP ELECTRONIC FAUCET",736.8,3365321]
[3365315,"ETF80-4-B-ADM CP ELECTRONIC FAUCET",989.8,3365315]
[3365309,"ETF80-4-B-BDM CP ELECTRONIC FAUCET",773.1,3365309]
[3365230,"ETF80-4-B-BDT CP ELECTRONIC FAUCET",906.75,3365230]
[3365022,"ETF80-4-LT CP ELECTRONIC FAUCET",684.5,3365022]
[3365771,"ETF80-4-LT CP ELECTRONIC FAUCET 0.35 GPM",684.5,3365771]
[3365627,"ETF80-4-LT CP ELECTRONIC FCT W/ 2.2 GPM",684.5,3365627]
[3365316,"ETF80-4-LT-ADM CP ELECTRONIC FAUCET",937.5,3365316]
[3365310,"ETF80-4-LT-BDM CP ELECTRONIC FAUCET",720.85,3365310]
[3365231,"ETF80-4-LT-BDT CP ELECTRONIC FAUCET",856.05,3365231]
[3365320,"ETF80-4-P CP ELECTRONIC FAUCET",718.15,3365320]
[3365772,"ETF80-4-P CP ELECTRONIC FAUCET 0.35 GPM",718.15,3365772]
[3365314,"ETF80-4-P-ADM CP ELECTRONIC FAUCET",971.25,3365314]
[3365308,"ETF80-4-P-BDM CP ELECTRONIC FAUCET",754.55,3365308]
[3365229,"ETF80-4-P-BDT CP ELECTRONIC FAUCET",888.8,3365229]
[3365323,"ETF80-8-B CP ELECTRONIC FAUCET",774.15,3365323]
[3365318,"ETF80-8-B-ADM CP ELECTRONIC FAUCET",1025.55,3365318]
[3365312,"ETF80-8-B-BDM CP ELECTRONIC FAUCET",835.4,3365312]
[3365233,"ETF80-8-B-BDT CP ELECTRONIC FAUCET",941.85,3365233]
[3365298,"ETF80-8-LT CP ELECTRONIC FAUCET",720.65,3365298]
[3365319,"ETF80-8-LT-ADM CP ELECTRONIC FAUCET",973.3,3365319]
[3365313,"ETF80-8-LT-BDM CP ELECTRONIC FAUCET",756.9,3365313]
[3365234,"ETF80-8-LT-BDT CP ELECTRONIC FAUCET",891.1,3365234]
[3365322,"ETF80-8-P CP ELECTRONIC FAUCET",754.35,3365322]
[3365317,"ETF80-8-P-ADM CP ELECTRONIC FAUCET",1007.15,3365317]
[3365311,"ETF80-8-P-BDM CP ELECTRONIC FAUCET",790.65,3365311]
[3365232,"ETF80-8-P-BDT CP ELECTRONIC FAUCET",923.85,3365232]
[3365023,"ETF880-4-B CP ELECTRONIC FAUCET",773.7,3365023]
[3365034,"ETF880-4-B-ADM CP ELECTRONIC FAUCET",1039.25,3365034]
[3365137,"ETF880-4-B-BDM CP ELECTRONIC FAUCET",809.95,3365137]
[3365148,"ETF880-4-B-BDT CP ELECTRONIC FAUCET",954.8,3365148]
[3365027,"ETF880-4-LT CP ELECTRONIC FAUCET",718.8,3365027]
[3365778,"ETF880-4-LT CP ELECTRONIC FAUCET 0.35GPM",718.8,3365778]
[3365131,"ETF880-4-LT-ADM CP ELECTRONIC FAUCET",984.4,3365131]
[3365142,"ETF880-4-LT-BDM CP ELECTRONIC FAUCET",755.05,3365142]
[3365154,"ETF880-4-LT-BDT CP ELECTRONIC FAUCET",901.55,3365154]
[3365628,"ETF880-4-LT-LF CP ELECTRONIC FAUCET",707.65,3365628]
[3365013,"ETF880-4-P CP ELECTRONIC FAUCET",754.15,3365013]
[3365033,"ETF880-4-P-ADM CP ELECTRONIC FAUCET",1019.85,3365033]
[3365136,"ETF880-4-P-BDM CP ELECTRONIC FAUCET",790.45,3365136]
[3365146,"ETF880-4-P-BDT CP ELECTRONIC FAUCET",935.95,3365146]
[3365031,"ETF880-8-B CP ELECTRONIC FAUCET",804.8,3365031]
[3365134,"ETF880-8-B-ADM CP ELECTRONIC FAUCET",1075.0999999999999,3365134]
[3365144,"ETF880-8-B-BDM CP ELECTRONIC FAUCET",841.15,3365144]
[3365156,"ETF880-8-B-BDT CP ELECTRONIC FAUCET",985.1,3365156]
[3365032,"ETF880-8-LT CP ELECTRONIC FAUCET",749.9,3365032]
[3365135,"ETF880-8-LT-ADM CP ELECTRONIC FAUCET",1020.2,3365135]
[3365145,"ETF880-8-LT-BDM CP ELECTRONIC FAUCET",786.25,3365145]
[3365157,"ETF880-8-LT-BDT CP ELECTRONIC FAUCET",931.85,3365157]
[3365028,"ETF880-8-P CP ELECTRONIC FAUCET",785.3,3365028]
[3365133,"ETF880-8-P-ADM CP ELECTRONIC FAUCET",1055.7,3365133]
[3365143,"ETF880-8-P-BDM CP ELECTRONIC FAUCET",821.65,3365143]
[3365155,"ETF880-8-P-BDT CP ELECTRONIC FAUCET",966.25,3365155]
[3365531,"ETF880-P CP FCT ASM W/EL3500 SENSOR",754.15,3365531]
[3362176,"SF2100-4 CP FCT PEDESTAL 0.35 GPM",463.25,3362176]
[3362170,"SF2150-4 CP FCT PEDESTAL 0.35 GPM",436.65,3362170]
[3362102,"SF2150-4 CP FCT PEDESTAL 4\" BATT OPER",436.65,3362102]
[3362177,"SF2150-4-BDM CP FCT PED 0.35 GPM",473.05,3362177]
[3362110,"SF2150-4-BDM CP FCT PED 4\" BAT",473.05,3362110]
[3362153,"SF2200-4 CP FCT GNECK 0.5 GPM HW BB",447.7,3362153]
[3362149,"SF2200-4 CP G'NECK 4\" HW OPER. 1.0 GPM",447.7,3362149]
[3362175,"SF2200-4 CP G'NECK BATT OPER. 0.35 GPM",447.7,3362175]
[3362152,"SF2200-4-BDM CP FCT GNECK 1.0 GPM HW BB",484,3362152]
[3362113,"SF2200-4-BDM CP FCT GNECK 2.2 GPM HW BB",484,3362113]
[3362147,"SF2200-4-BDM FCT GNECK 4\"HW BAT 1.5GPM",484,3362147]
[3362146,"SF2200-4-CP FCT G'NECK 4\" HW BAT 1.5 GPM",447.7,3362146]
[3362165,"SF2200-4-CP FCT G'NECK HW W/ETF1021A",474.3,3362165]
[3362144,"SF2250-4 CP FCT G'NECK 4\" BATT 0.5GPM",421.05,3362144]
[3362145,"SF2250-4 CP G'NECK 4\" BATT OPER 1.5 GPM",421.05,3362145]
[3362150,"SF2250-4 CP G'NECK 4\" BATT OPER. 1.0 GPM",421.05,3362150]
[3362104,"SF2250-4 CP G'NECK 4\" BATT OPER. 2.2 GPM",421.05,3362104]
[3362173,"SF2250-4 CP G'NECK BATT OPER. 0.35 GPM",421.05,3362173]
[3362151,"SF2250-4-BDM CP FCT GNECK 1.0 GPM BAT",457.35,3362151]
[3362112,"SF2250-4-BDM CP FCT GNECK 2.2 GPM BAT",457.35,3362112]
[3362180,"SF2250-4-BDM CP G'NECK BATT 0.35 GPM",457.35,3362180]
[3362148,"SF2250-4-BDM FCT G'NECK 4\" BAT 1.5GPM",457.35,3362148]
[3362116,"SF2300  CP FCT PED SENSOR  HW/B BACKUP",463.25,3362116]
[3362179,"SF2300 CP FCT PED SENSOR 0.35 GPM",463.25,3362179]
[3362115,"SF2300-BDM CP FCT PED SENS  HW/B BACKUP",499.6,3362115]
[3362119,"SF2350  CP FCT PED BATTERY W/CHECK",436.65,3362119]
[3362171,"SF2350 CP FCT PED BATTERY 0.35 GPM",436.65,3362171]
[3362118,"SF2350-BDM CP FCT PED  BATTERY",473.05,3362118]
[3362174,"SF2350-BDM CP FCT PED 0.35 GPM",473.05,3362174]
[3362130,"SF2400 CP FCT PED 4\"TRIM PL HW W/BATTERY",463.25,3362130]
[3362178,"SF2400-4 CP FCT PED 0.35 GPM",463.25,3362178]
[3362172,"SF2450-4 CP FCT PEDESTAL 0.35 GPM",436.65,3362172]
[3362124,"SF2450-4 CP FCT PEDESTAL 4\"  BATTERY",436.65,3362124]
[3362127,"SF2450-4-BDM CP FCT PEDESTAL 4\"  BATT",473.05,3362127]